Workbook

Sheet Раздел0
E2: ФЕДЕРАЛЬНОЕ СТАТИСТИЧЕСКОЕ НАБЛЮДЕНИЕ
E4: КОНФИДЕНЦИАЛЬНОСТЬ ГАРАНТИРУЕТСЯ ПОЛУЧАТЕЛЕМ ИНФОРМАЦИИ
D6: Нарушение порядка предоставления первичных статистических данных или несвоевременное предоставление этих данных, либо предоставление недостоверных первичных статистических данных влечет ответственность, установленную Кодексом Российской Федерации об административных правонарушениях
F9: СВЕДЕНИЯ ПО ПОДГОТОВКЕ СПОРТИВНОГО РЕЗЕРВА
F10: по состоянию на 31 декабря 2022 г.
B12: Предоставляют: | K12: Сроки предоставления | N12: Форма № 5-ФК
B13: юридические лица (кроме субъектов малого и среднего предпринимательства) – организации, осуществляющие спортивную подготовку или обеспечивающие подготовку спортивного резерва: - Министерству спорта Российской Федерации по установленному им адресу | K13: 20 января | N13: Приказ Росстата: Об утверждении формы от 22.08.2022 № 584 О внесении изменений (при наличии) от __________ № ___ от __________ № ___
N21: Годовая
B31: Наименование отчитывающейся организации | H31: муниципальное бюджетное учреждение "Спортивная школа олимпийского резерва № 2" города Каменск-Шахтинский (МБУ "СШОР № 2")
B32: Почтовый адрес | E32: 347800 Ростовская область, г.Каменск-Шахтинский, ул. Степинь, дом 1 | S32: Сельское поселение
B33: Муниципальный район | I33: Городской округ | M33: Муниципальный округ
I34: Каменск-Шахтинский
B35: Код формы по ОКУД | E35: Код
E36: отчитывающейся организации по ОКПО (для обособленного подразделения юридического лица – идентификационный номер) | S36: Код ОКТМО
B37: 1 | E37: 2 | I37: 3 | M37: 4 | S37: 5
B38: 0609403 | E38: 27221679

Sheet Раздел1
B1: Раздел I. Число организаций
H2: Код по ОКЕИ: единица – 642
B3: Ведомственная принадлежность | C3: № стро-ки | D3: Число организаций и структурных подразделений – всего | E3: в том числе по виду организации:
E4: ДЮСШ | F4: СШ | G4: СШОР | H4: УОР | I4: ЦСП | J4: ЦОП | K4: Другие организации
B5: 1 | C5: 2 | D5: 3 | E5: 4 | F5: 5 | G5: 6 | H5: 7 | I5: 8 | J5: 9 | K5: 10
B6: Организации в ведении органов управления в сфере физической культуры и спорта | C6: 01 | D6: =SUM(E6:K6) -> 1 | G6: 1 | N6: =SUM(E6:H6,J6:K6) -> 1
B7: Структурные подразделения, реализующие программы спортивной подготовки | C7: 02 | D7: =SUM(E7:K7) -> 0 | N7: =SUM(E6:K6) -> 1
B8: Обособленные структурные подразделения, реализующие программы спортивной подготовки | C8: 03 | D8: 0 | N8: =SUM(I18:J18) -> 0
B9: Структурные подразделения, реализующие дополнительные общеобразовательные программы в области физической культуры и спорта | C9: 04 | D9: 0 | N9: =SUM(F13,F16) -> 0
B10: Организации в ведении органов управления в сфере образования | C10: 05 | D10: 0 | N10: =SUM(K7,K9) -> 0
B11: Структурные подразделения, реализующие программы спортивной подготовки | C11: 06 | D11: 0
B12: Обособленные структурные подразделения, реализующие программы спортивной подготовки | C12: 07 | D12: 0
B13: Организации другой ведомственной принадлежности | C13: 08 | D13: 0
B14: Структурные подразделения, реализующие программы спортивной подготовки | C14: 09 | D14: 0
B15: Обособленные структурные подразделения, реализующие программы спортивной подготовки | C15: 10 | D15: 0
B16: Структурные подразделения, реализующие дополнительные общеобразовательные программы в области физической культуры и спорта | C16: 11 | D16: =SUM(E16:K16) -> 0
B17: Частные организации (из стр. 08) | C17: 12 | D17: 0
B18: Итого организаций | C18: 13 | D18: =SUM(E18:K18) -> 1 | E18: =SUM(E6,E10,E13) -> 0 | F18: =SUM(F6,F10,F13) -> 0 | G18: =SUM(G6,G10,G13) -> 1 | H18: 0 | I18: 0 | J18: 0 | K18: 0
B19: Итого обособленных структурных подразделений, реализующих программы спортивной подготовки | C19: 14 | D19: =SUM(E19:K19) -> 0 | E19: =SUM(E8,E12,E15) -> 0 | F19: =SUM(F8,F12,F15) -> 0 | G19: 0 | H19: =SUM(H8,H12,H15) -> 0 | I19: 0 | J19: =SUM(J8,J12,J15) -> 0 | K19: 0
B21: ОГРН | C21: 15 | D21: 1026102108647
I22: Код по ОКЕИ: единица – 642
B23: Виды правовых образований | C23: 16 | D23: Публичные правовые образования | I23: Иные правовые образования (в том числе частные)
D24: Российская Федерация | E24: Субъект Российской Федерации | G24: Муниципальное образование
G25: 1
B26: Код по ОКЕИ: единица – 642 | G26: Код по ОКЕИ: единица – 642
B27: Реализация программ спортивной подготовки | C27: № стро-ки | D27: Не реализуют | E27: Частично | G27: Полностью
C29: 17 | G29: 1

Sheet Раздел2
A1: Раздел II. Численность занимающихся
AC2: Коды по ОКЕИ: человек - 792, единица - 642
A3: Виды спорта | B3: № строки | C3: Число отделений по видам спорта, единица | E3: Базовый вид спорта | F3: Число занимающихся и обучающихся на 31 декабря отчетного года, человек
F4: Итого занимающихся и обучающихся | G4: Занимающиеся | W4: Обучающиеся по дополнительным общеобразовательным программам в области физической культуры и спорта
G5: по этапам спортивной подготовки | M5: по возрастам (из гр. 7) | Q5: женщин (из гр. 7) | R5: в платных группах (из гр. 8-12)
C6: всего | D6: в том числе олимпийские отделения | G6: всего занимающихся | H6: спортивно-оздоровительный | I6: начальной подготовки | J6: трениро-вочный | K6: совершен-ствования спортивного мастерства | L6: высшего спортивного мастерства | M6: до 4 лет | N6: от 5 до 17 лет | O6: от 18 до 22 лет | P6: старше 22 лет | R6: спортивно-оздоровительный | S6: начальной подготовки | T6: трениро-вочный | U6: совершен-ствования спортивного мастерства | V6: высшего спортивного мастерства | W6: Всего обучающихся | X6: по общеразвивающим программам | Z6: по предпрофессиональным программам
X7: всего | Y7: в платных группах (из гр. 24) | Z7: всего | AA7: базовый уровень (из гр. 26) | AB7: углубленный уровень (из гр. 26) | AC7: в платных группах (из гр. 26) | AD7: базовый уровень (из гр. 29) | AE7: углубленный уровень (из гр. 29)
A8: 1 | B8: 2 | C8: 3 | D8: 4 | E8: 5 | F8: 6 | G8: 7 | H8: 8 | I8: 9 | J8: 10 | K8: 11 | L8: 12 | M8: 13 | N8: 14 | O8: 15 | P8: 16 | Q8: 17 | R8: 18 | S8: 19 | T8: 20 | U8: 21 | V8: 22 | W8: 23 | X8: 24 | Y8: 25 | Z8: 26 | AA8: 27 | AB8: 28 | AC8: 29 | AD8: 30 | AE8: 31
A9: Авиамодельный спорт | B9: 01 | F9: =SUM(G9,W9)*IF(C9>0,1,0) -> 0 | G9: =SUM(H9:L9) -> 0 | W9: =SUM(X9,Z9) -> 0 | Z9: =SUM(AA9:AB9) -> 0 | AC9: =SUM(AD9:AE9) -> 0
A10: Авиационные гонки | B10: 02 | F10: =SUM(G10,W10)*IF(C10>0,1,0) -> 0 | G10: =SUM(H10:L10) -> 0 | W10: =SUM(X10,Z10) -> 0 | Z10: =SUM(AA10:AB10) -> 0 | AC10: =SUM(AD10:AE10) -> 0
A11: Автомобильный спорт | B11: 03 | F11: 0 | G11: 0 | W11: 0 | Z11: 0 | AC11: 0
A12: Автомодельный спорт | B12: 04 | F12: 0 | G12: 0 | W12: 0 | Z12: 0 | AC12: 0
A13: Айкидо | B13: 05 | F13: 0 | G13: 0 | W13: 0 | Z13: 0 | AC13: 0
A14: Айсшток | B14: 06 | F14: 0 | G14: 0 | W14: 0 | Z14: 0 | AC14: 0
A15: Акробатический рок-н-ролл | B15: 07 | F15: 0 | G15: 0 | W15: 0 | Z15: 0 | AC15: 0
A16: Альпинизм | B16: 08 | F16: 0 | G16: 0 | W16: 0 | Z16: 0 | AC16: 0
A17: Американский футбол | B17: 09 | F17: 0 | G17: 0 | W17: 0 | Z17: 0 | AC17: 0
A18: Армейский рукопашный бой | B18: 10 | F18: 0 | G18: 0 | W18: 0 | Z18: 0 | AC18: 0
A19: Армейское тактико-стрелковое многоборье | B19: 11 | F19: 0 | G19: 0 | W19: 0 | Z19: 0 | AC19: 0
A20: Армрестлинг | B20: 12 | F20: 0 | G20: 0 | W20: 0 | Z20: 0 | AC20: 0
A21: Бадминтон | B21: 13 | F21: 0 | G21: 0 | W21: 0 | Z21: 0 | AC21: 0
A22: Баскетбол - всего | B22: 14 | C22: =IF(SUM(C23:C25)>=1,1,0) -> 1 | D22: =IF(SUM(D23:D25)>=1,1,0) -> 0 | F22: 136 | G22: 136 | H22: =SUM(H23:H25) -> 0 | I22: =SUM(I23:I25) -> 126 | J22: 10 | K22: 0 | L22: 0 | M22: 0 | N22: 136 | O22: 0 | P22: 0 | Q22: 0 | R22: 0 | S22: 0 | T22: 0 | U22: 0 | V22: 0 | W22: 0 | X22: 0 | Y22: 0 | Z22: 0 | AA22: 0 | AB22: 0 | AC22: 0 | AD22: 0 | AE22: 0
A23: в том числе: Баскетбол (муж.) | B23: 15 | C23: 1 | F23: 136 | G23: 136 | I23: 126 | J23: 10 | N23: 136 | W23: 0 | Z23: 0 | AC23: 0
A24: Баскетбол (жен.) | B24: 16 | F24: 0 | G24: 0 | Q24: =G24 -> 0 | W24: 0 | Z24: 0 | AC24: 0
A25: Баскетбол 3х3 | B25: 17 | F25: 0 | G25: 0 | W25: 0 | Z25: 0 | AC25: 0
A26: Бейсбол | B26: 18 | F26: 0 | G26: 0 | W26: 0 | Z26: 0 | AC26: 0
A27: Биатлон | B27: 19 | F27: 0 | G27: 0 | W27: 0 | Z27: 0 | AC27: 0
A28: Бильярдный спорт | B28: 20 | F28: 0 | G28: 0 | W28: 0 | Z28: 0 | AC28: 0
A29: Бобслей - всего | B29: 21 | C29: =IF(SUM(C30:C31)>=1,1,0) -> 0 | D29: =IF(SUM(D30:D31)>=1,1,0) -> 0 | F29: 0 | G29: 0 | H29: =SUM(H30:H31) -> 0 | I29: =SUM(I30:I31) -> 0 | J29: 0 | K29: 0 | L29: 0 | M29: 0 | N29: 0 | O29: 0 | P29: 0 | Q29: 0 | R29: 0 | S29: 0 | T29: 0 | U29: 0 | V29: 0 | W29: 0 | X29: 0 | Y29: 0 | Z29: 0 | AA29: 0 | AB29: 0 | AC29: 0 | AD29: 0 | AE29: 0
A30: в том числе: Бобслей | B30: 22 | F30: 0 | G30: 0 | W30: 0 | Z30: 0 | AC30: 0
A31: Скелетон | B31: 23 | F31: 0 | G31: 0 | W31: 0 | Z31: 0 | AC31: 0
A32: Бодибилдинг | B32: 24 | F32: 0 | G32: 0 | W32: 0 | Z32: 0 | AC32: 0
A33: Бокс | B33: 25 | C33: 1 | F33: 46 | G33: 46 | I33: 10 | J33: 35 | K33: 1 | N33: 46 | Q33: 3 | W33: 0 | Z33: 0 | AC33: 0
A34: Борьба на поясах | B34: 26 | F34: 0 | G34: 0 | W34: 0 | Z34: 0 | AC34: 0
A35: Боулинг | B35: 27 | F35: 0 | G35: 0 | W35: 0 | Z35: 0 | AC35: 0
A36: Боулспорт | B36: 28 | F36: 0 | G36: 0 | W36: 0 | Z36: 0 | AC36: 0
A37: Велосипедный спорт - всего | B37: 29 | C37: =IF(SUM(C38:C41)>=1,1,0) -> 0 | D37: =IF(SUM(D38:D41)>=1,1,0) -> 0 | F37: 0 | G37: 0 | H37: =SUM(H38:H41) -> 0 | I37: =SUM(I38:I41) -> 0 | J37: 0 | K37: 0 | L37: 0 | M37: 0 | N37: 0 | O37: 0 | P37: 0 | Q37: 0 | R37: 0 | S37: 0 | T37: 0 | U37: 0 | V37: 0 | W37: 0 | X37: 0 | Y37: 0 | Z37: 0 | AA37: 0 | AB37: 0 | AC37: 0 | AD37: 0 | AE37: 0
A38: в том числе: BMX | B38: 30 | F38: 0 | G38: 0 | W38: 0 | Z38: 0 | AC38: 0
A39: Маунтинбайк | B39: 31 | F39: 0 | G39: 0 | W39: 0 | Z39: 0 | AC39: 0
A40: Трек | B40: 32 | F40: 0 | G40: 0 | W40: 0 | Z40: 0 | AC40: 0
A41: Шоссе | B41: 33 | F41: 0 | G41: 0 | W41: 0 | Z41: 0 | AC41: 0
A42: Вертолетный спорт | B42: 34 | F42: 0 | G42: 0 | W42: 0 | Z42: 0 | AC42: 0
A43: Водно-моторный спорт | B43: 35 | F43: 0 | G43: 0 | W43: 0 | Z43: 0 | AC43: 0
A44: Водно-спасательное многоборье | B44: 36 | F44: 0 | G44: 0 | W44: 0 | Z44: 0 | AC44: 0
A45: Водное поло - всего | B45: 37 | C45: =IF(SUM(C46:C47)>=1,1,0) -> 0 | D45: =IF(SUM(D46:D47)>=1,1,0) -> 0 | F45: 0 | G45: 0 | H45: =SUM(H46:H47) -> 0 | I45: =SUM(I46:I47) -> 0 | J45: 0 | K45: 0 | L45: 0 | M45: 0 | N45: 0 | O45: 0 | P45: 0 | Q45: 0 | R45: 0 | S45: 0 | T45: 0 | U45: 0 | V45: 0 | W45: 0 | X45: 0 | Y45: 0 | Z45: 0 | AA45: 0 | AB45: 0 | AC45: 0 | AD45: 0 | AE45: 0
A46: в том числе: Водное поло (муж.) | B46: 38 | F46: 0 | G46: 0 | W46: 0 | Z46: 0 | AC46: 0
A47: Водное поло (жен.) | B47: 39 | F47: 0 | G47: 0 | Q47: =G47 -> 0 | W47: 0 | Z47: 0 | AC47: 0
A48: Воднолыжный спорт | B48: 40 | F48: 0 | G48: 0 | W48: 0 | Z48: 0 | AC48: 0
A49: Военно-прикладной спорт | B49: 41 | F49: 0 | G49: 0 | W49: 0 | Z49: 0 | AC49: 0
A50: Военно-спортивное многоборье | B50: 42 | F50: 0 | G50: 0 | W50: 0 | Z50: 0 | AC50: 0
A51: Воздухоплавательный спорт | B51: 43 | F51: 0 | G51: 0 | W51: 0 | Z51: 0 | AC51: 0
A52: Воздушно-силовая атлетика | B52: 44 | F52: 0 | G52: 0 | W52: 0 | Z52: 0 | AC52: 0
A53: Волейбол - всего | B53: 45 | C53: =IF(SUM(C54:C57)>=1,1,0) -> 0 | D53: =IF(SUM(D54:D57)>=1,1,0) -> 0 | F53: 0 | G53: 0 | H53: =SUM(H54:H57) -> 0 | I53: =SUM(I54:I57) -> 0 | J53: 0 | K53: 0 | L53: 0 | M53: 0 | N53: 0 | O53: 0 | P53: 0 | Q53: 0 | R53: 0 | S53: 0 | T53: 0 | U53: 0 | V53: 0 | W53: 0 | X53: 0 | Y53: 0 | Z53: 0 | AA53: 0 | AB53: 0 | AC53: 0 | AD53: 0 | AE53: 0
A54: в том числе: Волейбол (муж.) | B54: 46 | F54: 0 | G54: 0 | W54: 0 | Z54: 0 | AC54: 0
A55: Волейбол (жен.) | B55: 47 | F55: 0 | G55: 0 | Q55: =G55 -> 0 | W55: 0 | Z55: 0 | AC55: 0
A56: Пляжный волейбол (муж.) | B56: 48 | F56: 0 | G56: 0 | W56: 0 | Z56: 0 | AC56: 0
A57: Пляжный волейбол (жен.) | B57: 49 | F57: 0 | G57: 0 | Q57: =G57 -> 0 | W57: 0 | Z57: 0 | AC57: 0
A58: Восточное боевое единоборство | B58: 50 | F58: 0 | G58: 0 | W58: 0 | Z58: 0 | AC58: 0
A59: Всестилевое каратэ | B59: 51 | F59: 0 | G59: 0 | W59: 0 | Z59: 0 | AC59: 0
A60: Гандбол - всего | B60: 52 | C60: =IF(SUM(C61:C63)>=1,1,0) -> 0 | D60: =IF(SUM(D61:D63)>=1,1,0) -> 0 | F60: 0 | G60: 0 | H60: =SUM(H61:H63) -> 0 | I60: =SUM(I61:I63) -> 0 | J60: 0 | K60: 0 | L60: 0 | M60: 0 | N60: 0 | O60: 0 | P60: 0 | Q60: 0 | R60: 0 | S60: 0 | T60: 0 | U60: 0 | V60: 0 | W60: 0 | X60: 0 | Y60: 0 | Z60: 0 | AA60: 0 | AB60: 0 | AC60: 0 | AD60: 0 | AE60: 0
A61: в том числе: Гандбол (муж.) | B61: 53 | F61: 0 | G61: 0 | W61: 0 | Z61: 0 | AC61: 0
A62: Гандбол (жен.) | B62: 54 | F62: 0 | G62: 0 | Q62: =G62 -> 0 | W62: 0 | Z62: 0 | AC62: 0
A63: Пляжный гандбол | B63: 55 | F63: 0 | G63: 0 | W63: 0 | Z63: 0 | AC63: 0
A64: Гиревой спорт | B64: 56 | F64: 0 | G64: 0 | W64: 0 | Z64: 0 | AC64: 0
A65: Го | B65: 57 | F65: 0 | G65: 0 | W65: 0 | Z65: 0 | AC65: 0
A66: Гольф | B66: 58 | F66: 0 | G66: 0 | W66: 0 | Z66: 0 | AC66: 0
A67: Гонки на охотничьих лыжах | B67: 59 | F67: 0 | G67: 0 | W67: 0 | Z67: 0 | AC67: 0
A68: Гонки с препятствиями | B68: 60 | F68: 0 | G68: 0 | W68: 0 | Z68: 0 | AC68: 0
A69: Горнолыжный спорт | B69: 61 | F69: 0 | G69: 0 | W69: 0 | Z69: 0 | AC69: 0
A70: Городошный спорт | B70: 62 | F70: 0 | G70: 0 | W70: 0 | Z70: 0 | AC70: 0
A71: Гребля на байдарках и каноэ | B71: 63 | F71: 0 | G71: 0 | W71: 0 | Z71: 0 | AC71: 0
A72: Гребля на шлюпках | B72: 64 | F72: 0 | G72: 0 | W72: 0 | Z72: 0 | AC72: 0
A73: Гребной слалом | B73: 65 | F73: 0 | G73: 0 | W73: 0 | Z73: 0 | AC73: 0
A74: Гребной спорт - всего | B74: 66 | C74: =IF(SUM(C75:C78)>=1,1,0) -> 0 | D74: =IF(SUM(D75:D78)>=1,1,0) -> 0 | F74: =SUM(G74,W74)*IF(C74>0,1,0) -> 0 | G74: =SUM(H74:L74) -> 0 | H74: =SUM(H75:H78) -> 0 | I74: =SUM(I75:I78) -> 0 | J74: 0 | K74: 0 | L74: 0 | M74: 0 | N74: 0 | O74: 0 | P74: 0 | Q74: 0 | R74: 0 | S74: 0 | T74: 0 | U74: 0 | V74: 0 | W74: 0 | X74: 0 | Y74: 0 | Z74: 0 | AA74: 0 | AB74: 0 | AC74: 0 | AD74: 0 | AE74: 0
A75: в том числе: Академическая гребля | B75: 67 | F75: 0 | G75: 0 | W75: =SUM(X75,Z75) -> 0 | Z75: =SUM(AA75:AB75) -> 0 | AC75: =SUM(AD75:AE75) -> 0
A76: Гребля-индор | B76: 68 | F76: 0 | G76: 0 | W76: 0 | Z76: 0 | AC76: 0
A77: Народная гребля | B77: 69 | F77: 0 | G77: 0 | W77: 0 | Z77: 0 | AC77: 0
A78: Прибрежная гребля | B78: 70 | F78: 0 | G78: 0 | W78: 0 | Z78: 0 | AC78: 0
A79: Гребно-парусное двоеборье | B79: 71 | F79: 0 | G79: 0 | W79: 0 | Z79: 0 | AC79: 0
A80: Дартс | B80: 72 | F80: 0 | G80: 0 | W80: 0 | Z80: 0 | AC80: 0
A81: Джиу-джитсу | B81: 73 | F81: 0 | G81: 0 | W81: 0 | Z81: 0 | AC81: 0
A82: Дзюдо | B82: 74 | F82: 0 | G82: 0 | W82: 0 | Z82: 0 | AC82: 0
A83: Ездовой спорт | B83: 75 | F83: 0 | G83: 0 | W83: 0 | Z83: 0 | AC83: 0
A84: Зимнее плавание | B84: 76 | F84: 0 | G84: 0 | W84: 0 | Z84: 0 | AC84: 0
A85: Капоэйра | B85: 77 | F85: 0 | G85: 0 | W85: 0 | Z85: 0 | AC85: 0
A86: Каратэ | B86: 78 | F86: 0 | G86: 0 | W86: 0 | Z86: 0 | AC86: 0
A87: Кендо | B87: 79 | F87: 0 | G87: 0 | W87: 0 | Z87: 0 | AC87: 0
A88: Керешу | B88: 80 | F88: 0 | G88: 0 | W88: 0 | Z88: 0 | AC88: 0
A89: Кёрлинг - всего | B89: 81 | C89: =IF(SUM(C90:C92)>=1,1,0) -> 0 | D89: =IF(SUM(D90:D92)>=1,1,0) -> 0 | F89: 0 | G89: 0 | H89: =SUM(H90:H92) -> 0 | I89: =SUM(I90:I92) -> 0 | J89: 0 | K89: 0 | L89: 0 | M89: 0 | N89: 0 | O89: 0 | P89: 0 | Q89: 0 | R89: 0 | S89: 0 | T89: 0 | U89: 0 | V89: 0 | W89: 0 | X89: 0 | Y89: 0 | Z89: 0 | AA89: 0 | AB89: 0 | AC89: 0 | AD89: 0 | AE89: 0
A90: в том числе: Керлинг (муж.) | B90: 82 | F90: 0 | G90: 0 | W90: 0 | Z90: 0 | AC90: 0
A91: Керлинг (жен.) | B91: 83 | F91: 0 | G91: 0 | Q91: =G91 -> 0 | W91: 0 | Z91: 0 | AC91: 0
A92: Кёрлинг – смешанные пары | B92: 84 | F92: 0 | G92: 0 | W92: 0 | Z92: 0 | AC92: 0
A93: Кикбоксинг | B93: 85 | F93: 0 | G93: 0 | W93: 0 | Z93: 0 | AC93: 0
A94: Кинологический спорт | B94: 86 | F94: 0 | G94: 0 | W94: 0 | Z94: 0 | AC94: 0
A95: Киокусинкай | B95: 87 | F95: 0 | G95: 0 | W95: 0 | Z95: 0 | AC95: 0
A96: Киокушин | B96: 88 | F96: 0 | G96: 0 | W96: 0 | Z96: 0 | AC96: 0
A97: Комплексное единоборство | B97: 89 | F97: 0 | G97: 0 | W97: 0 | Z97: 0 | AC97: 0
A98: Компьютерный спорт | B98: 90 | F98: 0 | G98: 0 | W98: 0 | Z98: 0 | AC98: 0
A99: Конный спорт | B99: 91 | F99: 0 | G99: 0 | W99: 0 | Z99: 0 | AC99: 0
A100: Конькобежный спорт - всего | B100: 92 | C100: =IF(SUM(C101:C102)>=1,1,0) -> 0 | D100: =IF(SUM(D101:D102)>=1,1,0) -> 0 | F100: 0 | G100: 0 | H100: =SUM(H101:H102) -> 0 | I100: =SUM(I101:I102) -> 0 | J100: 0 | K100: 0 | L100: 0 | M100: 0 | N100: 0 | O100: 0 | P100: 0 | Q100: 0 | R100: 0 | S100: 0 | T100: 0 | U100: 0 | V100: 0 | W100: 0 | X100: 0 | Y100: 0 | Z100: 0 | AA100: 0 | AB100: 0 | AC100: 0 | AD100: 0 | AE100: 0
A101: в том числе: Конькобежный спорт | B101: 93 | F101: 0 | G101: 0 | W101: 0 | Z101: 0 | AC101: 0
A102: Шорт-трек | B102: 94 | F102: 0 | G102: 0 | W102: 0 | Z102: 0 | AC102: 0
A103: Корэш | B103: 95 | F103: 0 | G103: 0 | W103: 0 | Z103: 0 | AC103: 0
A104: Крикет | B104: 96 | F104: 0 | G104: 0 | W104: 0 | Z104: 0 | AC104: 0
A105: Кудо | B105: 97 | F105: 0 | G105: 0 | W105: 0 | Z105: 0 | AC105: 0
A106: Лапта | B106: 98 | F106: 0 | G106: 0 | W106: 0 | Z106: 0 | AC106: 0
A107: Легкая атлетика - всего | B107: 99 | C107: =IF(SUM(C108:C114)>=1,1,0) -> 1 | D107: =IF(SUM(D108:D114)>=1,1,0) -> 0 | F107: 317 | G107: 317 | H107: =SUM(H108:H114) -> 0 | I107: =SUM(I108:I114) -> 200 | J107: 117 | K107: 0 | L107: 0 | M107: 0 | N107: 317 | O107: 0 | P107: 0 | Q107: 148 | R107: 0 | S107: 0 | T107: 0 | U107: 0 | V107: 0 | W107: 0 | X107: 0 | Y107: 0 | Z107: 0 | AA107: 0 | AB107: 0 | AC107: 0 | AD107: 0 | AE107: 0
A108: в том числе: Спринтерский и барьерный бег | B108: 100 | F108: 0 | G108: 0 | W108: 0 | Z108: 0 | AC108: 0
A109: Бег на средние дистанции и бег с препятствиями | B109: 101 | F109: 0 | G109: 0 | W109: 0 | Z109: 0 | AC109: 0
A110: Бег на длинные и сверхдлинные дистанции | B110: 102 | F110: 0 | G110: 0 | W110: 0 | Z110: 0 | AC110: 0
A111: Многоборья | B111: 103 | C111: 1 | F111: 317 | G111: 317 | I111: 200 | J111: 117 | N111: 317 | Q111: 148 | W111: 0 | Z111: 0 | AC111: 0
A112: Прыжки | B112: 104 | F112: 0 | G112: 0 | W112: 0 | Z112: 0 | AC112: 0
A113: Метания | B113: 105 | F113: 0 | G113: 0 | W113: 0 | Z113: 0 | AC113: 0
A114: Спортивная ходьба | B114: 106 | F114: 0 | G114: 0 | W114: 0 | Z114: 0 | AC114: 0
A115: Лыжное двоеборье | B115: 107 | F115: 0 | G115: 0 | W115: 0 | Z115: 0 | AC115: 0
A116: Лыжные гонки | B116: 108 | F116: 0 | G116: 0 | W116: 0 | Z116: 0 | AC116: 0
A117: Мас-рестлинг | B117: 109 | F117: 0 | G117: 0 | W117: 0 | Z117: 0 | AC117: 0
A118: Международное военно-спортивное многоборье | B118: 110 | F118: 0 | G118: 0 | W118: 0 | Z118: 0 | AC118: 0
A119: Микрофутзал | B119: 111 | F119: 0 | G119: 0 | W119: 0 | Z119: 0 | AC119: 0
A120: Многоборье кинологов | B120: 112 | F120: 0 | G120: 0 | W120: 0 | Z120: 0 | AC120: 0
A121: Многоборье спасателей МЧС России | B121: 113 | F121: 0 | G121: 0 | W121: 0 | Z121: 0 | AC121: 0
A122: Морское многоборье | B122: 114 | F122: 0 | G122: 0 | W122: 0 | Z122: 0 | AC122: 0
A123: Мотоциклетный спорт | B123: 115 | F123: 0 | G123: 0 | W123: 0 | Z123: 0 | AC123: 0
A124: Нарды | B124: 116 | F124: 0 | G124: 0 | W124: 0 | Z124: 0 | AC124: 0
A125: Настольный теннис | B125: 117 | F125: 0 | G125: 0 | W125: 0 | Z125: 0 | AC125: 0
A126: Падел | B126: 118 | F126: 0 | G126: 0 | W126: 0 | Z126: 0 | AC126: 0
A127: Парашютный спорт | B127: 119 | F127: 0 | G127: 0 | W127: 0 | Z127: 0 | AC127: 0
A128: Парусный спорт | B128: 120 | F128: 0 | G128: 0 | W128: 0 | Z128: 0 | AC128: 0
A129: Пауэрлифтинг | B129: 121 | F129: 0 | G129: 0 | W129: 0 | Z129: 0 | AC129: 0
A130: Перетягивание каната | B130: 122 | F130: 0 | G130: 0 | W130: 0 | Z130: 0 | AC130: 0
A131: Пилонный спорт | B131: 123 | F131: 0 | G131: 0 | W131: 0 | Z131: 0 | AC131: 0
A132: Плавание - всего | B132: 124 | C132: =IF(SUM(C133:C134)>=1,1,0) -> 1 | D132: =IF(SUM(D133:D134)>=1,1,0) -> 0 | F132: 66 | G132: 66 | H132: =SUM(H133:H134) -> 0 | I132: =SUM(I133:I134) -> 29 | J132: 37 | K132: 0 | L132: 0 | M132: 0 | N132: 66 | O132: 0 | P132: 0 | Q132: 18 | R132: 0 | S132: 0 | T132: 0 | U132: 0 | V132: 0 | W132: 0 | X132: 0 | Y132: 0 | Z132: 0 | AA132: 0 | AB132: 0 | AC132: 0 | AD132: 0 | AE132: 0
A133: в том числе: Плавание | B133: 125 | C133: 1 | F133: 66 | G133: 66 | I133: 29 | J133: 37 | N133: 66 | Q133: 18 | W133: 0 | Z133: 0 | AC133: 0
A134: Открытая вода | B134: 126 | F134: 0 | G134: 0 | W134: 0 | Z134: 0 | AC134: 0
A135: Планерный спорт | B135: 127 | F135: 0 | G135: 0 | W135: 0 | Z135: 0 | AC135: 0
A136: Подводный спорт | B136: 128 | F136: 0 | G136: 0 | W136: 0 | Z136: 0 | AC136: 0
A137: Пожарно-спасательный спорт | B137: 129 | F137: 0 | G137: 0 | W137: 0 | Z137: 0 | AC137: 0
A138: Полиатлон | B138: 130 | F138: =SUM(G138,W138)*IF(C138>0,1,0) -> 0 | G138: =SUM(H138:L138) -> 0 | W138: =SUM(X138,Z138) -> 0 | Z138: =SUM(AA138:AB138) -> 0 | AC138: =SUM(AD138:AE138) -> 0
A139: Практическая стрельба | B139: 131 | F139: 0 | G139: 0 | W139: 0 | Z139: 0 | AC139: 0
A140: Прыжки в воду - всего | B140: 132 | C140: =IF(SUM(C141:C142)>=1,1,0) -> 0 | D140: =IF(SUM(D141:D142)>=1,1,0) -> 0 | F140: 0 | G140: 0 | H140: =SUM(H141:H142) -> 0 | I140: =SUM(I141:I142) -> 0 | J140: 0 | K140: 0 | L140: 0 | M140: 0 | N140: 0 | O140: 0 | P140: 0 | Q140: 0 | R140: 0 | S140: 0 | T140: 0 | U140: 0 | V140: 0 | W140: 0 | X140: 0 | Y140: 0 | Z140: 0 | AA140: 0 | AB140: 0 | AC140: 0 | AD140: 0 | AE140: 0
A141: в том числе: Прыжки в воду | B141: 133 | F141: 0 | G141: 0 | W141: 0 | Z141: 0 | AC141: 0
A142: Прыжки в открытый водоем | B142: 134 | F142: 0 | G142: 0 | W142: 0 | Z142: 0 | AC142: 0
A143: Прыжки на батуте - всего | B143: 135 | C143: =IF(SUM(C144:C147)>=1,1,0) -> 0 | D143: =IF(SUM(D144:D147)>=1,1,0) -> 0 | F143: 0 | G143: 0 | H143: =SUM(H144:H147) -> 0 | I143: =SUM(I144:I147) -> 0 | J143: 0 | K143: 0 | L143: 0 | M143: 0 | N143: 0 | O143: 0 | P143: 0 | Q143: 0 | R143: 0 | S143: 0 | T143: 0 | U143: 0 | V143: 0 | W143: 0 | X143: 0 | Y143: 0 | Z143: 0 | AA143: 0 | AB143: 0 | AC143: 0 | AD143: 0 | AE143: 0
A144: в том числе: Акробатическая дорожка | B144: 136 | F144: 0 | G144: 0 | W144: 0 | Z144: 0 | AC144: 0
A145: Двойной минитрамп | B145: 137 | F145: 0 | G145: 0 | W145: 0 | Z145: 0 | AC145: 0
A146: Индивидуальные прыжки | B146: 138 | F146: 0 | G146: 0 | W146: 0 | Z146: 0 | AC146: 0
A147: Синхронные прыжки | B147: 139 | F147: 0 | G147: 0 | W147: 0 | Z147: 0 | AC147: 0
A148: Прыжки на лыжах с трамплина | B148: 140 | F148: 0 | G148: 0 | W148: 0 | Z148: 0 | AC148: 0
A149: Пулевая стрельба - всего | B149: 141 | C149: =IF(SUM(C150:C154)>=1,1,0) -> 0 | D149: =IF(SUM(D150:D154)>=1,1,0) -> 0 | F149: 0 | G149: 0 | H149: =SUM(H150:H154) -> 0 | I149: =SUM(I150:I154) -> 0 | J149: 0 | K149: 0 | L149: 0 | M149: 0 | N149: 0 | O149: 0 | P149: 0 | Q149: 0 | R149: 0 | S149: 0 | T149: 0 | U149: 0 | V149: 0 | W149: 0 | X149: 0 | Y149: 0 | Z149: 0 | AA149: 0 | AB149: 0 | AC149: 0 | AD149: 0 | AE149: 0
A150: в том числе: Пневматическая винтовка | B150: 142 | F150: 0 | G150: 0 | W150: 0 | Z150: 0 | AC150: 0
A151: Пневматический пистолет | B151: 143 | F151: 0 | G151: 0 | W151: 0 | Z151: 0 | AC151: 0
A152: Малокалиберная винтовка | B152: 144 | F152: 0 | G152: 0 | W152: 0 | Z152: 0 | AC152: 0
A153: Малокалиберный пистолет | B153: 145 | F153: 0 | G153: 0 | W153: 0 | Z153: 0 | AC153: 0
A154: Движущаяся мишень | B154: 146 | F154: 0 | G154: 0 | W154: 0 | Z154: 0 | AC154: 0
A155: Пэйнтбол | B155: 147 | F155: 0 | G155: 0 | W155: 0 | Z155: 0 | AC155: 0
A156: Радиоспорт | B156: 148 | F156: 0 | G156: 0 | W156: 0 | Z156: 0 | AC156: 0
A157: Рафтинг | B157: 149 | F157: 0 | G157: 0 | W157: 0 | Z157: 0 | AC157: 0
A158: Регби - всего | B158: 150 | C158: =IF(SUM(C159:C163)>=1,1,0) -> 0 | D158: =IF(SUM(D159:D163)>=1,1,0) -> 0 | F158: 0 | G158: 0 | H158: =SUM(H159:H163) -> 0 | I158: =SUM(I159:I163) -> 0 | J158: 0 | K158: 0 | L158: 0 | M158: 0 | N158: 0 | O158: 0 | P158: 0 | Q158: 0 | R158: 0 | S158: 0 | T158: 0 | U158: 0 | V158: 0 | W158: 0 | X158: 0 | Y158: 0 | Z158: 0 | AA158: 0 | AB158: 0 | AC158: 0 | AD158: 0 | AE158: 0
A159: в том числе: Регби | B159: 151 | F159: 0 | G159: 0 | W159: 0 | Z159: 0 | AC159: 0
A160: Регби 7 (муж.) | B160: 152 | F160: 0 | G160: 0 | W160: 0 | Z160: 0 | AC160: 0
A161: Регби 7 (жен.) | B161: 153 | F161: 0 | G161: 0 | Q161: =G161 -> 0 | W161: 0 | Z161: 0 | AC161: 0
A162: Регби - пляжное | B162: 154 | F162: 0 | G162: 0 | W162: 0 | Z162: 0 | AC162: 0
A163: Регби на снегу | B163: 155 | F163: 0 | G163: 0 | W163: 0 | Z163: 0 | AC163: 0
A164: Регбол | B164: 156 | F164: 0 | G164: 0 | W164: 0 | Z164: 0 | AC164: 0
A165: Роллер спорт | B165: 157 | F165: 0 | G165: 0 | W165: 0 | Z165: 0 | AC165: 0
A166: Роуп скиппинг (спортивная скакалка) | B166: 158 | F166: 0 | G166: 0 | W166: 0 | Z166: 0 | AC166: 0
A167: Рукопашный бой | B167: 159 | F167: 0 | G167: 0 | W167: 0 | Z167: 0 | AC167: 0
A168: Рыболовный спорт | B168: 160 | F168: 0 | G168: 0 | W168: 0 | Z168: 0 | AC168: 0
A169: Сават | B169: 161 | F169: 0 | G169: 0 | W169: 0 | Z169: 0 | AC169: 0
A170: Самбо | B170: 162 | F170: 0 | G170: 0 | W170: 0 | Z170: 0 | AC170: 0
A171: Самолетный спорт | B171: 163 | F171: 0 | G171: 0 | W171: 0 | Z171: 0 | AC171: 0
A172: Санный спорт | B172: 164 | F172: 0 | G172: 0 | W172: 0 | Z172: 0 | AC172: 0
A173: Северное многоборье | B173: 165 | F173: 0 | G173: 0 | W173: 0 | Z173: 0 | AC173: 0
A174: Серфинг | B174: 166 | F174: 0 | G174: 0 | W174: 0 | Z174: 0 | AC174: 0
A175: Силовой экстрим | B175: 167 | F175: 0 | G175: 0 | W175: 0 | Z175: 0 | AC175: 0
A176: Синхронное плавание | B176: 168 | F176: 0 | G176: 0 | W176: 0 | Z176: 0 | AC176: 0
A177: Скалолазание | B177: 169 | F177: 0 | G177: 0 | W177: 0 | Z177: 0 | AC177: 0
A178: Сквош | B178: 170 | F178: 0 | G178: 0 | W178: 0 | Z178: 0 | AC178: 0
A179: Скейтбординг | B179: 171 | F179: 0 | G179: 0 | W179: 0 | Z179: 0 | AC179: 0
A180: Служебно-боевая стрельба | B180: 172 | F180: 0 | G180: 0 | W180: 0 | Z180: 0 | AC180: 0
A181: Служебно-прикладной спорт | B181: 173 | F181: 0 | G181: 0 | W181: 0 | Z181: 0 | AC181: 0
A182: Служебно-прикладной спорт ФСО России | B182: 174 | F182: 0 | G182: 0 | W182: 0 | Z182: 0 | AC182: 0
A183: Служебно-прикладной спорт ФТС России | B183: 175 | F183: 0 | G183: 0 | W183: 0 | Z183: 0 | AC183: 0
A184: Служебное двоеборье | B184: 176 | F184: 0 | G184: 0 | W184: 0 | Z184: 0 | AC184: 0
A185: Служебное единоборство | B185: 177 | F185: 0 | G185: 0 | W185: 0 | Z185: 0 | AC185: 0
A186: Служебное многоборье | B186: 178 | F186: 0 | G186: 0 | W186: 0 | Z186: 0 | AC186: 0
A187: Служебный биатлон | B187: 179 | F187: 0 | G187: 0 | W187: 0 | Z187: 0 | AC187: 0
A188: Спасательный спорт | B188: 180 | F188: 0 | G188: 0 | W188: 0 | Z188: 0 | AC188: 0
A189: Стрельба из боевого ручного стрелкового оружия | B189: 181 | F189: 0 | G189: 0 | W189: 0 | Z189: 0 | AC189: 0
A190: Стрельба из штатного или табельного оружия | B190: 182 | F190: 0 | G190: 0 | W190: 0 | Z190: 0 | AC190: 0
A191: Стрельба на дальние дистанции | B191: 183 | F191: 0 | G191: 0 | W191: 0 | Z191: 0 | AC191: 0
A192: Смешанное боевое единоборство (ММА) | B192: 184 | F192: 0 | G192: 0 | W192: 0 | Z192: 0 | AC192: 0
A193: Сноуборд | B193: 185 | F193: 0 | G193: 0 | W193: 0 | Z193: 0 | AC193: 0
A194: Современное пятиборье | B194: 186 | F194: 0 | G194: 0 | W194: 0 | Z194: 0 | AC194: 0
A195: Софтбол | B195: 187 | F195: 0 | G195: 0 | W195: 0 | Z195: 0 | AC195: 0
A196: Спорт сверхлегкой авиации | B196: 188 | F196: 0 | G196: 0 | W196: 0 | Z196: 0 | AC196: 0
A197: Спортивная акробатика | B197: 189 | F197: 0 | G197: 0 | W197: 0 | Z197: 0 | AC197: 0
A198: Спортивная аэробика | B198: 190 | F198: 0 | G198: 0 | W198: 0 | Z198: 0 | AC198: 0
A199: Спортивная борьба - всего | B199: 191 | C199: =IF(SUM(C200:C204)>=1,1,0) -> 1 | D199: =IF(SUM(D200:D204)>=1,1,0) -> 0 | F199: 70 | G199: 70 | H199: =SUM(H200:H204) -> 0 | I199: =SUM(I200:I204) -> 25 | J199: 45 | K199: 0 | L199: 0 | M199: 0 | N199: 70 | O199: 0 | P199: 0 | Q199: 0 | R199: 0 | S199: 0 | T199: 0 | U199: 0 | V199: 0 | W199: 0 | X199: 0 | Y199: 0 | Z199: 0 | AA199: 0 | AB199: 0 | AC199: 0 | AD199: 0 | AE199: 0
A200: в том числе: Вольная борьба | B200: 192 | F200: 0 | G200: 0 | W200: 0 | Z200: 0 | AC200: 0
... 82 more rows

Sheet Раздел3
A1: Раздел III. Численность занимающихся по программам спортивной подготовки
AA2: Код по ОКЕИ: человек – 792
A3: Виды спорта | B3: № строки | C3: Число занимающихся по программам спортивной подготовки на 31 декабря отчетного года (из гр. 9-12 раздела II) | V3: Число занимающихся, зачисленных на программы спортивной подготовки в отчетном году | AA3: Число занимающихся, отчисленных с программ спортивной подготовки в отчетном году
C4: всего | D4: в том числе по этапам и годам подготовки | V4: всего | W4: в том числе по этапам подготовки | AA4: всего | AB4: в том числе по этапам подготовки
D5: начальной подготовки | G5: тренировочный | L5: совершенствования спортивного мастерства | Q5: высшего спортивного мастерства
D6: 1 | E6: 2 | F6: более 2 | G6: 1 | H6: 2 | I6: 3 | J6: 4 | K6: 5 | L6: 1 | M6: 2 | N6: 3 | O6: 4 | P6: более 4 | Q6: 1 | R6: 2 | S6: 3 | T6: 4 | U6: более 4 | W6: начальной подготовки | X6: трениро-вочный | Y6: совершен-ствования спортивного мастерства | Z6: высшего спортивного мастерства | AB6: начальной подготовки | AC6: трениро-вочный | AD6: совершен-ствования спортивного мастерства | AE6: высшего спортивного мастерства
A7: 1 | B7: 2 | C7: 3 | D7: 4 | E7: 5 | F7: 6 | G7: 7 | H7: 8 | I7: 9 | J7: 10 | K7: 11 | L7: 12 | M7: 13 | N7: 14 | O7: 15 | P7: 16 | Q7: 17 | R7: 18 | S7: 19 | T7: 20 | U7: 21 | V7: 22 | W7: 23 | X7: 24 | Y7: 25 | Z7: 26 | AA7: 27 | AB7: 28 | AC7: 29 | AD7: 30 | AE7: 31 | AF7: 2р | AG7: нп | AH7: тр | AI7: сов | AJ7: выс
A8: Авиамодельный спорт | B8: 01 | C8: =SUM(D8:U8) -> 0 | V8: =SUM(W8:Z8) -> 0 | AA8: =SUM(AB8:AE8) -> 0 | AF8: =Раздел2!C9 -> 0 | AG8: =Раздел2!I9 -> 0 | AH8: =Раздел2!J9 -> 0 | AI8: =Раздел2!K9 -> 0 | AJ8: =Раздел2!L9 -> 0
A9: Авиационные гонки | B9: 02 | C9: =SUM(D9:U9) -> 0 | V9: =SUM(W9:Z9) -> 0 | AA9: =SUM(AB9:AE9) -> 0 | AF9: =Раздел2!C10 -> 0 | AG9: =Раздел2!I10 -> 0 | AH9: =Раздел2!J10 -> 0 | AI9: =Раздел2!K10 -> 0 | AJ9: =Раздел2!L10 -> 0
A10: Автомобильный спорт | B10: 03 | C10: 0 | V10: 0 | AA10: 0 | AF10: =Раздел2!C11 -> 0 | AG10: =Раздел2!I11 -> 0 | AH10: =Раздел2!J11 -> 0 | AI10: =Раздел2!K11 -> 0 | AJ10: =Раздел2!L11 -> 0
A11: Автомодельный спорт | B11: 04 | C11: 0 | V11: 0 | AA11: 0 | AF11: =Раздел2!C12 -> 0 | AG11: =Раздел2!I12 -> 0 | AH11: =Раздел2!J12 -> 0 | AI11: =Раздел2!K12 -> 0 | AJ11: =Раздел2!L12 -> 0
A12: Айкидо | B12: 05 | C12: 0 | V12: 0 | AA12: 0 | AF12: =Раздел2!C13 -> 0 | AG12: =Раздел2!I13 -> 0 | AH12: =Раздел2!J13 -> 0 | AI12: =Раздел2!K13 -> 0 | AJ12: =Раздел2!L13 -> 0
A13: Айсшток | B13: 06 | C13: 0 | V13: 0 | AA13: 0 | AF13: =Раздел2!C14 -> 0 | AG13: =Раздел2!I14 -> 0 | AH13: =Раздел2!J14 -> 0 | AI13: =Раздел2!K14 -> 0 | AJ13: =Раздел2!L14 -> 0
A14: Акробатический рок-н-ролл | B14: 07 | C14: 0 | V14: 0 | AA14: 0 | AF14: =Раздел2!C15 -> 0 | AG14: =Раздел2!I15 -> 0 | AH14: =Раздел2!J15 -> 0 | AI14: =Раздел2!K15 -> 0 | AJ14: =Раздел2!L15 -> 0
A15: Альпинизм | B15: 08 | C15: 0 | V15: 0 | AA15: 0 | AF15: =Раздел2!C16 -> 0 | AG15: =Раздел2!I16 -> 0 | AH15: =Раздел2!J16 -> 0 | AI15: =Раздел2!K16 -> 0 | AJ15: =Раздел2!L16 -> 0
A16: Американский футбол | B16: 09 | C16: 0 | V16: 0 | AA16: 0 | AF16: =Раздел2!C17 -> 0 | AG16: =Раздел2!I17 -> 0 | AH16: =Раздел2!J17 -> 0 | AI16: =Раздел2!K17 -> 0 | AJ16: =Раздел2!L17 -> 0
A17: Армейский рукопашный бой | B17: 10 | C17: 0 | V17: 0 | AA17: 0 | AF17: =Раздел2!C18 -> 0 | AG17: =Раздел2!I18 -> 0 | AH17: =Раздел2!J18 -> 0 | AI17: =Раздел2!K18 -> 0 | AJ17: =Раздел2!L18 -> 0
A18: Армейское тактико-стрелковое многоборье | B18: 11 | C18: 0 | V18: 0 | AA18: 0 | AF18: =Раздел2!C19 -> 0 | AG18: =Раздел2!I19 -> 0 | AH18: =Раздел2!J19 -> 0 | AI18: =Раздел2!K19 -> 0 | AJ18: =Раздел2!L19 -> 0
A19: Армрестлинг | B19: 12 | C19: 0 | V19: 0 | AA19: 0 | AF19: =Раздел2!C20 -> 0 | AG19: =Раздел2!I20 -> 0 | AH19: =Раздел2!J20 -> 0 | AI19: =Раздел2!K20 -> 0 | AJ19: =Раздел2!L20 -> 0
A20: Бадминтон | B20: 13 | C20: 0 | V20: 0 | AA20: 0 | AF20: =Раздел2!C21 -> 0 | AG20: =Раздел2!I21 -> 0 | AH20: =Раздел2!J21 -> 0 | AI20: =Раздел2!K21 -> 0 | AJ20: =Раздел2!L21 -> 0
A21: Баскетбол - всего | B21: 14 | C21: 136 | D21: =SUM(D22:D24) -> 38 | E21: =SUM(E22:E24) -> 32 | F21: 56 | G21: 0 | H21: 0 | I21: 0 | J21: 0 | K21: 10 | L21: 0 | M21: 0 | N21: 0 | O21: 0 | P21: 0 | Q21: 0 | R21: 0 | S21: 0 | T21: 0 | U21: 0 | V21: 65 | W21: 65 | X21: 0 | Y21: 0 | Z21: 0 | AA21: 59 | AB21: 55 | AC21: 4 | AD21: 0 | AE21: 0 | AF21: =Раздел2!C22 -> 1 | AG21: =Раздел2!I22 -> 126 | AH21: =Раздел2!J22 -> 10 | AI21: =Раздел2!K22 -> 0 | AJ21: =Раздел2!L22 -> 0
A22: в том числе: Баскетбол (муж.) | B22: 15 | C22: 136 | D22: 38 | E22: 32 | F22: 56 | K22: 10 | V22: 65 | W22: 65 | AA22: 59 | AB22: 55 | AC22: 4 | AF22: =Раздел2!C23 -> 1 | AG22: =Раздел2!I23 -> 126 | AH22: =Раздел2!J23 -> 10 | AI22: =Раздел2!K23 -> 0 | AJ22: =Раздел2!L23 -> 0
A23: Баскетбол (жен.) | B23: 16 | C23: 0 | V23: 0 | AA23: 0 | AF23: =Раздел2!C24 -> 0 | AG23: =Раздел2!I24 -> 0 | AH23: =Раздел2!J24 -> 0 | AI23: =Раздел2!K24 -> 0 | AJ23: =Раздел2!L24 -> 0
A24: Баскетбол 3х3 | B24: 17 | C24: 0 | V24: 0 | AA24: 0 | AF24: =Раздел2!C25 -> 0 | AG24: =Раздел2!I25 -> 0 | AH24: =Раздел2!J25 -> 0 | AI24: =Раздел2!K25 -> 0 | AJ24: =Раздел2!L25 -> 0
A25: Бейсбол | B25: 18 | C25: 0 | V25: 0 | AA25: 0 | AF25: =Раздел2!C26 -> 0 | AG25: =Раздел2!I26 -> 0 | AH25: =Раздел2!J26 -> 0 | AI25: =Раздел2!K26 -> 0 | AJ25: =Раздел2!L26 -> 0
A26: Биатлон | B26: 19 | C26: 0 | V26: 0 | AA26: 0 | AF26: =Раздел2!C27 -> 0 | AG26: =Раздел2!I27 -> 0 | AH26: =Раздел2!J27 -> 0 | AI26: =Раздел2!K27 -> 0 | AJ26: =Раздел2!L27 -> 0
A27: Бильярдный спорт | B27: 20 | C27: 0 | V27: 0 | AA27: 0 | AF27: =Раздел2!C28 -> 0 | AG27: =Раздел2!I28 -> 0 | AH27: =Раздел2!J28 -> 0 | AI27: =Раздел2!K28 -> 0 | AJ27: =Раздел2!L28 -> 0
A28: Бобслей - всего | B28: 21 | C28: 0 | D28: =SUM(D29:D30) -> 0 | E28: =SUM(E29:E30) -> 0 | F28: 0 | G28: 0 | H28: 0 | I28: 0 | J28: 0 | K28: 0 | L28: 0 | M28: 0 | N28: 0 | O28: 0 | P28: 0 | Q28: 0 | R28: 0 | S28: 0 | T28: 0 | U28: 0 | V28: 0 | W28: 0 | X28: 0 | Y28: 0 | Z28: 0 | AA28: 0 | AB28: 0 | AC28: 0 | AD28: 0 | AE28: 0 | AF28: =Раздел2!C29 -> 0 | AG28: =Раздел2!I29 -> 0 | AH28: =Раздел2!J29 -> 0 | AI28: =Раздел2!K29 -> 0 | AJ28: =Раздел2!L29 -> 0
A29: в том числе: Бобслей | B29: 22 | C29: 0 | V29: 0 | AA29: 0 | AF29: =Раздел2!C30 -> 0 | AG29: =Раздел2!I30 -> 0 | AH29: =Раздел2!J30 -> 0 | AI29: =Раздел2!K30 -> 0 | AJ29: =Раздел2!L30 -> 0
A30: Скелетон | B30: 23 | C30: 0 | V30: 0 | AA30: 0 | AF30: =Раздел2!C31 -> 0 | AG30: =Раздел2!I31 -> 0 | AH30: =Раздел2!J31 -> 0 | AI30: =Раздел2!K31 -> 0 | AJ30: =Раздел2!L31 -> 0
A31: Бодибилдинг | B31: 24 | C31: 0 | V31: 0 | AA31: 0 | AF31: =Раздел2!C32 -> 0 | AG31: =Раздел2!I32 -> 0 | AH31: =Раздел2!J32 -> 0 | AI31: =Раздел2!K32 -> 0 | AJ31: =Раздел2!L32 -> 0
A32: Бокс | B32: 25 | C32: 46 | F32: 10 | I32: 24 | K32: 11 | L32: 1 | V32: 0 | AA32: 18 | AB32: 1 | AC32: 17 | AF32: =Раздел2!C33 -> 1 | AG32: =Раздел2!I33 -> 10 | AH32: =Раздел2!J33 -> 35 | AI32: =Раздел2!K33 -> 1 | AJ32: =Раздел2!L33 -> 0
A33: Борьба на поясах | B33: 26 | C33: 0 | V33: 0 | AA33: 0 | AF33: =Раздел2!C34 -> 0 | AG33: =Раздел2!I34 -> 0 | AH33: =Раздел2!J34 -> 0 | AI33: =Раздел2!K34 -> 0 | AJ33: =Раздел2!L34 -> 0
A34: Боулинг | B34: 27 | C34: 0 | V34: 0 | AA34: 0 | AF34: =Раздел2!C35 -> 0 | AG34: =Раздел2!I35 -> 0 | AH34: =Раздел2!J35 -> 0 | AI34: =Раздел2!K35 -> 0 | AJ34: =Раздел2!L35 -> 0
A35: Боулспорт | B35: 28 | C35: 0 | V35: 0 | AA35: 0 | AF35: =Раздел2!C36 -> 0 | AG35: =Раздел2!I36 -> 0 | AH35: =Раздел2!J36 -> 0 | AI35: =Раздел2!K36 -> 0 | AJ35: =Раздел2!L36 -> 0
A36: Велосипедный спорт - всего | B36: 29 | C36: 0 | D36: =SUM(D37:D40) -> 0 | E36: =SUM(E37:E40) -> 0 | F36: 0 | G36: 0 | H36: 0 | I36: 0 | J36: 0 | K36: 0 | L36: 0 | M36: 0 | N36: 0 | O36: 0 | P36: 0 | Q36: 0 | R36: 0 | S36: 0 | T36: 0 | U36: 0 | V36: 0 | W36: 0 | X36: 0 | Y36: 0 | Z36: 0 | AA36: 0 | AB36: 0 | AC36: 0 | AD36: 0 | AE36: 0 | AF36: =Раздел2!C37 -> 0 | AG36: =Раздел2!I37 -> 0 | AH36: =Раздел2!J37 -> 0 | AI36: =Раздел2!K37 -> 0 | AJ36: =Раздел2!L37 -> 0
A37: в том числе: BMX | B37: 30 | C37: 0 | V37: 0 | AA37: 0 | AF37: =Раздел2!C38 -> 0 | AG37: =Раздел2!I38 -> 0 | AH37: =Раздел2!J38 -> 0 | AI37: =Раздел2!K38 -> 0 | AJ37: =Раздел2!L38 -> 0
A38: Маунтинбайк | B38: 31 | C38: 0 | V38: 0 | AA38: 0 | AF38: =Раздел2!C39 -> 0 | AG38: =Раздел2!I39 -> 0 | AH38: =Раздел2!J39 -> 0 | AI38: =Раздел2!K39 -> 0 | AJ38: =Раздел2!L39 -> 0
A39: Трек | B39: 32 | C39: 0 | V39: 0 | AA39: 0 | AF39: =Раздел2!C40 -> 0 | AG39: =Раздел2!I40 -> 0 | AH39: =Раздел2!J40 -> 0 | AI39: =Раздел2!K40 -> 0 | AJ39: =Раздел2!L40 -> 0
A40: Шоссе | B40: 33 | C40: 0 | V40: 0 | AA40: 0 | AF40: =Раздел2!C41 -> 0 | AG40: =Раздел2!I41 -> 0 | AH40: =Раздел2!J41 -> 0 | AI40: =Раздел2!K41 -> 0 | AJ40: =Раздел2!L41 -> 0
A41: Вертолетный спорт | B41: 34 | C41: 0 | V41: 0 | AA41: 0 | AF41: =Раздел2!C42 -> 0 | AG41: =Раздел2!I42 -> 0 | AH41: =Раздел2!J42 -> 0 | AI41: =Раздел2!K42 -> 0 | AJ41: =Раздел2!L42 -> 0
A42: Водно-моторный спорт | B42: 35 | C42: 0 | V42: 0 | AA42: 0 | AF42: =Раздел2!C43 -> 0 | AG42: =Раздел2!I43 -> 0 | AH42: =Раздел2!J43 -> 0 | AI42: =Раздел2!K43 -> 0 | AJ42: =Раздел2!L43 -> 0
A43: Водно-спасательное многоборье | B43: 36 | C43: 0 | V43: 0 | AA43: 0 | AF43: =Раздел2!C44 -> 0 | AG43: =Раздел2!I44 -> 0 | AH43: =Раздел2!J44 -> 0 | AI43: =Раздел2!K44 -> 0 | AJ43: =Раздел2!L44 -> 0
A44: Водное поло - всего | B44: 37 | C44: 0 | D44: =SUM(D45:D46) -> 0 | E44: =SUM(E45:E46) -> 0 | F44: 0 | G44: 0 | H44: 0 | I44: 0 | J44: 0 | K44: 0 | L44: 0 | M44: 0 | N44: 0 | O44: 0 | P44: 0 | Q44: 0 | R44: 0 | S44: 0 | T44: 0 | U44: 0 | V44: 0 | W44: 0 | X44: 0 | Y44: 0 | Z44: 0 | AA44: 0 | AB44: 0 | AC44: 0 | AD44: 0 | AE44: 0 | AF44: =Раздел2!C45 -> 0 | AG44: =Раздел2!I45 -> 0 | AH44: =Раздел2!J45 -> 0 | AI44: =Раздел2!K45 -> 0 | AJ44: =Раздел2!L45 -> 0
A45: в том числе: Водное поло (муж.) | B45: 38 | C45: 0 | V45: 0 | AA45: 0 | AF45: =Раздел2!C46 -> 0 | AG45: =Раздел2!I46 -> 0 | AH45: =Раздел2!J46 -> 0 | AI45: =Раздел2!K46 -> 0 | AJ45: =Раздел2!L46 -> 0
A46: Водное поло (жен.) | B46: 39 | C46: 0 | V46: 0 | AA46: 0 | AF46: =Раздел2!C47 -> 0 | AG46: =Раздел2!I47 -> 0 | AH46: =Раздел2!J47 -> 0 | AI46: =Раздел2!K47 -> 0 | AJ46: =Раздел2!L47 -> 0
A47: Воднолыжный спорт | B47: 40 | C47: 0 | V47: 0 | AA47: 0 | AF47: =Раздел2!C48 -> 0 | AG47: =Раздел2!I48 -> 0 | AH47: =Раздел2!J48 -> 0 | AI47: =Раздел2!K48 -> 0 | AJ47: =Раздел2!L48 -> 0
A48: Военно-прикладной спорт | B48: 41 | C48: 0 | V48: 0 | AA48: 0 | AF48: =Раздел2!C49 -> 0 | AG48: =Раздел2!I49 -> 0 | AH48: =Раздел2!J49 -> 0 | AI48: =Раздел2!K49 -> 0 | AJ48: =Раздел2!L49 -> 0
A49: Военно-спортивное многоборье | B49: 42 | C49: 0 | V49: 0 | AA49: 0 | AF49: =Раздел2!C50 -> 0 | AG49: =Раздел2!I50 -> 0 | AH49: =Раздел2!J50 -> 0 | AI49: =Раздел2!K50 -> 0 | AJ49: =Раздел2!L50 -> 0
A50: Воздухоплавательный спорт | B50: 43 | C50: 0 | V50: 0 | AA50: 0 | AF50: =Раздел2!C51 -> 0 | AG50: =Раздел2!I51 -> 0 | AH50: =Раздел2!J51 -> 0 | AI50: =Раздел2!K51 -> 0 | AJ50: =Раздел2!L51 -> 0
A51: Воздушно-силовая атлетика | B51: 44 | C51: 0 | V51: 0 | AA51: 0 | AF51: =Раздел2!C52 -> 0 | AG51: =Раздел2!I52 -> 0 | AH51: =Раздел2!J52 -> 0 | AI51: =Раздел2!K52 -> 0 | AJ51: =Раздел2!L52 -> 0
A52: Волейбол - всего | B52: 45 | C52: 0 | D52: =SUM(D53:D56) -> 0 | E52: =SUM(E53:E56) -> 0 | F52: 0 | G52: 0 | H52: 0 | I52: 0 | J52: 0 | K52: 0 | L52: 0 | M52: 0 | N52: 0 | O52: 0 | P52: 0 | Q52: 0 | R52: 0 | S52: 0 | T52: 0 | U52: 0 | V52: 0 | W52: 0 | X52: 0 | Y52: 0 | Z52: 0 | AA52: 0 | AB52: 0 | AC52: 0 | AD52: 0 | AE52: 0 | AF52: =Раздел2!C53 -> 0 | AG52: =Раздел2!I53 -> 0 | AH52: =Раздел2!J53 -> 0 | AI52: =Раздел2!K53 -> 0 | AJ52: =Раздел2!L53 -> 0
A53: в том числе: Волейбол (муж.) | B53: 46 | C53: 0 | V53: 0 | AA53: 0 | AF53: =Раздел2!C54 -> 0 | AG53: =Раздел2!I54 -> 0 | AH53: =Раздел2!J54 -> 0 | AI53: =Раздел2!K54 -> 0 | AJ53: =Раздел2!L54 -> 0
A54: Волейбол (жен.) | B54: 47 | C54: 0 | V54: 0 | AA54: 0 | AF54: =Раздел2!C55 -> 0 | AG54: =Раздел2!I55 -> 0 | AH54: =Раздел2!J55 -> 0 | AI54: =Раздел2!K55 -> 0 | AJ54: =Раздел2!L55 -> 0
A55: Пляжный волейбол (муж.) | B55: 48 | C55: 0 | V55: 0 | AA55: 0 | AF55: =Раздел2!C56 -> 0 | AG55: =Раздел2!I56 -> 0 | AH55: =Раздел2!J56 -> 0 | AI55: =Раздел2!K56 -> 0 | AJ55: =Раздел2!L56 -> 0
A56: Пляжный волейбол (жен.) | B56: 49 | C56: 0 | V56: 0 | AA56: 0 | AF56: =Раздел2!C57 -> 0 | AG56: =Раздел2!I57 -> 0 | AH56: =Раздел2!J57 -> 0 | AI56: =Раздел2!K57 -> 0 | AJ56: =Раздел2!L57 -> 0
A57: Восточное боевое единоборство | B57: 50 | C57: 0 | V57: 0 | AA57: 0 | AF57: =Раздел2!C58 -> 0 | AG57: =Раздел2!I58 -> 0 | AH57: =Раздел2!J58 -> 0 | AI57: =Раздел2!K58 -> 0 | AJ57: =Раздел2!L58 -> 0
A58: Всестилевое каратэ | B58: 51 | C58: 0 | V58: 0 | AA58: 0 | AF58: =Раздел2!C59 -> 0 | AG58: =Раздел2!I59 -> 0 | AH58: =Раздел2!J59 -> 0 | AI58: =Раздел2!K59 -> 0 | AJ58: =Раздел2!L59 -> 0
A59: Гандбол - всего | B59: 52 | C59: 0 | D59: =SUM(D60:D62) -> 0 | E59: =SUM(E60:E62) -> 0 | F59: 0 | G59: 0 | H59: 0 | I59: 0 | J59: 0 | K59: 0 | L59: 0 | M59: 0 | N59: 0 | O59: 0 | P59: 0 | Q59: 0 | R59: 0 | S59: 0 | T59: 0 | U59: 0 | V59: 0 | W59: 0 | X59: 0 | Y59: 0 | Z59: 0 | AA59: 0 | AB59: 0 | AC59: 0 | AD59: 0 | AE59: 0 | AF59: =Раздел2!C60 -> 0 | AG59: =Раздел2!I60 -> 0 | AH59: =Раздел2!J60 -> 0 | AI59: =Раздел2!K60 -> 0 | AJ59: =Раздел2!L60 -> 0
A60: в том числе: Гандбол (муж.) | B60: 53 | C60: 0 | V60: 0 | AA60: 0 | AF60: =Раздел2!C61 -> 0 | AG60: =Раздел2!I61 -> 0 | AH60: =Раздел2!J61 -> 0 | AI60: =Раздел2!K61 -> 0 | AJ60: =Раздел2!L61 -> 0
A61: Гандбол (жен.) | B61: 54 | C61: 0 | V61: 0 | AA61: 0 | AF61: =Раздел2!C62 -> 0 | AG61: =Раздел2!I62 -> 0 | AH61: =Раздел2!J62 -> 0 | AI61: =Раздел2!K62 -> 0 | AJ61: =Раздел2!L62 -> 0
A62: Пляжный гандбол | B62: 55 | C62: 0 | V62: 0 | AA62: 0 | AF62: =Раздел2!C63 -> 0 | AG62: =Раздел2!I63 -> 0 | AH62: =Раздел2!J63 -> 0 | AI62: =Раздел2!K63 -> 0 | AJ62: =Раздел2!L63 -> 0
A63: Гиревой спорт | B63: 56 | C63: 0 | V63: 0 | AA63: 0 | AF63: =Раздел2!C64 -> 0 | AG63: =Раздел2!I64 -> 0 | AH63: =Раздел2!J64 -> 0 | AI63: =Раздел2!K64 -> 0 | AJ63: =Раздел2!L64 -> 0
A64: Го | B64: 57 | C64: 0 | V64: 0 | AA64: 0 | AF64: =Раздел2!C65 -> 0 | AG64: =Раздел2!I65 -> 0 | AH64: =Раздел2!J65 -> 0 | AI64: =Раздел2!K65 -> 0 | AJ64: =Раздел2!L65 -> 0
A65: Гольф | B65: 58 | C65: 0 | V65: 0 | AA65: 0 | AF65: =Раздел2!C66 -> 0 | AG65: =Раздел2!I66 -> 0 | AH65: =Раздел2!J66 -> 0 | AI65: =Раздел2!K66 -> 0 | AJ65: =Раздел2!L66 -> 0
A66: Гонки на охотничьих лыжах | B66: 59 | C66: 0 | V66: 0 | AA66: 0 | AF66: =Раздел2!C67 -> 0 | AG66: =Раздел2!I67 -> 0 | AH66: =Раздел2!J67 -> 0 | AI66: =Раздел2!K67 -> 0 | AJ66: =Раздел2!L67 -> 0
A67: Гонки с препятствиями | B67: 60 | C67: 0 | V67: 0 | AA67: 0 | AF67: =Раздел2!C68 -> 0 | AG67: =Раздел2!I68 -> 0 | AH67: =Раздел2!J68 -> 0 | AI67: =Раздел2!K68 -> 0 | AJ67: =Раздел2!L68 -> 0
A68: Горнолыжный спорт | B68: 61 | C68: 0 | V68: 0 | AA68: 0 | AF68: =Раздел2!C69 -> 0 | AG68: =Раздел2!I69 -> 0 | AH68: =Раздел2!J69 -> 0 | AI68: =Раздел2!K69 -> 0 | AJ68: =Раздел2!L69 -> 0
A69: Городошный спорт | B69: 62 | C69: 0 | V69: 0 | AA69: 0 | AF69: =Раздел2!C70 -> 0 | AG69: =Раздел2!I70 -> 0 | AH69: =Раздел2!J70 -> 0 | AI69: =Раздел2!K70 -> 0 | AJ69: =Раздел2!L70 -> 0
A70: Гребля на байдарках и каноэ | B70: 63 | C70: 0 | V70: 0 | AA70: 0 | AF70: =Раздел2!C71 -> 0 | AG70: =Раздел2!I71 -> 0 | AH70: =Раздел2!J71 -> 0 | AI70: =Раздел2!K71 -> 0 | AJ70: =Раздел2!L71 -> 0
A71: Гребля на шлюпках | B71: 64 | C71: 0 | V71: 0 | AA71: 0 | AF71: =Раздел2!C72 -> 0 | AG71: =Раздел2!I72 -> 0 | AH71: =Раздел2!J72 -> 0 | AI71: =Раздел2!K72 -> 0 | AJ71: =Раздел2!L72 -> 0
A72: Гребной слалом | B72: 65 | C72: 0 | V72: 0 | AA72: 0 | AF72: =Раздел2!C73 -> 0 | AG72: =Раздел2!I73 -> 0 | AH72: =Раздел2!J73 -> 0 | AI72: =Раздел2!K73 -> 0 | AJ72: =Раздел2!L73 -> 0
A73: Гребной спорт - всего | B73: 66 | C73: =SUM(D73:U73) -> 0 | D73: =SUM(D74:D77) -> 0 | E73: =SUM(E74:E77) -> 0 | F73: 0 | G73: 0 | H73: 0 | I73: 0 | J73: 0 | K73: 0 | L73: 0 | M73: 0 | N73: 0 | O73: 0 | P73: 0 | Q73: 0 | R73: 0 | S73: 0 | T73: 0 | U73: 0 | V73: 0 | W73: 0 | X73: 0 | Y73: 0 | Z73: 0 | AA73: 0 | AB73: 0 | AC73: 0 | AD73: 0 | AE73: 0 | AF73: =Раздел2!C74 -> 0 | AG73: =Раздел2!I74 -> 0 | AH73: =Раздел2!J74 -> 0 | AI73: =Раздел2!K74 -> 0 | AJ73: =Раздел2!L74 -> 0
A74: в том числе: Академическая гребля | B74: 67 | C74: 0 | V74: =SUM(W74:Z74) -> 0 | AA74: =SUM(AB74:AE74) -> 0 | AF74: =Раздел2!C75 -> 0 | AG74: =Раздел2!I75 -> 0 | AH74: =Раздел2!J75 -> 0 | AI74: =Раздел2!K75 -> 0 | AJ74: =Раздел2!L75 -> 0
A75: Гребля-индор | B75: 68 | C75: 0 | V75: 0 | AA75: 0 | AF75: =Раздел2!C76 -> 0 | AG75: =Раздел2!I76 -> 0 | AH75: =Раздел2!J76 -> 0 | AI75: =Раздел2!K76 -> 0 | AJ75: =Раздел2!L76 -> 0
A76: Народная гребля | B76: 69 | C76: 0 | V76: 0 | AA76: 0 | AF76: =Раздел2!C77 -> 0 | AG76: =Раздел2!I77 -> 0 | AH76: =Раздел2!J77 -> 0 | AI76: =Раздел2!K77 -> 0 | AJ76: =Раздел2!L77 -> 0
A77: Прибрежная гребля | B77: 70 | C77: 0 | V77: 0 | AA77: 0 | AF77: =Раздел2!C78 -> 0 | AG77: =Раздел2!I78 -> 0 | AH77: =Раздел2!J78 -> 0 | AI77: =Раздел2!K78 -> 0 | AJ77: =Раздел2!L78 -> 0
A78: Гребно-парусное двоеборье | B78: 71 | C78: 0 | V78: 0 | AA78: 0 | AF78: =Раздел2!C79 -> 0 | AG78: =Раздел2!I79 -> 0 | AH78: =Раздел2!J79 -> 0 | AI78: =Раздел2!K79 -> 0 | AJ78: =Раздел2!L79 -> 0
A79: Дартс | B79: 72 | C79: 0 | V79: 0 | AA79: 0 | AF79: =Раздел2!C80 -> 0 | AG79: =Раздел2!I80 -> 0 | AH79: =Раздел2!J80 -> 0 | AI79: =Раздел2!K80 -> 0 | AJ79: =Раздел2!L80 -> 0
A80: Джиу-джитсу | B80: 73 | C80: 0 | V80: 0 | AA80: 0 | AF80: =Раздел2!C81 -> 0 | AG80: =Раздел2!I81 -> 0 | AH80: =Раздел2!J81 -> 0 | AI80: =Раздел2!K81 -> 0 | AJ80: =Раздел2!L81 -> 0
A81: Дзюдо | B81: 74 | C81: 0 | V81: 0 | AA81: 0 | AF81: =Раздел2!C82 -> 0 | AG81: =Раздел2!I82 -> 0 | AH81: =Раздел2!J82 -> 0 | AI81: =Раздел2!K82 -> 0 | AJ81: =Раздел2!L82 -> 0
A82: Ездовой спорт | B82: 75 | C82: 0 | V82: 0 | AA82: 0 | AF82: =Раздел2!C83 -> 0 | AG82: =Раздел2!I83 -> 0 | AH82: =Раздел2!J83 -> 0 | AI82: =Раздел2!K83 -> 0 | AJ82: =Раздел2!L83 -> 0
A83: Зимнее плавание | B83: 76 | C83: 0 | V83: 0 | AA83: 0 | AF83: =Раздел2!C84 -> 0 | AG83: =Раздел2!I84 -> 0 | AH83: =Раздел2!J84 -> 0 | AI83: =Раздел2!K84 -> 0 | AJ83: =Раздел2!L84 -> 0
A84: Капоэйра | B84: 77 | C84: 0 | V84: 0 | AA84: 0 | AF84: =Раздел2!C85 -> 0 | AG84: =Раздел2!I85 -> 0 | AH84: =Раздел2!J85 -> 0 | AI84: =Раздел2!K85 -> 0 | AJ84: =Раздел2!L85 -> 0
A85: Каратэ | B85: 78 | C85: 0 | V85: 0 | AA85: 0 | AF85: =Раздел2!C86 -> 0 | AG85: =Раздел2!I86 -> 0 | AH85: =Раздел2!J86 -> 0 | AI85: =Раздел2!K86 -> 0 | AJ85: =Раздел2!L86 -> 0
A86: Кендо | B86: 79 | C86: 0 | V86: 0 | AA86: 0 | AF86: =Раздел2!C87 -> 0 | AG86: =Раздел2!I87 -> 0 | AH86: =Раздел2!J87 -> 0 | AI86: =Раздел2!K87 -> 0 | AJ86: =Раздел2!L87 -> 0
A87: Керешу | B87: 80 | C87: 0 | V87: 0 | AA87: 0 | AF87: =Раздел2!C88 -> 0 | AG87: =Раздел2!I88 -> 0 | AH87: =Раздел2!J88 -> 0 | AI87: =Раздел2!K88 -> 0 | AJ87: =Раздел2!L88 -> 0
A88: Кёрлинг - всего | B88: 81 | C88: 0 | D88: =SUM(D89:D91) -> 0 | E88: =SUM(E89:E91) -> 0 | F88: 0 | G88: 0 | H88: 0 | I88: 0 | J88: 0 | K88: 0 | L88: 0 | M88: 0 | N88: 0 | O88: 0 | P88: 0 | Q88: 0 | R88: 0 | S88: 0 | T88: 0 | U88: 0 | V88: 0 | W88: 0 | X88: 0 | Y88: 0 | Z88: 0 | AA88: 0 | AB88: 0 | AC88: 0 | AD88: 0 | AE88: 0 | AF88: =Раздел2!C89 -> 0 | AG88: =Раздел2!I89 -> 0 | AH88: =Раздел2!J89 -> 0 | AI88: =Раздел2!K89 -> 0 | AJ88: =Раздел2!L89 -> 0
A89: в том числе: Керлинг (муж.) | B89: 82 | C89: 0 | V89: 0 | AA89: 0 | AF89: =Раздел2!C90 -> 0 | AG89: =Раздел2!I90 -> 0 | AH89: =Раздел2!J90 -> 0 | AI89: =Раздел2!K90 -> 0 | AJ89: =Раздел2!L90 -> 0
A90: Керлинг (жен.) | B90: 83 | C90: 0 | V90: 0 | AA90: 0 | AF90: =Раздел2!C91 -> 0 | AG90: =Раздел2!I91 -> 0 | AH90: =Раздел2!J91 -> 0 | AI90: =Раздел2!K91 -> 0 | AJ90: =Раздел2!L91 -> 0
A91: Кёрлинг – смешанные пары | B91: 84 | C91: 0 | V91: 0 | AA91: 0 | AF91: =Раздел2!C92 -> 0 | AG91: =Раздел2!I92 -> 0 | AH91: =Раздел2!J92 -> 0 | AI91: =Раздел2!K92 -> 0 | AJ91: =Раздел2!L92 -> 0
A92: Кикбоксинг | B92: 85 | C92: 0 | V92: 0 | AA92: 0 | AF92: =Раздел2!C93 -> 0 | AG92: =Раздел2!I93 -> 0 | AH92: =Раздел2!J93 -> 0 | AI92: =Раздел2!K93 -> 0 | AJ92: =Раздел2!L93 -> 0
A93: Кинологический спорт | B93: 86 | C93: 0 | V93: 0 | AA93: 0 | AF93: =Раздел2!C94 -> 0 | AG93: =Раздел2!I94 -> 0 | AH93: =Раздел2!J94 -> 0 | AI93: =Раздел2!K94 -> 0 | AJ93: =Раздел2!L94 -> 0
A94: Киокусинкай | B94: 87 | C94: 0 | V94: 0 | AA94: 0 | AF94: =Раздел2!C95 -> 0 | AG94: =Раздел2!I95 -> 0 | AH94: =Раздел2!J95 -> 0 | AI94: =Раздел2!K95 -> 0 | AJ94: =Раздел2!L95 -> 0
A95: Киокушин | B95: 88 | C95: 0 | V95: 0 | AA95: 0 | AF95: =Раздел2!C96 -> 0 | AG95: =Раздел2!I96 -> 0 | AH95: =Раздел2!J96 -> 0 | AI95: =Раздел2!K96 -> 0 | AJ95: =Раздел2!L96 -> 0
A96: Комплексное единоборство | B96: 89 | C96: 0 | V96: 0 | AA96: 0 | AF96: =Раздел2!C97 -> 0 | AG96: =Раздел2!I97 -> 0 | AH96: =Раздел2!J97 -> 0 | AI96: =Раздел2!K97 -> 0 | AJ96: =Раздел2!L97 -> 0
A97: Компьютерный спорт | B97: 90 | C97: 0 | V97: 0 | AA97: 0 | AF97: =Раздел2!C98 -> 0 | AG97: =Раздел2!I98 -> 0 | AH97: =Раздел2!J98 -> 0 | AI97: =Раздел2!K98 -> 0 | AJ97: =Раздел2!L98 -> 0
A98: Конный спорт | B98: 91 | C98: 0 | V98: 0 | AA98: 0 | AF98: =Раздел2!C99 -> 0 | AG98: =Раздел2!I99 -> 0 | AH98: =Раздел2!J99 -> 0 | AI98: =Раздел2!K99 -> 0 | AJ98: =Раздел2!L99 -> 0
A99: Конькобежный спорт - всего | B99: 92 | C99: 0 | D99: =SUM(D100:D101) -> 0 | E99: =SUM(E100:E101) -> 0 | F99: 0 | G99: 0 | H99: 0 | I99: 0 | J99: 0 | K99: 0 | L99: 0 | M99: 0 | N99: 0 | O99: 0 | P99: 0 | Q99: 0 | R99: 0 | S99: 0 | T99: 0 | U99: 0 | V99: 0 | W99: 0 | X99: 0 | Y99: 0 | Z99: 0 | AA99: 0 | AB99: 0 | AC99: 0 | AD99: 0 | AE99: 0 | AF99: =Раздел2!C100 -> 0 | AG99: =Раздел2!I100 -> 0 | AH99: =Раздел2!J100 -> 0 | AI99: =Раздел2!K100 -> 0 | AJ99: =Раздел2!L100 -> 0
A100: в том числе: Конькобежный спорт | B100: 93 | C100: 0 | V100: 0 | AA100: 0 | AF100: =Раздел2!C101 -> 0 | AG100: =Раздел2!I101 -> 0 | AH100: =Раздел2!J101 -> 0 | AI100: =Раздел2!K101 -> 0 | AJ100: =Раздел2!L101 -> 0
A101: Шорт-трек | B101: 94 | C101: 0 | V101: 0 | AA101: 0 | AF101: =Раздел2!C102 -> 0 | AG101: =Раздел2!I102 -> 0 | AH101: =Раздел2!J102 -> 0 | AI101: =Раздел2!K102 -> 0 | AJ101: =Раздел2!L102 -> 0
A102: Корэш | B102: 95 | C102: 0 | V102: 0 | AA102: 0 | AF102: =Раздел2!C103 -> 0 | AG102: =Раздел2!I103 -> 0 | AH102: =Раздел2!J103 -> 0 | AI102: =Раздел2!K103 -> 0 | AJ102: =Раздел2!L103 -> 0
A103: Крикет | B103: 96 | C103: 0 | V103: 0 | AA103: 0 | AF103: =Раздел2!C104 -> 0 | AG103: =Раздел2!I104 -> 0 | AH103: =Раздел2!J104 -> 0 | AI103: =Раздел2!K104 -> 0 | AJ103: =Раздел2!L104 -> 0
A104: Кудо | B104: 97 | C104: 0 | V104: 0 | AA104: 0 | AF104: =Раздел2!C105 -> 0 | AG104: =Раздел2!I105 -> 0 | AH104: =Раздел2!J105 -> 0 | AI104: =Раздел2!K105 -> 0 | AJ104: =Раздел2!L105 -> 0
A105: Лапта | B105: 98 | C105: 0 | V105: 0 | AA105: 0 | AF105: =Раздел2!C106 -> 0 | AG105: =Раздел2!I106 -> 0 | AH105: =Раздел2!J106 -> 0 | AI105: =Раздел2!K106 -> 0 | AJ105: =Раздел2!L106 -> 0
A106: Легкая атлетика - всего | B106: 99 | C106: 317 | D106: =SUM(D107:D113) -> 75 | E106: =SUM(E107:E113) -> 49 | F106: 76 | G106: 12 | H106: 12 | I106: 48 | J106: 36 | K106: 9 | L106: 0 | M106: 0 | N106: 0 | O106: 0 | P106: 0 | Q106: 0 | R106: 0 | S106: 0 | T106: 0 | U106: 0 | V106: 36 | W106: 35 | X106: 1 | Y106: 0 | Z106: 0 | AA106: 30 | AB106: 9 | AC106: 21 | AD106: 0 | AE106: 0 | AF106: =Раздел2!C107 -> 1 | AG106: =Раздел2!I107 -> 200 | AH106: =Раздел2!J107 -> 117 | AI106: =Раздел2!K107 -> 0 | AJ106: =Раздел2!L107 -> 0
A107: в том числе: Спринтерский и барьерный бег | B107: 100 | C107: 0 | V107: 0 | AA107: 0 | AF107: =Раздел2!C108 -> 0 | AG107: =Раздел2!I108 -> 0 | AH107: =Раздел2!J108 -> 0 | AI107: =Раздел2!K108 -> 0 | AJ107: =Раздел2!L108 -> 0
A108: Бег на средние дистанции и бег с препятствиями | B108: 101 | C108: 0 | V108: 0 | AA108: 0 | AF108: =Раздел2!C109 -> 0 | AG108: =Раздел2!I109 -> 0 | AH108: =Раздел2!J109 -> 0 | AI108: =Раздел2!K109 -> 0 | AJ108: =Раздел2!L109 -> 0
A109: Бег на длинные и сверхдлинные дистанции | B109: 102 | C109: 0 | V109: 0 | AA109: 0 | AF109: =Раздел2!C110 -> 0 | AG109: =Раздел2!I110 -> 0 | AH109: =Раздел2!J110 -> 0 | AI109: =Раздел2!K110 -> 0 | AJ109: =Раздел2!L110 -> 0
A110: Многоборья | B110: 103 | C110: 317 | D110: 75 | E110: 49 | F110: 76 | G110: 12 | H110: 12 | I110: 48 | J110: 36 | K110: 9 | V110: 36 | W110: 35 | X110: 1 | AA110: 30 | AB110: 9 | AC110: 21 | AF110: =Раздел2!C111 -> 1 | AG110: =Раздел2!I111 -> 200 | AH110: =Раздел2!J111 -> 117 | AI110: =Раздел2!K111 -> 0 | AJ110: =Раздел2!L111 -> 0
A111: Прыжки | B111: 104 | C111: 0 | V111: 0 | AA111: 0 | AF111: =Раздел2!C112 -> 0 | AG111: =Раздел2!I112 -> 0 | AH111: =Раздел2!J112 -> 0 | AI111: =Раздел2!K112 -> 0 | AJ111: =Раздел2!L112 -> 0
A112: Метания | B112: 105 | C112: 0 | V112: 0 | AA112: 0 | AF112: =Раздел2!C113 -> 0 | AG112: =Раздел2!I113 -> 0 | AH112: =Раздел2!J113 -> 0 | AI112: =Раздел2!K113 -> 0 | AJ112: =Раздел2!L113 -> 0
A113: Спортивная ходьба | B113: 106 | C113: 0 | V113: 0 | AA113: 0 | AF113: =Раздел2!C114 -> 0 | AG113: =Раздел2!I114 -> 0 | AH113: =Раздел2!J114 -> 0 | AI113: =Раздел2!K114 -> 0 | AJ113: =Раздел2!L114 -> 0
A114: Лыжное двоеборье | B114: 107 | C114: 0 | V114: 0 | AA114: 0 | AF114: =Раздел2!C115 -> 0 | AG114: =Раздел2!I115 -> 0 | AH114: =Раздел2!J115 -> 0 | AI114: =Раздел2!K115 -> 0 | AJ114: =Раздел2!L115 -> 0
A115: Лыжные гонки | B115: 108 | C115: 0 | V115: 0 | AA115: 0 | AF115: =Раздел2!C116 -> 0 | AG115: =Раздел2!I116 -> 0 | AH115: =Раздел2!J116 -> 0 | AI115: =Раздел2!K116 -> 0 | AJ115: =Раздел2!L116 -> 0
A116: Мас-рестлинг | B116: 109 | C116: 0 | V116: 0 | AA116: 0 | AF116: =Раздел2!C117 -> 0 | AG116: =Раздел2!I117 -> 0 | AH116: =Раздел2!J117 -> 0 | AI116: =Раздел2!K117 -> 0 | AJ116: =Раздел2!L117 -> 0
A117: Международное военно-спортивное многоборье | B117: 110 | C117: 0 | V117: 0 | AA117: 0 | AF117: =Раздел2!C118 -> 0 | AG117: =Раздел2!I118 -> 0 | AH117: =Раздел2!J118 -> 0 | AI117: =Раздел2!K118 -> 0 | AJ117: =Раздел2!L118 -> 0
A118: Микрофутзал | B118: 111 | C118: 0 | V118: 0 | AA118: 0 | AF118: =Раздел2!C119 -> 0 | AG118: =Раздел2!I119 -> 0 | AH118: =Раздел2!J119 -> 0 | AI118: =Раздел2!K119 -> 0 | AJ118: =Раздел2!L119 -> 0
A119: Многоборье кинологов | B119: 112 | C119: 0 | V119: 0 | AA119: 0 | AF119: =Раздел2!C120 -> 0 | AG119: =Раздел2!I120 -> 0 | AH119: =Раздел2!J120 -> 0 | AI119: =Раздел2!K120 -> 0 | AJ119: =Раздел2!L120 -> 0
A120: Многоборье спасателей МЧС России | B120: 113 | C120: 0 | V120: 0 | AA120: 0 | AF120: =Раздел2!C121 -> 0 | AG120: =Раздел2!I121 -> 0 | AH120: =Раздел2!J121 -> 0 | AI120: =Раздел2!K121 -> 0 | AJ120: =Раздел2!L121 -> 0
A121: Морское многоборье | B121: 114 | C121: 0 | V121: 0 | AA121: 0 | AF121: =Раздел2!C122 -> 0 | AG121: =Раздел2!I122 -> 0 | AH121: =Раздел2!J122 -> 0 | AI121: =Раздел2!K122 -> 0 | AJ121: =Раздел2!L122 -> 0
A122: Мотоциклетный спорт | B122: 115 | C122: 0 | V122: 0 | AA122: 0 | AF122: =Раздел2!C123 -> 0 | AG122: =Раздел2!I123 -> 0 | AH122: =Раздел2!J123 -> 0 | AI122: =Раздел2!K123 -> 0 | AJ122: =Раздел2!L123 -> 0
A123: Нарды | B123: 116 | C123: 0 | V123: 0 | AA123: 0 | AF123: =Раздел2!C124 -> 0 | AG123: =Раздел2!I124 -> 0 | AH123: =Раздел2!J124 -> 0 | AI123: =Раздел2!K124 -> 0 | AJ123: =Раздел2!L124 -> 0
A124: Настольный теннис | B124: 117 | C124: 0 | V124: 0 | AA124: 0 | AF124: =Раздел2!C125 -> 0 | AG124: =Раздел2!I125 -> 0 | AH124: =Раздел2!J125 -> 0 | AI124: =Раздел2!K125 -> 0 | AJ124: =Раздел2!L125 -> 0
A125: Падел | B125: 118 | C125: 0 | V125: 0 | AA125: 0 | AF125: =Раздел2!C126 -> 0 | AG125: =Раздел2!I126 -> 0 | AH125: =Раздел2!J126 -> 0 | AI125: =Раздел2!K126 -> 0 | AJ125: =Раздел2!L126 -> 0
A126: Парашютный спорт | B126: 119 | C126: 0 | V126: 0 | AA126: 0 | AF126: =Раздел2!C127 -> 0 | AG126: =Раздел2!I127 -> 0 | AH126: =Раздел2!J127 -> 0 | AI126: =Раздел2!K127 -> 0 | AJ126: =Раздел2!L127 -> 0
A127: Парусный спорт | B127: 120 | C127: 0 | V127: 0 | AA127: 0 | AF127: =Раздел2!C128 -> 0 | AG127: =Раздел2!I128 -> 0 | AH127: =Раздел2!J128 -> 0 | AI127: =Раздел2!K128 -> 0 | AJ127: =Раздел2!L128 -> 0
A128: Пауэрлифтинг | B128: 121 | C128: 0 | V128: 0 | AA128: 0 | AF128: =Раздел2!C129 -> 0 | AG128: =Раздел2!I129 -> 0 | AH128: =Раздел2!J129 -> 0 | AI128: =Раздел2!K129 -> 0 | AJ128: =Раздел2!L129 -> 0
A129: Перетягивание каната | B129: 122 | C129: 0 | V129: 0 | AA129: 0 | AF129: =Раздел2!C130 -> 0 | AG129: =Раздел2!I130 -> 0 | AH129: =Раздел2!J130 -> 0 | AI129: =Раздел2!K130 -> 0 | AJ129: =Раздел2!L130 -> 0
A130: Пилонный спорт | B130: 123 | C130: 0 | V130: 0 | AA130: 0 | AF130: =Раздел2!C131 -> 0 | AG130: =Раздел2!I131 -> 0 | AH130: =Раздел2!J131 -> 0 | AI130: =Раздел2!K131 -> 0 | AJ130: =Раздел2!L131 -> 0
A131: Плавание - всего | B131: 124 | C131: 66 | D131: =SUM(D132:D133) -> 0 | E131: =SUM(E132:E133) -> 14 | F131: 15 | G131: 0 | H131: 11 | I131: 14 | J131: 12 | K131: 0 | L131: 0 | M131: 0 | N131: 0 | O131: 0 | P131: 0 | Q131: 0 | R131: 0 | S131: 0 | T131: 0 | U131: 0 | V131: 7 | W131: 7 | X131: 0 | Y131: 0 | Z131: 0 | AA131: 15 | AB131: 3 | AC131: 12 | AD131: 0 | AE131: 0 | AF131: =Раздел2!C132 -> 1 | AG131: =Раздел2!I132 -> 29 | AH131: =Раздел2!J132 -> 37 | AI131: =Раздел2!K132 -> 0 | AJ131: =Раздел2!L132 -> 0
A132: в том числе: Плавание | B132: 125 | C132: 66 | E132: 14 | F132: 15 | H132: 11 | I132: 14 | J132: 12 | V132: 7 | W132: 7 | AA132: 15 | AB132: 3 | AC132: 12 | AF132: =Раздел2!C133 -> 1 | AG132: =Раздел2!I133 -> 29 | AH132: =Раздел2!J133 -> 37 | AI132: =Раздел2!K133 -> 0 | AJ132: =Раздел2!L133 -> 0
A133: Открытая вода | B133: 126 | C133: 0 | V133: 0 | AA133: 0 | AF133: =Раздел2!C134 -> 0 | AG133: =Раздел2!I134 -> 0 | AH133: =Раздел2!J134 -> 0 | AI133: =Раздел2!K134 -> 0 | AJ133: =Раздел2!L134 -> 0
A134: Планерный спорт | B134: 127 | C134: 0 | V134: 0 | AA134: 0 | AF134: =Раздел2!C135 -> 0 | AG134: =Раздел2!I135 -> 0 | AH134: =Раздел2!J135 -> 0 | AI134: =Раздел2!K135 -> 0 | AJ134: =Раздел2!L135 -> 0
A135: Подводный спорт | B135: 128 | C135: 0 | V135: 0 | AA135: 0 | AF135: =Раздел2!C136 -> 0 | AG135: =Раздел2!I136 -> 0 | AH135: =Раздел2!J136 -> 0 | AI135: =Раздел2!K136 -> 0 | AJ135: =Раздел2!L136 -> 0
A136: Пожарно-спасательный спорт | B136: 129 | C136: 0 | V136: 0 | AA136: 0 | AF136: =Раздел2!C137 -> 0 | AG136: =Раздел2!I137 -> 0 | AH136: =Раздел2!J137 -> 0 | AI136: =Раздел2!K137 -> 0 | AJ136: =Раздел2!L137 -> 0
A137: Полиатлон | B137: 130 | C137: =SUM(D137:U137) -> 0 | V137: =SUM(W137:Z137) -> 0 | AA137: =SUM(AB137:AE137) -> 0 | AF137: =Раздел2!C138 -> 0 | AG137: =Раздел2!I138 -> 0 | AH137: =Раздел2!J138 -> 0 | AI137: =Раздел2!K138 -> 0 | AJ137: =Раздел2!L138 -> 0
A138: Практическая стрельба | B138: 131 | C138: 0 | V138: 0 | AA138: 0 | AF138: =Раздел2!C139 -> 0 | AG138: =Раздел2!I139 -> 0 | AH138: =Раздел2!J139 -> 0 | AI138: =Раздел2!K139 -> 0 | AJ138: =Раздел2!L139 -> 0
A139: Прыжки в воду - всего | B139: 132 | C139: 0 | D139: =SUM(D140:D141) -> 0 | E139: =SUM(E140:E141) -> 0 | F139: 0 | G139: 0 | H139: 0 | I139: 0 | J139: 0 | K139: 0 | L139: 0 | M139: 0 | N139: 0 | O139: 0 | P139: 0 | Q139: 0 | R139: 0 | S139: 0 | T139: 0 | U139: 0 | V139: 0 | W139: 0 | X139: 0 | Y139: 0 | Z139: 0 | AA139: 0 | AB139: 0 | AC139: 0 | AD139: 0 | AE139: 0 | AF139: =Раздел2!C140 -> 0 | AG139: =Раздел2!I140 -> 0 | AH139: =Раздел2!J140 -> 0 | AI139: =Раздел2!K140 -> 0 | AJ139: =Раздел2!L140 -> 0
A140: в том числе: Прыжки в воду | B140: 133 | C140: 0 | V140: 0 | AA140: 0 | AF140: =Раздел2!C141 -> 0 | AG140: =Раздел2!I141 -> 0 | AH140: =Раздел2!J141 -> 0 | AI140: =Раздел2!K141 -> 0 | AJ140: =Раздел2!L141 -> 0
A141: Прыжки в открытый водоем | B141: 134 | C141: 0 | V141: 0 | AA141: 0 | AF141: =Раздел2!C142 -> 0 | AG141: =Раздел2!I142 -> 0 | AH141: =Раздел2!J142 -> 0 | AI141: =Раздел2!K142 -> 0 | AJ141: =Раздел2!L142 -> 0
A142: Прыжки на батуте - всего | B142: 135 | C142: 0 | D142: =SUM(D143:D146) -> 0 | E142: =SUM(E143:E146) -> 0 | F142: 0 | G142: 0 | H142: 0 | I142: 0 | J142: 0 | K142: 0 | L142: 0 | M142: 0 | N142: 0 | O142: 0 | P142: 0 | Q142: 0 | R142: 0 | S142: 0 | T142: 0 | U142: 0 | V142: 0 | W142: 0 | X142: 0 | Y142: 0 | Z142: 0 | AA142: 0 | AB142: 0 | AC142: 0 | AD142: 0 | AE142: 0 | AF142: =Раздел2!C143 -> 0 | AG142: =Раздел2!I143 -> 0 | AH142: =Раздел2!J143 -> 0 | AI142: =Раздел2!K143 -> 0 | AJ142: =Раздел2!L143 -> 0
A143: в том числе: Акробатическая дорожка | B143: 136 | C143: 0 | V143: 0 | AA143: 0 | AF143: =Раздел2!C144 -> 0 | AG143: =Раздел2!I144 -> 0 | AH143: =Раздел2!J144 -> 0 | AI143: =Раздел2!K144 -> 0 | AJ143: =Раздел2!L144 -> 0
A144: Двойной минитрамп | B144: 137 | C144: 0 | V144: 0 | AA144: 0 | AF144: =Раздел2!C145 -> 0 | AG144: =Раздел2!I145 -> 0 | AH144: =Раздел2!J145 -> 0 | AI144: =Раздел2!K145 -> 0 | AJ144: =Раздел2!L145 -> 0
A145: Индивидуальные прыжки | B145: 138 | C145: 0 | V145: 0 | AA145: 0 | AF145: =Раздел2!C146 -> 0 | AG145: =Раздел2!I146 -> 0 | AH145: =Раздел2!J146 -> 0 | AI145: =Раздел2!K146 -> 0 | AJ145: =Раздел2!L146 -> 0
A146: Синхронные прыжки | B146: 139 | C146: 0 | V146: 0 | AA146: 0 | AF146: =Раздел2!C147 -> 0 | AG146: =Раздел2!I147 -> 0 | AH146: =Раздел2!J147 -> 0 | AI146: =Раздел2!K147 -> 0 | AJ146: =Раздел2!L147 -> 0
A147: Прыжки на лыжах с трамплина | B147: 140 | C147: 0 | V147: 0 | AA147: 0 | AF147: =Раздел2!C148 -> 0 | AG147: =Раздел2!I148 -> 0 | AH147: =Раздел2!J148 -> 0 | AI147: =Раздел2!K148 -> 0 | AJ147: =Раздел2!L148 -> 0
A148: Пулевая стрельба - всего | B148: 141 | C148: 0 | D148: =SUM(D149:D153) -> 0 | E148: =SUM(E149:E153) -> 0 | F148: 0 | G148: 0 | H148: 0 | I148: 0 | J148: 0 | K148: 0 | L148: 0 | M148: 0 | N148: 0 | O148: 0 | P148: 0 | Q148: 0 | R148: 0 | S148: 0 | T148: 0 | U148: 0 | V148: 0 | W148: 0 | X148: 0 | Y148: 0 | Z148: 0 | AA148: 0 | AB148: 0 | AC148: 0 | AD148: 0 | AE148: 0 | AF148: =Раздел2!C149 -> 0 | AG148: =Раздел2!I149 -> 0 | AH148: =Раздел2!J149 -> 0 | AI148: =Раздел2!K149 -> 0 | AJ148: =Раздел2!L149 -> 0
A149: в том числе: Пневматическая винтовка | B149: 142 | C149: 0 | V149: 0 | AA149: 0 | AF149: =Раздел2!C150 -> 0 | AG149: =Раздел2!I150 -> 0 | AH149: =Раздел2!J150 -> 0 | AI149: =Раздел2!K150 -> 0 | AJ149: =Раздел2!L150 -> 0
A150: Пневматический пистолет | B150: 143 | C150: 0 | V150: 0 | AA150: 0 | AF150: =Раздел2!C151 -> 0 | AG150: =Раздел2!I151 -> 0 | AH150: =Раздел2!J151 -> 0 | AI150: =Раздел2!K151 -> 0 | AJ150: =Раздел2!L151 -> 0
A151: Малокалиберная винтовка | B151: 144 | C151: 0 | V151: 0 | AA151: 0 | AF151: =Раздел2!C152 -> 0 | AG151: =Раздел2!I152 -> 0 | AH151: =Раздел2!J152 -> 0 | AI151: =Раздел2!K152 -> 0 | AJ151: =Раздел2!L152 -> 0
A152: Малокалиберный пистолет | B152: 145 | C152: 0 | V152: 0 | AA152: 0 | AF152: =Раздел2!C153 -> 0 | AG152: =Раздел2!I153 -> 0 | AH152: =Раздел2!J153 -> 0 | AI152: =Раздел2!K153 -> 0 | AJ152: =Раздел2!L153 -> 0
A153: Движущаяся мишень | B153: 146 | C153: 0 | V153: 0 | AA153: 0 | AF153: =Раздел2!C154 -> 0 | AG153: =Раздел2!I154 -> 0 | AH153: =Раздел2!J154 -> 0 | AI153: =Раздел2!K154 -> 0 | AJ153: =Раздел2!L154 -> 0
A154: Пэйнтбол | B154: 147 | C154: 0 | V154: 0 | AA154: 0 | AF154: =Раздел2!C155 -> 0 | AG154: =Раздел2!I155 -> 0 | AH154: =Раздел2!J155 -> 0 | AI154: =Раздел2!K155 -> 0 | AJ154: =Раздел2!L155 -> 0
A155: Радиоспорт | B155: 148 | C155: 0 | V155: 0 | AA155: 0 | AF155: =Раздел2!C156 -> 0 | AG155: =Раздел2!I156 -> 0 | AH155: =Раздел2!J156 -> 0 | AI155: =Раздел2!K156 -> 0 | AJ155: =Раздел2!L156 -> 0
A156: Рафтинг | B156: 149 | C156: 0 | V156: 0 | AA156: 0 | AF156: =Раздел2!C157 -> 0 | AG156: =Раздел2!I157 -> 0 | AH156: =Раздел2!J157 -> 0 | AI156: =Раздел2!K157 -> 0 | AJ156: =Раздел2!L157 -> 0
A157: Регби - всего | B157: 150 | C157: 0 | D157: =SUM(D158:D162) -> 0 | E157: =SUM(E158:E162) -> 0 | F157: 0 | G157: 0 | H157: 0 | I157: 0 | J157: 0 | K157: 0 | L157: 0 | M157: 0 | N157: 0 | O157: 0 | P157: 0 | Q157: 0 | R157: 0 | S157: 0 | T157: 0 | U157: 0 | V157: 0 | W157: 0 | X157: 0 | Y157: 0 | Z157: 0 | AA157: 0 | AB157: 0 | AC157: 0 | AD157: 0 | AE157: 0 | AF157: =Раздел2!C158 -> 0 | AG157: =Раздел2!I158 -> 0 | AH157: =Раздел2!J158 -> 0 | AI157: =Раздел2!K158 -> 0 | AJ157: =Раздел2!L158 -> 0
A158: в том числе: Регби | B158: 151 | C158: 0 | V158: 0 | AA158: 0 | AF158: =Раздел2!C159 -> 0 | AG158: =Раздел2!I159 -> 0 | AH158: =Раздел2!J159 -> 0 | AI158: =Раздел2!K159 -> 0 | AJ158: =Раздел2!L159 -> 0
A159: Регби 7 (муж.) | B159: 152 | C159: 0 | V159: 0 | AA159: 0 | AF159: =Раздел2!C160 -> 0 | AG159: =Раздел2!I160 -> 0 | AH159: =Раздел2!J160 -> 0 | AI159: =Раздел2!K160 -> 0 | AJ159: =Раздел2!L160 -> 0
A160: Регби 7 (жен.) | B160: 153 | C160: 0 | V160: 0 | AA160: 0 | AF160: =Раздел2!C161 -> 0 | AG160: =Раздел2!I161 -> 0 | AH160: =Раздел2!J161 -> 0 | AI160: =Раздел2!K161 -> 0 | AJ160: =Раздел2!L161 -> 0
A161: Регби - пляжное | B161: 154 | C161: 0 | V161: 0 | AA161: 0 | AF161: =Раздел2!C162 -> 0 | AG161: =Раздел2!I162 -> 0 | AH161: =Раздел2!J162 -> 0 | AI161: =Раздел2!K162 -> 0 | AJ161: =Раздел2!L162 -> 0
A162: Регби на снегу | B162: 155 | C162: 0 | V162: 0 | AA162: 0 | AF162: =Раздел2!C163 -> 0 | AG162: =Раздел2!I163 -> 0 | AH162: =Раздел2!J163 -> 0 | AI162: =Раздел2!K163 -> 0 | AJ162: =Раздел2!L163 -> 0
A163: Регбол | B163: 156 | C163: 0 | V163: 0 | AA163: 0 | AF163: =Раздел2!C164 -> 0 | AG163: =Раздел2!I164 -> 0 | AH163: =Раздел2!J164 -> 0 | AI163: =Раздел2!K164 -> 0 | AJ163: =Раздел2!L164 -> 0
A164: Роллер спорт | B164: 157 | C164: 0 | V164: 0 | AA164: 0 | AF164: =Раздел2!C165 -> 0 | AG164: =Раздел2!I165 -> 0 | AH164: =Раздел2!J165 -> 0 | AI164: =Раздел2!K165 -> 0 | AJ164: =Раздел2!L165 -> 0
A165: Роуп скиппинг (спортивная скакалка) | B165: 158 | C165: 0 | V165: 0 | AA165: 0 | AF165: =Раздел2!C166 -> 0 | AG165: =Раздел2!I166 -> 0 | AH165: =Раздел2!J166 -> 0 | AI165: =Раздел2!K166 -> 0 | AJ165: =Раздел2!L166 -> 0
A166: Рукопашный бой | B166: 159 | C166: 0 | V166: 0 | AA166: 0 | AF166: =Раздел2!C167 -> 0 | AG166: =Раздел2!I167 -> 0 | AH166: =Раздел2!J167 -> 0 | AI166: =Раздел2!K167 -> 0 | AJ166: =Раздел2!L167 -> 0
A167: Рыболовный спорт | B167: 160 | C167: 0 | V167: 0 | AA167: 0 | AF167: =Раздел2!C168 -> 0 | AG167: =Раздел2!I168 -> 0 | AH167: =Раздел2!J168 -> 0 | AI167: =Раздел2!K168 -> 0 | AJ167: =Раздел2!L168 -> 0
A168: Сават | B168: 161 | C168: 0 | V168: 0 | AA168: 0 | AF168: =Раздел2!C169 -> 0 | AG168: =Раздел2!I169 -> 0 | AH168: =Раздел2!J169 -> 0 | AI168: =Раздел2!K169 -> 0 | AJ168: =Раздел2!L169 -> 0
A169: Самбо | B169: 162 | C169: 0 | V169: 0 | AA169: 0 | AF169: =Раздел2!C170 -> 0 | AG169: =Раздел2!I170 -> 0 | AH169: =Раздел2!J170 -> 0 | AI169: =Раздел2!K170 -> 0 | AJ169: =Раздел2!L170 -> 0
A170: Самолетный спорт | B170: 163 | C170: 0 | V170: 0 | AA170: 0 | AF170: =Раздел2!C171 -> 0 | AG170: =Раздел2!I171 -> 0 | AH170: =Раздел2!J171 -> 0 | AI170: =Раздел2!K171 -> 0 | AJ170: =Раздел2!L171 -> 0
A171: Санный спорт | B171: 164 | C171: 0 | V171: 0 | AA171: 0 | AF171: =Раздел2!C172 -> 0 | AG171: =Раздел2!I172 -> 0 | AH171: =Раздел2!J172 -> 0 | AI171: =Раздел2!K172 -> 0 | AJ171: =Раздел2!L172 -> 0
A172: Северное многоборье | B172: 165 | C172: 0 | V172: 0 | AA172: 0 | AF172: =Раздел2!C173 -> 0 | AG172: =Раздел2!I173 -> 0 | AH172: =Раздел2!J173 -> 0 | AI172: =Раздел2!K173 -> 0 | AJ172: =Раздел2!L173 -> 0
A173: Серфинг | B173: 166 | C173: 0 | V173: 0 | AA173: 0 | AF173: =Раздел2!C174 -> 0 | AG173: =Раздел2!I174 -> 0 | AH173: =Раздел2!J174 -> 0 | AI173: =Раздел2!K174 -> 0 | AJ173: =Раздел2!L174 -> 0
A174: Силовой экстрим | B174: 167 | C174: 0 | V174: 0 | AA174: 0 | AF174: =Раздел2!C175 -> 0 | AG174: =Раздел2!I175 -> 0 | AH174: =Раздел2!J175 -> 0 | AI174: =Раздел2!K175 -> 0 | AJ174: =Раздел2!L175 -> 0
A175: Синхронное плавание | B175: 168 | C175: 0 | V175: 0 | AA175: 0 | AF175: =Раздел2!C176 -> 0 | AG175: =Раздел2!I176 -> 0 | AH175: =Раздел2!J176 -> 0 | AI175: =Раздел2!K176 -> 0 | AJ175: =Раздел2!L176 -> 0
A176: Скалолазание | B176: 169 | C176: 0 | V176: 0 | AA176: 0 | AF176: =Раздел2!C177 -> 0 | AG176: =Раздел2!I177 -> 0 | AH176: =Раздел2!J177 -> 0 | AI176: =Раздел2!K177 -> 0 | AJ176: =Раздел2!L177 -> 0
A177: Сквош | B177: 170 | C177: 0 | V177: 0 | AA177: 0 | AF177: =Раздел2!C178 -> 0 | AG177: =Раздел2!I178 -> 0 | AH177: =Раздел2!J178 -> 0 | AI177: =Раздел2!K178 -> 0 | AJ177: =Раздел2!L178 -> 0
A178: Скейтбординг | B178: 171 | C178: 0 | V178: 0 | AA178: 0 | AF178: =Раздел2!C179 -> 0 | AG178: =Раздел2!I179 -> 0 | AH178: =Раздел2!J179 -> 0 | AI178: =Раздел2!K179 -> 0 | AJ178: =Раздел2!L179 -> 0
A179: Служебно-боевая стрельба | B179: 172 | C179: 0 | V179: 0 | AA179: 0 | AF179: =Раздел2!C180 -> 0 | AG179: =Раздел2!I180 -> 0 | AH179: =Раздел2!J180 -> 0 | AI179: =Раздел2!K180 -> 0 | AJ179: =Раздел2!L180 -> 0
A180: Служебно-прикладной спорт | B180: 173 | C180: 0 | V180: 0 | AA180: 0 | AF180: =Раздел2!C181 -> 0 | AG180: =Раздел2!I181 -> 0 | AH180: =Раздел2!J181 -> 0 | AI180: =Раздел2!K181 -> 0 | AJ180: =Раздел2!L181 -> 0
A181: Служебно-прикладной спорт ФСО России | B181: 174 | C181: 0 | V181: 0 | AA181: 0 | AF181: =Раздел2!C182 -> 0 | AG181: =Раздел2!I182 -> 0 | AH181: =Раздел2!J182 -> 0 | AI181: =Раздел2!K182 -> 0 | AJ181: =Раздел2!L182 -> 0
A182: Служебно-прикладной спорт ФТС России | B182: 175 | C182: 0 | V182: 0 | AA182: 0 | AF182: =Раздел2!C183 -> 0 | AG182: =Раздел2!I183 -> 0 | AH182: =Раздел2!J183 -> 0 | AI182: =Раздел2!K183 -> 0 | AJ182: =Раздел2!L183 -> 0
A183: Служебное двоеборье | B183: 176 | C183: 0 | V183: 0 | AA183: 0 | AF183: =Раздел2!C184 -> 0 | AG183: =Раздел2!I184 -> 0 | AH183: =Раздел2!J184 -> 0 | AI183: =Раздел2!K184 -> 0 | AJ183: =Раздел2!L184 -> 0
A184: Служебное единоборство | B184: 177 | C184: 0 | V184: 0 | AA184: 0 | AF184: =Раздел2!C185 -> 0 | AG184: =Раздел2!I185 -> 0 | AH184: =Раздел2!J185 -> 0 | AI184: =Раздел2!K185 -> 0 | AJ184: =Раздел2!L185 -> 0
A185: Служебное многоборье | B185: 178 | C185: 0 | V185: 0 | AA185: 0 | AF185: =Раздел2!C186 -> 0 | AG185: =Раздел2!I186 -> 0 | AH185: =Раздел2!J186 -> 0 | AI185: =Раздел2!K186 -> 0 | AJ185: =Раздел2!L186 -> 0
A186: Служебный биатлон | B186: 179 | C186: 0 | V186: 0 | AA186: 0 | AF186: =Раздел2!C187 -> 0 | AG186: =Раздел2!I187 -> 0 | AH186: =Раздел2!J187 -> 0 | AI186: =Раздел2!K187 -> 0 | AJ186: =Раздел2!L187 -> 0
A187: Спасательный спорт | B187: 180 | C187: 0 | V187: 0 | AA187: 0 | AF187: =Раздел2!C188 -> 0 | AG187: =Раздел2!I188 -> 0 | AH187: =Раздел2!J188 -> 0 | AI187: =Раздел2!K188 -> 0 | AJ187: =Раздел2!L188 -> 0
A188: Стрельба из боевого ручного стрелкового оружия | B188: 181 | C188: 0 | V188: 0 | AA188: 0 | AF188: =Раздел2!C189 -> 0 | AG188: =Раздел2!I189 -> 0 | AH188: =Раздел2!J189 -> 0 | AI188: =Раздел2!K189 -> 0 | AJ188: =Раздел2!L189 -> 0
A189: Стрельба из штатного или табельного оружия | B189: 182 | C189: 0 | V189: 0 | AA189: 0 | AF189: =Раздел2!C190 -> 0 | AG189: =Раздел2!I190 -> 0 | AH189: =Раздел2!J190 -> 0 | AI189: =Раздел2!K190 -> 0 | AJ189: =Раздел2!L190 -> 0
A190: Стрельба на дальние дистанции | B190: 183 | C190: 0 | V190: 0 | AA190: 0 | AF190: =Раздел2!C191 -> 0 | AG190: =Раздел2!I191 -> 0 | AH190: =Раздел2!J191 -> 0 | AI190: =Раздел2!K191 -> 0 | AJ190: =Раздел2!L191 -> 0
A191: Смешанное боевое единоборство (ММА) | B191: 184 | C191: 0 | V191: 0 | AA191: 0 | AF191: =Раздел2!C192 -> 0 | AG191: =Раздел2!I192 -> 0 | AH191: =Раздел2!J192 -> 0 | AI191: =Раздел2!K192 -> 0 | AJ191: =Раздел2!L192 -> 0
A192: Сноуборд | B192: 185 | C192: 0 | V192: 0 | AA192: 0 | AF192: =Раздел2!C193 -> 0 | AG192: =Раздел2!I193 -> 0 | AH192: =Раздел2!J193 -> 0 | AI192: =Раздел2!K193 -> 0 | AJ192: =Раздел2!L193 -> 0
A193: Современное пятиборье | B193: 186 | C193: 0 | V193: 0 | AA193: 0 | AF193: =Раздел2!C194 -> 0 | AG193: =Раздел2!I194 -> 0 | AH193: =Раздел2!J194 -> 0 | AI193: =Раздел2!K194 -> 0 | AJ193: =Раздел2!L194 -> 0
A194: Софтбол | B194: 187 | C194: 0 | V194: 0 | AA194: 0 | AF194: =Раздел2!C195 -> 0 | AG194: =Раздел2!I195 -> 0 | AH194: =Раздел2!J195 -> 0 | AI194: =Раздел2!K195 -> 0 | AJ194: =Раздел2!L195 -> 0
A195: Спорт сверхлегкой авиации | B195: 188 | C195: 0 | V195: 0 | AA195: 0 | AF195: =Раздел2!C196 -> 0 | AG195: =Раздел2!I196 -> 0 | AH195: =Раздел2!J196 -> 0 | AI195: =Раздел2!K196 -> 0 | AJ195: =Раздел2!L196 -> 0
A196: Спортивная акробатика | B196: 189 | C196: 0 | V196: 0 | AA196: 0 | AF196: =Раздел2!C197 -> 0 | AG196: =Раздел2!I197 -> 0 | AH196: =Раздел2!J197 -> 0 | AI196: =Раздел2!K197 -> 0 | AJ196: =Раздел2!L197 -> 0
A197: Спортивная аэробика | B197: 190 | C197: 0 | V197: 0 | AA197: 0 | AF197: =Раздел2!C198 -> 0 | AG197: =Раздел2!I198 -> 0 | AH197: =Раздел2!J198 -> 0 | AI197: =Раздел2!K198 -> 0 | AJ197: =Раздел2!L198 -> 0
A198: Спортивная борьба - всего | B198: 191 | C198: 70 | D198: =SUM(D199:D203) -> 0 | E198: =SUM(E199:E203) -> 10 | F198: 15 | G198: 9 | H198: 10 | I198: 18 | J198: 8 | K198: 0 | L198: 0 | M198: 0 | N198: 0 | O198: 0 | P198: 0 | Q198: 0 | R198: 0 | S198: 0 | T198: 0 | U198: 0 | V198: 0 | W198: 0 | X198: 0 | Y198: 0 | Z198: 0 | AA198: 32 | AB198: 17 | AC198: 15 | AD198: 0 | AE198: 0 | AF198: =Раздел2!C199 -> 1 | AG198: =Раздел2!I199 -> 25 | AH198: =Раздел2!J199 -> 45 | AI198: =Раздел2!K199 -> 0 | AJ198: =Раздел2!L199 -> 0
A199: в том числе: Вольная борьба | B199: 192 | C199: 0 | V199: 0 | AA199: 0 | AF199: =Раздел2!C200 -> 0 | AG199: =Раздел2!I200 -> 0 | AH199: =Раздел2!J200 -> 0 | AI199: =Раздел2!K200 -> 0 | AJ199: =Раздел2!L200 -> 0
A200: Греко-римская борьба | B200: 193 | C200: 70 | E200: 10 | F200: 15 | G200: 9 | H200: 10 | I200: 18 | J200: 8 | V200: 0 | AA200: 32 | AB200: 17 | AC200: 15 | AF200: =Раздел2!C201 -> 1 | AG200: =Раздел2!I201 -> 25 | AH200: =Раздел2!J201 -> 45 | AI200: =Раздел2!K201 -> 0 | AJ200: =Раздел2!L201 -> 0
... 81 more rows

Sheet Раздел4
A1: Раздел IV. Численность занимающихся спортивной подготовкой в возрасте 5 -17 лет
S2: Код по ОКЕИ: человек - 792
A3: Наименование показателя | B3: № строки | C3: Всего | D3: Возрастной состав занимающихся (число полных лет по состоянию на 31 декабря отчетного года) | Q3: Распределение численности занимающихся по источникам финансирования (из гр. 8-12 раздела II)
D4: (из гр. 8-12 раздела II) | Q4: За счет бюджетных ассигнований: | T4: По договорам об оказании платных услуг | U4: Из иных внебюджетных источников
D5: 5 | E5: 6 | F5: 7 | G5: 8 | H5: 9 | I5: 10 | J5: 11 | K5: 12 | L5: 13 | M5: 14 | N5: 15 | O5: 16 | P5: 17 | Q5: федерального бюджета | R5: бюджета субъекта РФ | S5: местного бюджета
A7: 1 | B7: 2 | C7: 3 | D7: 4 | E7: 5 | F7: 6 | G7: 7 | H7: 8 | I7: 9 | J7: 10 | K7: 11 | L7: 12 | M7: 13 | N7: 14 | O7: 15 | P7: 16 | Q7: 17 | R7: 18 | S7: 19 | T7: 20 | U7: 21
A8: Численность занимающихся спортивной подготовкой в возрасте 5 - 17 лет | B8: 01 | C8: =SUM(D8:P8) -> 1015 | D8: =SUM(D9:D13) -> 0 | E8: =SUM(E9:E13) -> 6 | F8: 16 | G8: 37 | H8: 46 | I8: 107 | J8: 130 | K8: 199 | L8: 131 | M8: 100 | N8: 74 | O8: 95 | P8: 74 | Q8: 0 | R8: 0 | S8: 1015 | T8: 0 | U8: 0 | V8: =Раздел2!N282 -> 1015
A9: в том числе: спортивно-оздоровительный | B9: 02 | C9: =SUM(D9:P9) -> 0 | V9: =Раздел2!H282 -> 0
A10: начальной подготовки | B10: 03 | C10: 580 | E10: 6 | F10: 16 | G10: 36 | H10: 38 | I10: 84 | J10: 110 | K10: 122 | L10: 88 | M10: 23 | N10: 13 | O10: 28 | P10: 16 | S10: 580 | V10: =Раздел2!I282 -> 580
A11: тренировочный | B11: 04 | C11: 398 | G11: 1 | H11: 8 | I11: 23 | J11: 20 | K11: 74 | L11: 41 | M11: 71 | N11: 45 | O11: 59 | P11: 56 | S11: 398 | V11: =Раздел2!J282 -> 398
A12: совершенствования спортивного мастерства | B12: 05 | C12: 37 | K12: 3 | L12: 2 | M12: 6 | N12: 16 | O12: 8 | P12: 2 | S12: 37 | V12: =Раздел2!K282 -> 37
A13: высшего спортивного мастерства | B13: 06 | C13: 0 | V13: =Раздел2!L282 -> 0

Sheet Раздел5
A1: Раздел V. Спортивные разряды, спортивные звания
AR2: Код по ОКЕИ: человек – 792, единица – 642
A3: Виды спорта | B3: № строки | C3: Из числа занимающихся и обучающихся (гр. 6 раздела II) спортсменов, имеющих разряды, звания, человек | M3: В том числе занимающихся на этапах спортивной подготовки (гр. 7 раздела II) спортсменов, имеющих разряды, звания, человек | W3: Разряды, звания, присвоенные и подтвержденные в отчетном году, единица | AJ3: В том числе разряды, звания, присвоенные и подтвержденные в отчетном году занимающихся на этапах спортивной подготовки (гр. 7 раздела II), единица
C4: Итого | D4: спортивные разряды | H4: спортивные звания | M4: Итого | N4: спортивные разряды | R4: спортивные звания | W4: спортивные разряды присвоенные | AA4: спортивные разряды подтвержденные | AE4: спортивные звания присвоенные | AJ4: спортивные разряды присвоенные | AN4: спортивные разряды подтвержденные | AR4: спортивные звания присвоенные
D5: Всего | E5: в том числе: | H5: Всего | I5: в том числе: | N5: Всего | O5: в том числе: | R5: Всего | S5: в том числе: | W5: Всего | X5: в том числе: | AA5: Всего | AB5: в том числе: | AE5: Всего | AF5: в том числе: | AJ5: Всего | AK5: в том числе: | AN5: Всего | AO5: в том числе: | AR5: Всего | AS5: в том числе:
E6: КМС | F6: 1 разряд | G6: другие разряды | I6: ЗМС | J6: МСМК | K6: МС | L6: гроссмейстер | O6: КМС | P6: 1 разряд | Q6: другие разряды | S6: ЗМС | T6: МСМК | U6: МС | V6: гроссмейстер | X6: КМС | Y6: 1 разряд | Z6: другие разряды | AB6: КМС | AC6: 1 разряд | AD6: другие разряды | AF6: ЗМС | AG6: МСМК | AH6: МС | AI6: гроссмейстер | AK6: КМС | AL6: 1 разряд | AM6: другие разряды | AO6: КМС | AP6: 1 разряд | AQ6: другие разряды | AS6: ЗМС | AT6: МСМК | AU6: МС | AV6: гроссмейстер
A7: 1 | B7: 2 | C7: 3 | D7: 4 | E7: 5 | F7: 6 | G7: 7 | H7: 8 | I7: 9 | J7: 10 | K7: 11 | L7: 12 | M7: 13 | N7: 14 | O7: 15 | P7: 16 | Q7: 17 | R7: 18 | S7: 19 | T7: 20 | U7: 21 | V7: 22 | W7: 23 | X7: 24 | Y7: 25 | Z7: 26 | AA7: 27 | AB7: 28 | AC7: 29 | AD7: 30 | AE7: 31 | AF7: 32 | AG7: 33 | AH7: 34 | AI7: 35 | AJ7: 36 | AK7: 37 | AL7: 38 | AM7: 39 | AN7: 40 | AO7: 41 | AP7: 42 | AQ7: 43 | AR7: 44 | AS7: 45 | AT7: 46 | AU7: 47 | AV7: 48 | AW7: 2 р - 6 | AX7: 2р-7 | AY7: 2р 3 | AZ7: 2р 8-12
A8: Авиамодельный спорт | B8: 01 | C8: =SUM(D8,H8) -> 0 | D8: =SUM(E8:G8) -> 0 | H8: =SUM(I8:L8) -> 0 | M8: =SUM(N8,R8) -> 0 | N8: =SUM(O8:Q8) -> 0 | R8: =SUM(S8:V8) -> 0 | W8: =SUM(X8:Z8) -> 0 | AA8: =SUM(AB8:AD8) -> 0 | AE8: =SUM(AF8:AI8) -> 0 | AJ8: =SUM(AK8:AM8) -> 0 | AN8: =SUM(AO8:AQ8) -> 0 | AR8: =SUM(AS8:AV8) -> 0 | AW8: =Раздел2!F9 -> 0 | AX8: =Раздел2!G9 -> 0 | AY8: =Раздел2!C9 -> 0 | AZ8: =SUM(Раздел2!H9:L9) -> 0
A9: Авиационные гонки | B9: 02 | C9: =SUM(D9,H9) -> 0 | D9: =SUM(E9:G9) -> 0 | H9: =SUM(I9:L9) -> 0 | M9: =SUM(N9,R9) -> 0 | N9: =SUM(O9:Q9) -> 0 | R9: =SUM(S9:V9) -> 0 | W9: =SUM(X9:Z9) -> 0 | AA9: =SUM(AB9:AD9) -> 0 | AE9: =SUM(AF9:AI9) -> 0 | AJ9: =SUM(AK9:AM9) -> 0 | AN9: =SUM(AO9:AQ9) -> 0 | AR9: =SUM(AS9:AV9) -> 0 | AW9: =Раздел2!F10 -> 0 | AX9: =Раздел2!G10 -> 0 | AY9: =Раздел2!C10 -> 0 | AZ9: =SUM(Раздел2!H10:L10) -> 0
A10: Автомобильный спорт | B10: 03 | C10: 0 | D10: 0 | H10: 0 | M10: 0 | N10: 0 | R10: 0 | W10: 0 | AA10: 0 | AE10: 0 | AJ10: 0 | AN10: 0 | AR10: 0 | AW10: =Раздел2!F11 -> 0 | AX10: =Раздел2!G11 -> 0 | AY10: =Раздел2!C11 -> 0 | AZ10: =SUM(Раздел2!H11:L11) -> 0
A11: Автомодельный спорт | B11: 04 | C11: 0 | D11: 0 | H11: 0 | M11: 0 | N11: 0 | R11: 0 | W11: 0 | AA11: 0 | AE11: 0 | AJ11: 0 | AN11: 0 | AR11: 0 | AW11: =Раздел2!F12 -> 0 | AX11: =Раздел2!G12 -> 0 | AY11: =Раздел2!C12 -> 0 | AZ11: =SUM(Раздел2!H12:L12) -> 0
A12: Айкидо | B12: 05 | C12: 0 | D12: 0 | H12: 0 | M12: 0 | N12: 0 | R12: 0 | W12: 0 | AA12: 0 | AE12: 0 | AJ12: 0 | AN12: 0 | AR12: 0 | AW12: =Раздел2!F13 -> 0 | AX12: =Раздел2!G13 -> 0 | AY12: =Раздел2!C13 -> 0 | AZ12: =SUM(Раздел2!H13:L13) -> 0
A13: Айсшток | B13: 06 | C13: 0 | D13: 0 | H13: 0 | M13: 0 | N13: 0 | R13: 0 | W13: 0 | AA13: 0 | AE13: 0 | AJ13: 0 | AN13: 0 | AR13: 0 | AW13: =Раздел2!F14 -> 0 | AX13: =Раздел2!G14 -> 0 | AY13: =Раздел2!C14 -> 0 | AZ13: =SUM(Раздел2!H14:L14) -> 0
A14: Акробатический рок-н-ролл | B14: 07 | C14: 0 | D14: 0 | H14: 0 | M14: 0 | N14: 0 | R14: 0 | W14: 0 | AA14: 0 | AE14: 0 | AJ14: 0 | AN14: 0 | AR14: 0 | AW14: =Раздел2!F15 -> 0 | AX14: =Раздел2!G15 -> 0 | AY14: =Раздел2!C15 -> 0 | AZ14: =SUM(Раздел2!H15:L15) -> 0
A15: Альпинизм | B15: 08 | C15: 0 | D15: 0 | H15: 0 | M15: 0 | N15: 0 | R15: 0 | W15: 0 | AA15: 0 | AE15: 0 | AJ15: 0 | AN15: 0 | AR15: 0 | AW15: =Раздел2!F16 -> 0 | AX15: =Раздел2!G16 -> 0 | AY15: =Раздел2!C16 -> 0 | AZ15: =SUM(Раздел2!H16:L16) -> 0
A16: Американский футбол | B16: 09 | C16: 0 | D16: 0 | H16: 0 | M16: 0 | N16: 0 | R16: 0 | W16: 0 | AA16: 0 | AE16: 0 | AJ16: 0 | AN16: 0 | AR16: 0 | AW16: =Раздел2!F17 -> 0 | AX16: =Раздел2!G17 -> 0 | AY16: =Раздел2!C17 -> 0 | AZ16: =SUM(Раздел2!H17:L17) -> 0
A17: Армейский рукопашный бой | B17: 10 | C17: 0 | D17: 0 | H17: 0 | M17: 0 | N17: 0 | R17: 0 | W17: 0 | AA17: 0 | AE17: 0 | AJ17: 0 | AN17: 0 | AR17: 0 | AW17: =Раздел2!F18 -> 0 | AX17: =Раздел2!G18 -> 0 | AY17: =Раздел2!C18 -> 0 | AZ17: =SUM(Раздел2!H18:L18) -> 0
A18: Армейское тактико-стрелковое многоборье | B18: 11 | C18: 0 | D18: 0 | H18: 0 | M18: 0 | N18: =SUM(O18:Q18) -> 0 | R18: 0 | W18: 0 | AA18: 0 | AE18: 0 | AJ18: 0 | AN18: 0 | AR18: 0 | AW18: =Раздел2!F19 -> 0 | AX18: =Раздел2!G19 -> 0 | AY18: =Раздел2!C19 -> 0 | AZ18: =SUM(Раздел2!H19:L19) -> 0
A19: Армрестлинг | B19: 12 | C19: 0 | D19: 0 | H19: 0 | M19: 0 | N19: 0 | R19: 0 | W19: 0 | AA19: 0 | AE19: 0 | AJ19: 0 | AN19: 0 | AR19: 0 | AW19: =Раздел2!F20 -> 0 | AX19: =Раздел2!G20 -> 0 | AY19: =Раздел2!C20 -> 0 | AZ19: =SUM(Раздел2!H20:L20) -> 0
A20: Бадминтон | B20: 13 | C20: 0 | D20: 0 | H20: 0 | M20: 0 | N20: 0 | R20: 0 | W20: 0 | AA20: 0 | AE20: 0 | AJ20: 0 | AN20: 0 | AR20: 0 | AW20: =Раздел2!F21 -> 0 | AX20: =Раздел2!G21 -> 0 | AY20: =Раздел2!C21 -> 0 | AZ20: =SUM(Раздел2!H21:L21) -> 0
A21: Баскетбол - всего | B21: 14 | C21: 1 | D21: 1 | E21: =SUM(E22:E24) -> 0 | F21: =SUM(F22:F24) -> 0 | G21: 1 | H21: 0 | I21: 0 | J21: 0 | K21: 0 | L21: 0 | M21: 1 | N21: 1 | O21: 0 | P21: 0 | Q21: 1 | R21: 0 | S21: 0 | T21: 0 | U21: 0 | V21: 0 | W21: 0 | X21: 0 | Y21: 0 | Z21: 0 | AA21: 0 | AB21: 0 | AC21: 0 | AD21: 0 | AE21: 0 | AF21: 0 | AG21: 0 | AH21: 0 | AI21: 0 | AJ21: 0 | AK21: 0 | AL21: 0 | AM21: 0 | AN21: 0 | AO21: 0 | AP21: 0 | AQ21: 0 | AR21: 0 | AS21: 0 | AT21: 0 | AU21: 0 | AV21: 0 | AW21: =Раздел2!F22 -> 136 | AX21: =Раздел2!G22 -> 136 | AY21: =Раздел2!C22 -> 1 | AZ21: =SUM(Раздел2!H22:L22) -> 136
A22: в том числе: Баскетбол (муж.) | B22: 15 | C22: 1 | D22: 1 | G22: 1 | H22: 0 | M22: 1 | N22: 1 | Q22: 1 | R22: 0 | W22: 0 | AA22: 0 | AE22: 0 | AJ22: 0 | AN22: 0 | AR22: 0 | AW22: =Раздел2!F23 -> 136 | AX22: =Раздел2!G23 -> 136 | AY22: =Раздел2!C23 -> 1 | AZ22: =SUM(Раздел2!H23:L23) -> 136
A23: Баскетбол (жен.) | B23: 16 | C23: 0 | D23: 0 | H23: 0 | M23: 0 | N23: 0 | R23: 0 | W23: 0 | AA23: 0 | AE23: 0 | AJ23: 0 | AN23: 0 | AR23: 0 | AW23: =Раздел2!F24 -> 0 | AX23: =Раздел2!G24 -> 0 | AY23: =Раздел2!C24 -> 0 | AZ23: =SUM(Раздел2!H24:L24) -> 0
A24: Баскетбол 3х3 | B24: 17 | C24: 0 | D24: 0 | H24: 0 | M24: 0 | N24: 0 | R24: 0 | W24: 0 | AA24: 0 | AE24: 0 | AJ24: 0 | AN24: 0 | AR24: 0 | AW24: =Раздел2!F25 -> 0 | AX24: =Раздел2!G25 -> 0 | AY24: =Раздел2!C25 -> 0 | AZ24: =SUM(Раздел2!H25:L25) -> 0
A25: Бейсбол | B25: 18 | C25: 0 | D25: 0 | H25: 0 | M25: 0 | N25: 0 | R25: 0 | W25: 0 | AA25: 0 | AE25: 0 | AJ25: 0 | AN25: 0 | AR25: 0 | AW25: =Раздел2!F26 -> 0 | AX25: =Раздел2!G26 -> 0 | AY25: =Раздел2!C26 -> 0 | AZ25: =SUM(Раздел2!H26:L26) -> 0
A26: Биатлон | B26: 19 | C26: 0 | D26: 0 | H26: 0 | M26: 0 | N26: 0 | R26: 0 | W26: 0 | AA26: 0 | AE26: 0 | AJ26: 0 | AN26: 0 | AR26: 0 | AW26: =Раздел2!F27 -> 0 | AX26: =Раздел2!G27 -> 0 | AY26: =Раздел2!C27 -> 0 | AZ26: =SUM(Раздел2!H27:L27) -> 0
A27: Бильярдный спорт | B27: 20 | C27: 0 | D27: 0 | H27: 0 | M27: 0 | N27: 0 | R27: 0 | W27: 0 | AA27: 0 | AE27: 0 | AJ27: 0 | AN27: 0 | AR27: 0 | AW27: =Раздел2!F28 -> 0 | AX27: =Раздел2!G28 -> 0 | AY27: =Раздел2!C28 -> 0 | AZ27: =SUM(Раздел2!H28:L28) -> 0
A28: Бобслей - всего | B28: 21 | C28: 0 | D28: 0 | E28: =SUM(E29:E30) -> 0 | F28: =SUM(F29:F30) -> 0 | G28: 0 | H28: 0 | I28: 0 | J28: 0 | K28: 0 | L28: 0 | M28: 0 | N28: 0 | O28: 0 | P28: 0 | Q28: 0 | R28: 0 | S28: 0 | T28: 0 | U28: 0 | V28: 0 | W28: 0 | X28: 0 | Y28: 0 | Z28: 0 | AA28: 0 | AB28: 0 | AC28: 0 | AD28: 0 | AE28: 0 | AF28: 0 | AG28: 0 | AH28: 0 | AI28: 0 | AJ28: 0 | AK28: 0 | AL28: 0 | AM28: 0 | AN28: 0 | AO28: 0 | AP28: 0 | AQ28: 0 | AR28: 0 | AS28: 0 | AT28: 0 | AU28: 0 | AV28: 0 | AW28: =Раздел2!F29 -> 0 | AX28: =Раздел2!G29 -> 0 | AY28: =Раздел2!C29 -> 0 | AZ28: =SUM(Раздел2!H29:L29) -> 0
A29: в том числе: Бобслей | B29: 22 | C29: 0 | D29: 0 | H29: 0 | M29: 0 | N29: 0 | R29: 0 | W29: 0 | AA29: 0 | AE29: 0 | AJ29: 0 | AN29: 0 | AR29: 0 | AW29: =Раздел2!F30 -> 0 | AX29: =Раздел2!G30 -> 0 | AY29: =Раздел2!C30 -> 0 | AZ29: =SUM(Раздел2!H30:L30) -> 0
A30: Скелетон | B30: 23 | C30: 0 | D30: 0 | H30: 0 | M30: 0 | N30: 0 | R30: 0 | W30: 0 | AA30: 0 | AE30: 0 | AJ30: 0 | AN30: 0 | AR30: 0 | AW30: =Раздел2!F31 -> 0 | AX30: =Раздел2!G31 -> 0 | AY30: =Раздел2!C31 -> 0 | AZ30: =SUM(Раздел2!H31:L31) -> 0
A31: Бодибилдинг | B31: 24 | C31: 0 | D31: 0 | H31: 0 | M31: 0 | N31: 0 | R31: 0 | W31: 0 | AA31: 0 | AE31: 0 | AJ31: 0 | AN31: 0 | AR31: 0 | AW31: =Раздел2!F32 -> 0 | AX31: =Раздел2!G32 -> 0 | AY31: =Раздел2!C32 -> 0 | AZ31: =SUM(Раздел2!H32:L32) -> 0
A32: Бокс | B32: 25 | C32: 37 | D32: 37 | E32: 1 | F32: 1 | G32: 35 | H32: 0 | M32: 37 | N32: 37 | O32: 1 | P32: 1 | Q32: 35 | R32: 0 | W32: 9 | Y32: 1 | Z32: 8 | AA32: 1 | AD32: 1 | AE32: 0 | AJ32: 9 | AL32: 1 | AM32: 8 | AN32: 1 | AQ32: 1 | AR32: 0 | AW32: =Раздел2!F33 -> 46 | AX32: =Раздел2!G33 -> 46 | AY32: =Раздел2!C33 -> 1 | AZ32: =SUM(Раздел2!H33:L33) -> 46
A33: Борьба на поясах | B33: 26 | C33: 0 | D33: 0 | H33: 0 | M33: 0 | N33: 0 | R33: 0 | W33: 0 | AA33: 0 | AE33: 0 | AJ33: 0 | AN33: 0 | AR33: 0 | AW33: =Раздел2!F34 -> 0 | AX33: =Раздел2!G34 -> 0 | AY33: =Раздел2!C34 -> 0 | AZ33: =SUM(Раздел2!H34:L34) -> 0
A34: Боулинг | B34: 27 | C34: 0 | D34: 0 | H34: 0 | M34: 0 | N34: 0 | R34: 0 | W34: 0 | AA34: 0 | AE34: 0 | AJ34: 0 | AN34: 0 | AR34: 0 | AW34: =Раздел2!F35 -> 0 | AX34: =Раздел2!G35 -> 0 | AY34: =Раздел2!C35 -> 0 | AZ34: =SUM(Раздел2!H35:L35) -> 0
A35: Боулспорт | B35: 28 | C35: 0 | D35: 0 | H35: 0 | M35: 0 | N35: 0 | R35: 0 | W35: 0 | AA35: 0 | AE35: 0 | AJ35: 0 | AN35: 0 | AR35: 0 | AW35: =Раздел2!F36 -> 0 | AX35: =Раздел2!G36 -> 0 | AY35: =Раздел2!C36 -> 0 | AZ35: =SUM(Раздел2!H36:L36) -> 0
A36: Велосипедный спорт - всего | B36: 29 | C36: 0 | D36: 0 | E36: =SUM(E37:E40) -> 0 | F36: =SUM(F37:F40) -> 0 | G36: 0 | H36: 0 | I36: 0 | J36: 0 | K36: 0 | L36: 0 | M36: 0 | N36: 0 | O36: 0 | P36: 0 | Q36: 0 | R36: 0 | S36: 0 | T36: 0 | U36: 0 | V36: 0 | W36: 0 | X36: 0 | Y36: 0 | Z36: 0 | AA36: 0 | AB36: 0 | AC36: 0 | AD36: 0 | AE36: 0 | AF36: 0 | AG36: 0 | AH36: 0 | AI36: 0 | AJ36: 0 | AK36: 0 | AL36: 0 | AM36: 0 | AN36: 0 | AO36: 0 | AP36: 0 | AQ36: 0 | AR36: 0 | AS36: 0 | AT36: 0 | AU36: 0 | AV36: 0 | AW36: =Раздел2!F37 -> 0 | AX36: =Раздел2!G37 -> 0 | AY36: =Раздел2!C37 -> 0 | AZ36: =SUM(Раздел2!H37:L37) -> 0
A37: в том числе: BMX | B37: 30 | C37: 0 | D37: 0 | H37: 0 | M37: 0 | N37: 0 | R37: 0 | W37: 0 | AA37: 0 | AE37: 0 | AJ37: 0 | AN37: 0 | AR37: 0 | AW37: =Раздел2!F38 -> 0 | AX37: =Раздел2!G38 -> 0 | AY37: =Раздел2!C38 -> 0 | AZ37: =SUM(Раздел2!H38:L38) -> 0
A38: Маунтинбайк | B38: 31 | C38: 0 | D38: 0 | H38: 0 | M38: 0 | N38: 0 | R38: 0 | W38: 0 | AA38: 0 | AE38: 0 | AJ38: 0 | AN38: 0 | AR38: 0 | AW38: =Раздел2!F39 -> 0 | AX38: =Раздел2!G39 -> 0 | AY38: =Раздел2!C39 -> 0 | AZ38: =SUM(Раздел2!H39:L39) -> 0
A39: Трек | B39: 32 | C39: 0 | D39: 0 | H39: 0 | M39: 0 | N39: 0 | R39: 0 | W39: 0 | AA39: 0 | AE39: 0 | AJ39: 0 | AN39: 0 | AR39: 0 | AW39: =Раздел2!F40 -> 0 | AX39: =Раздел2!G40 -> 0 | AY39: =Раздел2!C40 -> 0 | AZ39: =SUM(Раздел2!H40:L40) -> 0
A40: Шоссе | B40: 33 | C40: 0 | D40: 0 | H40: 0 | M40: 0 | N40: 0 | R40: 0 | W40: 0 | AA40: 0 | AE40: 0 | AJ40: 0 | AN40: 0 | AR40: 0 | AW40: =Раздел2!F41 -> 0 | AX40: =Раздел2!G41 -> 0 | AY40: =Раздел2!C41 -> 0 | AZ40: =SUM(Раздел2!H41:L41) -> 0
A41: Вертолетный спорт | B41: 34 | C41: 0 | D41: 0 | H41: 0 | M41: 0 | N41: 0 | R41: 0 | W41: 0 | AA41: 0 | AE41: 0 | AJ41: 0 | AN41: 0 | AR41: 0 | AW41: =Раздел2!F42 -> 0 | AX41: =Раздел2!G42 -> 0 | AY41: =Раздел2!C42 -> 0 | AZ41: =SUM(Раздел2!H42:L42) -> 0
A42: Водно-моторный спорт | B42: 35 | C42: 0 | D42: 0 | H42: 0 | M42: 0 | N42: 0 | R42: 0 | W42: 0 | AA42: 0 | AE42: 0 | AJ42: 0 | AN42: 0 | AR42: 0 | AW42: =Раздел2!F43 -> 0 | AX42: =Раздел2!G43 -> 0 | AY42: =Раздел2!C43 -> 0 | AZ42: =SUM(Раздел2!H43:L43) -> 0
A43: Водно-спасательное многоборье | B43: 36 | C43: 0 | D43: 0 | H43: 0 | M43: 0 | N43: 0 | R43: 0 | W43: 0 | AA43: 0 | AE43: 0 | AJ43: 0 | AN43: 0 | AR43: 0 | AW43: =Раздел2!F44 -> 0 | AX43: =Раздел2!G44 -> 0 | AY43: =Раздел2!C44 -> 0 | AZ43: =SUM(Раздел2!H44:L44) -> 0
A44: Водное поло - всего | B44: 37 | C44: 0 | D44: 0 | E44: =SUM(E45:E46) -> 0 | F44: =SUM(F45:F46) -> 0 | G44: 0 | H44: 0 | I44: 0 | J44: 0 | K44: 0 | L44: 0 | M44: 0 | N44: 0 | O44: 0 | P44: 0 | Q44: 0 | R44: 0 | S44: 0 | T44: 0 | U44: 0 | V44: 0 | W44: 0 | X44: 0 | Y44: 0 | Z44: 0 | AA44: 0 | AB44: 0 | AC44: 0 | AD44: 0 | AE44: 0 | AF44: 0 | AG44: 0 | AH44: 0 | AI44: 0 | AJ44: 0 | AK44: 0 | AL44: 0 | AM44: 0 | AN44: 0 | AO44: 0 | AP44: 0 | AQ44: 0 | AR44: 0 | AS44: 0 | AT44: 0 | AU44: 0 | AV44: 0 | AW44: =Раздел2!F45 -> 0 | AX44: =Раздел2!G45 -> 0 | AY44: =Раздел2!C45 -> 0 | AZ44: =SUM(Раздел2!H45:L45) -> 0
A45: в том числе: Водное поло (муж.) | B45: 38 | C45: 0 | D45: 0 | H45: 0 | M45: 0 | N45: 0 | R45: 0 | W45: 0 | AA45: 0 | AE45: 0 | AJ45: 0 | AN45: 0 | AR45: 0 | AW45: =Раздел2!F46 -> 0 | AX45: =Раздел2!G46 -> 0 | AY45: =Раздел2!C46 -> 0 | AZ45: =SUM(Раздел2!H46:L46) -> 0
A46: Водное поло (жен.) | B46: 39 | C46: 0 | D46: 0 | H46: 0 | M46: 0 | N46: 0 | R46: 0 | W46: 0 | AA46: 0 | AE46: 0 | AJ46: 0 | AN46: 0 | AR46: 0 | AW46: =Раздел2!F47 -> 0 | AX46: =Раздел2!G47 -> 0 | AY46: =Раздел2!C47 -> 0 | AZ46: =SUM(Раздел2!H47:L47) -> 0
A47: Воднолыжный спорт | B47: 40 | C47: 0 | D47: 0 | H47: 0 | M47: 0 | N47: 0 | R47: 0 | W47: 0 | AA47: 0 | AE47: 0 | AJ47: 0 | AN47: 0 | AR47: 0 | AW47: =Раздел2!F48 -> 0 | AX47: =Раздел2!G48 -> 0 | AY47: =Раздел2!C48 -> 0 | AZ47: =SUM(Раздел2!H48:L48) -> 0
A48: Военно-прикладной спорт | B48: 41 | C48: 0 | D48: 0 | H48: 0 | M48: 0 | N48: 0 | R48: 0 | W48: 0 | AA48: 0 | AE48: 0 | AJ48: 0 | AN48: 0 | AR48: 0 | AW48: =Раздел2!F49 -> 0 | AX48: =Раздел2!G49 -> 0 | AY48: =Раздел2!C49 -> 0 | AZ48: =SUM(Раздел2!H49:L49) -> 0
A49: Военно-спортивное многоборье | B49: 42 | C49: 0 | D49: 0 | H49: 0 | M49: 0 | N49: 0 | R49: 0 | W49: 0 | AA49: 0 | AE49: 0 | AJ49: 0 | AN49: 0 | AR49: 0 | AW49: =Раздел2!F50 -> 0 | AX49: =Раздел2!G50 -> 0 | AY49: =Раздел2!C50 -> 0 | AZ49: =SUM(Раздел2!H50:L50) -> 0
A50: Воздухоплавательный спорт | B50: 43 | C50: 0 | D50: 0 | H50: 0 | M50: 0 | N50: 0 | R50: 0 | W50: 0 | AA50: 0 | AE50: 0 | AJ50: 0 | AN50: 0 | AR50: 0 | AW50: =Раздел2!F51 -> 0 | AX50: =Раздел2!G51 -> 0 | AY50: =Раздел2!C51 -> 0 | AZ50: =SUM(Раздел2!H51:L51) -> 0
A51: Воздушно-силовая атлетика | B51: 44 | C51: 0 | D51: 0 | H51: 0 | M51: 0 | N51: 0 | R51: 0 | W51: 0 | AA51: 0 | AE51: 0 | AJ51: 0 | AN51: 0 | AR51: 0 | AW51: =Раздел2!F52 -> 0 | AX51: =Раздел2!G52 -> 0 | AY51: =Раздел2!C52 -> 0 | AZ51: =SUM(Раздел2!H52:L52) -> 0
A52: Волейбол - всего | B52: 45 | C52: 0 | D52: 0 | E52: =SUM(E53:E56) -> 0 | F52: =SUM(F53:F56) -> 0 | G52: 0 | H52: 0 | I52: 0 | J52: 0 | K52: 0 | L52: 0 | M52: 0 | N52: 0 | O52: 0 | P52: 0 | Q52: 0 | R52: 0 | S52: 0 | T52: 0 | U52: 0 | V52: 0 | W52: 0 | X52: 0 | Y52: 0 | Z52: 0 | AA52: 0 | AB52: 0 | AC52: 0 | AD52: 0 | AE52: 0 | AF52: 0 | AG52: 0 | AH52: 0 | AI52: 0 | AJ52: 0 | AK52: 0 | AL52: 0 | AM52: 0 | AN52: 0 | AO52: 0 | AP52: 0 | AQ52: 0 | AR52: 0 | AS52: 0 | AT52: 0 | AU52: 0 | AV52: 0 | AW52: =Раздел2!F53 -> 0 | AX52: =Раздел2!G53 -> 0 | AY52: =Раздел2!C53 -> 0 | AZ52: =SUM(Раздел2!H53:L53) -> 0
A53: в том числе: Волейбол (муж.) | B53: 46 | C53: 0 | D53: 0 | H53: 0 | M53: 0 | N53: 0 | R53: 0 | W53: 0 | AA53: 0 | AE53: 0 | AJ53: 0 | AN53: 0 | AR53: 0 | AW53: =Раздел2!F54 -> 0 | AX53: =Раздел2!G54 -> 0 | AY53: =Раздел2!C54 -> 0 | AZ53: =SUM(Раздел2!H54:L54) -> 0
A54: Волейбол (жен.) | B54: 47 | C54: 0 | D54: 0 | H54: 0 | M54: 0 | N54: 0 | R54: 0 | W54: 0 | AA54: 0 | AE54: 0 | AJ54: 0 | AN54: 0 | AR54: 0 | AW54: =Раздел2!F55 -> 0 | AX54: =Раздел2!G55 -> 0 | AY54: =Раздел2!C55 -> 0 | AZ54: =SUM(Раздел2!H55:L55) -> 0
A55: Пляжный волейбол (муж.) | B55: 48 | C55: 0 | D55: 0 | H55: 0 | M55: 0 | N55: 0 | R55: 0 | W55: 0 | AA55: 0 | AE55: 0 | AJ55: 0 | AN55: 0 | AR55: 0 | AW55: =Раздел2!F56 -> 0 | AX55: =Раздел2!G56 -> 0 | AY55: =Раздел2!C56 -> 0 | AZ55: =SUM(Раздел2!H56:L56) -> 0
A56: Пляжный волейбол (жен.) | B56: 49 | C56: 0 | D56: 0 | H56: 0 | M56: 0 | N56: 0 | R56: 0 | W56: 0 | AA56: 0 | AE56: 0 | AJ56: 0 | AN56: 0 | AR56: 0 | AW56: =Раздел2!F57 -> 0 | AX56: =Раздел2!G57 -> 0 | AY56: =Раздел2!C57 -> 0 | AZ56: =SUM(Раздел2!H57:L57) -> 0
A57: Восточное боевое единоборство | B57: 50 | C57: 0 | D57: 0 | H57: 0 | M57: 0 | N57: 0 | R57: 0 | W57: 0 | AA57: 0 | AE57: 0 | AJ57: 0 | AN57: 0 | AR57: 0 | AW57: =Раздел2!F58 -> 0 | AX57: =Раздел2!G58 -> 0 | AY57: =Раздел2!C58 -> 0 | AZ57: =SUM(Раздел2!H58:L58) -> 0
A58: Всестилевое каратэ | B58: 51 | C58: 0 | D58: 0 | H58: 0 | M58: 0 | N58: 0 | R58: 0 | W58: 0 | AA58: 0 | AE58: 0 | AJ58: 0 | AN58: 0 | AR58: 0 | AW58: =Раздел2!F59 -> 0 | AX58: =Раздел2!G59 -> 0 | AY58: =Раздел2!C59 -> 0 | AZ58: =SUM(Раздел2!H59:L59) -> 0
A59: Гандбол - всего | B59: 52 | C59: 0 | D59: 0 | E59: =SUM(E60:E62) -> 0 | F59: =SUM(F60:F62) -> 0 | G59: 0 | H59: 0 | I59: 0 | J59: 0 | K59: 0 | L59: 0 | M59: 0 | N59: 0 | O59: 0 | P59: 0 | Q59: 0 | R59: 0 | S59: 0 | T59: 0 | U59: 0 | V59: 0 | W59: 0 | X59: 0 | Y59: 0 | Z59: 0 | AA59: 0 | AB59: 0 | AC59: 0 | AD59: 0 | AE59: 0 | AF59: 0 | AG59: 0 | AH59: 0 | AI59: 0 | AJ59: 0 | AK59: 0 | AL59: 0 | AM59: 0 | AN59: 0 | AO59: 0 | AP59: 0 | AQ59: 0 | AR59: 0 | AS59: 0 | AT59: 0 | AU59: 0 | AV59: 0 | AW59: =Раздел2!F60 -> 0 | AX59: =Раздел2!G60 -> 0 | AY59: =Раздел2!C60 -> 0 | AZ59: =SUM(Раздел2!H60:L60) -> 0
A60: в том числе: Гандбол (муж.) | B60: 53 | C60: 0 | D60: 0 | H60: 0 | M60: 0 | N60: 0 | R60: 0 | W60: 0 | AA60: 0 | AE60: 0 | AJ60: 0 | AN60: 0 | AR60: 0 | AW60: =Раздел2!F61 -> 0 | AX60: =Раздел2!G61 -> 0 | AY60: =Раздел2!C61 -> 0 | AZ60: =SUM(Раздел2!H61:L61) -> 0
A61: Гандбол (жен.) | B61: 54 | C61: 0 | D61: 0 | H61: 0 | M61: 0 | N61: 0 | R61: 0 | W61: 0 | AA61: 0 | AE61: 0 | AJ61: 0 | AN61: 0 | AR61: 0 | AW61: =Раздел2!F62 -> 0 | AX61: =Раздел2!G62 -> 0 | AY61: =Раздел2!C62 -> 0 | AZ61: =SUM(Раздел2!H62:L62) -> 0
A62: Пляжный гандбол | B62: 55 | C62: 0 | D62: 0 | H62: 0 | M62: 0 | N62: 0 | R62: 0 | W62: 0 | AA62: 0 | AE62: 0 | AJ62: 0 | AN62: 0 | AR62: 0 | AW62: =Раздел2!F63 -> 0 | AX62: =Раздел2!G63 -> 0 | AY62: =Раздел2!C63 -> 0 | AZ62: =SUM(Раздел2!H63:L63) -> 0
A63: Гиревой спорт | B63: 56 | C63: 0 | D63: 0 | H63: 0 | M63: 0 | N63: 0 | R63: 0 | W63: 0 | AA63: 0 | AE63: 0 | AJ63: 0 | AN63: 0 | AR63: 0 | AW63: =Раздел2!F64 -> 0 | AX63: =Раздел2!G64 -> 0 | AY63: =Раздел2!C64 -> 0 | AZ63: =SUM(Раздел2!H64:L64) -> 0
A64: Го | B64: 57 | C64: 0 | D64: 0 | H64: 0 | M64: 0 | N64: 0 | R64: 0 | W64: 0 | AA64: 0 | AE64: 0 | AJ64: 0 | AN64: 0 | AR64: 0 | AW64: =Раздел2!F65 -> 0 | AX64: =Раздел2!G65 -> 0 | AY64: =Раздел2!C65 -> 0 | AZ64: =SUM(Раздел2!H65:L65) -> 0
A65: Гольф | B65: 58 | C65: 0 | D65: 0 | H65: 0 | M65: 0 | N65: 0 | R65: 0 | W65: 0 | AA65: 0 | AE65: 0 | AJ65: 0 | AN65: 0 | AR65: 0 | AW65: =Раздел2!F66 -> 0 | AX65: =Раздел2!G66 -> 0 | AY65: =Раздел2!C66 -> 0 | AZ65: =SUM(Раздел2!H66:L66) -> 0
A66: Гонки на охотничьих лыжах | B66: 59 | C66: 0 | D66: 0 | H66: 0 | M66: 0 | N66: 0 | R66: 0 | W66: 0 | AA66: 0 | AE66: 0 | AJ66: 0 | AN66: 0 | AR66: 0 | AW66: =Раздел2!F67 -> 0 | AX66: =Раздел2!G67 -> 0 | AY66: =Раздел2!C67 -> 0 | AZ66: =SUM(Раздел2!H67:L67) -> 0
A67: Гонки с препятствиями | B67: 60 | C67: 0 | D67: 0 | H67: 0 | M67: 0 | N67: 0 | R67: 0 | W67: 0 | AA67: 0 | AE67: 0 | AJ67: 0 | AN67: 0 | AR67: 0 | AW67: =Раздел2!F68 -> 0 | AX67: =Раздел2!G68 -> 0 | AY67: =Раздел2!C68 -> 0 | AZ67: =SUM(Раздел2!H68:L68) -> 0
A68: Горнолыжный спорт | B68: 61 | C68: 0 | D68: 0 | H68: 0 | M68: 0 | N68: 0 | R68: 0 | W68: 0 | AA68: 0 | AE68: 0 | AJ68: 0 | AN68: 0 | AR68: 0 | AW68: =Раздел2!F69 -> 0 | AX68: =Раздел2!G69 -> 0 | AY68: =Раздел2!C69 -> 0 | AZ68: =SUM(Раздел2!H69:L69) -> 0
A69: Городошный спорт | B69: 62 | C69: 0 | D69: 0 | H69: 0 | M69: 0 | N69: 0 | R69: 0 | W69: 0 | AA69: 0 | AE69: 0 | AJ69: 0 | AN69: 0 | AR69: 0 | AW69: =Раздел2!F70 -> 0 | AX69: =Раздел2!G70 -> 0 | AY69: =Раздел2!C70 -> 0 | AZ69: =SUM(Раздел2!H70:L70) -> 0
A70: Гребля на байдарках и каноэ | B70: 63 | C70: 0 | D70: 0 | H70: 0 | M70: 0 | N70: 0 | R70: 0 | W70: 0 | AA70: 0 | AE70: 0 | AJ70: 0 | AN70: 0 | AR70: 0 | AW70: =Раздел2!F71 -> 0 | AX70: =Раздел2!G71 -> 0 | AY70: =Раздел2!C71 -> 0 | AZ70: =SUM(Раздел2!H71:L71) -> 0
A71: Гребля на шлюпках | B71: 64 | C71: 0 | D71: 0 | H71: 0 | M71: 0 | N71: 0 | R71: 0 | W71: 0 | AA71: 0 | AE71: 0 | AJ71: 0 | AN71: 0 | AR71: 0 | AW71: =Раздел2!F72 -> 0 | AX71: =Раздел2!G72 -> 0 | AY71: =Раздел2!C72 -> 0 | AZ71: =SUM(Раздел2!H72:L72) -> 0
A72: Гребной слалом | B72: 65 | C72: 0 | D72: 0 | H72: 0 | M72: 0 | N72: 0 | R72: 0 | W72: 0 | AA72: 0 | AE72: 0 | AJ72: 0 | AN72: 0 | AR72: 0 | AW72: =Раздел2!F73 -> 0 | AX72: =Раздел2!G73 -> 0 | AY72: =Раздел2!C73 -> 0 | AZ72: =SUM(Раздел2!H73:L73) -> 0
A73: Гребной спорт - всего | B73: 66 | C73: =SUM(D73,H73) -> 0 | D73: =SUM(E73:G73) -> 0 | E73: =SUM(E74:E77) -> 0 | F73: =SUM(F74:F77) -> 0 | G73: 0 | H73: 0 | I73: 0 | J73: 0 | K73: 0 | L73: 0 | M73: 0 | N73: 0 | O73: 0 | P73: 0 | Q73: 0 | R73: 0 | S73: 0 | T73: 0 | U73: 0 | V73: 0 | W73: 0 | X73: 0 | Y73: 0 | Z73: 0 | AA73: 0 | AB73: 0 | AC73: 0 | AD73: 0 | AE73: 0 | AF73: 0 | AG73: 0 | AH73: 0 | AI73: 0 | AJ73: 0 | AK73: 0 | AL73: 0 | AM73: 0 | AN73: 0 | AO73: 0 | AP73: 0 | AQ73: 0 | AR73: 0 | AS73: 0 | AT73: 0 | AU73: 0 | AV73: 0 | AW73: =Раздел2!F74 -> 0 | AX73: =Раздел2!G74 -> 0 | AY73: =Раздел2!C74 -> 0 | AZ73: =SUM(Раздел2!H74:L74) -> 0
A74: в том числе: Академическая гребля | B74: 67 | C74: 0 | D74: 0 | H74: =SUM(I74:L74) -> 0 | M74: =SUM(N74,R74) -> 0 | N74: =SUM(O74:Q74) -> 0 | R74: =SUM(S74:V74) -> 0 | W74: =SUM(X74:Z74) -> 0 | AA74: =SUM(AB74:AD74) -> 0 | AE74: =SUM(AF74:AI74) -> 0 | AJ74: =SUM(AK74:AM74) -> 0 | AN74: =SUM(AO74:AQ74) -> 0 | AR74: =SUM(AS74:AV74) -> 0 | AW74: =Раздел2!F75 -> 0 | AX74: =Раздел2!G75 -> 0 | AY74: =Раздел2!C75 -> 0 | AZ74: =SUM(Раздел2!H75:L75) -> 0
A75: Гребля-индор | B75: 68 | C75: 0 | D75: 0 | H75: 0 | M75: 0 | N75: 0 | R75: 0 | W75: 0 | AA75: 0 | AE75: 0 | AJ75: 0 | AN75: 0 | AR75: 0 | AW75: =Раздел2!F76 -> 0 | AX75: =Раздел2!G76 -> 0 | AY75: =Раздел2!C76 -> 0 | AZ75: =SUM(Раздел2!H76:L76) -> 0
A76: Народная гребля | B76: 69 | C76: 0 | D76: 0 | H76: 0 | M76: 0 | N76: 0 | R76: 0 | W76: 0 | AA76: 0 | AE76: 0 | AJ76: 0 | AN76: 0 | AR76: 0 | AW76: =Раздел2!F77 -> 0 | AX76: =Раздел2!G77 -> 0 | AY76: =Раздел2!C77 -> 0 | AZ76: =SUM(Раздел2!H77:L77) -> 0
A77: Прибрежная гребля | B77: 70 | C77: 0 | D77: 0 | H77: 0 | M77: 0 | N77: 0 | R77: 0 | W77: 0 | AA77: 0 | AE77: 0 | AJ77: 0 | AN77: 0 | AR77: 0 | AW77: =Раздел2!F78 -> 0 | AX77: =Раздел2!G78 -> 0 | AY77: =Раздел2!C78 -> 0 | AZ77: =SUM(Раздел2!H78:L78) -> 0
A78: Гребно-парусное двоеборье | B78: 71 | C78: 0 | D78: 0 | H78: 0 | M78: 0 | N78: 0 | R78: 0 | W78: 0 | AA78: 0 | AE78: 0 | AJ78: 0 | AN78: 0 | AR78: 0 | AW78: =Раздел2!F79 -> 0 | AX78: =Раздел2!G79 -> 0 | AY78: =Раздел2!C79 -> 0 | AZ78: =SUM(Раздел2!H79:L79) -> 0
A79: Дартс | B79: 72 | C79: 0 | D79: 0 | H79: 0 | M79: 0 | N79: 0 | R79: 0 | W79: 0 | AA79: 0 | AE79: 0 | AJ79: 0 | AN79: 0 | AR79: 0 | AW79: =Раздел2!F80 -> 0 | AX79: =Раздел2!G80 -> 0 | AY79: =Раздел2!C80 -> 0 | AZ79: =SUM(Раздел2!H80:L80) -> 0
A80: Джиу-джитсу | B80: 73 | C80: 0 | D80: 0 | H80: 0 | M80: 0 | N80: 0 | R80: 0 | W80: 0 | AA80: 0 | AE80: 0 | AJ80: 0 | AN80: 0 | AR80: 0 | AW80: =Раздел2!F81 -> 0 | AX80: =Раздел2!G81 -> 0 | AY80: =Раздел2!C81 -> 0 | AZ80: =SUM(Раздел2!H81:L81) -> 0
A81: Дзюдо | B81: 74 | C81: 0 | D81: 0 | H81: 0 | M81: 0 | N81: 0 | R81: 0 | W81: 0 | AA81: 0 | AE81: 0 | AJ81: 0 | AN81: 0 | AR81: 0 | AW81: =Раздел2!F82 -> 0 | AX81: =Раздел2!G82 -> 0 | AY81: =Раздел2!C82 -> 0 | AZ81: =SUM(Раздел2!H82:L82) -> 0
A82: Ездовой спорт | B82: 75 | C82: 0 | D82: 0 | H82: 0 | M82: 0 | N82: 0 | R82: 0 | W82: 0 | AA82: 0 | AE82: 0 | AJ82: 0 | AN82: 0 | AR82: 0 | AW82: =Раздел2!F83 -> 0 | AX82: =Раздел2!G83 -> 0 | AY82: =Раздел2!C83 -> 0 | AZ82: =SUM(Раздел2!H83:L83) -> 0
A83: Зимнее плавание | B83: 76 | C83: 0 | D83: 0 | H83: 0 | M83: 0 | N83: 0 | R83: 0 | W83: 0 | AA83: 0 | AE83: 0 | AJ83: 0 | AN83: 0 | AR83: 0 | AW83: =Раздел2!F84 -> 0 | AX83: =Раздел2!G84 -> 0 | AY83: =Раздел2!C84 -> 0 | AZ83: =SUM(Раздел2!H84:L84) -> 0
A84: Капоэйра | B84: 77 | C84: 0 | D84: 0 | H84: 0 | M84: 0 | N84: 0 | R84: 0 | W84: 0 | AA84: 0 | AE84: 0 | AJ84: 0 | AN84: 0 | AR84: 0 | AW84: =Раздел2!F85 -> 0 | AX84: =Раздел2!G85 -> 0 | AY84: =Раздел2!C85 -> 0 | AZ84: =SUM(Раздел2!H85:L85) -> 0
A85: Каратэ | B85: 78 | C85: 0 | D85: 0 | H85: 0 | M85: 0 | N85: 0 | R85: 0 | W85: 0 | AA85: 0 | AE85: 0 | AJ85: 0 | AN85: 0 | AR85: 0 | AW85: =Раздел2!F86 -> 0 | AX85: =Раздел2!G86 -> 0 | AY85: =Раздел2!C86 -> 0 | AZ85: =SUM(Раздел2!H86:L86) -> 0
A86: Кендо | B86: 79 | C86: 0 | D86: 0 | H86: 0 | M86: 0 | N86: 0 | R86: 0 | W86: 0 | AA86: 0 | AE86: 0 | AJ86: 0 | AN86: 0 | AR86: 0 | AW86: =Раздел2!F87 -> 0 | AX86: =Раздел2!G87 -> 0 | AY86: =Раздел2!C87 -> 0 | AZ86: =SUM(Раздел2!H87:L87) -> 0
A87: Керешу | B87: 80 | C87: 0 | D87: 0 | H87: 0 | M87: 0 | N87: 0 | R87: 0 | W87: 0 | AA87: 0 | AE87: 0 | AJ87: 0 | AN87: 0 | AR87: 0 | AW87: =Раздел2!F88 -> 0 | AX87: =Раздел2!G88 -> 0 | AY87: =Раздел2!C88 -> 0 | AZ87: =SUM(Раздел2!H88:L88) -> 0
A88: Кёрлинг - всего | B88: 81 | C88: 0 | D88: 0 | E88: =SUM(E89:E91) -> 0 | F88: =SUM(F89:F91) -> 0 | G88: 0 | H88: 0 | I88: 0 | J88: 0 | K88: 0 | L88: 0 | M88: 0 | N88: 0 | O88: 0 | P88: 0 | Q88: 0 | R88: 0 | S88: 0 | T88: 0 | U88: 0 | V88: 0 | W88: 0 | X88: 0 | Y88: 0 | Z88: 0 | AA88: 0 | AB88: 0 | AC88: 0 | AD88: 0 | AE88: 0 | AF88: 0 | AG88: 0 | AH88: 0 | AI88: 0 | AJ88: 0 | AK88: 0 | AL88: 0 | AM88: 0 | AN88: 0 | AO88: 0 | AP88: 0 | AQ88: 0 | AR88: 0 | AS88: 0 | AT88: 0 | AU88: 0 | AV88: 0 | AW88: =Раздел2!F89 -> 0 | AX88: =Раздел2!G89 -> 0 | AY88: =Раздел2!C89 -> 0 | AZ88: =SUM(Раздел2!H89:L89) -> 0
A89: в том числе: Керлинг (муж.) | B89: 82 | C89: 0 | D89: 0 | H89: 0 | M89: 0 | N89: 0 | R89: 0 | W89: 0 | AA89: 0 | AE89: 0 | AJ89: 0 | AN89: 0 | AR89: 0 | AW89: =Раздел2!F90 -> 0 | AX89: =Раздел2!G90 -> 0 | AY89: =Раздел2!C90 -> 0 | AZ89: =SUM(Раздел2!H90:L90) -> 0
A90: Керлинг (жен.) | B90: 83 | C90: 0 | D90: 0 | H90: 0 | M90: 0 | N90: 0 | R90: 0 | W90: 0 | AA90: 0 | AE90: 0 | AJ90: 0 | AN90: 0 | AR90: 0 | AW90: =Раздел2!F91 -> 0 | AX90: =Раздел2!G91 -> 0 | AY90: =Раздел2!C91 -> 0 | AZ90: =SUM(Раздел2!H91:L91) -> 0
A91: Кёрлинг – смешанные пары | B91: 84 | C91: 0 | D91: 0 | H91: 0 | M91: 0 | N91: 0 | R91: 0 | W91: 0 | AA91: 0 | AE91: 0 | AJ91: 0 | AN91: 0 | AR91: 0 | AW91: =Раздел2!F92 -> 0 | AX91: =Раздел2!G92 -> 0 | AY91: =Раздел2!C92 -> 0 | AZ91: =SUM(Раздел2!H92:L92) -> 0
A92: Кикбоксинг | B92: 85 | C92: 0 | D92: 0 | H92: 0 | M92: 0 | N92: 0 | R92: 0 | W92: 0 | AA92: 0 | AE92: 0 | AJ92: 0 | AN92: 0 | AR92: 0 | AW92: =Раздел2!F93 -> 0 | AX92: =Раздел2!G93 -> 0 | AY92: =Раздел2!C93 -> 0 | AZ92: =SUM(Раздел2!H93:L93) -> 0
A93: Кинологический спорт | B93: 86 | C93: 0 | D93: 0 | H93: 0 | M93: 0 | N93: 0 | R93: 0 | W93: 0 | AA93: 0 | AE93: 0 | AJ93: 0 | AN93: 0 | AR93: 0 | AW93: =Раздел2!F94 -> 0 | AX93: =Раздел2!G94 -> 0 | AY93: =Раздел2!C94 -> 0 | AZ93: =SUM(Раздел2!H94:L94) -> 0
A94: Киокусинкай | B94: 87 | C94: 0 | D94: 0 | H94: 0 | M94: 0 | N94: 0 | R94: 0 | W94: 0 | AA94: 0 | AE94: 0 | AJ94: 0 | AN94: 0 | AR94: 0 | AW94: =Раздел2!F95 -> 0 | AX94: =Раздел2!G95 -> 0 | AY94: =Раздел2!C95 -> 0 | AZ94: =SUM(Раздел2!H95:L95) -> 0
A95: Киокушин | B95: 88 | C95: 0 | D95: 0 | H95: 0 | M95: 0 | N95: 0 | R95: 0 | W95: 0 | AA95: 0 | AE95: 0 | AJ95: 0 | AN95: 0 | AR95: 0 | AW95: =Раздел2!F96 -> 0 | AX95: =Раздел2!G96 -> 0 | AY95: =Раздел2!C96 -> 0 | AZ95: =SUM(Раздел2!H96:L96) -> 0
A96: Комплексное единоборство | B96: 89 | C96: 0 | D96: 0 | H96: 0 | M96: 0 | N96: 0 | R96: 0 | W96: 0 | AA96: 0 | AE96: 0 | AJ96: 0 | AN96: 0 | AR96: 0 | AW96: =Раздел2!F97 -> 0 | AX96: =Раздел2!G97 -> 0 | AY96: =Раздел2!C97 -> 0 | AZ96: =SUM(Раздел2!H97:L97) -> 0
A97: Компьютерный спорт | B97: 90 | C97: 0 | D97: 0 | H97: 0 | M97: 0 | N97: 0 | R97: 0 | W97: 0 | AA97: 0 | AE97: 0 | AJ97: 0 | AN97: 0 | AR97: 0 | AW97: =Раздел2!F98 -> 0 | AX97: =Раздел2!G98 -> 0 | AY97: =Раздел2!C98 -> 0 | AZ97: =SUM(Раздел2!H98:L98) -> 0
A98: Конный спорт | B98: 91 | C98: 0 | D98: 0 | H98: 0 | M98: 0 | N98: 0 | R98: 0 | W98: 0 | AA98: 0 | AE98: 0 | AJ98: 0 | AN98: 0 | AR98: 0 | AW98: =Раздел2!F99 -> 0 | AX98: =Раздел2!G99 -> 0 | AY98: =Раздел2!C99 -> 0 | AZ98: =SUM(Раздел2!H99:L99) -> 0
A99: Конькобежный спорт - всего | B99: 92 | C99: 0 | D99: 0 | E99: =SUM(E100:E101) -> 0 | F99: =SUM(F100:F101) -> 0 | G99: 0 | H99: 0 | I99: 0 | J99: 0 | K99: 0 | L99: 0 | M99: 0 | N99: 0 | O99: 0 | P99: 0 | Q99: 0 | R99: 0 | S99: 0 | T99: 0 | U99: 0 | V99: 0 | W99: 0 | X99: 0 | Y99: 0 | Z99: 0 | AA99: 0 | AB99: 0 | AC99: 0 | AD99: 0 | AE99: 0 | AF99: 0 | AG99: 0 | AH99: 0 | AI99: 0 | AJ99: 0 | AK99: 0 | AL99: 0 | AM99: 0 | AN99: 0 | AO99: 0 | AP99: 0 | AQ99: 0 | AR99: 0 | AS99: 0 | AT99: 0 | AU99: 0 | AV99: 0 | AW99: =Раздел2!F100 -> 0 | AX99: =Раздел2!G100 -> 0 | AY99: =Раздел2!C100 -> 0 | AZ99: =SUM(Раздел2!H100:L100) -> 0
A100: в том числе: Конькобежный спорт | B100: 93 | C100: 0 | D100: 0 | H100: 0 | M100: 0 | N100: 0 | R100: 0 | W100: 0 | AA100: 0 | AE100: 0 | AJ100: 0 | AN100: 0 | AR100: 0 | AW100: =Раздел2!F101 -> 0 | AX100: =Раздел2!G101 -> 0 | AY100: =Раздел2!C101 -> 0 | AZ100: =SUM(Раздел2!H101:L101) -> 0
A101: Шорт-трек | B101: 94 | C101: 0 | D101: 0 | H101: 0 | M101: 0 | N101: 0 | R101: 0 | W101: 0 | AA101: 0 | AE101: 0 | AJ101: 0 | AN101: 0 | AR101: 0 | AW101: =Раздел2!F102 -> 0 | AX101: =Раздел2!G102 -> 0 | AY101: =Раздел2!C102 -> 0 | AZ101: =SUM(Раздел2!H102:L102) -> 0
A102: Корэш | B102: 95 | C102: 0 | D102: 0 | H102: 0 | M102: 0 | N102: 0 | R102: 0 | W102: 0 | AA102: 0 | AE102: 0 | AJ102: 0 | AN102: 0 | AR102: 0 | AW102: =Раздел2!F103 -> 0 | AX102: =Раздел2!G103 -> 0 | AY102: =Раздел2!C103 -> 0 | AZ102: =SUM(Раздел2!H103:L103) -> 0
A103: Крикет | B103: 96 | C103: 0 | D103: 0 | H103: 0 | M103: 0 | N103: 0 | R103: 0 | W103: 0 | AA103: 0 | AE103: 0 | AJ103: 0 | AN103: 0 | AR103: 0 | AW103: =Раздел2!F104 -> 0 | AX103: =Раздел2!G104 -> 0 | AY103: =Раздел2!C104 -> 0 | AZ103: =SUM(Раздел2!H104:L104) -> 0
A104: Кудо | B104: 97 | C104: 0 | D104: 0 | H104: 0 | M104: 0 | N104: 0 | R104: 0 | W104: 0 | AA104: 0 | AE104: 0 | AJ104: 0 | AN104: 0 | AR104: 0 | AW104: =Раздел2!F105 -> 0 | AX104: =Раздел2!G105 -> 0 | AY104: =Раздел2!C105 -> 0 | AZ104: =SUM(Раздел2!H105:L105) -> 0
A105: Лапта | B105: 98 | C105: 0 | D105: 0 | H105: 0 | M105: 0 | N105: 0 | R105: 0 | W105: 0 | AA105: 0 | AE105: 0 | AJ105: 0 | AN105: 0 | AR105: 0 | AW105: =Раздел2!F106 -> 0 | AX105: =Раздел2!G106 -> 0 | AY105: =Раздел2!C106 -> 0 | AZ105: =SUM(Раздел2!H106:L106) -> 0
A106: Легкая атлетика - всего | B106: 99 | C106: 111 | D106: 111 | E106: =SUM(E107:E113) -> 0 | F106: =SUM(F107:F113) -> 2 | G106: 109 | H106: 0 | I106: 0 | J106: 0 | K106: 0 | L106: 0 | M106: 111 | N106: 111 | O106: 0 | P106: 2 | Q106: 109 | R106: 0 | S106: 0 | T106: 0 | U106: 0 | V106: 0 | W106: 26 | X106: 0 | Y106: 0 | Z106: 26 | AA106: 3 | AB106: 0 | AC106: 0 | AD106: 3 | AE106: 0 | AF106: 0 | AG106: 0 | AH106: 0 | AI106: 0 | AJ106: 26 | AK106: 0 | AL106: 0 | AM106: 26 | AN106: 3 | AO106: 0 | AP106: 0 | AQ106: 3 | AR106: 0 | AS106: 0 | AT106: 0 | AU106: 0 | AV106: 0 | AW106: =Раздел2!F107 -> 317 | AX106: =Раздел2!G107 -> 317 | AY106: =Раздел2!C107 -> 1 | AZ106: =SUM(Раздел2!H107:L107) -> 317
A107: в том числе: Спринтерский и барьерный бег | B107: 100 | C107: 0 | D107: 0 | H107: 0 | M107: 0 | N107: 0 | R107: 0 | W107: 0 | AA107: 0 | AE107: 0 | AJ107: 0 | AN107: 0 | AR107: 0 | AW107: =Раздел2!F108 -> 0 | AX107: =Раздел2!G108 -> 0 | AY107: =Раздел2!C108 -> 0 | AZ107: =SUM(Раздел2!H108:L108) -> 0
A108: Бег на средние дистанции и бег с препятствиями | B108: 101 | C108: 0 | D108: 0 | H108: 0 | M108: 0 | N108: 0 | R108: 0 | W108: 0 | AA108: 0 | AE108: 0 | AJ108: 0 | AN108: 0 | AR108: 0 | AW108: =Раздел2!F109 -> 0 | AX108: =Раздел2!G109 -> 0 | AY108: =Раздел2!C109 -> 0 | AZ108: =SUM(Раздел2!H109:L109) -> 0
A109: Бег на длинные и сверхдлинные дистанции | B109: 102 | C109: 0 | D109: 0 | H109: 0 | M109: 0 | N109: 0 | R109: 0 | W109: 0 | AA109: 0 | AE109: 0 | AJ109: 0 | AN109: 0 | AR109: 0 | AW109: =Раздел2!F110 -> 0 | AX109: =Раздел2!G110 -> 0 | AY109: =Раздел2!C110 -> 0 | AZ109: =SUM(Раздел2!H110:L110) -> 0
A110: Многоборья | B110: 103 | C110: 111 | D110: 111 | F110: 2 | G110: 109 | H110: 0 | M110: 111 | N110: 111 | P110: 2 | Q110: 109 | R110: 0 | W110: 26 | Z110: 26 | AA110: 3 | AD110: 3 | AE110: 0 | AJ110: 26 | AM110: 26 | AN110: 3 | AQ110: 3 | AR110: 0 | AW110: =Раздел2!F111 -> 317 | AX110: =Раздел2!G111 -> 317 | AY110: =Раздел2!C111 -> 1 | AZ110: =SUM(Раздел2!H111:L111) -> 317
A111: Прыжки | B111: 104 | C111: 0 | D111: 0 | H111: 0 | M111: 0 | N111: 0 | R111: 0 | W111: 0 | AA111: 0 | AE111: 0 | AJ111: 0 | AN111: 0 | AR111: 0 | AW111: =Раздел2!F112 -> 0 | AX111: =Раздел2!G112 -> 0 | AY111: =Раздел2!C112 -> 0 | AZ111: =SUM(Раздел2!H112:L112) -> 0
A112: Метания | B112: 105 | C112: 0 | D112: 0 | H112: 0 | M112: 0 | N112: 0 | R112: 0 | W112: 0 | AA112: 0 | AE112: 0 | AJ112: 0 | AN112: 0 | AR112: 0 | AW112: =Раздел2!F113 -> 0 | AX112: =Раздел2!G113 -> 0 | AY112: =Раздел2!C113 -> 0 | AZ112: =SUM(Раздел2!H113:L113) -> 0
A113: Спортивная ходьба | B113: 106 | C113: 0 | D113: 0 | H113: 0 | M113: 0 | N113: 0 | R113: 0 | W113: 0 | AA113: 0 | AE113: 0 | AJ113: 0 | AN113: 0 | AR113: 0 | AW113: =Раздел2!F114 -> 0 | AX113: =Раздел2!G114 -> 0 | AY113: =Раздел2!C114 -> 0 | AZ113: =SUM(Раздел2!H114:L114) -> 0
A114: Лыжное двоеборье | B114: 107 | C114: 0 | D114: 0 | H114: 0 | M114: 0 | N114: 0 | R114: 0 | W114: 0 | AA114: 0 | AE114: 0 | AJ114: 0 | AN114: 0 | AR114: 0 | AW114: =Раздел2!F115 -> 0 | AX114: =Раздел2!G115 -> 0 | AY114: =Раздел2!C115 -> 0 | AZ114: =SUM(Раздел2!H115:L115) -> 0
A115: Лыжные гонки | B115: 108 | C115: 0 | D115: 0 | H115: 0 | M115: 0 | N115: 0 | R115: 0 | W115: 0 | AA115: 0 | AE115: 0 | AJ115: 0 | AN115: 0 | AR115: 0 | AW115: =Раздел2!F116 -> 0 | AX115: =Раздел2!G116 -> 0 | AY115: =Раздел2!C116 -> 0 | AZ115: =SUM(Раздел2!H116:L116) -> 0
A116: Мас-рестлинг | B116: 109 | C116: 0 | D116: 0 | H116: 0 | M116: 0 | N116: 0 | R116: 0 | W116: 0 | AA116: 0 | AE116: 0 | AJ116: 0 | AN116: 0 | AR116: 0 | AW116: =Раздел2!F117 -> 0 | AX116: =Раздел2!G117 -> 0 | AY116: =Раздел2!C117 -> 0 | AZ116: =SUM(Раздел2!H117:L117) -> 0
A117: Международное военно-спортивное многоборье | B117: 110 | C117: 0 | D117: 0 | H117: 0 | M117: 0 | N117: 0 | R117: 0 | W117: 0 | AA117: 0 | AE117: 0 | AJ117: 0 | AN117: 0 | AR117: 0 | AW117: =Раздел2!F118 -> 0 | AX117: =Раздел2!G118 -> 0 | AY117: =Раздел2!C118 -> 0 | AZ117: =SUM(Раздел2!H118:L118) -> 0
A118: Микрофутзал | B118: 111 | C118: 0 | D118: 0 | H118: 0 | M118: 0 | N118: 0 | R118: 0 | W118: 0 | AA118: 0 | AE118: 0 | AJ118: 0 | AN118: 0 | AR118: 0 | AW118: =Раздел2!F119 -> 0 | AX118: =Раздел2!G119 -> 0 | AY118: =Раздел2!C119 -> 0 | AZ118: =SUM(Раздел2!H119:L119) -> 0
A119: Многоборье кинологов | B119: 112 | C119: 0 | D119: 0 | H119: 0 | M119: 0 | N119: 0 | R119: 0 | W119: 0 | AA119: 0 | AE119: 0 | AJ119: 0 | AN119: 0 | AR119: 0 | AW119: =Раздел2!F120 -> 0 | AX119: =Раздел2!G120 -> 0 | AY119: =Раздел2!C120 -> 0 | AZ119: =SUM(Раздел2!H120:L120) -> 0
A120: Многоборье спасателей МЧС России | B120: 113 | C120: 0 | D120: 0 | H120: 0 | M120: 0 | N120: 0 | R120: 0 | W120: 0 | AA120: 0 | AE120: 0 | AJ120: 0 | AN120: 0 | AR120: 0 | AW120: =Раздел2!F121 -> 0 | AX120: =Раздел2!G121 -> 0 | AY120: =Раздел2!C121 -> 0 | AZ120: =SUM(Раздел2!H121:L121) -> 0
A121: Морское многоборье | B121: 114 | C121: 0 | D121: 0 | H121: 0 | M121: 0 | N121: 0 | R121: 0 | W121: 0 | AA121: 0 | AE121: 0 | AJ121: 0 | AN121: 0 | AR121: 0 | AW121: =Раздел2!F122 -> 0 | AX121: =Раздел2!G122 -> 0 | AY121: =Раздел2!C122 -> 0 | AZ121: =SUM(Раздел2!H122:L122) -> 0
A122: Мотоциклетный спорт | B122: 115 | C122: 0 | D122: 0 | H122: 0 | M122: 0 | N122: 0 | R122: 0 | W122: 0 | AA122: 0 | AE122: 0 | AJ122: 0 | AN122: 0 | AR122: 0 | AW122: =Раздел2!F123 -> 0 | AX122: =Раздел2!G123 -> 0 | AY122: =Раздел2!C123 -> 0 | AZ122: =SUM(Раздел2!H123:L123) -> 0
A123: Нарды | B123: 116 | C123: 0 | D123: 0 | H123: 0 | M123: 0 | N123: 0 | R123: 0 | W123: 0 | AA123: 0 | AE123: 0 | AJ123: 0 | AN123: 0 | AR123: 0 | AW123: =Раздел2!F124 -> 0 | AX123: =Раздел2!G124 -> 0 | AY123: =Раздел2!C124 -> 0 | AZ123: =SUM(Раздел2!H124:L124) -> 0
A124: Настольный теннис | B124: 117 | C124: 0 | D124: 0 | H124: 0 | M124: 0 | N124: 0 | R124: 0 | W124: 0 | AA124: 0 | AE124: 0 | AJ124: 0 | AN124: 0 | AR124: 0 | AW124: =Раздел2!F125 -> 0 | AX124: =Раздел2!G125 -> 0 | AY124: =Раздел2!C125 -> 0 | AZ124: =SUM(Раздел2!H125:L125) -> 0
A125: Падел | B125: 118 | C125: 0 | D125: 0 | H125: 0 | M125: 0 | N125: 0 | R125: 0 | W125: 0 | AA125: 0 | AE125: 0 | AJ125: 0 | AN125: 0 | AR125: 0 | AW125: =Раздел2!F126 -> 0 | AX125: =Раздел2!G126 -> 0 | AY125: =Раздел2!C126 -> 0 | AZ125: =SUM(Раздел2!H126:L126) -> 0
A126: Парашютный спорт | B126: 119 | C126: 0 | D126: 0 | H126: 0 | M126: 0 | N126: 0 | R126: 0 | W126: 0 | AA126: 0 | AE126: 0 | AJ126: 0 | AN126: 0 | AR126: 0 | AW126: =Раздел2!F127 -> 0 | AX126: =Раздел2!G127 -> 0 | AY126: =Раздел2!C127 -> 0 | AZ126: =SUM(Раздел2!H127:L127) -> 0
A127: Парусный спорт | B127: 120 | C127: 0 | D127: 0 | H127: 0 | M127: 0 | N127: 0 | R127: 0 | W127: 0 | AA127: 0 | AE127: 0 | AJ127: 0 | AN127: 0 | AR127: 0 | AW127: =Раздел2!F128 -> 0 | AX127: =Раздел2!G128 -> 0 | AY127: =Раздел2!C128 -> 0 | AZ127: =SUM(Раздел2!H128:L128) -> 0
A128: Пауэрлифтинг | B128: 121 | C128: 0 | D128: 0 | H128: 0 | M128: 0 | N128: 0 | R128: 0 | W128: 0 | AA128: 0 | AE128: 0 | AJ128: 0 | AN128: 0 | AR128: 0 | AW128: =Раздел2!F129 -> 0 | AX128: =Раздел2!G129 -> 0 | AY128: =Раздел2!C129 -> 0 | AZ128: =SUM(Раздел2!H129:L129) -> 0
A129: Перетягивание каната | B129: 122 | C129: 0 | D129: 0 | H129: 0 | M129: 0 | N129: 0 | R129: 0 | W129: 0 | AA129: 0 | AE129: 0 | AJ129: 0 | AN129: 0 | AR129: 0 | AW129: =Раздел2!F130 -> 0 | AX129: =Раздел2!G130 -> 0 | AY129: =Раздел2!C130 -> 0 | AZ129: =SUM(Раздел2!H130:L130) -> 0
A130: Пилонный спорт | B130: 123 | C130: 0 | D130: 0 | H130: 0 | M130: 0 | N130: 0 | R130: 0 | W130: 0 | AA130: 0 | AE130: 0 | AJ130: 0 | AN130: 0 | AR130: 0 | AW130: =Раздел2!F131 -> 0 | AX130: =Раздел2!G131 -> 0 | AY130: =Раздел2!C131 -> 0 | AZ130: =SUM(Раздел2!H131:L131) -> 0
A131: Плавание - всего | B131: 124 | C131: 48 | D131: 48 | E131: =SUM(E132:E133) -> 0 | F131: =SUM(F132:F133) -> 0 | G131: 48 | H131: 0 | I131: 0 | J131: 0 | K131: 0 | L131: 0 | M131: 48 | N131: 48 | O131: 0 | P131: 0 | Q131: 48 | R131: 0 | S131: 0 | T131: 0 | U131: 0 | V131: 0 | W131: 19 | X131: 0 | Y131: 0 | Z131: 19 | AA131: 2 | AB131: 0 | AC131: 0 | AD131: 2 | AE131: 0 | AF131: 0 | AG131: 0 | AH131: 0 | AI131: 0 | AJ131: 19 | AK131: 0 | AL131: 0 | AM131: 19 | AN131: 2 | AO131: 0 | AP131: 0 | AQ131: 2 | AR131: 0 | AS131: 0 | AT131: 0 | AU131: 0 | AV131: 0 | AW131: =Раздел2!F132 -> 66 | AX131: =Раздел2!G132 -> 66 | AY131: =Раздел2!C132 -> 1 | AZ131: =SUM(Раздел2!H132:L132) -> 66
A132: в том числе: Плавание | B132: 125 | C132: 48 | D132: 48 | G132: 48 | H132: 0 | M132: 48 | N132: 48 | Q132: 48 | R132: 0 | W132: 19 | Z132: 19 | AA132: 2 | AD132: 2 | AE132: 0 | AJ132: 19 | AM132: 19 | AN132: 2 | AQ132: 2 | AR132: 0 | AW132: =Раздел2!F133 -> 66 | AX132: =Раздел2!G133 -> 66 | AY132: =Раздел2!C133 -> 1 | AZ132: =SUM(Раздел2!H133:L133) -> 66
A133: Открытая вода | B133: 126 | C133: 0 | D133: 0 | H133: 0 | M133: 0 | N133: 0 | R133: 0 | W133: 0 | AA133: 0 | AE133: 0 | AJ133: 0 | AN133: 0 | AR133: 0 | AW133: =Раздел2!F134 -> 0 | AX133: =Раздел2!G134 -> 0 | AY133: =Раздел2!C134 -> 0 | AZ133: =SUM(Раздел2!H134:L134) -> 0
A134: Планерный спорт | B134: 127 | C134: 0 | D134: 0 | H134: 0 | M134: 0 | N134: 0 | R134: 0 | W134: 0 | AA134: 0 | AE134: 0 | AJ134: 0 | AN134: 0 | AR134: 0 | AW134: =Раздел2!F135 -> 0 | AX134: =Раздел2!G135 -> 0 | AY134: =Раздел2!C135 -> 0 | AZ134: =SUM(Раздел2!H135:L135) -> 0
A135: Подводный спорт | B135: 128 | C135: 0 | D135: 0 | H135: 0 | M135: 0 | N135: 0 | R135: 0 | W135: 0 | AA135: 0 | AE135: 0 | AJ135: 0 | AN135: 0 | AR135: 0 | AW135: =Раздел2!F136 -> 0 | AX135: =Раздел2!G136 -> 0 | AY135: =Раздел2!C136 -> 0 | AZ135: =SUM(Раздел2!H136:L136) -> 0
A136: Пожарно-спасательный спорт | B136: 129 | C136: 0 | D136: 0 | H136: 0 | M136: 0 | N136: 0 | R136: 0 | W136: 0 | AA136: 0 | AE136: 0 | AJ136: 0 | AN136: 0 | AR136: 0 | AW136: =Раздел2!F137 -> 0 | AX136: =Раздел2!G137 -> 0 | AY136: =Раздел2!C137 -> 0 | AZ136: =SUM(Раздел2!H137:L137) -> 0
A137: Полиатлон | B137: 130 | C137: =SUM(D137,H137) -> 0 | D137: =SUM(E137:G137) -> 0 | H137: =SUM(I137:L137) -> 0 | M137: =SUM(N137,R137) -> 0 | N137: =SUM(O137:Q137) -> 0 | R137: =SUM(S137:V137) -> 0 | W137: =SUM(X137:Z137) -> 0 | AA137: =SUM(AB137:AD137) -> 0 | AE137: =SUM(AF137:AI137) -> 0 | AJ137: =SUM(AK137:AM137) -> 0 | AN137: =SUM(AO137:AQ137) -> 0 | AR137: =SUM(AS137:AV137) -> 0 | AW137: =Раздел2!F138 -> 0 | AX137: =Раздел2!G138 -> 0 | AY137: =Раздел2!C138 -> 0 | AZ137: =SUM(Раздел2!H138:L138) -> 0
A138: Практическая стрельба | B138: 131 | C138: 0 | D138: 0 | H138: 0 | M138: 0 | N138: 0 | R138: 0 | W138: 0 | AA138: 0 | AE138: 0 | AJ138: 0 | AN138: 0 | AR138: 0 | AW138: =Раздел2!F139 -> 0 | AX138: =Раздел2!G139 -> 0 | AY138: =Раздел2!C139 -> 0 | AZ138: =SUM(Раздел2!H139:L139) -> 0
A139: Прыжки в воду - всего | B139: 132 | C139: 0 | D139: 0 | E139: =SUM(E140:E141) -> 0 | F139: =SUM(F140:F141) -> 0 | G139: 0 | H139: 0 | I139: 0 | J139: 0 | K139: 0 | L139: 0 | M139: 0 | N139: 0 | O139: 0 | P139: 0 | Q139: 0 | R139: 0 | S139: 0 | T139: 0 | U139: 0 | V139: 0 | W139: 0 | X139: 0 | Y139: 0 | Z139: 0 | AA139: 0 | AB139: 0 | AC139: 0 | AD139: 0 | AE139: 0 | AF139: 0 | AG139: 0 | AH139: 0 | AI139: 0 | AJ139: 0 | AK139: 0 | AL139: 0 | AM139: 0 | AN139: 0 | AO139: 0 | AP139: 0 | AQ139: 0 | AR139: 0 | AS139: 0 | AT139: 0 | AU139: 0 | AV139: 0 | AW139: =Раздел2!F140 -> 0 | AX139: =Раздел2!G140 -> 0 | AY139: =Раздел2!C140 -> 0 | AZ139: =SUM(Раздел2!H140:L140) -> 0
A140: в том числе: Прыжки в воду | B140: 133 | C140: 0 | D140: 0 | H140: 0 | M140: 0 | N140: 0 | R140: 0 | W140: 0 | AA140: 0 | AE140: 0 | AJ140: 0 | AN140: 0 | AR140: 0 | AW140: =Раздел2!F141 -> 0 | AX140: =Раздел2!G141 -> 0 | AY140: =Раздел2!C141 -> 0 | AZ140: =SUM(Раздел2!H141:L141) -> 0
A141: Прыжки в открытый водоем | B141: 134 | C141: 0 | D141: 0 | H141: 0 | M141: 0 | N141: 0 | R141: 0 | W141: 0 | AA141: 0 | AE141: 0 | AJ141: 0 | AN141: 0 | AR141: 0 | AW141: =Раздел2!F142 -> 0 | AX141: =Раздел2!G142 -> 0 | AY141: =Раздел2!C142 -> 0 | AZ141: =SUM(Раздел2!H142:L142) -> 0
A142: Прыжки на батуте - всего | B142: 135 | C142: 0 | D142: 0 | E142: =SUM(E143:E146) -> 0 | F142: =SUM(F143:F146) -> 0 | G142: 0 | H142: 0 | I142: 0 | J142: 0 | K142: 0 | L142: 0 | M142: 0 | N142: 0 | O142: 0 | P142: 0 | Q142: 0 | R142: 0 | S142: 0 | T142: 0 | U142: 0 | V142: 0 | W142: 0 | X142: 0 | Y142: 0 | Z142: 0 | AA142: 0 | AB142: 0 | AC142: 0 | AD142: 0 | AE142: 0 | AF142: 0 | AG142: 0 | AH142: 0 | AI142: 0 | AJ142: 0 | AK142: 0 | AL142: 0 | AM142: 0 | AN142: 0 | AO142: 0 | AP142: 0 | AQ142: 0 | AR142: 0 | AS142: 0 | AT142: 0 | AU142: 0 | AV142: 0 | AW142: =Раздел2!F143 -> 0 | AX142: =Раздел2!G143 -> 0 | AY142: =Раздел2!C143 -> 0 | AZ142: =SUM(Раздел2!H143:L143) -> 0
A143: в том числе: Акробатическая дорожка | B143: 136 | C143: 0 | D143: 0 | H143: 0 | M143: 0 | N143: 0 | R143: 0 | W143: 0 | AA143: 0 | AE143: 0 | AJ143: 0 | AN143: 0 | AR143: 0 | AW143: =Раздел2!F144 -> 0 | AX143: =Раздел2!G144 -> 0 | AY143: =Раздел2!C144 -> 0 | AZ143: =SUM(Раздел2!H144:L144) -> 0
A144: Двойной минитрамп | B144: 137 | C144: 0 | D144: 0 | H144: 0 | M144: 0 | N144: 0 | R144: 0 | W144: 0 | AA144: 0 | AE144: 0 | AJ144: 0 | AN144: 0 | AR144: 0 | AW144: =Раздел2!F145 -> 0 | AX144: =Раздел2!G145 -> 0 | AY144: =Раздел2!C145 -> 0 | AZ144: =SUM(Раздел2!H145:L145) -> 0
A145: Индивидуальные прыжки | B145: 138 | C145: 0 | D145: 0 | H145: 0 | M145: 0 | N145: 0 | R145: 0 | W145: 0 | AA145: 0 | AE145: 0 | AJ145: 0 | AN145: 0 | AR145: 0 | AW145: =Раздел2!F146 -> 0 | AX145: =Раздел2!G146 -> 0 | AY145: =Раздел2!C146 -> 0 | AZ145: =SUM(Раздел2!H146:L146) -> 0
A146: Синхронные прыжки | B146: 139 | C146: 0 | D146: 0 | H146: 0 | M146: 0 | N146: 0 | R146: 0 | W146: 0 | AA146: 0 | AE146: 0 | AJ146: 0 | AN146: 0 | AR146: 0 | AW146: =Раздел2!F147 -> 0 | AX146: =Раздел2!G147 -> 0 | AY146: =Раздел2!C147 -> 0 | AZ146: =SUM(Раздел2!H147:L147) -> 0
A147: Прыжки на лыжах с трамплина | B147: 140 | C147: 0 | D147: 0 | H147: 0 | M147: 0 | N147: 0 | R147: 0 | W147: 0 | AA147: 0 | AE147: 0 | AJ147: 0 | AN147: 0 | AR147: 0 | AW147: =Раздел2!F148 -> 0 | AX147: =Раздел2!G148 -> 0 | AY147: =Раздел2!C148 -> 0 | AZ147: =SUM(Раздел2!H148:L148) -> 0
A148: Пулевая стрельба - всего | B148: 141 | C148: 0 | D148: 0 | E148: =SUM(E149:E153) -> 0 | F148: =SUM(F149:F153) -> 0 | G148: 0 | H148: 0 | I148: 0 | J148: 0 | K148: 0 | L148: 0 | M148: 0 | N148: 0 | O148: 0 | P148: 0 | Q148: 0 | R148: 0 | S148: 0 | T148: 0 | U148: 0 | V148: 0 | W148: 0 | X148: 0 | Y148: 0 | Z148: 0 | AA148: 0 | AB148: 0 | AC148: 0 | AD148: 0 | AE148: 0 | AF148: 0 | AG148: 0 | AH148: 0 | AI148: 0 | AJ148: 0 | AK148: 0 | AL148: 0 | AM148: 0 | AN148: 0 | AO148: 0 | AP148: 0 | AQ148: 0 | AR148: 0 | AS148: 0 | AT148: 0 | AU148: 0 | AV148: 0 | AW148: =Раздел2!F149 -> 0 | AX148: =Раздел2!G149 -> 0 | AY148: =Раздел2!C149 -> 0 | AZ148: =SUM(Раздел2!H149:L149) -> 0
A149: в том числе: Пневматическая винтовка | B149: 142 | C149: 0 | D149: 0 | H149: 0 | M149: 0 | N149: 0 | R149: 0 | W149: 0 | AA149: 0 | AE149: 0 | AJ149: 0 | AN149: 0 | AR149: 0 | AW149: =Раздел2!F150 -> 0 | AX149: =Раздел2!G150 -> 0 | AY149: =Раздел2!C150 -> 0 | AZ149: =SUM(Раздел2!H150:L150) -> 0
A150: Пневматический пистолет | B150: 143 | C150: 0 | D150: 0 | H150: 0 | M150: 0 | N150: 0 | R150: 0 | W150: 0 | AA150: 0 | AE150: 0 | AJ150: 0 | AN150: 0 | AR150: 0 | AW150: =Раздел2!F151 -> 0 | AX150: =Раздел2!G151 -> 0 | AY150: =Раздел2!C151 -> 0 | AZ150: =SUM(Раздел2!H151:L151) -> 0
A151: Малокалиберная винтовка | B151: 144 | C151: 0 | D151: 0 | H151: 0 | M151: 0 | N151: 0 | R151: 0 | W151: 0 | AA151: 0 | AE151: 0 | AJ151: 0 | AN151: 0 | AR151: 0 | AW151: =Раздел2!F152 -> 0 | AX151: =Раздел2!G152 -> 0 | AY151: =Раздел2!C152 -> 0 | AZ151: =SUM(Раздел2!H152:L152) -> 0
A152: Малокалиберный пистолет | B152: 145 | C152: 0 | D152: 0 | H152: 0 | M152: 0 | N152: 0 | R152: 0 | W152: 0 | AA152: 0 | AE152: 0 | AJ152: 0 | AN152: 0 | AR152: 0 | AW152: =Раздел2!F153 -> 0 | AX152: =Раздел2!G153 -> 0 | AY152: =Раздел2!C153 -> 0 | AZ152: =SUM(Раздел2!H153:L153) -> 0
A153: Движущаяся мишень | B153: 146 | C153: 0 | D153: 0 | H153: 0 | M153: 0 | N153: 0 | R153: 0 | W153: 0 | AA153: 0 | AE153: 0 | AJ153: 0 | AN153: 0 | AR153: 0 | AW153: =Раздел2!F154 -> 0 | AX153: =Раздел2!G154 -> 0 | AY153: =Раздел2!C154 -> 0 | AZ153: =SUM(Раздел2!H154:L154) -> 0
A154: Пэйнтбол | B154: 147 | C154: 0 | D154: 0 | H154: 0 | M154: 0 | N154: 0 | R154: 0 | W154: 0 | AA154: 0 | AE154: 0 | AJ154: 0 | AN154: 0 | AR154: 0 | AW154: =Раздел2!F155 -> 0 | AX154: =Раздел2!G155 -> 0 | AY154: =Раздел2!C155 -> 0 | AZ154: =SUM(Раздел2!H155:L155) -> 0
A155: Радиоспорт | B155: 148 | C155: 0 | D155: 0 | H155: 0 | M155: 0 | N155: 0 | R155: 0 | W155: 0 | AA155: 0 | AE155: 0 | AJ155: 0 | AN155: 0 | AR155: 0 | AW155: =Раздел2!F156 -> 0 | AX155: =Раздел2!G156 -> 0 | AY155: =Раздел2!C156 -> 0 | AZ155: =SUM(Раздел2!H156:L156) -> 0
A156: Рафтинг | B156: 149 | C156: 0 | D156: 0 | H156: 0 | M156: 0 | N156: 0 | R156: 0 | W156: 0 | AA156: 0 | AE156: 0 | AJ156: 0 | AN156: 0 | AR156: 0 | AW156: =Раздел2!F157 -> 0 | AX156: =Раздел2!G157 -> 0 | AY156: =Раздел2!C157 -> 0 | AZ156: =SUM(Раздел2!H157:L157) -> 0
A157: Регби - всего | B157: 150 | C157: 0 | D157: 0 | E157: =SUM(E158:E162) -> 0 | F157: =SUM(F158:F162) -> 0 | G157: 0 | H157: 0 | I157: 0 | J157: 0 | K157: 0 | L157: 0 | M157: 0 | N157: 0 | O157: 0 | P157: 0 | Q157: 0 | R157: 0 | S157: 0 | T157: 0 | U157: 0 | V157: 0 | W157: 0 | X157: 0 | Y157: 0 | Z157: 0 | AA157: 0 | AB157: 0 | AC157: 0 | AD157: 0 | AE157: 0 | AF157: 0 | AG157: 0 | AH157: 0 | AI157: 0 | AJ157: 0 | AK157: 0 | AL157: 0 | AM157: 0 | AN157: 0 | AO157: 0 | AP157: 0 | AQ157: 0 | AR157: 0 | AS157: 0 | AT157: 0 | AU157: 0 | AV157: 0 | AW157: =Раздел2!F158 -> 0 | AX157: =Раздел2!G158 -> 0 | AY157: =Раздел2!C158 -> 0 | AZ157: =SUM(Раздел2!H158:L158) -> 0
A158: в том числе: Регби | B158: 151 | C158: 0 | D158: 0 | H158: 0 | M158: 0 | N158: 0 | R158: 0 | W158: 0 | AA158: 0 | AE158: 0 | AJ158: 0 | AN158: 0 | AR158: 0 | AW158: =Раздел2!F159 -> 0 | AX158: =Раздел2!G159 -> 0 | AY158: =Раздел2!C159 -> 0 | AZ158: =SUM(Раздел2!H159:L159) -> 0
A159: Регби 7 (муж.) | B159: 152 | C159: 0 | D159: 0 | H159: 0 | M159: 0 | N159: 0 | R159: 0 | W159: 0 | AA159: 0 | AE159: 0 | AJ159: 0 | AN159: 0 | AR159: 0 | AW159: =Раздел2!F160 -> 0 | AX159: =Раздел2!G160 -> 0 | AY159: =Раздел2!C160 -> 0 | AZ159: =SUM(Раздел2!H160:L160) -> 0
A160: Регби 7 (жен.) | B160: 153 | C160: 0 | D160: 0 | H160: 0 | M160: 0 | N160: 0 | R160: 0 | W160: 0 | AA160: 0 | AE160: 0 | AJ160: 0 | AN160: 0 | AR160: 0 | AW160: =Раздел2!F161 -> 0 | AX160: =Раздел2!G161 -> 0 | AY160: =Раздел2!C161 -> 0 | AZ160: =SUM(Раздел2!H161:L161) -> 0
A161: Регби - пляжное | B161: 154 | C161: 0 | D161: 0 | H161: 0 | M161: 0 | N161: 0 | R161: 0 | W161: 0 | AA161: 0 | AE161: 0 | AJ161: 0 | AN161: 0 | AR161: 0 | AW161: =Раздел2!F162 -> 0 | AX161: =Раздел2!G162 -> 0 | AY161: =Раздел2!C162 -> 0 | AZ161: =SUM(Раздел2!H162:L162) -> 0
A162: Регби на снегу | B162: 155 | C162: 0 | D162: 0 | H162: 0 | M162: 0 | N162: 0 | R162: 0 | W162: 0 | AA162: 0 | AE162: 0 | AJ162: 0 | AN162: 0 | AR162: 0 | AW162: =Раздел2!F163 -> 0 | AX162: =Раздел2!G163 -> 0 | AY162: =Раздел2!C163 -> 0 | AZ162: =SUM(Раздел2!H163:L163) -> 0
A163: Регбол | B163: 156 | C163: 0 | D163: 0 | H163: 0 | M163: 0 | N163: 0 | R163: 0 | W163: 0 | AA163: 0 | AE163: 0 | AJ163: 0 | AN163: 0 | AR163: 0 | AW163: =Раздел2!F164 -> 0 | AX163: =Раздел2!G164 -> 0 | AY163: =Раздел2!C164 -> 0 | AZ163: =SUM(Раздел2!H164:L164) -> 0
A164: Роллер спорт | B164: 157 | C164: 0 | D164: 0 | H164: 0 | M164: 0 | N164: 0 | R164: 0 | W164: 0 | AA164: 0 | AE164: 0 | AJ164: 0 | AN164: 0 | AR164: 0 | AW164: =Раздел2!F165 -> 0 | AX164: =Раздел2!G165 -> 0 | AY164: =Раздел2!C165 -> 0 | AZ164: =SUM(Раздел2!H165:L165) -> 0
A165: Роуп скиппинг (спортивная скакалка) | B165: 158 | C165: 0 | D165: 0 | H165: 0 | M165: 0 | N165: 0 | R165: 0 | W165: 0 | AA165: 0 | AE165: 0 | AJ165: 0 | AN165: 0 | AR165: 0 | AW165: =Раздел2!F166 -> 0 | AX165: =Раздел2!G166 -> 0 | AY165: =Раздел2!C166 -> 0 | AZ165: =SUM(Раздел2!H166:L166) -> 0
A166: Рукопашный бой | B166: 159 | C166: 0 | D166: 0 | H166: 0 | M166: 0 | N166: 0 | R166: 0 | W166: 0 | AA166: 0 | AE166: 0 | AJ166: 0 | AN166: 0 | AR166: 0 | AW166: =Раздел2!F167 -> 0 | AX166: =Раздел2!G167 -> 0 | AY166: =Раздел2!C167 -> 0 | AZ166: =SUM(Раздел2!H167:L167) -> 0
A167: Рыболовный спорт | B167: 160 | C167: 0 | D167: 0 | H167: 0 | M167: 0 | N167: 0 | R167: 0 | W167: 0 | AA167: 0 | AE167: 0 | AJ167: 0 | AN167: 0 | AR167: 0 | AW167: =Раздел2!F168 -> 0 | AX167: =Раздел2!G168 -> 0 | AY167: =Раздел2!C168 -> 0 | AZ167: =SUM(Раздел2!H168:L168) -> 0
A168: Сават | B168: 161 | C168: 0 | D168: 0 | H168: 0 | M168: 0 | N168: 0 | R168: 0 | W168: 0 | AA168: 0 | AE168: 0 | AJ168: 0 | AN168: 0 | AR168: 0 | AW168: =Раздел2!F169 -> 0 | AX168: =Раздел2!G169 -> 0 | AY168: =Раздел2!C169 -> 0 | AZ168: =SUM(Раздел2!H169:L169) -> 0
A169: Самбо | B169: 162 | C169: 0 | D169: 0 | H169: 0 | M169: 0 | N169: 0 | R169: 0 | W169: 0 | AA169: 0 | AE169: 0 | AJ169: 0 | AN169: 0 | AR169: 0 | AW169: =Раздел2!F170 -> 0 | AX169: =Раздел2!G170 -> 0 | AY169: =Раздел2!C170 -> 0 | AZ169: =SUM(Раздел2!H170:L170) -> 0
A170: Самолетный спорт | B170: 163 | C170: 0 | D170: 0 | H170: 0 | M170: 0 | N170: 0 | R170: 0 | W170: 0 | AA170: 0 | AE170: 0 | AJ170: 0 | AN170: 0 | AR170: 0 | AW170: =Раздел2!F171 -> 0 | AX170: =Раздел2!G171 -> 0 | AY170: =Раздел2!C171 -> 0 | AZ170: =SUM(Раздел2!H171:L171) -> 0
A171: Санный спорт | B171: 164 | C171: 0 | D171: 0 | H171: 0 | M171: 0 | N171: 0 | R171: 0 | W171: 0 | AA171: 0 | AE171: 0 | AJ171: 0 | AN171: 0 | AR171: 0 | AW171: =Раздел2!F172 -> 0 | AX171: =Раздел2!G172 -> 0 | AY171: =Раздел2!C172 -> 0 | AZ171: =SUM(Раздел2!H172:L172) -> 0
A172: Северное многоборье | B172: 165 | C172: 0 | D172: 0 | H172: 0 | M172: 0 | N172: 0 | R172: 0 | W172: 0 | AA172: 0 | AE172: 0 | AJ172: 0 | AN172: 0 | AR172: 0 | AW172: =Раздел2!F173 -> 0 | AX172: =Раздел2!G173 -> 0 | AY172: =Раздел2!C173 -> 0 | AZ172: =SUM(Раздел2!H173:L173) -> 0
A173: Серфинг | B173: 166 | C173: 0 | D173: 0 | H173: 0 | M173: 0 | N173: 0 | R173: 0 | W173: 0 | AA173: 0 | AE173: 0 | AJ173: 0 | AN173: 0 | AR173: 0 | AW173: =Раздел2!F174 -> 0 | AX173: =Раздел2!G174 -> 0 | AY173: =Раздел2!C174 -> 0 | AZ173: =SUM(Раздел2!H174:L174) -> 0
A174: Силовой экстрим | B174: 167 | C174: 0 | D174: 0 | H174: 0 | M174: 0 | N174: 0 | R174: 0 | W174: 0 | AA174: 0 | AE174: 0 | AJ174: 0 | AN174: 0 | AR174: 0 | AW174: =Раздел2!F175 -> 0 | AX174: =Раздел2!G175 -> 0 | AY174: =Раздел2!C175 -> 0 | AZ174: =SUM(Раздел2!H175:L175) -> 0
A175: Синхронное плавание | B175: 168 | C175: 0 | D175: 0 | H175: 0 | M175: 0 | N175: 0 | R175: 0 | W175: 0 | AA175: 0 | AE175: 0 | AJ175: 0 | AN175: 0 | AR175: 0 | AW175: =Раздел2!F176 -> 0 | AX175: =Раздел2!G176 -> 0 | AY175: =Раздел2!C176 -> 0 | AZ175: =SUM(Раздел2!H176:L176) -> 0
A176: Скалолазание | B176: 169 | C176: 0 | D176: 0 | H176: 0 | M176: 0 | N176: 0 | R176: 0 | W176: 0 | AA176: 0 | AE176: 0 | AJ176: 0 | AN176: 0 | AR176: 0 | AW176: =Раздел2!F177 -> 0 | AX176: =Раздел2!G177 -> 0 | AY176: =Раздел2!C177 -> 0 | AZ176: =SUM(Раздел2!H177:L177) -> 0
A177: Сквош | B177: 170 | C177: 0 | D177: 0 | H177: 0 | M177: 0 | N177: 0 | R177: 0 | W177: 0 | AA177: 0 | AE177: 0 | AJ177: 0 | AN177: 0 | AR177: 0 | AW177: =Раздел2!F178 -> 0 | AX177: =Раздел2!G178 -> 0 | AY177: =Раздел2!C178 -> 0 | AZ177: =SUM(Раздел2!H178:L178) -> 0
A178: Скейтбординг | B178: 171 | C178: 0 | D178: 0 | H178: 0 | M178: 0 | N178: 0 | R178: 0 | W178: 0 | AA178: 0 | AE178: 0 | AJ178: 0 | AN178: 0 | AR178: 0 | AW178: =Раздел2!F179 -> 0 | AX178: =Раздел2!G179 -> 0 | AY178: =Раздел2!C179 -> 0 | AZ178: =SUM(Раздел2!H179:L179) -> 0
A179: Служебно-боевая стрельба | B179: 172 | C179: 0 | D179: 0 | H179: 0 | M179: 0 | N179: 0 | R179: 0 | W179: 0 | AA179: 0 | AE179: 0 | AJ179: 0 | AN179: 0 | AR179: 0 | AW179: =Раздел2!F180 -> 0 | AX179: =Раздел2!G180 -> 0 | AY179: =Раздел2!C180 -> 0 | AZ179: =SUM(Раздел2!H180:L180) -> 0
A180: Служебно-прикладной спорт | B180: 173 | C180: 0 | D180: 0 | H180: 0 | M180: 0 | N180: 0 | R180: 0 | W180: 0 | AA180: 0 | AE180: 0 | AJ180: 0 | AN180: 0 | AR180: 0 | AW180: =Раздел2!F181 -> 0 | AX180: =Раздел2!G181 -> 0 | AY180: =Раздел2!C181 -> 0 | AZ180: =SUM(Раздел2!H181:L181) -> 0
A181: Служебно-прикладной спорт ФСО России | B181: 174 | C181: 0 | D181: 0 | H181: 0 | M181: 0 | N181: 0 | R181: 0 | W181: 0 | AA181: 0 | AE181: 0 | AJ181: 0 | AN181: 0 | AR181: 0 | AW181: =Раздел2!F182 -> 0 | AX181: =Раздел2!G182 -> 0 | AY181: =Раздел2!C182 -> 0 | AZ181: =SUM(Раздел2!H182:L182) -> 0
A182: Служебно-прикладной спорт ФТС России | B182: 175 | C182: 0 | D182: 0 | H182: 0 | M182: 0 | N182: 0 | R182: 0 | W182: 0 | AA182: 0 | AE182: 0 | AJ182: 0 | AN182: 0 | AR182: 0 | AW182: =Раздел2!F183 -> 0 | AX182: =Раздел2!G183 -> 0 | AY182: =Раздел2!C183 -> 0 | AZ182: =SUM(Раздел2!H183:L183) -> 0
A183: Служебное двоеборье | B183: 176 | C183: 0 | D183: 0 | H183: 0 | M183: 0 | N183: 0 | R183: 0 | W183: 0 | AA183: 0 | AE183: 0 | AJ183: 0 | AN183: 0 | AR183: 0 | AW183: =Раздел2!F184 -> 0 | AX183: =Раздел2!G184 -> 0 | AY183: =Раздел2!C184 -> 0 | AZ183: =SUM(Раздел2!H184:L184) -> 0
A184: Служебное единоборство | B184: 177 | C184: 0 | D184: 0 | H184: 0 | M184: 0 | N184: 0 | R184: 0 | W184: 0 | AA184: 0 | AE184: 0 | AJ184: 0 | AN184: 0 | AR184: 0 | AW184: =Раздел2!F185 -> 0 | AX184: =Раздел2!G185 -> 0 | AY184: =Раздел2!C185 -> 0 | AZ184: =SUM(Раздел2!H185:L185) -> 0
A185: Служебное многоборье | B185: 178 | C185: 0 | D185: 0 | H185: 0 | M185: 0 | N185: 0 | R185: 0 | W185: 0 | AA185: 0 | AE185: 0 | AJ185: 0 | AN185: 0 | AR185: 0 | AW185: =Раздел2!F186 -> 0 | AX185: =Раздел2!G186 -> 0 | AY185: =Раздел2!C186 -> 0 | AZ185: =SUM(Раздел2!H186:L186) -> 0
A186: Служебный биатлон | B186: 179 | C186: 0 | D186: 0 | H186: 0 | M186: 0 | N186: 0 | R186: 0 | W186: 0 | AA186: 0 | AE186: 0 | AJ186: 0 | AN186: 0 | AR186: 0 | AW186: =Раздел2!F187 -> 0 | AX186: =Раздел2!G187 -> 0 | AY186: =Раздел2!C187 -> 0 | AZ186: =SUM(Раздел2!H187:L187) -> 0
A187: Спасательный спорт | B187: 180 | C187: 0 | D187: 0 | H187: 0 | M187: 0 | N187: 0 | R187: 0 | W187: 0 | AA187: 0 | AE187: 0 | AJ187: 0 | AN187: 0 | AR187: 0 | AW187: =Раздел2!F188 -> 0 | AX187: =Раздел2!G188 -> 0 | AY187: =Раздел2!C188 -> 0 | AZ187: =SUM(Раздел2!H188:L188) -> 0
A188: Стрельба из боевого ручного стрелкового оружия | B188: 181 | C188: 0 | D188: 0 | H188: 0 | M188: 0 | N188: 0 | R188: 0 | W188: 0 | AA188: 0 | AE188: 0 | AJ188: 0 | AN188: 0 | AR188: 0 | AW188: =Раздел2!F189 -> 0 | AX188: =Раздел2!G189 -> 0 | AY188: =Раздел2!C189 -> 0 | AZ188: =SUM(Раздел2!H189:L189) -> 0
A189: Стрельба из штатного или табельного оружия | B189: 182 | C189: 0 | D189: 0 | H189: 0 | M189: 0 | N189: 0 | R189: 0 | W189: 0 | AA189: 0 | AE189: 0 | AJ189: 0 | AN189: 0 | AR189: 0 | AW189: =Раздел2!F190 -> 0 | AX189: =Раздел2!G190 -> 0 | AY189: =Раздел2!C190 -> 0 | AZ189: =SUM(Раздел2!H190:L190) -> 0
A190: Стрельба на дальние дистанции | B190: 183 | C190: 0 | D190: 0 | H190: 0 | M190: 0 | N190: 0 | R190: 0 | W190: 0 | AA190: 0 | AE190: 0 | AJ190: 0 | AN190: 0 | AR190: 0 | AW190: =Раздел2!F191 -> 0 | AX190: =Раздел2!G191 -> 0 | AY190: =Раздел2!C191 -> 0 | AZ190: =SUM(Раздел2!H191:L191) -> 0
A191: Смешанное боевое единоборство (ММА) | B191: 184 | C191: 0 | D191: 0 | H191: 0 | M191: 0 | N191: 0 | R191: 0 | W191: 0 | AA191: 0 | AE191: 0 | AJ191: 0 | AN191: 0 | AR191: 0 | AW191: =Раздел2!F192 -> 0 | AX191: =Раздел2!G192 -> 0 | AY191: =Раздел2!C192 -> 0 | AZ191: =SUM(Раздел2!H192:L192) -> 0
A192: Сноуборд | B192: 185 | C192: 0 | D192: 0 | H192: 0 | M192: 0 | N192: 0 | R192: 0 | W192: 0 | AA192: 0 | AE192: 0 | AJ192: 0 | AN192: 0 | AR192: 0 | AW192: =Раздел2!F193 -> 0 | AX192: =Раздел2!G193 -> 0 | AY192: =Раздел2!C193 -> 0 | AZ192: =SUM(Раздел2!H193:L193) -> 0
A193: Современное пятиборье | B193: 186 | C193: 0 | D193: 0 | H193: 0 | M193: 0 | N193: 0 | R193: 0 | W193: 0 | AA193: 0 | AE193: 0 | AJ193: 0 | AN193: 0 | AR193: 0 | AW193: =Раздел2!F194 -> 0 | AX193: =Раздел2!G194 -> 0 | AY193: =Раздел2!C194 -> 0 | AZ193: =SUM(Раздел2!H194:L194) -> 0
A194: Софтбол | B194: 187 | C194: 0 | D194: 0 | H194: 0 | M194: 0 | N194: 0 | R194: 0 | W194: 0 | AA194: 0 | AE194: 0 | AJ194: 0 | AN194: 0 | AR194: 0 | AW194: =Раздел2!F195 -> 0 | AX194: =Раздел2!G195 -> 0 | AY194: =Раздел2!C195 -> 0 | AZ194: =SUM(Раздел2!H195:L195) -> 0
A195: Спорт сверхлегкой авиации | B195: 188 | C195: 0 | D195: 0 | H195: 0 | M195: 0 | N195: 0 | R195: 0 | W195: 0 | AA195: 0 | AE195: 0 | AJ195: 0 | AN195: 0 | AR195: 0 | AW195: =Раздел2!F196 -> 0 | AX195: =Раздел2!G196 -> 0 | AY195: =Раздел2!C196 -> 0 | AZ195: =SUM(Раздел2!H196:L196) -> 0
A196: Спортивная акробатика | B196: 189 | C196: 0 | D196: 0 | H196: 0 | M196: 0 | N196: 0 | R196: 0 | W196: 0 | AA196: 0 | AE196: 0 | AJ196: 0 | AN196: 0 | AR196: 0 | AW196: =Раздел2!F197 -> 0 | AX196: =Раздел2!G197 -> 0 | AY196: =Раздел2!C197 -> 0 | AZ196: =SUM(Раздел2!H197:L197) -> 0
A197: Спортивная аэробика | B197: 190 | C197: 0 | D197: 0 | H197: 0 | M197: 0 | N197: 0 | R197: 0 | W197: 0 | AA197: 0 | AE197: 0 | AJ197: 0 | AN197: 0 | AR197: 0 | AW197: =Раздел2!F198 -> 0 | AX197: =Раздел2!G198 -> 0 | AY197: =Раздел2!C198 -> 0 | AZ197: =SUM(Раздел2!H198:L198) -> 0
A198: Спортивная борьба - всего | B198: 191 | C198: 25 | D198: 25 | E198: =SUM(E199:E203) -> 0 | F198: =SUM(F199:F203) -> 0 | G198: 25 | H198: 0 | I198: 0 | J198: 0 | K198: 0 | L198: 0 | M198: 25 | N198: 25 | O198: 0 | P198: 0 | Q198: 25 | R198: 0 | S198: 0 | T198: 0 | U198: 0 | V198: 0 | W198: 9 | X198: 0 | Y198: 0 | Z198: 9 | AA198: 1 | AB198: 0 | AC198: 0 | AD198: 1 | AE198: 0 | AF198: 0 | AG198: 0 | AH198: 0 | AI198: 0 | AJ198: 9 | AK198: 0 | AL198: 0 | AM198: 9 | AN198: 1 | AO198: 0 | AP198: 0 | AQ198: 1 | AR198: 0 | AS198: 0 | AT198: 0 | AU198: 0 | AV198: 0 | AW198: =Раздел2!F199 -> 70 | AX198: =Раздел2!G199 -> 70 | AY198: =Раздел2!C199 -> 1 | AZ198: =SUM(Раздел2!H199:L199) -> 70
A199: в том числе: Вольная борьба | B199: 192 | C199: 0 | D199: 0 | H199: 0 | M199: 0 | N199: 0 | R199: 0 | W199: 0 | AA199: 0 | AE199: 0 | AJ199: 0 | AN199: 0 | AR199: 0 | AW199: =Раздел2!F200 -> 0 | AX199: =Раздел2!G200 -> 0 | AY199: =Раздел2!C200 -> 0 | AZ199: =SUM(Раздел2!H200:L200) -> 0
A200: Греко-римская борьба | B200: 193 | C200: 25 | D200: 25 | G200: 25 | H200: 0 | M200: 25 | N200: 25 | Q200: 25 | R200: 0 | W200: 9 | Z200: 9 | AA200: 1 | AD200: 1 | AE200: 0 | AJ200: 9 | AM200: 9 | AN200: 1 | AQ200: 1 | AR200: 0 | AW200: =Раздел2!F201 -> 70 | AX200: =Раздел2!G201 -> 70 | AY200: =Раздел2!C201 -> 1 | AZ200: =SUM(Раздел2!H201:L201) -> 70
... 81 more rows

Sheet Раздел6
B1: Раздел VI. Занимающиеся – кандидаты в спортивные сборные команды России
B2: Код по ОКЕИ: человек 792
B3: Виды спорта | C3: № строки | D3: Всего кандидатов из числа занимающихся | E3: Из числа занимающихся (гр. 6 раздела II) кандидаты, состоящие в списках спортивных сборных команд | K3: Кандидаты, подготовленные в отчетном году
E4: Юношеский состав | G4: Юниорский состав | I4: Основной состав | K4: Юношеский состав | M4: Юниорский состав | O4: Основной состав
E7: основной | F7: резерв | G7: основной | H7: резерв | I7: основной | J7: резерв | K7: основной | L7: резерв | M7: основной | N7: резерв | O7: основной | P7: резерв
B8: 1 | C8: 2 | D8: 3 | E8: 4 | F8: 5 | G8: 6 | H8: 7 | I8: 8 | J8: 9 | K8: 10 | L8: 11 | M8: 12 | N8: 13 | O8: 14 | P8: 15 | Q8: 2р - 7 | R8: 2р 3
B9: Авиамодельный спорт | C9: 01 | D9: =SUM(E9:J9) -> 0 | Q9: =Раздел2!G9 -> 0 | R9: =Раздел2!C9 -> 0
B10: Авиационные гонки | C10: 02 | D10: =SUM(E10:J10) -> 0 | Q10: =Раздел2!G10 -> 0 | R10: =Раздел2!C10 -> 0
B11: Автомобильный спорт | C11: 03 | D11: 0 | Q11: =Раздел2!G11 -> 0 | R11: =Раздел2!C11 -> 0
B12: Автомодельный спорт | C12: 04 | D12: 0 | Q12: =Раздел2!G12 -> 0 | R12: =Раздел2!C12 -> 0
B13: Айкидо | C13: 05 | D13: 0 | Q13: =Раздел2!G13 -> 0 | R13: =Раздел2!C13 -> 0
B14: Айсшток | C14: 06 | D14: 0 | Q14: =Раздел2!G14 -> 0 | R14: =Раздел2!C14 -> 0
B15: Акробатический рок-н-ролл | C15: 07 | D15: 0 | Q15: =Раздел2!G15 -> 0 | R15: =Раздел2!C15 -> 0
B16: Альпинизм | C16: 08 | D16: 0 | Q16: =Раздел2!G16 -> 0 | R16: =Раздел2!C16 -> 0
B17: Американский футбол | C17: 09 | D17: 0 | Q17: =Раздел2!G17 -> 0 | R17: =Раздел2!C17 -> 0
B18: Армейский рукопашный бой | C18: 10 | D18: 0 | Q18: =Раздел2!G18 -> 0 | R18: =Раздел2!C18 -> 0
B19: Армейское тактико-стрелковое многоборье | C19: 11 | D19: 0 | Q19: =Раздел2!G19 -> 0 | R19: =Раздел2!C19 -> 0
B20: Армрестлинг | C20: 12 | D20: 0 | Q20: =Раздел2!G20 -> 0 | R20: =Раздел2!C20 -> 0
B21: Бадминтон | C21: 13 | D21: 0 | Q21: =Раздел2!G21 -> 0 | R21: =Раздел2!C21 -> 0
B22: Баскетбол - всего | C22: 14 | D22: 0 | E22: =SUM(E23:E25) -> 0 | F22: =SUM(F23:F25) -> 0 | G22: 0 | H22: 0 | I22: 0 | J22: 0 | K22: 0 | L22: 0 | M22: 0 | N22: 0 | O22: 0 | P22: 0 | Q22: =Раздел2!G22 -> 136 | R22: =Раздел2!C22 -> 1
B23: в том числе: Баскетбол (муж.) | C23: 15 | D23: 0 | Q23: =Раздел2!G23 -> 136 | R23: =Раздел2!C23 -> 1
B24: Баскетбол (жен.) | C24: 16 | D24: 0 | Q24: =Раздел2!G24 -> 0 | R24: =Раздел2!C24 -> 0
B25: Баскетбол 3х3 | C25: 17 | D25: 0 | Q25: =Раздел2!G25 -> 0 | R25: =Раздел2!C25 -> 0
B26: Бейсбол | C26: 18 | D26: 0 | Q26: =Раздел2!G26 -> 0 | R26: =Раздел2!C26 -> 0
B27: Биатлон | C27: 19 | D27: 0 | Q27: =Раздел2!G27 -> 0 | R27: =Раздел2!C27 -> 0
B28: Бильярдный спорт | C28: 20 | D28: 0 | Q28: =Раздел2!G28 -> 0 | R28: =Раздел2!C28 -> 0
B29: Бобслей - всего | C29: 21 | D29: 0 | E29: =SUM(E30:E31) -> 0 | F29: =SUM(F30:F31) -> 0 | G29: 0 | H29: 0 | I29: 0 | J29: 0 | K29: 0 | L29: 0 | M29: 0 | N29: 0 | O29: 0 | P29: 0 | Q29: =Раздел2!G29 -> 0 | R29: =Раздел2!C29 -> 0
B30: в том числе: Бобслей | C30: 22 | D30: 0 | Q30: =Раздел2!G30 -> 0 | R30: =Раздел2!C30 -> 0
B31: Скелетон | C31: 23 | D31: 0 | Q31: =Раздел2!G31 -> 0 | R31: =Раздел2!C31 -> 0
B32: Бодибилдинг | C32: 24 | D32: 0 | Q32: =Раздел2!G32 -> 0 | R32: =Раздел2!C32 -> 0
B33: Бокс | C33: 25 | D33: 0 | Q33: =Раздел2!G33 -> 46 | R33: =Раздел2!C33 -> 1
B34: Борьба на поясах | C34: 26 | D34: 0 | Q34: =Раздел2!G34 -> 0 | R34: =Раздел2!C34 -> 0
B35: Боулинг | C35: 27 | D35: 0 | Q35: =Раздел2!G35 -> 0 | R35: =Раздел2!C35 -> 0
B36: Боулспорт | C36: 28 | D36: 0 | Q36: =Раздел2!G36 -> 0 | R36: =Раздел2!C36 -> 0
B37: Велосипедный спорт - всего | C37: 29 | D37: 0 | E37: =SUM(E38:E41) -> 0 | F37: =SUM(F38:F41) -> 0 | G37: 0 | H37: 0 | I37: 0 | J37: 0 | K37: 0 | L37: 0 | M37: 0 | N37: 0 | O37: 0 | P37: 0 | Q37: =Раздел2!G37 -> 0 | R37: =Раздел2!C37 -> 0
B38: в том числе: BMX | C38: 30 | D38: 0 | Q38: =Раздел2!G38 -> 0 | R38: =Раздел2!C38 -> 0
B39: Маунтинбайк | C39: 31 | D39: 0 | Q39: =Раздел2!G39 -> 0 | R39: =Раздел2!C39 -> 0
B40: Трек | C40: 32 | D40: 0 | Q40: =Раздел2!G40 -> 0 | R40: =Раздел2!C40 -> 0
B41: Шоссе | C41: 33 | D41: 0 | Q41: =Раздел2!G41 -> 0 | R41: =Раздел2!C41 -> 0
B42: Вертолетный спорт | C42: 34 | D42: 0 | Q42: =Раздел2!G42 -> 0 | R42: =Раздел2!C42 -> 0
B43: Водно-моторный спорт | C43: 35 | D43: 0 | Q43: =Раздел2!G43 -> 0 | R43: =Раздел2!C43 -> 0
B44: Водно-спасательное многоборье | C44: 36 | D44: 0 | Q44: =Раздел2!G44 -> 0 | R44: =Раздел2!C44 -> 0
B45: Водное поло - всего | C45: 37 | D45: 0 | E45: =SUM(E46:E47) -> 0 | F45: =SUM(F46:F47) -> 0 | G45: 0 | H45: 0 | I45: 0 | J45: 0 | K45: 0 | L45: 0 | M45: 0 | N45: 0 | O45: 0 | P45: 0 | Q45: =Раздел2!G45 -> 0 | R45: =Раздел2!C45 -> 0
B46: в том числе: Водное поло (муж.) | C46: 38 | D46: 0 | Q46: =Раздел2!G46 -> 0 | R46: =Раздел2!C46 -> 0
B47: Водное поло (жен.) | C47: 39 | D47: 0 | Q47: =Раздел2!G47 -> 0 | R47: =Раздел2!C47 -> 0
B48: Воднолыжный спорт | C48: 40 | D48: 0 | Q48: =Раздел2!G48 -> 0 | R48: =Раздел2!C48 -> 0
B49: Военно-прикладной спорт | C49: 41 | D49: 0 | Q49: =Раздел2!G49 -> 0 | R49: =Раздел2!C49 -> 0
B50: Военно-спортивное многоборье | C50: 42 | D50: 0 | Q50: =Раздел2!G50 -> 0 | R50: =Раздел2!C50 -> 0
B51: Воздухоплавательный спорт | C51: 43 | D51: 0 | Q51: =Раздел2!G51 -> 0 | R51: =Раздел2!C51 -> 0
B52: Воздушно-силовая атлетика | C52: 44 | D52: 0 | Q52: =Раздел2!G52 -> 0 | R52: =Раздел2!C52 -> 0
B53: Волейбол - всего | C53: 45 | D53: 0 | E53: =SUM(E54:E57) -> 0 | F53: =SUM(F54:F57) -> 0 | G53: 0 | H53: 0 | I53: 0 | J53: 0 | K53: 0 | L53: 0 | M53: 0 | N53: 0 | O53: 0 | P53: 0 | Q53: =Раздел2!G53 -> 0 | R53: =Раздел2!C53 -> 0
B54: в том числе: Волейбол (муж.) | C54: 46 | D54: 0 | Q54: =Раздел2!G54 -> 0 | R54: =Раздел2!C54 -> 0
B55: Волейбол (жен.) | C55: 47 | D55: 0 | Q55: =Раздел2!G55 -> 0 | R55: =Раздел2!C55 -> 0
B56: Пляжный волейбол (муж.) | C56: 48 | D56: 0 | Q56: =Раздел2!G56 -> 0 | R56: =Раздел2!C56 -> 0
B57: Пляжный волейбол (жен.) | C57: 49 | D57: 0 | Q57: =Раздел2!G57 -> 0 | R57: =Раздел2!C57 -> 0
B58: Восточное боевое единоборство | C58: 50 | D58: 0 | Q58: =Раздел2!G58 -> 0 | R58: =Раздел2!C58 -> 0
B59: Всестилевое каратэ | C59: 51 | D59: 0 | Q59: =Раздел2!G59 -> 0 | R59: =Раздел2!C59 -> 0
B60: Гандбол - всего | C60: 52 | D60: 0 | E60: =SUM(E61:E63) -> 0 | F60: =SUM(F61:F63) -> 0 | G60: 0 | H60: 0 | I60: 0 | J60: 0 | K60: 0 | L60: 0 | M60: 0 | N60: 0 | O60: 0 | P60: 0 | Q60: =Раздел2!G60 -> 0 | R60: =Раздел2!C60 -> 0
B61: в том числе: Гандбол (муж.) | C61: 53 | D61: 0 | Q61: =Раздел2!G61 -> 0 | R61: =Раздел2!C61 -> 0
B62: Гандбол (жен.) | C62: 54 | D62: 0 | Q62: =Раздел2!G62 -> 0 | R62: =Раздел2!C62 -> 0
B63: Пляжный гандбол | C63: 55 | D63: 0 | Q63: =Раздел2!G63 -> 0 | R63: =Раздел2!C63 -> 0
B64: Гиревой спорт | C64: 56 | D64: 0 | Q64: =Раздел2!G64 -> 0 | R64: =Раздел2!C64 -> 0
B65: Го | C65: 57 | D65: 0 | Q65: =Раздел2!G65 -> 0 | R65: =Раздел2!C65 -> 0
B66: Гольф | C66: 58 | D66: 0 | Q66: =Раздел2!G66 -> 0 | R66: =Раздел2!C66 -> 0
B67: Гонки на охотничьих лыжах | C67: 59 | D67: 0 | Q67: =Раздел2!G67 -> 0 | R67: =Раздел2!C67 -> 0
B68: Гонки с препятствиями | C68: 60 | D68: 0 | Q68: =Раздел2!G68 -> 0 | R68: =Раздел2!C68 -> 0
B69: Горнолыжный спорт | C69: 61 | D69: 0 | Q69: =Раздел2!G69 -> 0 | R69: =Раздел2!C69 -> 0
B70: Городошный спорт | C70: 62 | D70: 0 | Q70: =Раздел2!G70 -> 0 | R70: =Раздел2!C70 -> 0
B71: Гребля на байдарках и каноэ | C71: 63 | D71: 0 | Q71: =Раздел2!G71 -> 0 | R71: =Раздел2!C71 -> 0
B72: Гребля на шлюпках | C72: 64 | D72: 0 | Q72: =Раздел2!G72 -> 0 | R72: =Раздел2!C72 -> 0
B73: Гребной слалом | C73: 65 | D73: 0 | Q73: =Раздел2!G73 -> 0 | R73: =Раздел2!C73 -> 0
B74: Гребной спорт - всего | C74: 66 | D74: =SUM(E74:J74) -> 0 | E74: =SUM(E75:E78) -> 0 | F74: =SUM(F75:F78) -> 0 | G74: 0 | H74: 0 | I74: 0 | J74: 0 | K74: 0 | L74: 0 | M74: 0 | N74: 0 | O74: 0 | P74: 0 | Q74: =Раздел2!G74 -> 0 | R74: =Раздел2!C74 -> 0
B75: в том числе: Академическая гребля | C75: 67 | D75: 0 | Q75: =Раздел2!G75 -> 0 | R75: =Раздел2!C75 -> 0
B76: Гребля-индор | C76: 68 | D76: 0 | Q76: =Раздел2!G76 -> 0 | R76: =Раздел2!C76 -> 0
B77: Народная гребля | C77: 69 | D77: 0 | Q77: =Раздел2!G77 -> 0 | R77: =Раздел2!C77 -> 0
B78: Прибрежная гребля | C78: 70 | D78: 0 | Q78: =Раздел2!G78 -> 0 | R78: =Раздел2!C78 -> 0
B79: Гребно-парусное двоеборье | C79: 71 | D79: 0 | Q79: =Раздел2!G79 -> 0 | R79: =Раздел2!C79 -> 0
B80: Дартс | C80: 72 | D80: 0 | Q80: =Раздел2!G80 -> 0 | R80: =Раздел2!C80 -> 0
B81: Джиу-джитсу | C81: 73 | D81: 0 | Q81: =Раздел2!G81 -> 0 | R81: =Раздел2!C81 -> 0
B82: Дзюдо | C82: 74 | D82: 0 | Q82: =Раздел2!G82 -> 0 | R82: =Раздел2!C82 -> 0
B83: Ездовой спорт | C83: 75 | D83: 0 | Q83: =Раздел2!G83 -> 0 | R83: =Раздел2!C83 -> 0
B84: Зимнее плавание | C84: 76 | D84: 0 | Q84: =Раздел2!G84 -> 0 | R84: =Раздел2!C84 -> 0
B85: Капоэйра | C85: 77 | D85: 0 | Q85: =Раздел2!G85 -> 0 | R85: =Раздел2!C85 -> 0
B86: Каратэ | C86: 78 | D86: 0 | Q86: =Раздел2!G86 -> 0 | R86: =Раздел2!C86 -> 0
B87: Кендо | C87: 79 | D87: 0 | Q87: =Раздел2!G87 -> 0 | R87: =Раздел2!C87 -> 0
B88: Керешу | C88: 80 | D88: 0 | Q88: =Раздел2!G88 -> 0 | R88: =Раздел2!C88 -> 0
B89: Кёрлинг - всего | C89: 81 | D89: 0 | E89: =SUM(E90:E92) -> 0 | F89: =SUM(F90:F92) -> 0 | G89: 0 | H89: 0 | I89: 0 | J89: 0 | K89: 0 | L89: 0 | M89: 0 | N89: 0 | O89: 0 | P89: 0 | Q89: =Раздел2!G89 -> 0 | R89: =Раздел2!C89 -> 0
B90: в том числе: Керлинг (муж.) | C90: 82 | D90: 0 | Q90: =Раздел2!G90 -> 0 | R90: =Раздел2!C90 -> 0
B91: Керлинг (жен.) | C91: 83 | D91: 0 | Q91: =Раздел2!G91 -> 0 | R91: =Раздел2!C91 -> 0
B92: Кёрлинг – смешанные пары | C92: 84 | D92: 0 | Q92: =Раздел2!G92 -> 0 | R92: =Раздел2!C92 -> 0
B93: Кикбоксинг | C93: 85 | D93: 0 | Q93: =Раздел2!G93 -> 0 | R93: =Раздел2!C93 -> 0
B94: Кинологический спорт | C94: 86 | D94: 0 | Q94: =Раздел2!G94 -> 0 | R94: =Раздел2!C94 -> 0
B95: Киокусинкай | C95: 87 | D95: 0 | Q95: =Раздел2!G95 -> 0 | R95: =Раздел2!C95 -> 0
B96: Киокушин | C96: 88 | D96: 0 | Q96: =Раздел2!G96 -> 0 | R96: =Раздел2!C96 -> 0
B97: Комплексное единоборство | C97: 89 | D97: 0 | Q97: =Раздел2!G97 -> 0 | R97: =Раздел2!C97 -> 0
B98: Компьютерный спорт | C98: 90 | D98: 0 | Q98: =Раздел2!G98 -> 0 | R98: =Раздел2!C98 -> 0
B99: Конный спорт | C99: 91 | D99: 0 | Q99: =Раздел2!G99 -> 0 | R99: =Раздел2!C99 -> 0
B100: Конькобежный спорт - всего | C100: 92 | D100: 0 | E100: =SUM(E101:E102) -> 0 | F100: =SUM(F101:F102) -> 0 | G100: 0 | H100: 0 | I100: 0 | J100: 0 | K100: 0 | L100: 0 | M100: 0 | N100: 0 | O100: 0 | P100: 0 | Q100: =Раздел2!G100 -> 0 | R100: =Раздел2!C100 -> 0
B101: в том числе: Конькобежный спорт | C101: 93 | D101: 0 | Q101: =Раздел2!G101 -> 0 | R101: =Раздел2!C101 -> 0
B102: Шорт-трек | C102: 94 | D102: 0 | Q102: =Раздел2!G102 -> 0 | R102: =Раздел2!C102 -> 0
B103: Корэш | C103: 95 | D103: 0 | Q103: =Раздел2!G103 -> 0 | R103: =Раздел2!C103 -> 0
B104: Крикет | C104: 96 | D104: 0 | Q104: =Раздел2!G104 -> 0 | R104: =Раздел2!C104 -> 0
B105: Кудо | C105: 97 | D105: 0 | Q105: =Раздел2!G105 -> 0 | R105: =Раздел2!C105 -> 0
B106: Лапта | C106: 98 | D106: 0 | Q106: =Раздел2!G106 -> 0 | R106: =Раздел2!C106 -> 0
B107: Легкая атлетика - всего | C107: 99 | D107: 0 | E107: =SUM(E108:E114) -> 0 | F107: =SUM(F108:F114) -> 0 | G107: 0 | H107: 0 | I107: 0 | J107: 0 | K107: 0 | L107: 0 | M107: 0 | N107: 0 | O107: 0 | P107: 0 | Q107: =Раздел2!G107 -> 317 | R107: =Раздел2!C107 -> 1
B108: в том числе: Спринтерский и барьерный бег | C108: 100 | D108: 0 | Q108: =Раздел2!G108 -> 0 | R108: =Раздел2!C108 -> 0
B109: Бег на средние дистанции и бег с препятствиями | C109: 101 | D109: 0 | Q109: =Раздел2!G109 -> 0 | R109: =Раздел2!C109 -> 0
B110: Бег на длинные и сверхдлинные дистанции | C110: 102 | D110: 0 | Q110: =Раздел2!G110 -> 0 | R110: =Раздел2!C110 -> 0
B111: Многоборья | C111: 103 | D111: 0 | Q111: =Раздел2!G111 -> 317 | R111: =Раздел2!C111 -> 1
B112: Прыжки | C112: 104 | D112: 0 | Q112: =Раздел2!G112 -> 0 | R112: =Раздел2!C112 -> 0
B113: Метания | C113: 105 | D113: 0 | Q113: =Раздел2!G113 -> 0 | R113: =Раздел2!C113 -> 0
B114: Спортивная ходьба | C114: 106 | D114: 0 | Q114: =Раздел2!G114 -> 0 | R114: =Раздел2!C114 -> 0
B115: Лыжное двоеборье | C115: 107 | D115: 0 | Q115: =Раздел2!G115 -> 0 | R115: =Раздел2!C115 -> 0
B116: Лыжные гонки | C116: 108 | D116: 0 | Q116: =Раздел2!G116 -> 0 | R116: =Раздел2!C116 -> 0
B117: Мас-рестлинг | C117: 109 | D117: 0 | Q117: =Раздел2!G117 -> 0 | R117: =Раздел2!C117 -> 0
B118: Международное военно-спортивное многоборье | C118: 110 | D118: 0 | Q118: =Раздел2!G118 -> 0 | R118: =Раздел2!C118 -> 0
B119: Микрофутзал | C119: 111 | D119: 0 | Q119: =Раздел2!G119 -> 0 | R119: =Раздел2!C119 -> 0
B120: Многоборье кинологов | C120: 112 | D120: 0 | Q120: =Раздел2!G120 -> 0 | R120: =Раздел2!C120 -> 0
B121: Многоборье спасателей МЧС России | C121: 113 | D121: 0 | Q121: =Раздел2!G121 -> 0 | R121: =Раздел2!C121 -> 0
B122: Морское многоборье | C122: 114 | D122: 0 | Q122: =Раздел2!G122 -> 0 | R122: =Раздел2!C122 -> 0
B123: Мотоциклетный спорт | C123: 115 | D123: 0 | Q123: =Раздел2!G123 -> 0 | R123: =Раздел2!C123 -> 0
B124: Нарды | C124: 116 | D124: 0 | Q124: =Раздел2!G124 -> 0 | R124: =Раздел2!C124 -> 0
B125: Настольный теннис | C125: 117 | D125: 0 | Q125: =Раздел2!G125 -> 0 | R125: =Раздел2!C125 -> 0
B126: Падел | C126: 118 | D126: 0 | Q126: =Раздел2!G126 -> 0 | R126: =Раздел2!C126 -> 0
B127: Парашютный спорт | C127: 119 | D127: 0 | Q127: =Раздел2!G127 -> 0 | R127: =Раздел2!C127 -> 0
B128: Парусный спорт | C128: 120 | D128: 0 | Q128: =Раздел2!G128 -> 0 | R128: =Раздел2!C128 -> 0
B129: Пауэрлифтинг | C129: 121 | D129: 0 | Q129: =Раздел2!G129 -> 0 | R129: =Раздел2!C129 -> 0
B130: Перетягивание каната | C130: 122 | D130: 0 | Q130: =Раздел2!G130 -> 0 | R130: =Раздел2!C130 -> 0
B131: Пилонный спорт | C131: 123 | D131: 0 | Q131: =Раздел2!G131 -> 0 | R131: =Раздел2!C131 -> 0
B132: Плавание - всего | C132: 124 | D132: 0 | E132: =SUM(E133:E134) -> 0 | F132: =SUM(F133:F134) -> 0 | G132: 0 | H132: 0 | I132: 0 | J132: 0 | K132: 0 | L132: 0 | M132: 0 | N132: 0 | O132: 0 | P132: 0 | Q132: =Раздел2!G132 -> 66 | R132: =Раздел2!C132 -> 1
B133: в том числе: Плавание | C133: 125 | D133: 0 | Q133: =Раздел2!G133 -> 66 | R133: =Раздел2!C133 -> 1
B134: Открытая вода | C134: 126 | D134: 0 | Q134: =Раздел2!G134 -> 0 | R134: =Раздел2!C134 -> 0
B135: Планерный спорт | C135: 127 | D135: 0 | Q135: =Раздел2!G135 -> 0 | R135: =Раздел2!C135 -> 0
B136: Подводный спорт | C136: 128 | D136: 0 | Q136: =Раздел2!G136 -> 0 | R136: =Раздел2!C136 -> 0
B137: Пожарно-спасательный спорт | C137: 129 | D137: 0 | Q137: =Раздел2!G137 -> 0 | R137: =Раздел2!C137 -> 0
B138: Полиатлон | C138: 130 | D138: =SUM(E138:J138) -> 0 | Q138: =Раздел2!G138 -> 0 | R138: =Раздел2!C138 -> 0
B139: Практическая стрельба | C139: 131 | D139: 0 | Q139: =Раздел2!G139 -> 0 | R139: =Раздел2!C139 -> 0
B140: Прыжки в воду - всего | C140: 132 | D140: 0 | E140: =SUM(E141:E142) -> 0 | F140: =SUM(F141:F142) -> 0 | G140: 0 | H140: 0 | I140: 0 | J140: 0 | K140: 0 | L140: 0 | M140: 0 | N140: 0 | O140: 0 | P140: 0 | Q140: =Раздел2!G140 -> 0 | R140: =Раздел2!C140 -> 0
B141: в том числе: Прыжки в воду | C141: 133 | D141: 0 | Q141: =Раздел2!G141 -> 0 | R141: =Раздел2!C141 -> 0
B142: Прыжки в открытый водоем | C142: 134 | D142: 0 | Q142: =Раздел2!G142 -> 0 | R142: =Раздел2!C142 -> 0
B143: Прыжки на батуте - всего | C143: 135 | D143: 0 | E143: =SUM(E144:E147) -> 0 | F143: =SUM(F144:F147) -> 0 | G143: 0 | H143: 0 | I143: 0 | J143: 0 | K143: 0 | L143: 0 | M143: 0 | N143: 0 | O143: 0 | P143: 0 | Q143: =Раздел2!G143 -> 0 | R143: =Раздел2!C143 -> 0
B144: в том числе: Акробатическая дорожка | C144: 136 | D144: 0 | Q144: =Раздел2!G144 -> 0 | R144: =Раздел2!C144 -> 0
B145: Двойной минитрамп | C145: 137 | D145: 0 | Q145: =Раздел2!G145 -> 0 | R145: =Раздел2!C145 -> 0
B146: Индивидуальные прыжки | C146: 138 | D146: 0 | Q146: =Раздел2!G146 -> 0 | R146: =Раздел2!C146 -> 0
B147: Синхронные прыжки | C147: 139 | D147: 0 | Q147: =Раздел2!G147 -> 0 | R147: =Раздел2!C147 -> 0
B148: Прыжки на лыжах с трамплина | C148: 140 | D148: 0 | Q148: =Раздел2!G148 -> 0 | R148: =Раздел2!C148 -> 0
B149: Пулевая стрельба - всего | C149: 141 | D149: 0 | E149: =SUM(E150:E154) -> 0 | F149: =SUM(F150:F154) -> 0 | G149: 0 | H149: 0 | I149: 0 | J149: 0 | K149: 0 | L149: 0 | M149: 0 | N149: 0 | O149: 0 | P149: 0 | Q149: =Раздел2!G149 -> 0 | R149: =Раздел2!C149 -> 0
B150: в том числе: Пневматическая винтовка | C150: 142 | D150: 0 | Q150: =Раздел2!G150 -> 0 | R150: =Раздел2!C150 -> 0
B151: Пневматический пистолет | C151: 143 | D151: 0 | Q151: =Раздел2!G151 -> 0 | R151: =Раздел2!C151 -> 0
B152: Малокалиберная винтовка | C152: 144 | D152: 0 | Q152: =Раздел2!G152 -> 0 | R152: =Раздел2!C152 -> 0
B153: Малокалиберный пистолет | C153: 145 | D153: 0 | Q153: =Раздел2!G153 -> 0 | R153: =Раздел2!C153 -> 0
B154: Движущаяся мишень | C154: 146 | D154: 0 | Q154: =Раздел2!G154 -> 0 | R154: =Раздел2!C154 -> 0
B155: Пэйнтбол | C155: 147 | D155: 0 | Q155: =Раздел2!G155 -> 0 | R155: =Раздел2!C155 -> 0
B156: Радиоспорт | C156: 148 | D156: 0 | Q156: =Раздел2!G156 -> 0 | R156: =Раздел2!C156 -> 0
B157: Рафтинг | C157: 149 | D157: 0 | Q157: =Раздел2!G157 -> 0 | R157: =Раздел2!C157 -> 0
B158: Регби - всего | C158: 150 | D158: 0 | E158: =SUM(E159:E163) -> 0 | F158: =SUM(F159:F163) -> 0 | G158: 0 | H158: 0 | I158: 0 | J158: 0 | K158: 0 | L158: 0 | M158: 0 | N158: 0 | O158: 0 | P158: 0 | Q158: =Раздел2!G158 -> 0 | R158: =Раздел2!C158 -> 0
B159: в том числе: Регби | C159: 151 | D159: 0 | Q159: =Раздел2!G159 -> 0 | R159: =Раздел2!C159 -> 0
B160: Регби 7 (муж.) | C160: 152 | D160: 0 | Q160: =Раздел2!G160 -> 0 | R160: =Раздел2!C160 -> 0
B161: Регби 7 (жен.) | C161: 153 | D161: 0 | Q161: =Раздел2!G161 -> 0 | R161: =Раздел2!C161 -> 0
B162: Регби - пляжное | C162: 154 | D162: 0 | Q162: =Раздел2!G162 -> 0 | R162: =Раздел2!C162 -> 0
B163: Регби на снегу | C163: 155 | D163: 0 | Q163: =Раздел2!G163 -> 0 | R163: =Раздел2!C163 -> 0
B164: Регбол | C164: 156 | D164: 0 | Q164: =Раздел2!G164 -> 0 | R164: =Раздел2!C164 -> 0
B165: Роллер спорт | C165: 157 | D165: 0 | Q165: =Раздел2!G165 -> 0 | R165: =Раздел2!C165 -> 0
B166: Роуп скиппинг (спортивная скакалка) | C166: 158 | D166: 0 | Q166: =Раздел2!G166 -> 0 | R166: =Раздел2!C166 -> 0
B167: Рукопашный бой | C167: 159 | D167: 0 | Q167: =Раздел2!G167 -> 0 | R167: =Раздел2!C167 -> 0
B168: Рыболовный спорт | C168: 160 | D168: 0 | Q168: =Раздел2!G168 -> 0 | R168: =Раздел2!C168 -> 0
B169: Сават | C169: 161 | D169: 0 | Q169: =Раздел2!G169 -> 0 | R169: =Раздел2!C169 -> 0
B170: Самбо | C170: 162 | D170: 0 | Q170: =Раздел2!G170 -> 0 | R170: =Раздел2!C170 -> 0
B171: Самолетный спорт | C171: 163 | D171: 0 | Q171: =Раздел2!G171 -> 0 | R171: =Раздел2!C171 -> 0
B172: Санный спорт | C172: 164 | D172: 0 | Q172: =Раздел2!G172 -> 0 | R172: =Раздел2!C172 -> 0
B173: Северное многоборье | C173: 165 | D173: 0 | Q173: =Раздел2!G173 -> 0 | R173: =Раздел2!C173 -> 0
B174: Серфинг | C174: 166 | D174: 0 | Q174: =Раздел2!G174 -> 0 | R174: =Раздел2!C174 -> 0
B175: Силовой экстрим | C175: 167 | D175: 0 | Q175: =Раздел2!G175 -> 0 | R175: =Раздел2!C175 -> 0
B176: Синхронное плавание | C176: 168 | D176: 0 | Q176: =Раздел2!G176 -> 0 | R176: =Раздел2!C176 -> 0
B177: Скалолазание | C177: 169 | D177: 0 | Q177: =Раздел2!G177 -> 0 | R177: =Раздел2!C177 -> 0
B178: Сквош | C178: 170 | D178: 0 | Q178: =Раздел2!G178 -> 0 | R178: =Раздел2!C178 -> 0
B179: Скейтбординг | C179: 171 | D179: 0 | Q179: =Раздел2!G179 -> 0 | R179: =Раздел2!C179 -> 0
B180: Служебно-боевая стрельба | C180: 172 | D180: 0 | Q180: =Раздел2!G180 -> 0 | R180: =Раздел2!C180 -> 0
B181: Служебно-прикладной спорт | C181: 173 | D181: 0 | Q181: =Раздел2!G181 -> 0 | R181: =Раздел2!C181 -> 0
B182: Служебно-прикладной спорт ФСО России | C182: 174 | D182: 0 | Q182: =Раздел2!G182 -> 0 | R182: =Раздел2!C182 -> 0
B183: Служебно-прикладной спорт ФТС России | C183: 175 | D183: 0 | Q183: =Раздел2!G183 -> 0 | R183: =Раздел2!C183 -> 0
B184: Служебное двоеборье | C184: 176 | D184: 0 | Q184: =Раздел2!G184 -> 0 | R184: =Раздел2!C184 -> 0
B185: Служебное единоборство | C185: 177 | D185: 0 | Q185: =Раздел2!G185 -> 0 | R185: =Раздел2!C185 -> 0
B186: Служебное многоборье | C186: 178 | D186: 0 | Q186: =Раздел2!G186 -> 0 | R186: =Раздел2!C186 -> 0
B187: Служебный биатлон | C187: 179 | D187: 0 | Q187: =Раздел2!G187 -> 0 | R187: =Раздел2!C187 -> 0
B188: Спасательный спорт | C188: 180 | D188: 0 | Q188: =Раздел2!G188 -> 0 | R188: =Раздел2!C188 -> 0
B189: Стрельба из боевого ручного стрелкового оружия | C189: 181 | D189: 0 | Q189: =Раздел2!G189 -> 0 | R189: =Раздел2!C189 -> 0
B190: Стрельба из штатного или табельного оружия | C190: 182 | D190: 0 | Q190: =Раздел2!G190 -> 0 | R190: =Раздел2!C190 -> 0
B191: Стрельба на дальние дистанции | C191: 183 | D191: 0 | Q191: =Раздел2!G191 -> 0 | R191: =Раздел2!C191 -> 0
B192: Смешанное боевое единоборство (ММА) | C192: 184 | D192: 0 | Q192: =Раздел2!G192 -> 0 | R192: =Раздел2!C192 -> 0
B193: Сноуборд | C193: 185 | D193: 0 | Q193: =Раздел2!G193 -> 0 | R193: =Раздел2!C193 -> 0
B194: Современное пятиборье | C194: 186 | D194: 0 | Q194: =Раздел2!G194 -> 0 | R194: =Раздел2!C194 -> 0
B195: Софтбол | C195: 187 | D195: 0 | Q195: =Раздел2!G195 -> 0 | R195: =Раздел2!C195 -> 0
B196: Спорт сверхлегкой авиации | C196: 188 | D196: 0 | Q196: =Раздел2!G196 -> 0 | R196: =Раздел2!C196 -> 0
B197: Спортивная акробатика | C197: 189 | D197: 0 | Q197: =Раздел2!G197 -> 0 | R197: =Раздел2!C197 -> 0
B198: Спортивная аэробика | C198: 190 | D198: 0 | Q198: =Раздел2!G198 -> 0 | R198: =Раздел2!C198 -> 0
B199: Спортивная борьба - всего | C199: 191 | D199: 0 | E199: =SUM(E200:E204) -> 0 | F199: =SUM(F200:F204) -> 0 | G199: 0 | H199: 0 | I199: 0 | J199: 0 | K199: 0 | L199: 0 | M199: 0 | N199: 0 | O199: 0 | P199: 0 | Q199: =Раздел2!G199 -> 70 | R199: =Раздел2!C199 -> 1
B200: в том числе: Вольная борьба | C200: 192 | D200: 0 | Q200: =Раздел2!G200 -> 0 | R200: =Раздел2!C200 -> 0
B201: Греко-римская борьба | C201: 193 | D201: 0 | Q201: =Раздел2!G201 -> 70 | R201: =Раздел2!C201 -> 1
B202: Грэпплинг | C202: 194 | D202: =SUM(E202:J202) -> 0 | Q202: =Раздел2!G202 -> 0 | R202: =Раздел2!C202 -> 0
... 80 more rows

Sheet Раздел7
B1: Раздел VII. Всероссийские спортивные соревнования
AC2: Коды по ОКЕИ: единица - 642
B3: Виды спорта | C3: № строки | D3: Результаты выступлений на соревнованиях
D4: Всего | J4: Чемпионат России | O4: Первенство России среди юниоров и юниорок | T4: Первенство России среди юношей и девушек | Y4: Кубок России | AD4: Прочие официальные всероссийские соревнования
D6: медали (1-3 место) | E6: 1 | F6: 2 | G6: 3 | H6: 4-6 | I6: учас-тие | J6: 1 | K6: 2 | L6: 3 | M6: 4-6 | N6: учас-тие | O6: 1 | P6: 2 | Q6: 3 | R6: 4-6 | S6: учас-тие | T6: 1 | U6: 2 | V6: 3 | W6: 4-6 | X6: учас-тие | Y6: 1 | Z6: 2 | AA6: 3 | AB6: 4-6 | AC6: учас-тие | AD6: 1 | AE6: 2 | AF6: 3 | AG6: 4-6 | AH6: учас-тие
B7: 1 | C7: 2 | D7: 3 | E7: 4 | F7: 5 | G7: 6 | H7: 7 | I7: 8 | J7: 9 | K7: 10 | L7: 11 | M7: 12 | N7: 13 | O7: 14 | P7: 15 | Q7: 16 | R7: 17 | S7: 18 | T7: 19 | U7: 20 | V7: 21 | W7: 22 | X7: 23 | Y7: 24 | Z7: 25 | AA7: 26 | AB7: 27 | AC7: 28 | AD7: 29 | AE7: 30 | AF7: 31 | AG7: 32 | AH7: 33 | AK7: 2 р | AL7: цсп?
B8: Авиамодельный спорт | C8: 01 | D8: =SUM(E8:G8) -> 0 | E8: =SUM(J8,O8,T8,Y8,AD8) -> 0 | F8: =SUM(K8,P8,U8,Z8,AE8) -> 0 | G8: =SUM(L8,Q8,V8,AA8,AF8) -> 0 | H8: =SUM(M8,R8,W8,AB8,AG8) -> 0 | I8: =SUM(N8,S8,X8,AC8,AH8) -> 0 | AK8: =Раздел2!C9 -> 0 | AL8: =Раздел1!I18 -> 0
B9: Авиационные гонки | C9: 02 | D9: =SUM(E9:G9) -> 0 | E9: =SUM(J9,O9,T9,Y9,AD9) -> 0 | F9: =SUM(K9,P9,U9,Z9,AE9) -> 0 | G9: =SUM(L9,Q9,V9,AA9,AF9) -> 0 | H9: =SUM(M9,R9,W9,AB9,AG9) -> 0 | I9: =SUM(N9,S9,X9,AC9,AH9) -> 0 | AK9: =Раздел2!C10 -> 0
B10: Автомобильный спорт | C10: 03 | D10: 0 | E10: 0 | F10: 0 | G10: 0 | H10: 0 | I10: 0 | AK10: =Раздел2!C11 -> 0
B11: Автомодельный спорт | C11: 04 | D11: 0 | E11: 0 | F11: 0 | G11: 0 | H11: 0 | I11: 0 | AK11: =Раздел2!C12 -> 0
B12: Айкидо | C12: 05 | D12: 0 | E12: 0 | F12: 0 | G12: 0 | H12: 0 | I12: 0 | AK12: =Раздел2!C13 -> 0
B13: Айсшток | C13: 06 | D13: 0 | E13: 0 | F13: 0 | G13: 0 | H13: 0 | I13: 0 | AK13: =Раздел2!C14 -> 0
B14: Акробатический рок-н-ролл | C14: 07 | D14: 0 | E14: 0 | F14: 0 | G14: 0 | H14: 0 | I14: 0 | AK14: =Раздел2!C15 -> 0
B15: Альпинизм | C15: 08 | D15: 0 | E15: 0 | F15: 0 | G15: 0 | H15: 0 | I15: 0 | AK15: =Раздел2!C16 -> 0
B16: Американский футбол | C16: 09 | D16: 0 | E16: 0 | F16: 0 | G16: 0 | H16: 0 | I16: 0 | AK16: =Раздел2!C17 -> 0
B17: Армейский рукопашный бой | C17: 10 | D17: 0 | E17: 0 | F17: 0 | G17: 0 | H17: 0 | I17: 0 | AK17: =Раздел2!C18 -> 0
B18: Армейское тактико-стрелковое многоборье | C18: 11 | D18: 0 | E18: 0 | F18: 0 | G18: 0 | H18: 0 | I18: 0 | AK18: =Раздел2!C19 -> 0
B19: Армрестлинг | C19: 12 | D19: 0 | E19: 0 | F19: 0 | G19: 0 | H19: 0 | I19: 0 | AK19: =Раздел2!C20 -> 0
B20: Бадминтон | C20: 13 | D20: 0 | E20: 0 | F20: 0 | G20: 0 | H20: 0 | I20: 0 | AK20: =Раздел2!C21 -> 0
B21: Баскетбол - всего | C21: 14 | D21: 0 | E21: 0 | F21: 0 | G21: 0 | H21: 0 | I21: 0 | J21: =SUM(J22:J24) -> 0 | K21: =SUM(K22:K24) -> 0 | L21: 0 | M21: 0 | N21: 0 | O21: 0 | P21: 0 | Q21: 0 | R21: 0 | S21: 0 | T21: 0 | U21: 0 | V21: 0 | W21: 0 | X21: 0 | Y21: 0 | Z21: 0 | AA21: 0 | AB21: 0 | AC21: 0 | AD21: 0 | AE21: 0 | AF21: 0 | AG21: 0 | AH21: 0 | AK21: =Раздел2!C22 -> 1
B22: в том числе: Баскетбол (муж.) | C22: 15 | D22: 0 | E22: 0 | F22: 0 | G22: 0 | H22: 0 | I22: 0 | AK22: =Раздел2!C23 -> 1
B23: Баскетбол (жен.) | C23: 16 | D23: 0 | E23: 0 | F23: 0 | G23: 0 | H23: 0 | I23: 0 | AK23: =Раздел2!C24 -> 0
B24: Баскетбол 3х3 | C24: 17 | D24: 0 | E24: 0 | F24: 0 | G24: 0 | H24: 0 | I24: 0 | AK24: =Раздел2!C25 -> 0
B25: Бейсбол | C25: 18 | D25: 0 | E25: 0 | F25: 0 | G25: 0 | H25: 0 | I25: 0 | AK25: =Раздел2!C26 -> 0
B26: Биатлон | C26: 19 | D26: 0 | E26: 0 | F26: 0 | G26: 0 | H26: 0 | I26: 0 | AK26: =Раздел2!C27 -> 0
B27: Бильярдный спорт | C27: 20 | D27: 0 | E27: 0 | F27: 0 | G27: 0 | H27: 0 | I27: 0 | AK27: =Раздел2!C28 -> 0
B28: Бобслей - всего | C28: 21 | D28: 0 | E28: 0 | F28: 0 | G28: 0 | H28: 0 | I28: 0 | J28: =SUM(J29:J30) -> 0 | K28: =SUM(K29:K30) -> 0 | L28: 0 | M28: 0 | N28: 0 | O28: 0 | P28: 0 | Q28: 0 | R28: 0 | S28: 0 | T28: 0 | U28: 0 | V28: 0 | W28: 0 | X28: 0 | Y28: 0 | Z28: 0 | AA28: 0 | AB28: 0 | AC28: 0 | AD28: 0 | AE28: 0 | AF28: 0 | AG28: 0 | AH28: 0 | AK28: =Раздел2!C29 -> 0
B29: в том числе: Бобслей | C29: 22 | D29: 0 | E29: 0 | F29: 0 | G29: 0 | H29: 0 | I29: 0 | AK29: =Раздел2!C30 -> 0
B30: Скелетон | C30: 23 | D30: 0 | E30: 0 | F30: 0 | G30: 0 | H30: 0 | I30: 0 | AK30: =Раздел2!C31 -> 0
B31: Бодибилдинг | C31: 24 | D31: 0 | E31: 0 | F31: 0 | G31: 0 | H31: 0 | I31: 0 | AK31: =Раздел2!C32 -> 0
B32: Бокс | C32: 25 | D32: 0 | E32: 0 | F32: 0 | G32: 0 | H32: 0 | I32: 0 | AK32: =Раздел2!C33 -> 1
B33: Борьба на поясах | C33: 26 | D33: 0 | E33: 0 | F33: 0 | G33: 0 | H33: 0 | I33: 0 | AK33: =Раздел2!C34 -> 0
B34: Боулинг | C34: 27 | D34: 0 | E34: 0 | F34: 0 | G34: 0 | H34: 0 | I34: 0 | AK34: =Раздел2!C35 -> 0
B35: Боулспорт | C35: 28 | D35: 0 | E35: 0 | F35: 0 | G35: 0 | H35: 0 | I35: 0 | AK35: =Раздел2!C36 -> 0
B36: Велосипедный спорт - всего | C36: 29 | D36: 0 | E36: 0 | F36: 0 | G36: 0 | H36: 0 | I36: 0 | J36: =SUM(J37:J40) -> 0 | K36: =SUM(K37:K40) -> 0 | L36: 0 | M36: 0 | N36: 0 | O36: 0 | P36: 0 | Q36: 0 | R36: 0 | S36: 0 | T36: 0 | U36: 0 | V36: 0 | W36: 0 | X36: 0 | Y36: 0 | Z36: 0 | AA36: 0 | AB36: 0 | AC36: 0 | AD36: 0 | AE36: 0 | AF36: 0 | AG36: 0 | AH36: 0 | AK36: =Раздел2!C37 -> 0
B37: в том числе: BMX | C37: 30 | D37: 0 | E37: 0 | F37: 0 | G37: 0 | H37: 0 | I37: 0 | AK37: =Раздел2!C38 -> 0
B38: Маунтинбайк | C38: 31 | D38: 0 | E38: 0 | F38: 0 | G38: 0 | H38: 0 | I38: 0 | AK38: =Раздел2!C39 -> 0
B39: Трек | C39: 32 | D39: 0 | E39: 0 | F39: 0 | G39: 0 | H39: 0 | I39: 0 | AK39: =Раздел2!C40 -> 0
B40: Шоссе | C40: 33 | D40: 0 | E40: 0 | F40: 0 | G40: 0 | H40: 0 | I40: 0 | AK40: =Раздел2!C41 -> 0
B41: Вертолетный спорт | C41: 34 | D41: 0 | E41: 0 | F41: 0 | G41: 0 | H41: 0 | I41: 0 | AK41: =Раздел2!C42 -> 0
B42: Водно-моторный спорт | C42: 35 | D42: 0 | E42: 0 | F42: 0 | G42: 0 | H42: 0 | I42: 0 | AK42: =Раздел2!C43 -> 0
B43: Водно-спасательное многоборье | C43: 36 | D43: 0 | E43: 0 | F43: 0 | G43: 0 | H43: 0 | I43: 0 | AK43: =Раздел2!C44 -> 0
B44: Водное поло - всего | C44: 37 | D44: 0 | E44: 0 | F44: 0 | G44: 0 | H44: 0 | I44: 0 | J44: =SUM(J45:J46) -> 0 | K44: =SUM(K45:K46) -> 0 | L44: 0 | M44: 0 | N44: 0 | O44: 0 | P44: 0 | Q44: 0 | R44: 0 | S44: 0 | T44: 0 | U44: 0 | V44: 0 | W44: 0 | X44: 0 | Y44: 0 | Z44: 0 | AA44: 0 | AB44: 0 | AC44: 0 | AD44: 0 | AE44: 0 | AF44: 0 | AG44: 0 | AH44: 0 | AK44: =Раздел2!C45 -> 0
B45: в том числе: Водное поло (муж.) | C45: 38 | D45: 0 | E45: 0 | F45: 0 | G45: 0 | H45: 0 | I45: 0 | AK45: =Раздел2!C46 -> 0
B46: Водное поло (жен.) | C46: 39 | D46: 0 | E46: 0 | F46: 0 | G46: 0 | H46: 0 | I46: 0 | AK46: =Раздел2!C47 -> 0
B47: Воднолыжный спорт | C47: 40 | D47: 0 | E47: 0 | F47: 0 | G47: 0 | H47: 0 | I47: 0 | AK47: =Раздел2!C48 -> 0
B48: Военно-прикладной спорт | C48: 41 | D48: 0 | E48: 0 | F48: 0 | G48: 0 | H48: 0 | I48: 0 | AK48: =Раздел2!C49 -> 0
B49: Военно-спортивное многоборье | C49: 42 | D49: 0 | E49: 0 | F49: 0 | G49: 0 | H49: 0 | I49: 0 | AK49: =Раздел2!C50 -> 0
B50: Воздухоплавательный спорт | C50: 43 | D50: 0 | E50: 0 | F50: 0 | G50: 0 | H50: 0 | I50: 0 | AK50: =Раздел2!C51 -> 0
B51: Воздушно-силовая атлетика | C51: 44 | D51: 0 | E51: 0 | F51: 0 | G51: 0 | H51: 0 | I51: 0 | AK51: =Раздел2!C52 -> 0
B52: Волейбол - всего | C52: 45 | D52: 0 | E52: 0 | F52: 0 | G52: 0 | H52: 0 | I52: 0 | J52: =SUM(J53:J56) -> 0 | K52: =SUM(K53:K56) -> 0 | L52: 0 | M52: 0 | N52: 0 | O52: 0 | P52: 0 | Q52: 0 | R52: 0 | S52: 0 | T52: 0 | U52: 0 | V52: 0 | W52: 0 | X52: 0 | Y52: 0 | Z52: 0 | AA52: 0 | AB52: 0 | AC52: 0 | AD52: 0 | AE52: 0 | AF52: 0 | AG52: 0 | AH52: 0 | AK52: =Раздел2!C53 -> 0
B53: в том числе: Волейбол (муж.) | C53: 46 | D53: 0 | E53: 0 | F53: 0 | G53: 0 | H53: 0 | I53: 0 | AK53: =Раздел2!C54 -> 0
B54: Волейбол (жен.) | C54: 47 | D54: 0 | E54: 0 | F54: 0 | G54: 0 | H54: 0 | I54: 0 | AK54: =Раздел2!C55 -> 0
B55: Пляжный волейбол (муж.) | C55: 48 | D55: 0 | E55: 0 | F55: 0 | G55: 0 | H55: 0 | I55: 0 | AK55: =Раздел2!C56 -> 0
B56: Пляжный волейбол (жен.) | C56: 49 | D56: 0 | E56: 0 | F56: 0 | G56: 0 | H56: 0 | I56: 0 | AK56: =Раздел2!C57 -> 0
B57: Восточное боевое единоборство | C57: 50 | D57: 0 | E57: 0 | F57: 0 | G57: 0 | H57: 0 | I57: 0 | AK57: =Раздел2!C58 -> 0
B58: Всестилевое каратэ | C58: 51 | D58: 0 | E58: 0 | F58: 0 | G58: 0 | H58: 0 | I58: 0 | AK58: =Раздел2!C59 -> 0
B59: Гандбол - всего | C59: 52 | D59: 0 | E59: 0 | F59: 0 | G59: 0 | H59: 0 | I59: 0 | J59: =SUM(J60:J62) -> 0 | K59: =SUM(K60:K62) -> 0 | L59: 0 | M59: 0 | N59: 0 | O59: 0 | P59: 0 | Q59: 0 | R59: 0 | S59: 0 | T59: 0 | U59: 0 | V59: 0 | W59: 0 | X59: 0 | Y59: 0 | Z59: 0 | AA59: 0 | AB59: 0 | AC59: 0 | AD59: 0 | AE59: 0 | AF59: 0 | AG59: 0 | AH59: 0 | AK59: =Раздел2!C60 -> 0
B60: в том числе: Гандбол (муж.) | C60: 53 | D60: 0 | E60: 0 | F60: 0 | G60: 0 | H60: 0 | I60: 0 | AK60: =Раздел2!C61 -> 0
B61: Гандбол (жен.) | C61: 54 | D61: 0 | E61: 0 | F61: 0 | G61: 0 | H61: 0 | I61: 0 | AK61: =Раздел2!C62 -> 0
B62: Пляжный гандбол | C62: 55 | D62: 0 | E62: 0 | F62: 0 | G62: 0 | H62: 0 | I62: 0 | AK62: =Раздел2!C63 -> 0
B63: Гиревой спорт | C63: 56 | D63: 0 | E63: 0 | F63: 0 | G63: 0 | H63: 0 | I63: 0 | AK63: =Раздел2!C64 -> 0
B64: Го | C64: 57 | D64: 0 | E64: 0 | F64: 0 | G64: 0 | H64: 0 | I64: 0 | AK64: =Раздел2!C65 -> 0
B65: Гольф | C65: 58 | D65: 0 | E65: 0 | F65: 0 | G65: 0 | H65: 0 | I65: 0 | AK65: =Раздел2!C66 -> 0
B66: Гонки на охотничьих лыжах | C66: 59 | D66: 0 | E66: 0 | F66: 0 | G66: 0 | H66: 0 | I66: 0 | AK66: =Раздел2!C67 -> 0
B67: Гонки с препятствиями | C67: 60 | D67: 0 | E67: 0 | F67: 0 | G67: 0 | H67: 0 | I67: 0 | AK67: =Раздел2!C68 -> 0
B68: Горнолыжный спорт | C68: 61 | D68: 0 | E68: 0 | F68: 0 | G68: 0 | H68: 0 | I68: 0 | AK68: =Раздел2!C69 -> 0
B69: Городошный спорт | C69: 62 | D69: 0 | E69: 0 | F69: 0 | G69: 0 | H69: 0 | I69: 0 | AK69: =Раздел2!C70 -> 0
B70: Гребля на байдарках и каноэ | C70: 63 | D70: 0 | E70: 0 | F70: 0 | G70: 0 | H70: 0 | I70: 0 | AK70: =Раздел2!C71 -> 0
B71: Гребля на шлюпках | C71: 64 | D71: 0 | E71: 0 | F71: 0 | G71: 0 | H71: 0 | I71: 0 | AK71: =Раздел2!C72 -> 0
B72: Гребной слалом | C72: 65 | D72: 0 | E72: 0 | F72: 0 | G72: 0 | H72: 0 | I72: 0 | AK72: =Раздел2!C73 -> 0
B73: Гребной спорт - всего | C73: 66 | D73: =SUM(E73:G73) -> 0 | E73: =SUM(J73,O73,T73,Y73,AD73) -> 0 | F73: =SUM(K73,P73,U73,Z73,AE73) -> 0 | G73: =SUM(L73,Q73,V73,AA73,AF73) -> 0 | H73: =SUM(M73,R73,W73,AB73,AG73) -> 0 | I73: =SUM(N73,S73,X73,AC73,AH73) -> 0 | J73: =SUM(J74:J77) -> 0 | K73: =SUM(K74:K77) -> 0 | L73: 0 | M73: 0 | N73: 0 | O73: 0 | P73: 0 | Q73: 0 | R73: 0 | S73: 0 | T73: 0 | U73: 0 | V73: 0 | W73: 0 | X73: 0 | Y73: 0 | Z73: 0 | AA73: 0 | AB73: 0 | AC73: 0 | AD73: 0 | AE73: 0 | AF73: 0 | AG73: 0 | AH73: 0 | AK73: =Раздел2!C74 -> 0
B74: в том числе: Академическая гребля | C74: 67 | D74: 0 | E74: 0 | F74: 0 | G74: 0 | H74: 0 | I74: 0 | AK74: =Раздел2!C75 -> 0
B75: Гребля-индор | C75: 68 | D75: 0 | E75: 0 | F75: 0 | G75: 0 | H75: 0 | I75: 0 | AK75: =Раздел2!C76 -> 0
B76: Народная гребля | C76: 69 | D76: 0 | E76: 0 | F76: 0 | G76: 0 | H76: 0 | I76: 0 | AK76: =Раздел2!C77 -> 0
B77: Прибрежная гребля | C77: 70 | D77: 0 | E77: 0 | F77: 0 | G77: 0 | H77: 0 | I77: 0 | AK77: =Раздел2!C78 -> 0
B78: Гребно-парусное двоеборье | C78: 71 | D78: 0 | E78: 0 | F78: 0 | G78: 0 | H78: 0 | I78: 0 | AK78: =Раздел2!C79 -> 0
B79: Дартс | C79: 72 | D79: 0 | E79: 0 | F79: 0 | G79: 0 | H79: 0 | I79: 0 | AK79: =Раздел2!C80 -> 0
B80: Джиу-джитсу | C80: 73 | D80: 0 | E80: 0 | F80: 0 | G80: 0 | H80: 0 | I80: 0 | AK80: =Раздел2!C81 -> 0
B81: Дзюдо | C81: 74 | D81: 0 | E81: 0 | F81: 0 | G81: 0 | H81: 0 | I81: 0 | AK81: =Раздел2!C82 -> 0
B82: Ездовой спорт | C82: 75 | D82: 0 | E82: 0 | F82: 0 | G82: 0 | H82: 0 | I82: 0 | AK82: =Раздел2!C83 -> 0
B83: Зимнее плавание | C83: 76 | D83: 0 | E83: 0 | F83: 0 | G83: 0 | H83: 0 | I83: 0 | AK83: =Раздел2!C84 -> 0
B84: Капоэйра | C84: 77 | D84: 0 | E84: 0 | F84: 0 | G84: 0 | H84: 0 | I84: 0 | AK84: =Раздел2!C85 -> 0
B85: Каратэ | C85: 78 | D85: 0 | E85: 0 | F85: 0 | G85: 0 | H85: 0 | I85: 0 | AK85: =Раздел2!C86 -> 0
B86: Кендо | C86: 79 | D86: 0 | E86: 0 | F86: 0 | G86: 0 | H86: 0 | I86: 0 | AK86: =Раздел2!C87 -> 0
B87: Керешу | C87: 80 | D87: 0 | E87: 0 | F87: 0 | G87: 0 | H87: 0 | I87: 0 | AK87: =Раздел2!C88 -> 0
B88: Кёрлинг - всего | C88: 81 | D88: 0 | E88: 0 | F88: 0 | G88: 0 | H88: 0 | I88: 0 | J88: =SUM(J89:J91) -> 0 | K88: =SUM(K89:K91) -> 0 | L88: 0 | M88: 0 | N88: 0 | O88: 0 | P88: 0 | Q88: 0 | R88: 0 | S88: 0 | T88: 0 | U88: 0 | V88: 0 | W88: 0 | X88: 0 | Y88: 0 | Z88: 0 | AA88: 0 | AB88: 0 | AC88: 0 | AD88: 0 | AE88: 0 | AF88: 0 | AG88: 0 | AH88: 0 | AK88: =Раздел2!C89 -> 0
B89: в том числе: Керлинг (муж.) | C89: 82 | D89: 0 | E89: 0 | F89: 0 | G89: 0 | H89: 0 | I89: 0 | AK89: =Раздел2!C90 -> 0
B90: Керлинг (жен.) | C90: 83 | D90: 0 | E90: 0 | F90: 0 | G90: 0 | H90: 0 | I90: 0 | AK90: =Раздел2!C91 -> 0
B91: Кёрлинг – смешанные пары | C91: 84 | D91: 0 | E91: 0 | F91: 0 | G91: 0 | H91: 0 | I91: 0 | AK91: =Раздел2!C92 -> 0
B92: Кикбоксинг | C92: 85 | D92: 0 | E92: 0 | F92: 0 | G92: 0 | H92: 0 | I92: 0 | AK92: =Раздел2!C93 -> 0
B93: Кинологический спорт | C93: 86 | D93: 0 | E93: 0 | F93: 0 | G93: 0 | H93: 0 | I93: 0 | AK93: =Раздел2!C94 -> 0
B94: Киокусинкай | C94: 87 | D94: 0 | E94: 0 | F94: 0 | G94: 0 | H94: 0 | I94: 0 | AK94: =Раздел2!C95 -> 0
B95: Киокушин | C95: 88 | D95: 0 | E95: 0 | F95: 0 | G95: 0 | H95: 0 | I95: 0 | AK95: =Раздел2!C96 -> 0
B96: Комплексное единоборство | C96: 89 | D96: 0 | E96: 0 | F96: 0 | G96: 0 | H96: 0 | I96: 0 | AK96: =Раздел2!C97 -> 0
B97: Компьютерный спорт | C97: 90 | D97: 0 | E97: 0 | F97: 0 | G97: 0 | H97: 0 | I97: 0 | AK97: =Раздел2!C98 -> 0
B98: Конный спорт | C98: 91 | D98: 0 | E98: 0 | F98: 0 | G98: 0 | H98: 0 | I98: 0 | AK98: =Раздел2!C99 -> 0
B99: Конькобежный спорт - всего | C99: 92 | D99: 0 | E99: 0 | F99: 0 | G99: 0 | H99: 0 | I99: 0 | J99: =SUM(J100:J101) -> 0 | K99: =SUM(K100:K101) -> 0 | L99: 0 | M99: 0 | N99: 0 | O99: 0 | P99: 0 | Q99: 0 | R99: 0 | S99: 0 | T99: 0 | U99: 0 | V99: 0 | W99: 0 | X99: 0 | Y99: 0 | Z99: 0 | AA99: 0 | AB99: 0 | AC99: 0 | AD99: 0 | AE99: 0 | AF99: 0 | AG99: 0 | AH99: 0 | AK99: =Раздел2!C100 -> 0
B100: в том числе: Конькобежный спорт | C100: 93 | D100: 0 | E100: 0 | F100: 0 | G100: 0 | H100: 0 | I100: 0 | AK100: =Раздел2!C101 -> 0
B101: Шорт-трек | C101: 94 | D101: 0 | E101: 0 | F101: 0 | G101: 0 | H101: 0 | I101: 0 | AK101: =Раздел2!C102 -> 0
B102: Корэш | C102: 95 | D102: 0 | E102: 0 | F102: 0 | G102: 0 | H102: 0 | I102: 0 | AK102: =Раздел2!C103 -> 0
B103: Крикет | C103: 96 | D103: 0 | E103: 0 | F103: 0 | G103: 0 | H103: 0 | I103: 0 | AK103: =Раздел2!C104 -> 0
B104: Кудо | C104: 97 | D104: 0 | E104: 0 | F104: 0 | G104: 0 | H104: 0 | I104: 0 | AK104: =Раздел2!C105 -> 0
B105: Лапта | C105: 98 | D105: 0 | E105: 0 | F105: 0 | G105: 0 | H105: 0 | I105: 0 | AK105: =Раздел2!C106 -> 0
B106: Легкая атлетика - всего | C106: 99 | D106: 1 | E106: 1 | F106: 0 | G106: 0 | H106: 0 | I106: 0 | J106: =SUM(J107:J113) -> 0 | K106: =SUM(K107:K113) -> 0 | L106: 0 | M106: 0 | N106: 0 | O106: 0 | P106: 0 | Q106: 0 | R106: 0 | S106: 0 | T106: 1 | U106: 0 | V106: 0 | W106: 0 | X106: 0 | Y106: 0 | Z106: 0 | AA106: 0 | AB106: 0 | AC106: 0 | AD106: 0 | AE106: 0 | AF106: 0 | AG106: 0 | AH106: 0 | AK106: =Раздел2!C107 -> 1
B107: в том числе: Спринтерский и барьерный бег | C107: 100 | D107: 0 | E107: 0 | F107: 0 | G107: 0 | H107: 0 | I107: 0 | AK107: =Раздел2!C108 -> 0
B108: Бег на средние дистанции и бег с препятствиями | C108: 101 | D108: 0 | E108: 0 | F108: 0 | G108: 0 | H108: 0 | I108: 0 | AK108: =Раздел2!C109 -> 0
B109: Бег на длинные и сверхдлинные дистанции | C109: 102 | D109: 0 | E109: 0 | F109: 0 | G109: 0 | H109: 0 | I109: 0 | AK109: =Раздел2!C110 -> 0
B110: Многоборья | C110: 103 | D110: 1 | E110: 1 | F110: 0 | G110: 0 | H110: 0 | I110: 0 | T110: 1 | AK110: =Раздел2!C111 -> 1
B111: Прыжки | C111: 104 | D111: 0 | E111: 0 | F111: 0 | G111: 0 | H111: 0 | I111: 0 | AK111: =Раздел2!C112 -> 0
B112: Метания | C112: 105 | D112: 0 | E112: 0 | F112: 0 | G112: 0 | H112: 0 | I112: 0 | AK112: =Раздел2!C113 -> 0
B113: Спортивная ходьба | C113: 106 | D113: 0 | E113: 0 | F113: 0 | G113: 0 | H113: 0 | I113: 0 | AK113: =Раздел2!C114 -> 0
B114: Лыжное двоеборье | C114: 107 | D114: 0 | E114: 0 | F114: 0 | G114: 0 | H114: 0 | I114: 0 | AK114: =Раздел2!C115 -> 0
B115: Лыжные гонки | C115: 108 | D115: 0 | E115: 0 | F115: 0 | G115: 0 | H115: 0 | I115: 0 | AK115: =Раздел2!C116 -> 0
B116: Мас-рестлинг | C116: 109 | D116: 0 | E116: 0 | F116: 0 | G116: 0 | H116: 0 | I116: 0 | AK116: =Раздел2!C117 -> 0
B117: Международное военно-спортивное многоборье | C117: 110 | D117: 0 | E117: 0 | F117: 0 | G117: 0 | H117: 0 | I117: 0 | AK117: =Раздел2!C118 -> 0
B118: Микрофутзал | C118: 111 | D118: 0 | E118: 0 | F118: 0 | G118: 0 | H118: 0 | I118: 0 | AK118: =Раздел2!C119 -> 0
B119: Многоборье кинологов | C119: 112 | D119: 0 | E119: 0 | F119: 0 | G119: 0 | H119: 0 | I119: 0 | AK119: =Раздел2!C120 -> 0
B120: Многоборье спасателей МЧС России | C120: 113 | D120: 0 | E120: 0 | F120: 0 | G120: 0 | H120: 0 | I120: 0 | AK120: =Раздел2!C121 -> 0
B121: Морское многоборье | C121: 114 | D121: 0 | E121: 0 | F121: 0 | G121: 0 | H121: 0 | I121: 0 | AK121: =Раздел2!C122 -> 0
B122: Мотоциклетный спорт | C122: 115 | D122: 0 | E122: 0 | F122: 0 | G122: 0 | H122: 0 | I122: 0 | AK122: =Раздел2!C123 -> 0
B123: Нарды | C123: 116 | D123: 0 | E123: 0 | F123: 0 | G123: 0 | H123: 0 | I123: 0 | AK123: =Раздел2!C124 -> 0
B124: Настольный теннис | C124: 117 | D124: 0 | E124: 0 | F124: 0 | G124: 0 | H124: 0 | I124: 0 | AK124: =Раздел2!C125 -> 0
B125: Падел | C125: 118 | D125: 0 | E125: 0 | F125: 0 | G125: 0 | H125: 0 | I125: 0 | AK125: =Раздел2!C126 -> 0
B126: Парашютный спорт | C126: 119 | D126: 0 | E126: 0 | F126: 0 | G126: 0 | H126: 0 | I126: 0 | AK126: =Раздел2!C127 -> 0
B127: Парусный спорт | C127: 120 | D127: 0 | E127: 0 | F127: 0 | G127: 0 | H127: 0 | I127: 0 | AK127: =Раздел2!C128 -> 0
B128: Пауэрлифтинг | C128: 121 | D128: 0 | E128: 0 | F128: 0 | G128: 0 | H128: 0 | I128: 0 | AK128: =Раздел2!C129 -> 0
B129: Перетягивание каната | C129: 122 | D129: 0 | E129: 0 | F129: 0 | G129: 0 | H129: 0 | I129: 0 | AK129: =Раздел2!C130 -> 0
B130: Пилонный спорт | C130: 123 | D130: 0 | E130: 0 | F130: 0 | G130: 0 | H130: 0 | I130: 0 | AK130: =Раздел2!C131 -> 0
B131: Плавание - всего | C131: 124 | D131: 0 | E131: 0 | F131: 0 | G131: 0 | H131: 0 | I131: 0 | J131: =SUM(J132:J133) -> 0 | K131: =SUM(K132:K133) -> 0 | L131: 0 | M131: 0 | N131: 0 | O131: 0 | P131: 0 | Q131: 0 | R131: 0 | S131: 0 | T131: 0 | U131: 0 | V131: 0 | W131: 0 | X131: 0 | Y131: 0 | Z131: 0 | AA131: 0 | AB131: 0 | AC131: 0 | AD131: 0 | AE131: 0 | AF131: 0 | AG131: 0 | AH131: 0 | AK131: =Раздел2!C132 -> 1
B132: в том числе: Плавание | C132: 125 | D132: 0 | E132: 0 | F132: 0 | G132: 0 | H132: 0 | I132: 0 | AK132: =Раздел2!C133 -> 1
B133: Открытая вода | C133: 126 | D133: 0 | E133: 0 | F133: 0 | G133: 0 | H133: 0 | I133: 0 | AK133: =Раздел2!C134 -> 0
B134: Планерный спорт | C134: 127 | D134: 0 | E134: 0 | F134: 0 | G134: 0 | H134: 0 | I134: 0 | AK134: =Раздел2!C135 -> 0
B135: Подводный спорт | C135: 128 | D135: 0 | E135: 0 | F135: 0 | G135: 0 | H135: 0 | I135: 0 | AK135: =Раздел2!C136 -> 0
B136: Пожарно-спасательный спорт | C136: 129 | D136: 0 | E136: 0 | F136: 0 | G136: 0 | H136: 0 | I136: 0 | AK136: =Раздел2!C137 -> 0
B137: Полиатлон | C137: 130 | D137: =SUM(E137:G137) -> 0 | E137: =SUM(J137,O137,T137,Y137,AD137) -> 0 | F137: =SUM(K137,P137,U137,Z137,AE137) -> 0 | G137: =SUM(L137,Q137,V137,AA137,AF137) -> 0 | H137: =SUM(M137,R137,W137,AB137,AG137) -> 0 | I137: =SUM(N137,S137,X137,AC137,AH137) -> 0 | AK137: =Раздел2!C138 -> 0
B138: Практическая стрельба | C138: 131 | D138: 0 | E138: 0 | F138: 0 | G138: 0 | H138: 0 | I138: 0 | AK138: =Раздел2!C139 -> 0
B139: Прыжки в воду - всего | C139: 132 | D139: 0 | E139: 0 | F139: 0 | G139: 0 | H139: 0 | I139: 0 | J139: =SUM(J140:J141) -> 0 | K139: =SUM(K140:K141) -> 0 | L139: 0 | M139: 0 | N139: 0 | O139: 0 | P139: 0 | Q139: 0 | R139: 0 | S139: 0 | T139: 0 | U139: 0 | V139: 0 | W139: 0 | X139: 0 | Y139: 0 | Z139: 0 | AA139: 0 | AB139: 0 | AC139: 0 | AD139: 0 | AE139: 0 | AF139: 0 | AG139: 0 | AH139: 0 | AK139: =Раздел2!C140 -> 0
B140: в том числе: Прыжки в воду | C140: 133 | D140: 0 | E140: 0 | F140: 0 | G140: 0 | H140: 0 | I140: 0 | AK140: =Раздел2!C141 -> 0
B141: Прыжки в открытый водоем | C141: 134 | D141: 0 | E141: 0 | F141: 0 | G141: 0 | H141: 0 | I141: 0 | AK141: =Раздел2!C142 -> 0
B142: Прыжки на батуте - всего | C142: 135 | D142: 0 | E142: 0 | F142: 0 | G142: 0 | H142: 0 | I142: 0 | J142: =SUM(J143:J146) -> 0 | K142: =SUM(K143:K146) -> 0 | L142: 0 | M142: 0 | N142: 0 | O142: 0 | P142: 0 | Q142: 0 | R142: 0 | S142: 0 | T142: 0 | U142: 0 | V142: 0 | W142: 0 | X142: 0 | Y142: 0 | Z142: 0 | AA142: 0 | AB142: 0 | AC142: 0 | AD142: 0 | AE142: 0 | AF142: 0 | AG142: 0 | AH142: 0 | AK142: =Раздел2!C143 -> 0
B143: в том числе: Акробатическая дорожка | C143: 136 | D143: 0 | E143: 0 | F143: 0 | G143: 0 | H143: 0 | I143: 0 | AK143: =Раздел2!C144 -> 0
B144: Двойной минитрамп | C144: 137 | D144: 0 | E144: 0 | F144: 0 | G144: 0 | H144: 0 | I144: 0 | AK144: =Раздел2!C145 -> 0
B145: Индивидуальные прыжки | C145: 138 | D145: 0 | E145: 0 | F145: 0 | G145: 0 | H145: 0 | I145: 0 | AK145: =Раздел2!C146 -> 0
B146: Синхронные прыжки | C146: 139 | D146: 0 | E146: 0 | F146: 0 | G146: 0 | H146: 0 | I146: 0 | AK146: =Раздел2!C147 -> 0
B147: Прыжки на лыжах с трамплина | C147: 140 | D147: 0 | E147: 0 | F147: 0 | G147: 0 | H147: 0 | I147: 0 | AK147: =Раздел2!C148 -> 0
B148: Пулевая стрельба - всего | C148: 141 | D148: 0 | E148: 0 | F148: 0 | G148: 0 | H148: 0 | I148: 0 | J148: =SUM(J149:J153) -> 0 | K148: =SUM(K149:K153) -> 0 | L148: 0 | M148: 0 | N148: 0 | O148: 0 | P148: 0 | Q148: 0 | R148: 0 | S148: 0 | T148: 0 | U148: 0 | V148: 0 | W148: 0 | X148: 0 | Y148: 0 | Z148: 0 | AA148: 0 | AB148: 0 | AC148: 0 | AD148: 0 | AE148: 0 | AF148: 0 | AG148: 0 | AH148: 0 | AK148: =Раздел2!C149 -> 0
B149: в том числе: Пневматическая винтовка | C149: 142 | D149: 0 | E149: 0 | F149: 0 | G149: 0 | H149: 0 | I149: 0 | AK149: =Раздел2!C150 -> 0
B150: Пневматический пистолет | C150: 143 | D150: 0 | E150: 0 | F150: 0 | G150: 0 | H150: 0 | I150: 0 | AK150: =Раздел2!C151 -> 0
B151: Малокалиберная винтовка | C151: 144 | D151: 0 | E151: 0 | F151: 0 | G151: 0 | H151: 0 | I151: 0 | AK151: =Раздел2!C152 -> 0
B152: Малокалиберный пистолет | C152: 145 | D152: 0 | E152: 0 | F152: 0 | G152: 0 | H152: 0 | I152: 0 | AK152: =Раздел2!C153 -> 0
B153: Движущаяся мишень | C153: 146 | D153: 0 | E153: 0 | F153: 0 | G153: 0 | H153: 0 | I153: 0 | AK153: =Раздел2!C154 -> 0
B154: Пэйнтбол | C154: 147 | D154: 0 | E154: 0 | F154: 0 | G154: 0 | H154: 0 | I154: 0 | AK154: =Раздел2!C155 -> 0
B155: Радиоспорт | C155: 148 | D155: 0 | E155: 0 | F155: 0 | G155: 0 | H155: 0 | I155: 0 | AK155: =Раздел2!C156 -> 0
B156: Рафтинг | C156: 149 | D156: 0 | E156: 0 | F156: 0 | G156: 0 | H156: 0 | I156: 0 | AK156: =Раздел2!C157 -> 0
B157: Регби - всего | C157: 150 | D157: 0 | E157: 0 | F157: 0 | G157: 0 | H157: 0 | I157: 0 | J157: =SUM(J158:J162) -> 0 | K157: =SUM(K158:K162) -> 0 | L157: 0 | M157: 0 | N157: 0 | O157: 0 | P157: 0 | Q157: 0 | R157: 0 | S157: 0 | T157: 0 | U157: 0 | V157: 0 | W157: 0 | X157: 0 | Y157: 0 | Z157: 0 | AA157: 0 | AB157: 0 | AC157: 0 | AD157: 0 | AE157: 0 | AF157: 0 | AG157: 0 | AH157: 0 | AK157: =Раздел2!C158 -> 0
B158: в том числе: Регби | C158: 151 | D158: 0 | E158: 0 | F158: 0 | G158: 0 | H158: 0 | I158: 0 | AK158: =Раздел2!C159 -> 0
B159: Регби 7 (муж.) | C159: 152 | D159: 0 | E159: 0 | F159: 0 | G159: 0 | H159: 0 | I159: 0 | AK159: =Раздел2!C160 -> 0
B160: Регби 7 (жен.) | C160: 153 | D160: 0 | E160: 0 | F160: 0 | G160: 0 | H160: 0 | I160: 0 | AK160: =Раздел2!C161 -> 0
B161: Регби - пляжное | C161: 154 | D161: 0 | E161: 0 | F161: 0 | G161: 0 | H161: 0 | I161: 0 | AK161: =Раздел2!C162 -> 0
B162: Регби на снегу | C162: 155 | D162: 0 | E162: 0 | F162: 0 | G162: 0 | H162: 0 | I162: 0 | AK162: =Раздел2!C163 -> 0
B163: Регбол | C163: 156 | D163: 0 | E163: 0 | F163: 0 | G163: 0 | H163: 0 | I163: 0 | AK163: =Раздел2!C164 -> 0
B164: Роллер спорт | C164: 157 | D164: 0 | E164: 0 | F164: 0 | G164: 0 | H164: 0 | I164: 0 | AK164: =Раздел2!C165 -> 0
B165: Роуп скиппинг (спортивная скакалка) | C165: 158 | D165: 0 | E165: 0 | F165: 0 | G165: 0 | H165: 0 | I165: 0 | AK165: =Раздел2!C166 -> 0
B166: Рукопашный бой | C166: 159 | D166: 0 | E166: 0 | F166: 0 | G166: 0 | H166: 0 | I166: 0 | AK166: =Раздел2!C167 -> 0
B167: Рыболовный спорт | C167: 160 | D167: 0 | E167: 0 | F167: 0 | G167: 0 | H167: 0 | I167: 0 | AK167: =Раздел2!C168 -> 0
B168: Сават | C168: 161 | D168: 0 | E168: 0 | F168: 0 | G168: 0 | H168: 0 | I168: 0 | AK168: =Раздел2!C169 -> 0
B169: Самбо | C169: 162 | D169: 0 | E169: 0 | F169: 0 | G169: 0 | H169: 0 | I169: 0 | AK169: =Раздел2!C170 -> 0
B170: Самолетный спорт | C170: 163 | D170: 0 | E170: 0 | F170: 0 | G170: 0 | H170: 0 | I170: 0 | AK170: =Раздел2!C171 -> 0
B171: Санный спорт | C171: 164 | D171: 0 | E171: 0 | F171: 0 | G171: 0 | H171: 0 | I171: 0 | AK171: =Раздел2!C172 -> 0
B172: Северное многоборье | C172: 165 | D172: 0 | E172: 0 | F172: 0 | G172: 0 | H172: 0 | I172: 0 | AK172: =Раздел2!C173 -> 0
B173: Серфинг | C173: 166 | D173: 0 | E173: 0 | F173: 0 | G173: 0 | H173: 0 | I173: 0 | AK173: =Раздел2!C174 -> 0
B174: Силовой экстрим | C174: 167 | D174: 0 | E174: 0 | F174: 0 | G174: 0 | H174: 0 | I174: 0 | AK174: =Раздел2!C175 -> 0
B175: Синхронное плавание | C175: 168 | D175: 0 | E175: 0 | F175: 0 | G175: 0 | H175: 0 | I175: 0 | AK175: =Раздел2!C176 -> 0
B176: Скалолазание | C176: 169 | D176: 0 | E176: 0 | F176: 0 | G176: 0 | H176: 0 | I176: 0 | AK176: =Раздел2!C177 -> 0
B177: Сквош | C177: 170 | D177: 0 | E177: 0 | F177: 0 | G177: 0 | H177: 0 | I177: 0 | AK177: =Раздел2!C178 -> 0
B178: Скейтбординг | C178: 171 | D178: 0 | E178: 0 | F178: 0 | G178: 0 | H178: 0 | I178: 0 | AK178: =Раздел2!C179 -> 0
B179: Служебно-боевая стрельба | C179: 172 | D179: 0 | E179: 0 | F179: 0 | G179: 0 | H179: 0 | I179: 0 | AK179: =Раздел2!C180 -> 0
B180: Служебно-прикладной спорт | C180: 173 | D180: 0 | E180: 0 | F180: 0 | G180: 0 | H180: 0 | I180: 0 | AK180: =Раздел2!C181 -> 0
B181: Служебно-прикладной спорт ФСО России | C181: 174 | D181: 0 | E181: 0 | F181: 0 | G181: 0 | H181: 0 | I181: 0 | AK181: =Раздел2!C182 -> 0
B182: Служебно-прикладной спорт ФТС России | C182: 175 | D182: 0 | E182: 0 | F182: 0 | G182: 0 | H182: 0 | I182: 0 | AK182: =Раздел2!C183 -> 0
B183: Служебное двоеборье | C183: 176 | D183: 0 | E183: 0 | F183: 0 | G183: 0 | H183: 0 | I183: 0 | AK183: =Раздел2!C184 -> 0
B184: Служебное единоборство | C184: 177 | D184: 0 | E184: 0 | F184: 0 | G184: 0 | H184: 0 | I184: 0 | AK184: =Раздел2!C185 -> 0
B185: Служебное многоборье | C185: 178 | D185: 0 | E185: 0 | F185: 0 | G185: 0 | H185: 0 | I185: 0 | AK185: =Раздел2!C186 -> 0
B186: Служебный биатлон | C186: 179 | D186: 0 | E186: 0 | F186: 0 | G186: 0 | H186: 0 | I186: 0 | AK186: =Раздел2!C187 -> 0
B187: Спасательный спорт | C187: 180 | D187: 0 | E187: 0 | F187: 0 | G187: 0 | H187: 0 | I187: 0 | AK187: =Раздел2!C188 -> 0
B188: Стрельба из боевого ручного стрелкового оружия | C188: 181 | D188: 0 | E188: 0 | F188: 0 | G188: 0 | H188: 0 | I188: 0 | AK188: =Раздел2!C189 -> 0
B189: Стрельба из штатного или табельного оружия | C189: 182 | D189: 0 | E189: 0 | F189: 0 | G189: 0 | H189: 0 | I189: 0 | AK189: =Раздел2!C190 -> 0
B190: Стрельба на дальние дистанции | C190: 183 | D190: 0 | E190: 0 | F190: 0 | G190: 0 | H190: 0 | I190: 0 | AK190: =Раздел2!C191 -> 0
B191: Смешанное боевое единоборство (ММА) | C191: 184 | D191: 0 | E191: 0 | F191: 0 | G191: 0 | H191: 0 | I191: 0 | AK191: =Раздел2!C192 -> 0
B192: Сноуборд | C192: 185 | D192: 0 | E192: 0 | F192: 0 | G192: 0 | H192: 0 | I192: 0 | AK192: =Раздел2!C193 -> 0
B193: Современное пятиборье | C193: 186 | D193: 0 | E193: 0 | F193: 0 | G193: 0 | H193: 0 | I193: 0 | AK193: =Раздел2!C194 -> 0
B194: Софтбол | C194: 187 | D194: 0 | E194: 0 | F194: 0 | G194: 0 | H194: 0 | I194: 0 | AK194: =Раздел2!C195 -> 0
B195: Спорт сверхлегкой авиации | C195: 188 | D195: 0 | E195: 0 | F195: 0 | G195: 0 | H195: 0 | I195: 0 | AK195: =Раздел2!C196 -> 0
B196: Спортивная акробатика | C196: 189 | D196: 0 | E196: 0 | F196: 0 | G196: 0 | H196: 0 | I196: 0 | AK196: =Раздел2!C197 -> 0
B197: Спортивная аэробика | C197: 190 | D197: 0 | E197: 0 | F197: 0 | G197: 0 | H197: 0 | I197: 0 | AK197: =Раздел2!C198 -> 0
B198: Спортивная борьба - всего | C198: 191 | D198: 0 | E198: 0 | F198: 0 | G198: 0 | H198: 0 | I198: 0 | J198: =SUM(J199:J203) -> 0 | K198: =SUM(K199:K203) -> 0 | L198: 0 | M198: 0 | N198: 0 | O198: 0 | P198: 0 | Q198: 0 | R198: 0 | S198: 0 | T198: 0 | U198: 0 | V198: 0 | W198: 0 | X198: 0 | Y198: 0 | Z198: 0 | AA198: 0 | AB198: 0 | AC198: 0 | AD198: 0 | AE198: 0 | AF198: 0 | AG198: 0 | AH198: 0 | AK198: =Раздел2!C199 -> 1
B199: в том числе: Вольная борьба | C199: 192 | D199: 0 | E199: 0 | F199: 0 | G199: 0 | H199: 0 | I199: 0 | AK199: =Раздел2!C200 -> 0
B200: Греко-римская борьба | C200: 193 | D200: 0 | E200: 0 | F200: 0 | G200: 0 | H200: 0 | I200: 0 | AK200: =Раздел2!C201 -> 1
B201: Грэпплинг | C201: 194 | D201: =SUM(E201:G201) -> 0 | E201: =SUM(J201,O201,T201,Y201,AD201) -> 0 | F201: =SUM(K201,P201,U201,Z201,AE201) -> 0 | G201: =SUM(L201,Q201,V201,AA201,AF201) -> 0 | H201: =SUM(M201,R201,W201,AB201,AG201) -> 0 | I201: =SUM(N201,S201,X201,AC201,AH201) -> 0 | AK201: =Раздел2!C202 -> 0
... 80 more rows

Sheet Раздел8
A1: Раздел VIII. Международные спортивные соревнования
AY2: Коды по ОКЕИ: единица - 642
A3: Виды спорта | B3: № строки | C3: Результаты выступлений на соревнованиях | AH3: Результаты выступлений на соревнованиях
C4: Всего | I4: Олимпийские игры | N4: Чемпионат мира | S4: Юношеские Олимпийские игры | X4: Первенство мира | AC4: Кубок мира | AH4: Этапы Кубка мира | AM4: Чемпионат Европы | AR4: Первенство Европы | AW4: Кубок Европы | BB4: Прочие официальные между-народные соревнования
C6: медали (1-3 место) | D6: 1 | E6: 2 | F6: 3 | G6: 4-6 | H6: учас-тие | I6: 1 | J6: 2 | K6: 3 | L6: 4-6 | M6: учас-тие | N6: 1 | O6: 2 | P6: 3 | Q6: 4-6 | R6: учас-тие | S6: 1 | T6: 2 | U6: 3 | V6: 4-6 | W6: учас-тие | X6: 1 | Y6: 2 | Z6: 3 | AA6: 4-6 | AB6: учас-тие | AC6: 1 | AD6: 2 | AE6: 3 | AF6: 4-6 | AG6: учас-тие | AH6: 1 | AI6: 2 | AJ6: 3 | AK6: 4-6 | AL6: учас-тие | AM6: 1 | AN6: 2 | AO6: 3 | AP6: 4-6 | AQ6: учас-тие | AR6: 1 | AS6: 2 | AT6: 3 | AU6: 4-6 | AV6: учас-тие | AW6: 1 | AX6: 2 | AY6: 3 | AZ6: 4-6 | BA6: учас-тие | BB6: 1 | BC6: 2 | BD6: 3 | BE6: 4-6 | BF6: учас-тие
A7: 1 | B7: 2 | C7: 3 | D7: 4 | E7: 5 | F7: 6 | G7: 7 | H7: 8 | I7: 9 | J7: 10 | K7: 11 | L7: 12 | M7: 13 | N7: 14 | O7: 15 | P7: 16 | Q7: 17 | R7: 18 | S7: 19 | T7: 20 | U7: 21 | V7: 22 | W7: 23 | X7: 24 | Y7: 25 | Z7: 26 | AA7: 27 | AB7: 28 | AC7: 29 | AD7: 30 | AE7: 31 | AF7: 32 | AG7: 33 | AH7: 34 | AI7: 35 | AJ7: 36 | AK7: 37 | AL7: 38 | AM7: 39 | AN7: 40 | AO7: 41 | AP7: 42 | AQ7: 43 | AR7: 44 | AS7: 45 | AT7: 46 | AU7: 47 | AV7: 48 | AW7: 49 | AX7: 50 | AY7: 51 | AZ7: 52 | BA7: 53 | BB7: 54 | BC7: 55 | BD7: 56 | BE7: 57 | BF7: 58 | BI7: 2р-3 | BJ7: цсп?
A8: Авиамодельный спорт | B8: 01 | C8: =SUM(D8:F8) -> 0 | D8: =SUM(I8,N8,S8,X8,AC8,AH8,AM8,AR8,AW8,BB8) -> 0 | E8: =SUM(J8,O8,T8,Y8,AD8,AI8,AN8,AS8,AX8,BC8) -> 0 | F8: 0 | G8: 0 | H8: =SUM(M8,R8,W8,AB8,AG8,AL8,AQ8,AV8,BA8,BF8) -> 0 | BI8: =Раздел2!C9 -> 0 | BJ8: =Раздел1!I18 -> 0
A9: Авиационные гонки | B9: 02 | C9: =SUM(D9:F9) -> 0 | D9: =SUM(I9,N9,S9,X9,AC9,AH9,AM9,AR9,AW9,BB9) -> 0 | E9: =SUM(J9,O9,T9,Y9,AD9,AI9,AN9,AS9,AX9,BC9) -> 0 | F9: =SUM(K9,P9,U9,Z9,AE9,AJ9,AO9,AT9,AY9,BD9) -> 0 | G9: =SUM(L9,Q9,V9,AA9,AF9,AK9,AP9,AU9,AZ9,BE9) -> 0 | H9: =SUM(M9,R9,W9,AB9,AG9,AL9,AQ9,AV9,BA9,BF9) -> 0 | BI9: =Раздел2!C10 -> 0
A10: Автомобильный спорт | B10: 03 | C10: 0 | D10: 0 | E10: 0 | F10: 0 | G10: 0 | H10: 0 | BI10: =Раздел2!C11 -> 0
A11: Автомодельный спорт | B11: 04 | C11: 0 | D11: 0 | E11: 0 | F11: 0 | G11: 0 | H11: 0 | BI11: =Раздел2!C12 -> 0
A12: Айкидо | B12: 05 | C12: 0 | D12: 0 | E12: 0 | F12: 0 | G12: 0 | H12: 0 | BI12: =Раздел2!C13 -> 0
A13: Айсшток | B13: 06 | C13: 0 | D13: 0 | E13: 0 | F13: 0 | G13: 0 | H13: 0 | BI13: =Раздел2!C14 -> 0
A14: Акробатический рок-н-ролл | B14: 07 | C14: 0 | D14: 0 | E14: 0 | F14: 0 | G14: 0 | H14: 0 | BI14: =Раздел2!C15 -> 0
A15: Альпинизм | B15: 08 | C15: 0 | D15: 0 | E15: 0 | F15: 0 | G15: 0 | H15: 0 | BI15: =Раздел2!C16 -> 0
A16: Американский футбол | B16: 09 | C16: 0 | D16: 0 | E16: 0 | F16: 0 | G16: 0 | H16: 0 | BI16: =Раздел2!C17 -> 0
A17: Армейский рукопашный бой | B17: 10 | C17: 0 | D17: 0 | E17: 0 | F17: 0 | G17: 0 | H17: 0 | BI17: =Раздел2!C18 -> 0
A18: Армейское тактико-стрелковое многоборье | B18: 11 | C18: 0 | D18: 0 | E18: 0 | F18: 0 | G18: 0 | H18: 0 | BI18: =Раздел2!C19 -> 0
A19: Армрестлинг | B19: 12 | C19: 0 | D19: 0 | E19: 0 | F19: 0 | G19: 0 | H19: 0 | BI19: =Раздел2!C20 -> 0
A20: Бадминтон | B20: 13 | C20: 0 | D20: 0 | E20: 0 | F20: 0 | G20: 0 | H20: 0 | BI20: =Раздел2!C21 -> 0
A21: Баскетбол - всего | B21: 14 | C21: 0 | D21: 0 | E21: 0 | F21: 0 | G21: 0 | H21: 0 | I21: =SUM(I22:I24) -> 0 | J21: =SUM(J22:J24) -> 0 | K21: 0 | L21: 0 | M21: 0 | N21: 0 | O21: 0 | P21: 0 | Q21: 0 | R21: 0 | S21: 0 | T21: 0 | U21: 0 | V21: 0 | W21: 0 | X21: 0 | Y21: 0 | Z21: 0 | AA21: 0 | AB21: 0 | AC21: 0 | AD21: 0 | AE21: 0 | AF21: 0 | AG21: 0 | AH21: 0 | AI21: 0 | AJ21: 0 | AK21: 0 | AL21: 0 | AM21: 0 | AN21: 0 | AO21: 0 | AP21: 0 | AQ21: 0 | AR21: 0 | AS21: 0 | AT21: 0 | AU21: 0 | AV21: 0 | AW21: 0 | AX21: 0 | AY21: 0 | AZ21: 0 | BA21: 0 | BB21: 0 | BC21: 0 | BD21: 0 | BE21: 0 | BF21: 0 | BI21: =Раздел2!C22 -> 1
A22: в том числе: Баскетбол (муж.) | B22: 15 | C22: 0 | D22: 0 | E22: 0 | F22: 0 | G22: 0 | H22: 0 | BI22: =Раздел2!C23 -> 1
A23: Баскетбол (жен.) | B23: 16 | C23: 0 | D23: 0 | E23: 0 | F23: 0 | G23: 0 | H23: 0 | BI23: =Раздел2!C24 -> 0
A24: Баскетбол 3х3 | B24: 17 | C24: 0 | D24: 0 | E24: 0 | F24: 0 | G24: 0 | H24: 0 | BI24: =Раздел2!C25 -> 0
A25: Бейсбол | B25: 18 | C25: 0 | D25: 0 | E25: 0 | F25: 0 | G25: 0 | H25: 0 | BI25: =Раздел2!C26 -> 0
A26: Биатлон | B26: 19 | C26: 0 | D26: 0 | E26: 0 | F26: 0 | G26: 0 | H26: 0 | BI26: =Раздел2!C27 -> 0
A27: Бильярдный спорт | B27: 20 | C27: 0 | D27: 0 | E27: 0 | F27: 0 | G27: 0 | H27: 0 | BI27: =Раздел2!C28 -> 0
A28: Бобслей - всего | B28: 21 | C28: 0 | D28: 0 | E28: 0 | F28: 0 | G28: 0 | H28: 0 | I28: =SUM(I29:I30) -> 0 | J28: =SUM(J29:J30) -> 0 | K28: 0 | L28: 0 | M28: 0 | N28: 0 | O28: 0 | P28: 0 | Q28: 0 | R28: 0 | S28: 0 | T28: 0 | U28: 0 | V28: 0 | W28: 0 | X28: 0 | Y28: 0 | Z28: 0 | AA28: 0 | AB28: 0 | AC28: 0 | AD28: 0 | AE28: 0 | AF28: 0 | AG28: 0 | AH28: 0 | AI28: 0 | AJ28: 0 | AK28: 0 | AL28: 0 | AM28: 0 | AN28: 0 | AO28: 0 | AP28: 0 | AQ28: 0 | AR28: 0 | AS28: 0 | AT28: 0 | AU28: 0 | AV28: 0 | AW28: 0 | AX28: 0 | AY28: 0 | AZ28: 0 | BA28: 0 | BB28: 0 | BC28: 0 | BD28: 0 | BE28: 0 | BF28: 0 | BI28: =Раздел2!C29 -> 0
A29: в том числе: Бобслей | B29: 22 | C29: 0 | D29: 0 | E29: 0 | F29: 0 | G29: 0 | H29: 0 | BI29: =Раздел2!C30 -> 0
A30: Скелетон | B30: 23 | C30: 0 | D30: 0 | E30: 0 | F30: 0 | G30: 0 | H30: 0 | BI30: =Раздел2!C31 -> 0
A31: Бодибилдинг | B31: 24 | C31: 0 | D31: 0 | E31: 0 | F31: 0 | G31: 0 | H31: 0 | BI31: =Раздел2!C32 -> 0
A32: Бокс | B32: 25 | C32: 0 | D32: 0 | E32: 0 | F32: 0 | G32: 0 | H32: 0 | BI32: =Раздел2!C33 -> 1
A33: Борьба на поясах | B33: 26 | C33: 0 | D33: 0 | E33: 0 | F33: 0 | G33: 0 | H33: 0 | BI33: =Раздел2!C34 -> 0
A34: Боулинг | B34: 27 | C34: 0 | D34: 0 | E34: 0 | F34: 0 | G34: 0 | H34: 0 | BI34: =Раздел2!C35 -> 0
A35: Боулспорт | B35: 28 | C35: 0 | D35: 0 | E35: 0 | F35: 0 | G35: 0 | H35: 0 | BI35: =Раздел2!C36 -> 0
A36: Велосипедный спорт - всего | B36: 29 | C36: 0 | D36: 0 | E36: 0 | F36: 0 | G36: 0 | H36: 0 | I36: =SUM(I37:I40) -> 0 | J36: =SUM(J37:J40) -> 0 | K36: 0 | L36: 0 | M36: 0 | N36: 0 | O36: 0 | P36: 0 | Q36: 0 | R36: 0 | S36: 0 | T36: 0 | U36: 0 | V36: 0 | W36: 0 | X36: 0 | Y36: 0 | Z36: 0 | AA36: 0 | AB36: 0 | AC36: 0 | AD36: 0 | AE36: 0 | AF36: 0 | AG36: 0 | AH36: 0 | AI36: 0 | AJ36: 0 | AK36: 0 | AL36: 0 | AM36: 0 | AN36: 0 | AO36: 0 | AP36: 0 | AQ36: 0 | AR36: 0 | AS36: 0 | AT36: 0 | AU36: 0 | AV36: 0 | AW36: 0 | AX36: 0 | AY36: 0 | AZ36: 0 | BA36: 0 | BB36: 0 | BC36: 0 | BD36: 0 | BE36: 0 | BF36: 0 | BI36: =Раздел2!C37 -> 0
A37: в том числе: BMX | B37: 30 | C37: 0 | D37: 0 | E37: 0 | F37: 0 | G37: 0 | H37: 0 | BI37: =Раздел2!C38 -> 0
A38: Маунтинбайк | B38: 31 | C38: 0 | D38: 0 | E38: 0 | F38: 0 | G38: 0 | H38: 0 | BI38: =Раздел2!C39 -> 0
A39: Трек | B39: 32 | C39: 0 | D39: 0 | E39: 0 | F39: 0 | G39: 0 | H39: 0 | BI39: =Раздел2!C40 -> 0
A40: Шоссе | B40: 33 | C40: 0 | D40: 0 | E40: 0 | F40: 0 | G40: 0 | H40: 0 | BI40: =Раздел2!C41 -> 0
A41: Вертолетный спорт | B41: 34 | C41: 0 | D41: 0 | E41: 0 | F41: 0 | G41: 0 | H41: 0 | BI41: =Раздел2!C42 -> 0
A42: Водно-моторный спорт | B42: 35 | C42: 0 | D42: 0 | E42: 0 | F42: 0 | G42: 0 | H42: 0 | BI42: =Раздел2!C43 -> 0
A43: Водно-спасательное многоборье | B43: 36 | C43: 0 | D43: 0 | E43: 0 | F43: 0 | G43: 0 | H43: 0 | BI43: =Раздел2!C44 -> 0
A44: Водное поло - всего | B44: 37 | C44: 0 | D44: 0 | E44: 0 | F44: 0 | G44: 0 | H44: 0 | I44: =SUM(I45:I46) -> 0 | J44: =SUM(J45:J46) -> 0 | K44: 0 | L44: 0 | M44: 0 | N44: 0 | O44: 0 | P44: 0 | Q44: 0 | R44: 0 | S44: 0 | T44: 0 | U44: 0 | V44: 0 | W44: 0 | X44: 0 | Y44: 0 | Z44: 0 | AA44: =SUM(AA45:AA46) -> 0 | AB44: 0 | AC44: 0 | AD44: 0 | AE44: 0 | AF44: 0 | AG44: 0 | AH44: 0 | AI44: 0 | AJ44: 0 | AK44: 0 | AL44: 0 | AM44: 0 | AN44: 0 | AO44: 0 | AP44: 0 | AQ44: 0 | AR44: 0 | AS44: 0 | AT44: 0 | AU44: 0 | AV44: 0 | AW44: 0 | AX44: 0 | AY44: 0 | AZ44: 0 | BA44: 0 | BB44: 0 | BC44: 0 | BD44: 0 | BE44: 0 | BF44: 0 | BI44: =Раздел2!C45 -> 0
A45: в том числе: Водное поло (муж.) | B45: 38 | C45: 0 | D45: 0 | E45: 0 | F45: 0 | G45: 0 | H45: 0 | BI45: =Раздел2!C46 -> 0
A46: Водное поло (жен.) | B46: 39 | C46: 0 | D46: 0 | E46: 0 | F46: 0 | G46: 0 | H46: 0 | BI46: =Раздел2!C47 -> 0
A47: Воднолыжный спорт | B47: 40 | C47: 0 | D47: 0 | E47: 0 | F47: 0 | G47: 0 | H47: 0 | BI47: =Раздел2!C48 -> 0
A48: Военно-прикладной спорт | B48: 41 | C48: 0 | D48: 0 | E48: 0 | F48: 0 | G48: 0 | H48: 0 | BI48: =Раздел2!C49 -> 0
A49: Военно-спортивное многоборье | B49: 42 | C49: 0 | D49: 0 | E49: 0 | F49: 0 | G49: 0 | H49: 0 | BI49: =Раздел2!C50 -> 0
A50: Воздухоплавательный спорт | B50: 43 | C50: 0 | D50: 0 | E50: 0 | F50: 0 | G50: 0 | H50: 0 | BI50: =Раздел2!C51 -> 0
A51: Воздушно-силовая атлетика | B51: 44 | C51: 0 | D51: 0 | E51: 0 | F51: 0 | G51: 0 | H51: 0 | BI51: =Раздел2!C52 -> 0
A52: Волейбол - всего | B52: 45 | C52: 0 | D52: 0 | E52: 0 | F52: 0 | G52: 0 | H52: 0 | I52: =SUM(I53:I56) -> 0 | J52: =SUM(J53:J56) -> 0 | K52: 0 | L52: 0 | M52: 0 | N52: 0 | O52: 0 | P52: 0 | Q52: 0 | R52: 0 | S52: 0 | T52: 0 | U52: 0 | V52: 0 | W52: 0 | X52: 0 | Y52: 0 | Z52: 0 | AA52: 0 | AB52: 0 | AC52: 0 | AD52: 0 | AE52: 0 | AF52: 0 | AG52: 0 | AH52: 0 | AI52: 0 | AJ52: 0 | AK52: 0 | AL52: 0 | AM52: 0 | AN52: 0 | AO52: 0 | AP52: 0 | AQ52: 0 | AR52: 0 | AS52: 0 | AT52: 0 | AU52: 0 | AV52: 0 | AW52: 0 | AX52: 0 | AY52: 0 | AZ52: 0 | BA52: 0 | BB52: 0 | BC52: 0 | BD52: 0 | BE52: 0 | BF52: 0 | BI52: =Раздел2!C53 -> 0
A53: в том числе: Волейбол (муж.) | B53: 46 | C53: 0 | D53: 0 | E53: 0 | F53: 0 | G53: 0 | H53: 0 | BI53: =Раздел2!C54 -> 0
A54: Волейбол (жен.) | B54: 47 | C54: 0 | D54: 0 | E54: 0 | F54: 0 | G54: 0 | H54: 0 | BI54: =Раздел2!C55 -> 0
A55: Пляжный волейбол (муж.) | B55: 48 | C55: 0 | D55: 0 | E55: 0 | F55: 0 | G55: 0 | H55: 0 | BI55: =Раздел2!C56 -> 0
A56: Пляжный волейбол (жен.) | B56: 49 | C56: 0 | D56: 0 | E56: 0 | F56: 0 | G56: 0 | H56: 0 | BI56: =Раздел2!C57 -> 0
A57: Восточное боевое единоборство | B57: 50 | C57: 0 | D57: 0 | E57: 0 | F57: 0 | G57: 0 | H57: 0 | BI57: =Раздел2!C58 -> 0
A58: Всестилевое каратэ | B58: 51 | C58: 0 | D58: 0 | E58: 0 | F58: 0 | G58: 0 | H58: 0 | BI58: =Раздел2!C59 -> 0
A59: Гандбол - всего | B59: 52 | C59: 0 | D59: 0 | E59: 0 | F59: 0 | G59: 0 | H59: 0 | I59: =SUM(I60:I62) -> 0 | J59: =SUM(J60:J62) -> 0 | K59: 0 | L59: 0 | M59: 0 | N59: 0 | O59: 0 | P59: 0 | Q59: 0 | R59: 0 | S59: 0 | T59: 0 | U59: 0 | V59: 0 | W59: 0 | X59: 0 | Y59: 0 | Z59: 0 | AA59: 0 | AB59: 0 | AC59: 0 | AD59: 0 | AE59: 0 | AF59: 0 | AG59: 0 | AH59: 0 | AI59: 0 | AJ59: 0 | AK59: 0 | AL59: 0 | AM59: 0 | AN59: 0 | AO59: 0 | AP59: 0 | AQ59: 0 | AR59: 0 | AS59: 0 | AT59: 0 | AU59: 0 | AV59: 0 | AW59: 0 | AX59: 0 | AY59: 0 | AZ59: 0 | BA59: 0 | BB59: 0 | BC59: 0 | BD59: 0 | BE59: 0 | BF59: 0 | BI59: =Раздел2!C60 -> 0
A60: в том числе: Гандбол (муж.) | B60: 53 | C60: 0 | D60: 0 | E60: 0 | F60: 0 | G60: 0 | H60: 0 | BI60: =Раздел2!C61 -> 0
A61: Гандбол (жен.) | B61: 54 | C61: 0 | D61: 0 | E61: 0 | F61: 0 | G61: 0 | H61: 0 | BI61: =Раздел2!C62 -> 0
A62: Пляжный гандбол | B62: 55 | C62: 0 | D62: 0 | E62: 0 | F62: 0 | G62: 0 | H62: 0 | BI62: =Раздел2!C63 -> 0
A63: Гиревой спорт | B63: 56 | C63: 0 | D63: 0 | E63: 0 | F63: 0 | G63: 0 | H63: 0 | BI63: =Раздел2!C64 -> 0
A64: Го | B64: 57 | C64: 0 | D64: 0 | E64: 0 | F64: 0 | G64: 0 | H64: 0 | BI64: =Раздел2!C65 -> 0
A65: Гольф | B65: 58 | C65: 0 | D65: 0 | E65: 0 | F65: 0 | G65: 0 | H65: 0 | BI65: =Раздел2!C66 -> 0
A66: Гонки на охотничьих лыжах | B66: 59 | C66: 0 | D66: 0 | E66: 0 | F66: 0 | G66: 0 | H66: 0 | BI66: =Раздел2!C67 -> 0
A67: Гонки с препятствиями | B67: 60 | C67: 0 | D67: 0 | E67: 0 | F67: 0 | G67: 0 | H67: 0 | BI67: =Раздел2!C68 -> 0
A68: Горнолыжный спорт | B68: 61 | C68: 0 | D68: 0 | E68: 0 | F68: 0 | G68: 0 | H68: 0 | BI68: =Раздел2!C69 -> 0
A69: Городошный спорт | B69: 62 | C69: 0 | D69: 0 | E69: 0 | F69: 0 | G69: 0 | H69: 0 | BI69: =Раздел2!C70 -> 0
A70: Гребля на байдарках и каноэ | B70: 63 | C70: 0 | D70: 0 | E70: 0 | F70: 0 | G70: 0 | H70: 0 | BI70: =Раздел2!C71 -> 0
A71: Гребля на шлюпках | B71: 64 | C71: 0 | D71: 0 | E71: 0 | F71: 0 | G71: 0 | H71: 0 | BI71: =Раздел2!C72 -> 0
A72: Гребной слалом | B72: 65 | C72: 0 | D72: 0 | E72: 0 | F72: 0 | G72: 0 | H72: 0 | BI72: =Раздел2!C73 -> 0
A73: Гребной спорт - всего | B73: 66 | C73: =SUM(D73:F73) -> 0 | D73: =SUM(I73,N73,S73,X73,AC73,AH73,AM73,AR73,AW73,BB73) -> 0 | E73: =SUM(J73,O73,T73,Y73,AD73,AI73,AN73,AS73,AX73,BC73) -> 0 | F73: =SUM(K73,P73,U73,Z73,AE73,AJ73,AO73,AT73,AY73,BD73) -> 0 | G73: =SUM(L73,Q73,V73,AA73,AF73,AK73,AP73,AU73,AZ73,BE73) -> 0 | H73: =SUM(M73,R73,W73,AB73,AG73,AL73,AQ73,AV73,BA73,BF73) -> 0 | I73: =SUM(I74:I77) -> 0 | J73: =SUM(J74:J77) -> 0 | K73: 0 | L73: 0 | M73: 0 | N73: 0 | O73: 0 | P73: 0 | Q73: 0 | R73: 0 | S73: 0 | T73: 0 | U73: 0 | V73: 0 | W73: 0 | X73: 0 | Y73: 0 | Z73: 0 | AA73: 0 | AB73: 0 | AC73: 0 | AD73: 0 | AE73: 0 | AF73: 0 | AG73: 0 | AH73: 0 | AI73: 0 | AJ73: 0 | AK73: 0 | AL73: 0 | AM73: 0 | AN73: 0 | AO73: 0 | AP73: 0 | AQ73: 0 | AR73: 0 | AS73: 0 | AT73: 0 | AU73: 0 | AV73: 0 | AW73: 0 | AX73: 0 | AY73: 0 | AZ73: 0 | BA73: 0 | BB73: 0 | BC73: 0 | BD73: 0 | BE73: 0 | BF73: 0 | BI73: =Раздел2!C74 -> 0
A74: в том числе: Академическая гребля | B74: 67 | C74: 0 | D74: 0 | E74: 0 | F74: 0 | G74: 0 | H74: 0 | BI74: =Раздел2!C75 -> 0
A75: Гребля-индор | B75: 68 | C75: 0 | D75: 0 | E75: 0 | F75: 0 | G75: 0 | H75: 0 | BI75: =Раздел2!C76 -> 0
A76: Народная гребля | B76: 69 | C76: 0 | D76: 0 | E76: 0 | F76: 0 | G76: 0 | H76: 0 | BI76: =Раздел2!C77 -> 0
A77: Прибрежная гребля | B77: 70 | C77: 0 | D77: 0 | E77: 0 | F77: 0 | G77: 0 | H77: 0 | BI77: =Раздел2!C78 -> 0
A78: Гребно-парусное двоеборье | B78: 71 | C78: 0 | D78: 0 | E78: 0 | F78: 0 | G78: 0 | H78: 0 | BI78: =Раздел2!C79 -> 0
A79: Дартс | B79: 72 | C79: 0 | D79: 0 | E79: 0 | F79: 0 | G79: 0 | H79: 0 | BI79: =Раздел2!C80 -> 0
A80: Джиу-джитсу | B80: 73 | C80: 0 | D80: 0 | E80: 0 | F80: 0 | G80: 0 | H80: 0 | BI80: =Раздел2!C81 -> 0
A81: Дзюдо | B81: 74 | C81: 0 | D81: 0 | E81: 0 | F81: 0 | G81: 0 | H81: 0 | BI81: =Раздел2!C82 -> 0
A82: Ездовой спорт | B82: 75 | C82: 0 | D82: 0 | E82: 0 | F82: 0 | G82: 0 | H82: 0 | BI82: =Раздел2!C83 -> 0
A83: Зимнее плавание | B83: 76 | C83: 0 | D83: 0 | E83: 0 | F83: 0 | G83: 0 | H83: 0 | BI83: =Раздел2!C84 -> 0
A84: Капоэйра | B84: 77 | C84: 0 | D84: 0 | E84: 0 | F84: 0 | G84: 0 | H84: 0 | BI84: =Раздел2!C85 -> 0
A85: Каратэ | B85: 78 | C85: 0 | D85: 0 | E85: 0 | F85: 0 | G85: 0 | H85: 0 | BI85: =Раздел2!C86 -> 0
A86: Кендо | B86: 79 | C86: 0 | D86: 0 | E86: 0 | F86: 0 | G86: 0 | H86: 0 | BI86: =Раздел2!C87 -> 0
A87: Керешу | B87: 80 | C87: 0 | D87: 0 | E87: 0 | F87: 0 | G87: 0 | H87: 0 | BI87: =Раздел2!C88 -> 0
A88: Кёрлинг - всего | B88: 81 | C88: 0 | D88: 0 | E88: 0 | F88: 0 | G88: 0 | H88: 0 | I88: =SUM(I89:I91) -> 0 | J88: =SUM(J89:J91) -> 0 | K88: 0 | L88: 0 | M88: 0 | N88: 0 | O88: 0 | P88: 0 | Q88: 0 | R88: 0 | S88: 0 | T88: 0 | U88: 0 | V88: 0 | W88: 0 | X88: 0 | Y88: 0 | Z88: 0 | AA88: 0 | AB88: 0 | AC88: 0 | AD88: 0 | AE88: 0 | AF88: 0 | AG88: 0 | AH88: 0 | AI88: 0 | AJ88: 0 | AK88: 0 | AL88: 0 | AM88: 0 | AN88: 0 | AO88: 0 | AP88: 0 | AQ88: 0 | AR88: 0 | AS88: 0 | AT88: 0 | AU88: 0 | AV88: 0 | AW88: 0 | AX88: 0 | AY88: 0 | AZ88: 0 | BA88: 0 | BB88: 0 | BC88: 0 | BD88: 0 | BE88: 0 | BF88: 0 | BI88: =Раздел2!C89 -> 0
A89: в том числе: Керлинг (муж.) | B89: 82 | C89: 0 | D89: 0 | E89: 0 | F89: 0 | G89: 0 | H89: 0 | BI89: =Раздел2!C90 -> 0
A90: Керлинг (жен.) | B90: 83 | C90: 0 | D90: 0 | E90: 0 | F90: 0 | G90: 0 | H90: 0 | BI90: =Раздел2!C91 -> 0
A91: Кёрлинг – смешанные пары | B91: 84 | C91: 0 | D91: 0 | E91: 0 | F91: 0 | G91: 0 | H91: 0 | BI91: =Раздел2!C92 -> 0
A92: Кикбоксинг | B92: 85 | C92: 0 | D92: 0 | E92: 0 | F92: 0 | G92: 0 | H92: 0 | BI92: =Раздел2!C93 -> 0
A93: Кинологический спорт | B93: 86 | C93: 0 | D93: 0 | E93: 0 | F93: 0 | G93: 0 | H93: 0 | BI93: =Раздел2!C94 -> 0
A94: Киокусинкай | B94: 87 | C94: 0 | D94: 0 | E94: 0 | F94: 0 | G94: 0 | H94: 0 | BI94: =Раздел2!C95 -> 0
A95: Киокушин | B95: 88 | C95: 0 | D95: 0 | E95: 0 | F95: 0 | G95: 0 | H95: 0 | BI95: =Раздел2!C96 -> 0
A96: Комплексное единоборство | B96: 89 | C96: 0 | D96: 0 | E96: 0 | F96: 0 | G96: 0 | H96: 0 | BI96: =Раздел2!C97 -> 0
A97: Компьютерный спорт | B97: 90 | C97: 0 | D97: 0 | E97: 0 | F97: 0 | G97: 0 | H97: 0 | BI97: =Раздел2!C98 -> 0
A98: Конный спорт | B98: 91 | C98: 0 | D98: 0 | E98: 0 | F98: 0 | G98: 0 | H98: 0 | BI98: =Раздел2!C99 -> 0
A99: Конькобежный спорт - всего | B99: 92 | C99: 0 | D99: 0 | E99: 0 | F99: 0 | G99: 0 | H99: 0 | I99: =SUM(I100:I101) -> 0 | J99: =SUM(J100:J101) -> 0 | K99: 0 | L99: 0 | M99: 0 | N99: 0 | O99: 0 | P99: 0 | Q99: 0 | R99: 0 | S99: 0 | T99: 0 | U99: 0 | V99: 0 | W99: 0 | X99: 0 | Y99: 0 | Z99: 0 | AA99: 0 | AB99: 0 | AC99: 0 | AD99: 0 | AE99: 0 | AF99: 0 | AG99: 0 | AH99: 0 | AI99: 0 | AJ99: 0 | AK99: 0 | AL99: 0 | AM99: 0 | AN99: 0 | AO99: 0 | AP99: 0 | AQ99: 0 | AR99: 0 | AS99: 0 | AT99: 0 | AU99: 0 | AV99: 0 | AW99: 0 | AX99: 0 | AY99: 0 | AZ99: 0 | BA99: 0 | BB99: 0 | BC99: 0 | BD99: 0 | BE99: 0 | BF99: 0 | BI99: =Раздел2!C100 -> 0
A100: в том числе: Конькобежный спорт | B100: 93 | C100: 0 | D100: 0 | E100: 0 | F100: 0 | G100: 0 | H100: 0 | BI100: =Раздел2!C101 -> 0
A101: Шорт-трек | B101: 94 | C101: 0 | D101: 0 | E101: 0 | F101: 0 | G101: 0 | H101: 0 | BI101: =Раздел2!C102 -> 0
A102: Корэш | B102: 95 | C102: 0 | D102: 0 | E102: 0 | F102: 0 | G102: 0 | H102: 0 | BI102: =Раздел2!C103 -> 0
A103: Крикет | B103: 96 | C103: 0 | D103: 0 | E103: 0 | F103: 0 | G103: 0 | H103: 0 | BI103: =Раздел2!C104 -> 0
A104: Кудо | B104: 97 | C104: 0 | D104: 0 | E104: 0 | F104: 0 | G104: 0 | H104: 0 | BI104: =Раздел2!C105 -> 0
A105: Лапта | B105: 98 | C105: 0 | D105: 0 | E105: 0 | F105: 0 | G105: 0 | H105: 0 | BI105: =Раздел2!C106 -> 0
A106: Легкая атлетика - всего | B106: 99 | C106: 0 | D106: 0 | E106: 0 | F106: 0 | G106: 0 | H106: 0 | I106: =SUM(I107:I113) -> 0 | J106: =SUM(J107:J113) -> 0 | K106: 0 | L106: 0 | M106: 0 | N106: 0 | O106: 0 | P106: 0 | Q106: 0 | R106: 0 | S106: 0 | T106: 0 | U106: 0 | V106: 0 | W106: 0 | X106: 0 | Y106: 0 | Z106: 0 | AA106: 0 | AB106: 0 | AC106: 0 | AD106: 0 | AE106: 0 | AF106: 0 | AG106: 0 | AH106: 0 | AI106: 0 | AJ106: 0 | AK106: 0 | AL106: 0 | AM106: 0 | AN106: 0 | AO106: 0 | AP106: 0 | AQ106: 0 | AR106: 0 | AS106: 0 | AT106: 0 | AU106: 0 | AV106: 0 | AW106: 0 | AX106: 0 | AY106: 0 | AZ106: 0 | BA106: 0 | BB106: 0 | BC106: 0 | BD106: 0 | BE106: 0 | BF106: 0 | BI106: =Раздел2!C107 -> 1
A107: в том числе: Спринтерский и барьерный бег | B107: 100 | C107: 0 | D107: 0 | E107: 0 | F107: 0 | G107: 0 | H107: 0 | BI107: =Раздел2!C108 -> 0
A108: Бег на средние дистанции и бег с препятствиями | B108: 101 | C108: 0 | D108: 0 | E108: 0 | F108: 0 | G108: 0 | H108: 0 | BI108: =Раздел2!C109 -> 0
A109: Бег на длинные и сверхдлинные дистанции | B109: 102 | C109: 0 | D109: 0 | E109: 0 | F109: 0 | G109: 0 | H109: 0 | BI109: =Раздел2!C110 -> 0
A110: Многоборья | B110: 103 | C110: 0 | D110: 0 | E110: 0 | F110: 0 | G110: 0 | H110: 0 | BI110: =Раздел2!C111 -> 1
A111: Прыжки | B111: 104 | C111: 0 | D111: 0 | E111: 0 | F111: 0 | G111: 0 | H111: 0 | BI111: =Раздел2!C112 -> 0
A112: Метания | B112: 105 | C112: 0 | D112: 0 | E112: 0 | F112: 0 | G112: 0 | H112: 0 | BI112: =Раздел2!C113 -> 0
A113: Спортивная ходьба | B113: 106 | C113: 0 | D113: 0 | E113: 0 | F113: 0 | G113: 0 | H113: 0 | BI113: =Раздел2!C114 -> 0
A114: Лыжное двоеборье | B114: 107 | C114: 0 | D114: 0 | E114: 0 | F114: 0 | G114: 0 | H114: 0 | BI114: =Раздел2!C115 -> 0
A115: Лыжные гонки | B115: 108 | C115: 0 | D115: 0 | E115: 0 | F115: 0 | G115: 0 | H115: 0 | BI115: =Раздел2!C116 -> 0
A116: Мас-рестлинг | B116: 109 | C116: 0 | D116: 0 | E116: 0 | F116: 0 | G116: 0 | H116: 0 | BI116: =Раздел2!C117 -> 0
A117: Международное военно-спортивное многоборье | B117: 110 | C117: 0 | D117: 0 | E117: 0 | F117: 0 | G117: 0 | H117: 0 | BI117: =Раздел2!C118 -> 0
A118: Микрофутзал | B118: 111 | C118: 0 | D118: 0 | E118: 0 | F118: 0 | G118: 0 | H118: 0 | BI118: =Раздел2!C119 -> 0
A119: Многоборье кинологов | B119: 112 | C119: 0 | D119: 0 | E119: 0 | F119: 0 | G119: 0 | H119: 0 | BI119: =Раздел2!C120 -> 0
A120: Многоборье спасателей МЧС России | B120: 113 | C120: 0 | D120: 0 | E120: 0 | F120: 0 | G120: 0 | H120: 0 | BI120: =Раздел2!C121 -> 0
A121: Морское многоборье | B121: 114 | C121: 0 | D121: 0 | E121: 0 | F121: 0 | G121: 0 | H121: 0 | BI121: =Раздел2!C122 -> 0
A122: Мотоциклетный спорт | B122: 115 | C122: 0 | D122: 0 | E122: 0 | F122: 0 | G122: 0 | H122: 0 | BI122: =Раздел2!C123 -> 0
A123: Нарды | B123: 116 | C123: 0 | D123: 0 | E123: 0 | F123: 0 | G123: 0 | H123: 0 | BI123: =Раздел2!C124 -> 0
A124: Настольный теннис | B124: 117 | C124: 0 | D124: 0 | E124: 0 | F124: 0 | G124: 0 | H124: 0 | BI124: =Раздел2!C125 -> 0
A125: Падел | B125: 118 | C125: 0 | D125: 0 | E125: 0 | F125: 0 | G125: 0 | H125: 0 | BI125: =Раздел2!C126 -> 0
A126: Парашютный спорт | B126: 119 | C126: 0 | D126: 0 | E126: 0 | F126: 0 | G126: 0 | H126: 0 | BI126: =Раздел2!C127 -> 0
A127: Парусный спорт | B127: 120 | C127: 0 | D127: 0 | E127: 0 | F127: 0 | G127: 0 | H127: 0 | BI127: =Раздел2!C128 -> 0
A128: Пауэрлифтинг | B128: 121 | C128: 0 | D128: 0 | E128: 0 | F128: 0 | G128: 0 | H128: 0 | BI128: =Раздел2!C129 -> 0
A129: Перетягивание каната | B129: 122 | C129: 0 | D129: 0 | E129: 0 | F129: 0 | G129: 0 | H129: 0 | BI129: =Раздел2!C130 -> 0
A130: Пилонный спорт | B130: 123 | C130: 0 | D130: 0 | E130: 0 | F130: 0 | G130: 0 | H130: 0 | BI130: =Раздел2!C131 -> 0
A131: Плавание - всего | B131: 124 | C131: 0 | D131: 0 | E131: 0 | F131: 0 | G131: 0 | H131: 0 | I131: =SUM(I132:I133) -> 0 | J131: =SUM(J132:J133) -> 0 | K131: 0 | L131: 0 | M131: 0 | N131: 0 | O131: 0 | P131: 0 | Q131: 0 | R131: 0 | S131: 0 | T131: 0 | U131: 0 | V131: 0 | W131: 0 | X131: 0 | Y131: 0 | Z131: 0 | AA131: 0 | AB131: 0 | AC131: 0 | AD131: 0 | AE131: 0 | AF131: 0 | AG131: 0 | AH131: 0 | AI131: 0 | AJ131: 0 | AK131: 0 | AL131: 0 | AM131: 0 | AN131: 0 | AO131: 0 | AP131: 0 | AQ131: 0 | AR131: 0 | AS131: 0 | AT131: 0 | AU131: 0 | AV131: 0 | AW131: 0 | AX131: 0 | AY131: 0 | AZ131: 0 | BA131: 0 | BB131: 0 | BC131: 0 | BD131: 0 | BE131: 0 | BF131: 0 | BI131: =Раздел2!C132 -> 1
A132: в том числе: Плавание | B132: 125 | C132: 0 | D132: 0 | E132: 0 | F132: 0 | G132: 0 | H132: 0 | BI132: =Раздел2!C133 -> 1
A133: Открытая вода | B133: 126 | C133: 0 | D133: 0 | E133: 0 | F133: 0 | G133: 0 | H133: 0 | BI133: =Раздел2!C134 -> 0
A134: Планерный спорт | B134: 127 | C134: 0 | D134: 0 | E134: 0 | F134: 0 | G134: 0 | H134: 0 | BI134: =Раздел2!C135 -> 0
A135: Подводный спорт | B135: 128 | C135: 0 | D135: 0 | E135: 0 | F135: 0 | G135: 0 | H135: 0 | BI135: =Раздел2!C136 -> 0
A136: Пожарно-спасательный спорт | B136: 129 | C136: 0 | D136: 0 | E136: 0 | F136: 0 | G136: 0 | H136: 0 | BI136: =Раздел2!C137 -> 0
A137: Полиатлон | B137: 130 | C137: =SUM(D137:F137) -> 0 | D137: =SUM(I137,N137,S137,X137,AC137,AH137,AM137,AR137,AW137,BB137) -> 0 | E137: =SUM(J137,O137,T137,Y137,AD137,AI137,AN137,AS137,AX137,BC137) -> 0 | F137: =SUM(K137,P137,U137,Z137,AE137,AJ137,AO137,AT137,AY137,BD137) -> 0 | G137: =SUM(L137,Q137,V137,AA137,AF137,AK137,AP137,AU137,AZ137,BE137) -> 0 | H137: =SUM(M137,R137,W137,AB137,AG137,AL137,AQ137,AV137,BA137,BF137) -> 0 | BI137: =Раздел2!C138 -> 0
A138: Практическая стрельба | B138: 131 | C138: 0 | D138: 0 | E138: 0 | F138: 0 | G138: 0 | H138: 0 | BI138: =Раздел2!C139 -> 0
A139: Прыжки в воду - всего | B139: 132 | C139: 0 | D139: 0 | E139: 0 | F139: 0 | G139: 0 | H139: 0 | I139: =SUM(I140:I141) -> 0 | J139: =SUM(J140:J141) -> 0 | K139: 0 | L139: 0 | M139: 0 | N139: 0 | O139: 0 | P139: 0 | Q139: 0 | R139: 0 | S139: 0 | T139: 0 | U139: 0 | V139: 0 | W139: 0 | X139: 0 | Y139: 0 | Z139: 0 | AA139: 0 | AB139: 0 | AC139: 0 | AD139: 0 | AE139: 0 | AF139: 0 | AG139: 0 | AH139: 0 | AI139: 0 | AJ139: 0 | AK139: 0 | AL139: 0 | AM139: 0 | AN139: 0 | AO139: 0 | AP139: 0 | AQ139: 0 | AR139: 0 | AS139: 0 | AT139: 0 | AU139: 0 | AV139: 0 | AW139: 0 | AX139: 0 | AY139: 0 | AZ139: 0 | BA139: 0 | BB139: 0 | BC139: 0 | BD139: 0 | BE139: 0 | BF139: 0 | BI139: =Раздел2!C140 -> 0
A140: в том числе: Прыжки в воду | B140: 133 | C140: 0 | D140: 0 | E140: 0 | F140: 0 | G140: 0 | H140: 0 | BI140: =Раздел2!C141 -> 0
A141: Прыжки в открытый водоем | B141: 134 | C141: 0 | D141: 0 | E141: 0 | F141: 0 | G141: 0 | H141: 0 | BI141: =Раздел2!C142 -> 0
A142: Прыжки на батуте - всего | B142: 135 | C142: 0 | D142: 0 | E142: 0 | F142: 0 | G142: 0 | H142: 0 | I142: =SUM(I143:I146) -> 0 | J142: =SUM(J143:J146) -> 0 | K142: 0 | L142: 0 | M142: 0 | N142: 0 | O142: 0 | P142: 0 | Q142: 0 | R142: 0 | S142: 0 | T142: 0 | U142: 0 | V142: 0 | W142: 0 | X142: 0 | Y142: 0 | Z142: 0 | AA142: 0 | AB142: 0 | AC142: 0 | AD142: 0 | AE142: 0 | AF142: 0 | AG142: 0 | AH142: 0 | AI142: 0 | AJ142: 0 | AK142: 0 | AL142: 0 | AM142: 0 | AN142: 0 | AO142: 0 | AP142: 0 | AQ142: 0 | AR142: 0 | AS142: 0 | AT142: 0 | AU142: 0 | AV142: 0 | AW142: 0 | AX142: 0 | AY142: 0 | AZ142: 0 | BA142: 0 | BB142: 0 | BC142: 0 | BD142: 0 | BE142: 0 | BF142: 0 | BI142: =Раздел2!C143 -> 0
A143: в том числе: Акробатическая дорожка | B143: 136 | C143: 0 | D143: 0 | E143: 0 | F143: 0 | G143: 0 | H143: 0 | BI143: =Раздел2!C144 -> 0
A144: Двойной минитрамп | B144: 137 | C144: 0 | D144: 0 | E144: 0 | F144: 0 | G144: 0 | H144: 0 | BI144: =Раздел2!C145 -> 0
A145: Индивидуальные прыжки | B145: 138 | C145: 0 | D145: 0 | E145: 0 | F145: 0 | G145: 0 | H145: 0 | BI145: =Раздел2!C146 -> 0
A146: Синхронные прыжки | B146: 139 | C146: 0 | D146: 0 | E146: 0 | F146: 0 | G146: 0 | H146: 0 | BI146: =Раздел2!C147 -> 0
A147: Прыжки на лыжах с трамплина | B147: 140 | C147: 0 | D147: 0 | E147: 0 | F147: 0 | G147: 0 | H147: 0 | BI147: =Раздел2!C148 -> 0
A148: Пулевая стрельба - всего | B148: 141 | C148: 0 | D148: 0 | E148: 0 | F148: 0 | G148: 0 | H148: 0 | I148: =SUM(I149:I153) -> 0 | J148: =SUM(J149:J153) -> 0 | K148: 0 | L148: 0 | M148: 0 | N148: 0 | O148: 0 | P148: 0 | Q148: 0 | R148: 0 | S148: 0 | T148: 0 | U148: 0 | V148: 0 | W148: 0 | X148: 0 | Y148: 0 | Z148: 0 | AA148: 0 | AB148: 0 | AC148: 0 | AD148: 0 | AE148: 0 | AF148: 0 | AG148: 0 | AH148: 0 | AI148: 0 | AJ148: 0 | AK148: 0 | AL148: 0 | AM148: 0 | AN148: 0 | AO148: 0 | AP148: 0 | AQ148: 0 | AR148: 0 | AS148: 0 | AT148: 0 | AU148: 0 | AV148: 0 | AW148: 0 | AX148: 0 | AY148: 0 | AZ148: 0 | BA148: 0 | BB148: 0 | BC148: 0 | BD148: 0 | BE148: 0 | BF148: 0 | BI148: =Раздел2!C149 -> 0
A149: в том числе: Пневматическая винтовка | B149: 142 | C149: 0 | D149: 0 | E149: 0 | F149: 0 | G149: 0 | H149: 0 | BI149: =Раздел2!C150 -> 0
A150: Пневматический пистолет | B150: 143 | C150: 0 | D150: 0 | E150: 0 | F150: 0 | G150: 0 | H150: 0 | BI150: =Раздел2!C151 -> 0
A151: Малокалиберная винтовка | B151: 144 | C151: 0 | D151: 0 | E151: 0 | F151: 0 | G151: 0 | H151: 0 | BI151: =Раздел2!C152 -> 0
A152: Малокалиберный пистолет | B152: 145 | C152: 0 | D152: 0 | E152: 0 | F152: 0 | G152: 0 | H152: 0 | BI152: =Раздел2!C153 -> 0
A153: Движущаяся мишень | B153: 146 | C153: 0 | D153: 0 | E153: 0 | F153: 0 | G153: 0 | H153: 0 | BI153: =Раздел2!C154 -> 0
A154: Пэйнтбол | B154: 147 | C154: 0 | D154: 0 | E154: 0 | F154: 0 | G154: 0 | H154: 0 | BI154: =Раздел2!C155 -> 0
A155: Радиоспорт | B155: 148 | C155: 0 | D155: 0 | E155: 0 | F155: 0 | G155: 0 | H155: 0 | BI155: =Раздел2!C156 -> 0
A156: Рафтинг | B156: 149 | C156: 0 | D156: 0 | E156: 0 | F156: 0 | G156: 0 | H156: 0 | BI156: =Раздел2!C157 -> 0
A157: Регби - всего | B157: 150 | C157: 0 | D157: 0 | E157: 0 | F157: 0 | G157: 0 | H157: 0 | I157: =SUM(I158:I162) -> 0 | J157: =SUM(J158:J162) -> 0 | K157: 0 | L157: 0 | M157: 0 | N157: 0 | O157: 0 | P157: 0 | Q157: 0 | R157: 0 | S157: 0 | T157: 0 | U157: 0 | V157: 0 | W157: 0 | X157: 0 | Y157: 0 | Z157: 0 | AA157: 0 | AB157: 0 | AC157: 0 | AD157: 0 | AE157: 0 | AF157: 0 | AG157: 0 | AH157: 0 | AI157: 0 | AJ157: 0 | AK157: 0 | AL157: 0 | AM157: 0 | AN157: 0 | AO157: 0 | AP157: 0 | AQ157: 0 | AR157: 0 | AS157: 0 | AT157: 0 | AU157: 0 | AV157: 0 | AW157: 0 | AX157: 0 | AY157: 0 | AZ157: 0 | BA157: 0 | BB157: 0 | BC157: 0 | BD157: 0 | BE157: 0 | BF157: 0 | BI157: =Раздел2!C158 -> 0
A158: в том числе: Регби | B158: 151 | C158: 0 | D158: 0 | E158: 0 | F158: 0 | G158: 0 | H158: 0 | BI158: =Раздел2!C159 -> 0
A159: Регби 7 (муж.) | B159: 152 | C159: 0 | D159: 0 | E159: 0 | F159: 0 | G159: 0 | H159: 0 | BI159: =Раздел2!C160 -> 0
A160: Регби 7 (жен.) | B160: 153 | C160: 0 | D160: 0 | E160: 0 | F160: 0 | G160: 0 | H160: 0 | BI160: =Раздел2!C161 -> 0
A161: Регби - пляжное | B161: 154 | C161: 0 | D161: 0 | E161: 0 | F161: 0 | G161: 0 | H161: 0 | BI161: =Раздел2!C162 -> 0
A162: Регби на снегу | B162: 155 | C162: 0 | D162: 0 | E162: 0 | F162: 0 | G162: 0 | H162: 0 | BI162: =Раздел2!C163 -> 0
A163: Регбол | B163: 156 | C163: 0 | D163: 0 | E163: 0 | F163: 0 | G163: 0 | H163: 0 | BI163: =Раздел2!C164 -> 0
A164: Роллер спорт | B164: 157 | C164: 0 | D164: 0 | E164: 0 | F164: 0 | G164: 0 | H164: 0 | BI164: =Раздел2!C165 -> 0
A165: Роуп скиппинг (спортивная скакалка) | B165: 158 | C165: 0 | D165: 0 | E165: 0 | F165: 0 | G165: 0 | H165: 0 | BI165: =Раздел2!C166 -> 0
A166: Рукопашный бой | B166: 159 | C166: 0 | D166: 0 | E166: 0 | F166: 0 | G166: 0 | H166: 0 | BI166: =Раздел2!C167 -> 0
A167: Рыболовный спорт | B167: 160 | C167: 0 | D167: 0 | E167: 0 | F167: 0 | G167: 0 | H167: 0 | BI167: =Раздел2!C168 -> 0
A168: Сават | B168: 161 | C168: 0 | D168: 0 | E168: 0 | F168: 0 | G168: 0 | H168: 0 | BI168: =Раздел2!C169 -> 0
A169: Самбо | B169: 162 | C169: 0 | D169: 0 | E169: 0 | F169: 0 | G169: 0 | H169: 0 | BI169: =Раздел2!C170 -> 0
A170: Самолетный спорт | B170: 163 | C170: 0 | D170: 0 | E170: 0 | F170: 0 | G170: 0 | H170: 0 | BI170: =Раздел2!C171 -> 0
A171: Санный спорт | B171: 164 | C171: 0 | D171: 0 | E171: 0 | F171: 0 | G171: 0 | H171: 0 | BI171: =Раздел2!C172 -> 0
A172: Северное многоборье | B172: 165 | C172: 0 | D172: 0 | E172: 0 | F172: 0 | G172: 0 | H172: 0 | BI172: =Раздел2!C173 -> 0
A173: Серфинг | B173: 166 | C173: 0 | D173: 0 | E173: 0 | F173: 0 | G173: 0 | H173: 0 | BI173: =Раздел2!C174 -> 0
A174: Силовой экстрим | B174: 167 | C174: 0 | D174: 0 | E174: 0 | F174: 0 | G174: 0 | H174: 0 | BI174: =Раздел2!C175 -> 0
A175: Синхронное плавание | B175: 168 | C175: 0 | D175: 0 | E175: 0 | F175: 0 | G175: 0 | H175: 0 | BI175: =Раздел2!C176 -> 0
A176: Скалолазание | B176: 169 | C176: 0 | D176: 0 | E176: 0 | F176: 0 | G176: 0 | H176: 0 | BI176: =Раздел2!C177 -> 0
A177: Сквош | B177: 170 | C177: 0 | D177: 0 | E177: 0 | F177: 0 | G177: 0 | H177: 0 | BI177: =Раздел2!C178 -> 0
A178: Скейтбординг | B178: 171 | C178: 0 | D178: 0 | E178: 0 | F178: 0 | G178: 0 | H178: 0 | BI178: =Раздел2!C179 -> 0
A179: Служебно-боевая стрельба | B179: 172 | C179: 0 | D179: 0 | E179: 0 | F179: 0 | G179: 0 | H179: 0 | BI179: =Раздел2!C180 -> 0
A180: Служебно-прикладной спорт | B180: 173 | C180: 0 | D180: 0 | E180: 0 | F180: 0 | G180: 0 | H180: 0 | BI180: =Раздел2!C181 -> 0
A181: Служебно-прикладной спорт ФСО России | B181: 174 | C181: 0 | D181: 0 | E181: 0 | F181: 0 | G181: 0 | H181: 0 | BI181: =Раздел2!C182 -> 0
A182: Служебно-прикладной спорт ФТС России | B182: 175 | C182: 0 | D182: 0 | E182: 0 | F182: 0 | G182: 0 | H182: 0 | BI182: =Раздел2!C183 -> 0
A183: Служебное двоеборье | B183: 176 | C183: 0 | D183: 0 | E183: 0 | F183: 0 | G183: 0 | H183: 0 | BI183: =Раздел2!C184 -> 0
A184: Служебное единоборство | B184: 177 | C184: 0 | D184: 0 | E184: 0 | F184: 0 | G184: 0 | H184: 0 | BI184: =Раздел2!C185 -> 0
A185: Служебное многоборье | B185: 178 | C185: 0 | D185: 0 | E185: 0 | F185: 0 | G185: 0 | H185: 0 | BI185: =Раздел2!C186 -> 0
A186: Служебный биатлон | B186: 179 | C186: 0 | D186: 0 | E186: 0 | F186: 0 | G186: 0 | H186: 0 | BI186: =Раздел2!C187 -> 0
A187: Спасательный спорт | B187: 180 | C187: 0 | D187: 0 | E187: 0 | F187: 0 | G187: 0 | H187: 0 | BI187: =Раздел2!C188 -> 0
A188: Стрельба из боевого ручного стрелкового оружия | B188: 181 | C188: 0 | D188: 0 | E188: 0 | F188: 0 | G188: 0 | H188: 0 | BI188: =Раздел2!C189 -> 0
A189: Стрельба из штатного или табельного оружия | B189: 182 | C189: 0 | D189: 0 | E189: 0 | F189: 0 | G189: 0 | H189: 0 | BI189: =Раздел2!C190 -> 0
A190: Стрельба на дальние дистанции | B190: 183 | C190: 0 | D190: 0 | E190: 0 | F190: 0 | G190: 0 | H190: 0 | BI190: =Раздел2!C191 -> 0
A191: Смешанное боевое единоборство (ММА) | B191: 184 | C191: 0 | D191: 0 | E191: 0 | F191: 0 | G191: 0 | H191: 0 | BI191: =Раздел2!C192 -> 0
A192: Сноуборд | B192: 185 | C192: 0 | D192: 0 | E192: 0 | F192: 0 | G192: 0 | H192: 0 | BI192: =Раздел2!C193 -> 0
A193: Современное пятиборье | B193: 186 | C193: 0 | D193: 0 | E193: 0 | F193: 0 | G193: 0 | H193: 0 | BI193: =Раздел2!C194 -> 0
A194: Софтбол | B194: 187 | C194: 0 | D194: 0 | E194: 0 | F194: 0 | G194: 0 | H194: 0 | BI194: =Раздел2!C195 -> 0
A195: Спорт сверхлегкой авиации | B195: 188 | C195: 0 | D195: 0 | E195: 0 | F195: 0 | G195: 0 | H195: 0 | BI195: =Раздел2!C196 -> 0
A196: Спортивная акробатика | B196: 189 | C196: 0 | D196: 0 | E196: 0 | F196: 0 | G196: 0 | H196: 0 | BI196: =Раздел2!C197 -> 0
A197: Спортивная аэробика | B197: 190 | C197: 0 | D197: 0 | E197: 0 | F197: 0 | G197: 0 | H197: 0 | BI197: =Раздел2!C198 -> 0
A198: Спортивная борьба - всего | B198: 191 | C198: 0 | D198: 0 | E198: 0 | F198: 0 | G198: 0 | H198: 0 | I198: =SUM(I199:I203) -> 0 | J198: =SUM(J199:J203) -> 0 | K198: 0 | L198: 0 | M198: 0 | N198: 0 | O198: 0 | P198: 0 | Q198: 0 | R198: 0 | S198: 0 | T198: 0 | U198: 0 | V198: 0 | W198: 0 | X198: 0 | Y198: 0 | Z198: 0 | AA198: 0 | AB198: 0 | AC198: 0 | AD198: 0 | AE198: 0 | AF198: 0 | AG198: 0 | AH198: 0 | AI198: 0 | AJ198: 0 | AK198: 0 | AL198: 0 | AM198: 0 | AN198: 0 | AO198: 0 | AP198: 0 | AQ198: 0 | AR198: 0 | AS198: 0 | AT198: 0 | AU198: 0 | AV198: 0 | AW198: 0 | AX198: 0 | AY198: 0 | AZ198: 0 | BA198: 0 | BB198: 0 | BC198: 0 | BD198: 0 | BE198: 0 | BF198: 0 | BI198: =Раздел2!C199 -> 1
A199: в том числе: Вольная борьба | B199: 192 | C199: 0 | D199: 0 | E199: 0 | F199: 0 | G199: 0 | H199: 0 | BI199: =Раздел2!C200 -> 0
A200: Греко-римская борьба | B200: 193 | C200: 0 | D200: 0 | E200: 0 | F200: 0 | G200: 0 | H200: 0 | BI200: =Раздел2!C201 -> 1
A201: Грэпплинг | B201: 194 | C201: =SUM(D201:F201) -> 0 | D201: =SUM(I201,N201,S201,X201,AC201,AH201,AM201,AR201,AW201,BB201) -> 0 | E201: =SUM(J201,O201,T201,Y201,AD201,AI201,AN201,AS201,AX201,BC201) -> 0 | F201: =SUM(K201,P201,U201,Z201,AE201,AJ201,AO201,AT201,AY201,BD201) -> 0 | G201: =SUM(L201,Q201,V201,AA201,AF201,AK201,AP201,AU201,AZ201,BE201) -> 0 | H201: =SUM(M201,R201,W201,AB201,AG201,AL201,AQ201,AV201,BA201,BF201) -> 0 | BI201: =Раздел2!C202 -> 0
... 80 more rows

Sheet Раздел9
B1: Раздел IX. Тренерский состав
Z2: Код по ОКЕИ: человек – 792
B3: Виды спорта | C3: № строки | D3: Число тренеров и тренеров-преподавателей | F3: Тренеры | AD3: Тренеры-преподаватели
F4: Число тренеров | H4: штатные тренеры: | Q4: совместители: | Z4: из гр.6: | AD4: Число тренеров-преподавателей
D5: Итого | E5: в том числе штатных | F5: Всего | G5: в том числе штатных | H5: профессиональное образование | L5: Профессиональная переподготовка (за отчетный год) | M5: Повышение квалификации (за отчетный год) | N5: квалификационные категории | Q5: профессиональное образование | U5: Профессиональная переподготовка (за отчетный год) | V5: Повышение квалификации (за отчетный год) | W5: квалификационные категории | Z5: в возрасте: | AC5: Звание «Заслуженный тренер России»
H6: высшее | I6: среднее | J6: в том числе физкультурное | N6: Высшая | O6: Первая | P6: Вторая | Q6: высшее | R6: среднее | S6: в том числе физкультурное | W6: Высшая | X6: Первая | Y6: Вторая
Z7: до 35 лет | AA7: от 36 до 64 лет | AB7: старше 64 лет | AD7: Всего | AE7: в том числе штатных
J8: высшее | K8: среднее | S8: высшее | T8: среднее
B9: 1 | C9: 2 | D9: 3 | E9: 4 | F9: 5 | G9: 6 | H9: 7 | I9: 8 | J9: 9 | K9: 10 | L9: 11 | M9: 12 | N9: 13 | O9: 14 | P9: 15 | Q9: 16 | R9: 17 | S9: 18 | T9: 19 | U9: 20 | V9: 21 | W9: 22 | X9: 23 | Y9: 24 | Z9: 25 | AA9: 26 | AB9: 27 | AC9: 28 | AD9: 29 | AE9: 30 | AG9: 5 мин 6 | AH9: 2р
B10: Авиамодельный спорт | C10: 01 | D10: =SUM(F10,AD10) -> 0 | E10: =SUM(G10,AE10) -> 0 | AG10: =F10-G10 -> 0 | AH10: =Раздел2!C9 -> 0
B11: Авиационные гонки | C11: 02 | D11: =SUM(F11,AD11) -> 0 | E11: =SUM(G11,AE11) -> 0 | AG11: =F11-G11 -> 0 | AH11: =Раздел2!C10 -> 0
B12: Автомобильный спорт | C12: 03 | D12: 0 | E12: 0 | AG12: 0 | AH12: =Раздел2!C11 -> 0
B13: Автомодельный спорт | C13: 04 | D13: 0 | E13: 0 | AG13: 0 | AH13: =Раздел2!C12 -> 0
B14: Айкидо | C14: 05 | D14: 0 | E14: 0 | AG14: 0 | AH14: =Раздел2!C13 -> 0
B15: Айсшток | C15: 06 | D15: 0 | E15: 0 | AG15: 0 | AH15: =Раздел2!C14 -> 0
B16: Акробатический рок-н-ролл | C16: 07 | D16: 0 | E16: 0 | AG16: 0 | AH16: =Раздел2!C15 -> 0
B17: Альпинизм | C17: 08 | D17: 0 | E17: 0 | AG17: 0 | AH17: =Раздел2!C16 -> 0
B18: Американский футбол | C18: 09 | D18: 0 | E18: 0 | AG18: 0 | AH18: =Раздел2!C17 -> 0
B19: Армейский рукопашный бой | C19: 10 | D19: 0 | E19: 0 | AG19: 0 | AH19: =Раздел2!C18 -> 0
B20: Армейское тактико-стрелковое многоборье | C20: 11 | D20: 0 | E20: 0 | AG20: 0 | AH20: =Раздел2!C19 -> 0
B21: Армрестлинг | C21: 12 | D21: 0 | E21: 0 | AG21: 0 | AH21: =Раздел2!C20 -> 0
B22: Бадминтон | C22: 13 | D22: 0 | E22: 0 | AG22: 0 | AH22: =Раздел2!C21 -> 0
B23: Баскетбол - всего | C23: 14 | D23: 3 | E23: 1 | F23: =SUM(F24:F26) -> 3 | G23: =SUM(G24:G26) -> 1 | H23: 0 | I23: 1 | J23: 0 | K23: 1 | L23: 0 | M23: 0 | N23: 0 | O23: 0 | P23: 0 | Q23: 2 | R23: 0 | S23: 2 | T23: 0 | U23: 0 | V23: 0 | W23: 0 | X23: 0 | Y23: 0 | Z23: 0 | AA23: 1 | AB23: 0 | AC23: 0 | AD23: 0 | AE23: 0 | AG23: 2 | AH23: =Раздел2!C22 -> 1
B24: в том числе: Баскетбол (муж.) | C24: 15 | D24: 3 | E24: 1 | F24: 3 | G24: 1 | I24: 1 | K24: 1 | Q24: 2 | S24: 2 | AA24: 1 | AG24: 2 | AH24: =Раздел2!C23 -> 1
B25: Баскетбол (жен.) | C25: 16 | D25: 0 | E25: 0 | AG25: 0 | AH25: =Раздел2!C24 -> 0
B26: Баскетбол 3х3 | C26: 17 | D26: 0 | E26: 0 | AG26: 0 | AH26: =Раздел2!C25 -> 0
B27: Бейсбол | C27: 18 | D27: 0 | E27: 0 | AG27: 0 | AH27: =Раздел2!C26 -> 0
B28: Биатлон | C28: 19 | D28: 0 | E28: 0 | AG28: 0 | AH28: =Раздел2!C27 -> 0
B29: Бильярдный спорт | C29: 20 | D29: 0 | E29: 0 | AG29: 0 | AH29: =Раздел2!C28 -> 0
B30: Бобслей - всего | C30: 21 | D30: 0 | E30: 0 | F30: =SUM(F31:F32) -> 0 | G30: =SUM(G31:G32) -> 0 | H30: 0 | I30: 0 | J30: 0 | K30: 0 | L30: 0 | M30: 0 | N30: 0 | O30: 0 | P30: 0 | Q30: 0 | R30: 0 | S30: 0 | T30: 0 | U30: 0 | V30: 0 | W30: 0 | X30: 0 | Y30: 0 | Z30: 0 | AA30: 0 | AB30: 0 | AC30: 0 | AD30: 0 | AE30: 0 | AG30: 0 | AH30: =Раздел2!C29 -> 0
B31: в том числе: Бобслей | C31: 22 | D31: 0 | E31: 0 | AG31: 0 | AH31: =Раздел2!C30 -> 0
B32: Скелетон | C32: 23 | D32: 0 | E32: 0 | AG32: 0 | AH32: =Раздел2!C31 -> 0
B33: Бодибилдинг | C33: 24 | D33: 0 | E33: 0 | AG33: 0 | AH33: =Раздел2!C32 -> 0
B34: Бокс | C34: 25 | D34: 2 | E34: 1 | F34: 2 | G34: 1 | H34: 1 | J34: 1 | N34: 1 | Q34: 1 | AA34: 1 | AG34: 1 | AH34: =Раздел2!C33 -> 1
B35: Борьба на поясах | C35: 26 | D35: 0 | E35: 0 | AG35: 0 | AH35: =Раздел2!C34 -> 0
B36: Боулинг | C36: 27 | D36: 0 | E36: 0 | AG36: 0 | AH36: =Раздел2!C35 -> 0
B37: Боулспорт | C37: 28 | D37: 0 | E37: 0 | AG37: 0 | AH37: =Раздел2!C36 -> 0
B38: Велосипедный спорт - всего | C38: 29 | D38: 0 | E38: 0 | F38: =SUM(F39:F42) -> 0 | G38: =SUM(G39:G42) -> 0 | H38: 0 | I38: 0 | J38: 0 | K38: 0 | L38: 0 | M38: 0 | N38: 0 | O38: 0 | P38: 0 | Q38: 0 | R38: 0 | S38: 0 | T38: 0 | U38: 0 | V38: 0 | W38: 0 | X38: 0 | Y38: 0 | Z38: 0 | AA38: 0 | AB38: 0 | AC38: 0 | AD38: 0 | AE38: 0 | AG38: 0 | AH38: =Раздел2!C37 -> 0
B39: в том числе: BMX | C39: 30 | D39: 0 | E39: 0 | AG39: 0 | AH39: =Раздел2!C38 -> 0
B40: Маунтинбайк | C40: 31 | D40: 0 | E40: 0 | AG40: 0 | AH40: =Раздел2!C39 -> 0
B41: Трек | C41: 32 | D41: 0 | E41: 0 | AG41: 0 | AH41: =Раздел2!C40 -> 0
B42: Шоссе | C42: 33 | D42: 0 | E42: 0 | AG42: 0 | AH42: =Раздел2!C41 -> 0
B43: Вертолетный спорт | C43: 34 | D43: 0 | E43: 0 | AG43: 0 | AH43: =Раздел2!C42 -> 0
B44: Водно-моторный спорт | C44: 35 | D44: 0 | E44: 0 | AG44: 0 | AH44: =Раздел2!C43 -> 0
B45: Водно-спасательное многоборье | C45: 36 | D45: 0 | E45: 0 | AG45: 0 | AH45: =Раздел2!C44 -> 0
B46: Водное поло - всего | C46: 37 | D46: 0 | E46: 0 | F46: =SUM(F47:F48) -> 0 | G46: =SUM(G47:G48) -> 0 | H46: 0 | I46: 0 | J46: 0 | K46: 0 | L46: 0 | M46: 0 | N46: 0 | O46: 0 | P46: 0 | Q46: 0 | R46: 0 | S46: 0 | T46: 0 | U46: 0 | V46: 0 | W46: 0 | X46: 0 | Y46: 0 | Z46: 0 | AA46: 0 | AB46: 0 | AC46: 0 | AD46: 0 | AE46: 0 | AG46: 0 | AH46: =Раздел2!C45 -> 0
B47: в том числе: Водное поло (муж.) | C47: 38 | D47: 0 | E47: 0 | AG47: 0 | AH47: =Раздел2!C46 -> 0
B48: Водное поло (жен.) | C48: 39 | D48: 0 | E48: 0 | AG48: 0 | AH48: =Раздел2!C47 -> 0
B49: Воднолыжный спорт | C49: 40 | D49: 0 | E49: 0 | AG49: 0 | AH49: =Раздел2!C48 -> 0
B50: Военно-прикладной спорт | C50: 41 | D50: 0 | E50: 0 | AG50: 0 | AH50: =Раздел2!C49 -> 0
B51: Военно-спортивное многоборье | C51: 42 | D51: 0 | E51: 0 | AG51: 0 | AH51: =Раздел2!C50 -> 0
B52: Воздухоплавательный спорт | C52: 43 | D52: 0 | E52: 0 | AG52: 0 | AH52: =Раздел2!C51 -> 0
B53: Воздушно-силовая атлетика | C53: 44 | D53: 0 | E53: 0 | AG53: 0 | AH53: =Раздел2!C52 -> 0
B54: Волейбол - всего | C54: 45 | D54: 0 | E54: 0 | F54: =SUM(F55:F58) -> 0 | G54: =SUM(G55:G58) -> 0 | H54: 0 | I54: 0 | J54: 0 | K54: 0 | L54: 0 | M54: 0 | N54: 0 | O54: 0 | P54: 0 | Q54: 0 | R54: 0 | S54: 0 | T54: 0 | U54: 0 | V54: 0 | W54: 0 | X54: 0 | Y54: 0 | Z54: 0 | AA54: 0 | AB54: 0 | AC54: 0 | AD54: 0 | AE54: 0 | AG54: 0 | AH54: =Раздел2!C53 -> 0
B55: в том числе: Волейбол (муж.) | C55: 46 | D55: 0 | E55: 0 | AG55: 0 | AH55: =Раздел2!C54 -> 0
B56: Волейбол (жен.) | C56: 47 | D56: 0 | E56: 0 | AG56: 0 | AH56: =Раздел2!C55 -> 0
B57: Пляжный волейбол (муж.) | C57: 48 | D57: 0 | E57: 0 | AG57: 0 | AH57: =Раздел2!C56 -> 0
B58: Пляжный волейбол (жен.) | C58: 49 | D58: 0 | E58: 0 | AG58: 0 | AH58: =Раздел2!C57 -> 0
B59: Восточное боевое единоборство | C59: 50 | D59: 0 | E59: 0 | AG59: 0 | AH59: =Раздел2!C58 -> 0
B60: Всестилевое каратэ | C60: 51 | D60: 0 | E60: 0 | AG60: 0 | AH60: =Раздел2!C59 -> 0
B61: Гандбол - всего | C61: 52 | D61: 0 | E61: 0 | F61: =SUM(F62:F64) -> 0 | G61: =SUM(G62:G64) -> 0 | H61: 0 | I61: 0 | J61: 0 | K61: 0 | L61: 0 | M61: 0 | N61: 0 | O61: 0 | P61: 0 | Q61: 0 | R61: 0 | S61: 0 | T61: 0 | U61: 0 | V61: 0 | W61: 0 | X61: 0 | Y61: 0 | Z61: 0 | AA61: 0 | AB61: 0 | AC61: 0 | AD61: 0 | AE61: 0 | AG61: 0 | AH61: =Раздел2!C60 -> 0
B62: в том числе: Гандбол (муж.) | C62: 53 | D62: 0 | E62: 0 | AG62: 0 | AH62: =Раздел2!C61 -> 0
B63: Гандбол (жен.) | C63: 54 | D63: 0 | E63: 0 | AG63: 0 | AH63: =Раздел2!C62 -> 0
B64: Пляжный гандбол | C64: 55 | D64: 0 | E64: 0 | AG64: 0 | AH64: =Раздел2!C63 -> 0
B65: Гиревой спорт | C65: 56 | D65: 0 | E65: 0 | AG65: 0 | AH65: =Раздел2!C64 -> 0
B66: Го | C66: 57 | D66: 0 | E66: 0 | AG66: 0 | AH66: =Раздел2!C65 -> 0
B67: Гольф | C67: 58 | D67: 0 | E67: 0 | AG67: 0 | AH67: =Раздел2!C66 -> 0
B68: Гонки на охотничьих лыжах | C68: 59 | D68: 0 | E68: 0 | AG68: 0 | AH68: =Раздел2!C67 -> 0
B69: Гонки с препятствиями | C69: 60 | D69: 0 | E69: 0 | AG69: 0 | AH69: =Раздел2!C68 -> 0
B70: Горнолыжный спорт | C70: 61 | D70: 0 | E70: 0 | AG70: 0 | AH70: =Раздел2!C69 -> 0
B71: Городошный спорт | C71: 62 | D71: 0 | E71: 0 | AG71: 0 | AH71: =Раздел2!C70 -> 0
B72: Гребля на байдарках и каноэ | C72: 63 | D72: 0 | E72: 0 | AG72: 0 | AH72: =Раздел2!C71 -> 0
B73: Гребля на шлюпках | C73: 64 | D73: 0 | E73: 0 | AG73: 0 | AH73: =Раздел2!C72 -> 0
B74: Гребной слалом | C74: 65 | D74: 0 | E74: 0 | AG74: 0 | AH74: =Раздел2!C73 -> 0
B75: Гребной спорт - всего | C75: 66 | D75: =SUM(F75,AD75) -> 0 | E75: =SUM(G75,AE75) -> 0 | F75: =SUM(F76:F79) -> 0 | G75: =SUM(G76:G79) -> 0 | H75: 0 | I75: 0 | J75: 0 | K75: 0 | L75: 0 | M75: 0 | N75: 0 | O75: 0 | P75: 0 | Q75: 0 | R75: 0 | S75: 0 | T75: 0 | U75: 0 | V75: 0 | W75: 0 | X75: 0 | Y75: 0 | Z75: 0 | AA75: 0 | AB75: 0 | AC75: 0 | AD75: 0 | AE75: 0 | AG75: =F75-G75 -> 0 | AH75: =Раздел2!C74 -> 0
B76: в том числе: Академическая гребля | C76: 67 | D76: 0 | E76: 0 | AG76: 0 | AH76: =Раздел2!C75 -> 0
B77: Гребля-индор | C77: 68 | D77: 0 | E77: 0 | AG77: 0 | AH77: =Раздел2!C76 -> 0
B78: Народная гребля | C78: 69 | D78: 0 | E78: 0 | AG78: 0 | AH78: =Раздел2!C77 -> 0
B79: Прибрежная гребля | C79: 70 | D79: 0 | E79: 0 | AG79: 0 | AH79: =Раздел2!C78 -> 0
B80: Гребно-парусное двоеборье | C80: 71 | D80: 0 | E80: 0 | AG80: 0 | AH80: =Раздел2!C79 -> 0
B81: Дартс | C81: 72 | D81: 0 | E81: 0 | AG81: 0 | AH81: =Раздел2!C80 -> 0
B82: Джиу-джитсу | C82: 73 | D82: 0 | E82: 0 | AG82: 0 | AH82: =Раздел2!C81 -> 0
B83: Дзюдо | C83: 74 | D83: 0 | E83: 0 | AG83: 0 | AH83: =Раздел2!C82 -> 0
B84: Ездовой спорт | C84: 75 | D84: 0 | E84: 0 | AG84: 0 | AH84: =Раздел2!C83 -> 0
B85: Зимнее плавание | C85: 76 | D85: 0 | E85: 0 | AG85: 0 | AH85: =Раздел2!C84 -> 0
B86: Капоэйра | C86: 77 | D86: 0 | E86: 0 | AG86: 0 | AH86: =Раздел2!C85 -> 0
B87: Каратэ | C87: 78 | D87: 0 | E87: 0 | AG87: 0 | AH87: =Раздел2!C86 -> 0
B88: Кендо | C88: 79 | D88: 0 | E88: 0 | AG88: 0 | AH88: =Раздел2!C87 -> 0
B89: Керешу | C89: 80 | D89: 0 | E89: 0 | AG89: 0 | AH89: =Раздел2!C88 -> 0
B90: Кёрлинг - всего | C90: 81 | D90: 0 | E90: 0 | F90: =SUM(F91:F93) -> 0 | G90: =SUM(G91:G93) -> 0 | H90: 0 | I90: 0 | J90: 0 | K90: 0 | L90: 0 | M90: 0 | N90: 0 | O90: 0 | P90: 0 | Q90: 0 | R90: 0 | S90: 0 | T90: 0 | U90: 0 | V90: 0 | W90: 0 | X90: 0 | Y90: 0 | Z90: 0 | AA90: 0 | AB90: 0 | AC90: 0 | AD90: 0 | AE90: 0 | AG90: 0 | AH90: =Раздел2!C89 -> 0
B91: в том числе: Керлинг (муж.) | C91: 82 | D91: 0 | E91: 0 | AG91: 0 | AH91: =Раздел2!C90 -> 0
B92: Керлинг (жен.) | C92: 83 | D92: 0 | E92: 0 | AG92: 0 | AH92: =Раздел2!C91 -> 0
B93: Кёрлинг – смешанные пары | C93: 84 | D93: 0 | E93: 0 | AG93: 0 | AH93: =Раздел2!C92 -> 0
B94: Кикбоксинг | C94: 85 | D94: 0 | E94: 0 | AG94: 0 | AH94: =Раздел2!C93 -> 0
B95: Кинологический спорт | C95: 86 | D95: 0 | E95: 0 | AG95: 0 | AH95: =Раздел2!C94 -> 0
B96: Киокусинкай | C96: 87 | D96: 0 | E96: 0 | AG96: 0 | AH96: =Раздел2!C95 -> 0
B97: Киокушин | C97: 88 | D97: 0 | E97: 0 | AG97: 0 | AH97: =Раздел2!C96 -> 0
B98: Комплексное единоборство | C98: 89 | D98: 0 | E98: 0 | AG98: 0 | AH98: =Раздел2!C97 -> 0
B99: Компьютерный спорт | C99: 90 | D99: 0 | E99: 0 | AG99: 0 | AH99: =Раздел2!C98 -> 0
B100: Конный спорт | C100: 91 | D100: 0 | E100: 0 | AG100: 0 | AH100: =Раздел2!C99 -> 0
B101: Конькобежный спорт - всего | C101: 92 | D101: 0 | E101: 0 | F101: =SUM(F102:F103) -> 0 | G101: =SUM(G102:G103) -> 0 | H101: 0 | I101: 0 | J101: 0 | K101: 0 | L101: 0 | M101: 0 | N101: 0 | O101: 0 | P101: 0 | Q101: 0 | R101: 0 | S101: 0 | T101: 0 | U101: 0 | V101: 0 | W101: 0 | X101: 0 | Y101: 0 | Z101: 0 | AA101: 0 | AB101: 0 | AC101: 0 | AD101: 0 | AE101: 0 | AG101: 0 | AH101: =Раздел2!C100 -> 0
B102: в том числе: Конькобежный спорт | C102: 93 | D102: 0 | E102: 0 | AG102: 0 | AH102: =Раздел2!C101 -> 0
B103: Шорт-трек | C103: 94 | D103: 0 | E103: 0 | AG103: 0 | AH103: =Раздел2!C102 -> 0
B104: Корэш | C104: 95 | D104: 0 | E104: 0 | AG104: 0 | AH104: =Раздел2!C103 -> 0
B105: Крикет | C105: 96 | D105: 0 | E105: 0 | AG105: 0 | AH105: =Раздел2!C104 -> 0
B106: Кудо | C106: 97 | D106: 0 | E106: 0 | AG106: 0 | AH106: =Раздел2!C105 -> 0
B107: Лапта | C107: 98 | D107: 0 | E107: 0 | AG107: 0 | AH107: =Раздел2!C106 -> 0
B108: Легкая атлетика - всего | C108: 99 | D108: 10 | E108: 4 | F108: =SUM(F109:F115) -> 10 | G108: =SUM(G109:G115) -> 4 | H108: 4 | I108: 0 | J108: 4 | K108: 0 | L108: 0 | M108: 2 | N108: 2 | O108: 1 | P108: 0 | Q108: 6 | R108: 0 | S108: 6 | T108: 0 | U108: 0 | V108: 3 | W108: 2 | X108: 1 | Y108: 0 | Z108: 1 | AA108: 2 | AB108: 1 | AC108: 0 | AD108: 0 | AE108: 0 | AG108: 6 | AH108: =Раздел2!C107 -> 1
B109: в том числе: Спринтерский и барьерный бег | C109: 100 | D109: 0 | E109: 0 | AG109: 0 | AH109: =Раздел2!C108 -> 0
B110: Бег на средние дистанции и бег с препятствиями | C110: 101 | D110: 0 | E110: 0 | AG110: 0 | AH110: =Раздел2!C109 -> 0
B111: Бег на длинные и сверхдлинные дистанции | C111: 102 | D111: 0 | E111: 0 | AG111: 0 | AH111: =Раздел2!C110 -> 0
B112: Многоборья | C112: 103 | D112: 10 | E112: 4 | F112: 10 | G112: 4 | H112: 4 | J112: 4 | M112: 2 | N112: 2 | O112: 1 | Q112: 6 | S112: 6 | V112: 3 | W112: 2 | X112: 1 | Z112: 1 | AA112: 2 | AB112: 1 | AG112: 6 | AH112: =Раздел2!C111 -> 1
B113: Прыжки | C113: 104 | D113: 0 | E113: 0 | AG113: 0 | AH113: =Раздел2!C112 -> 0
B114: Метания | C114: 105 | D114: 0 | E114: 0 | AG114: 0 | AH114: =Раздел2!C113 -> 0
B115: Спортивная ходьба | C115: 106 | D115: 0 | E115: 0 | AG115: 0 | AH115: =Раздел2!C114 -> 0
B116: Лыжное двоеборье | C116: 107 | D116: 0 | E116: 0 | AG116: 0 | AH116: =Раздел2!C115 -> 0
B117: Лыжные гонки | C117: 108 | D117: 0 | E117: 0 | AG117: 0 | AH117: =Раздел2!C116 -> 0
B118: Мас-рестлинг | C118: 109 | D118: 0 | E118: 0 | AG118: 0 | AH118: =Раздел2!C117 -> 0
B119: Международное военно-спортивное многоборье | C119: 110 | D119: 0 | E119: 0 | AG119: 0 | AH119: =Раздел2!C118 -> 0
B120: Микрофутзал | C120: 111 | D120: 0 | E120: 0 | AG120: 0 | AH120: =Раздел2!C119 -> 0
B121: Многоборье кинологов | C121: 112 | D121: 0 | E121: 0 | AG121: 0 | AH121: =Раздел2!C120 -> 0
B122: Многоборье спасателей МЧС России | C122: 113 | D122: 0 | E122: 0 | AG122: 0 | AH122: =Раздел2!C121 -> 0
B123: Морское многоборье | C123: 114 | D123: 0 | E123: 0 | AG123: 0 | AH123: =Раздел2!C122 -> 0
B124: Мотоциклетный спорт | C124: 115 | D124: 0 | E124: 0 | AG124: 0 | AH124: =Раздел2!C123 -> 0
B125: Нарды | C125: 116 | D125: 0 | E125: 0 | AG125: 0 | AH125: =Раздел2!C124 -> 0
B126: Настольный теннис | C126: 117 | D126: 0 | E126: 0 | AG126: 0 | AH126: =Раздел2!C125 -> 0
B127: Падел | C127: 118 | D127: 0 | E127: 0 | AG127: 0 | AH127: =Раздел2!C126 -> 0
B128: Парашютный спорт | C128: 119 | D128: 0 | E128: 0 | AG128: 0 | AH128: =Раздел2!C127 -> 0
B129: Парусный спорт | C129: 120 | D129: 0 | E129: 0 | AG129: 0 | AH129: =Раздел2!C128 -> 0
B130: Пауэрлифтинг | C130: 121 | D130: 0 | E130: 0 | AG130: 0 | AH130: =Раздел2!C129 -> 0
B131: Перетягивание каната | C131: 122 | D131: 0 | E131: 0 | AG131: 0 | AH131: =Раздел2!C130 -> 0
B132: Пилонный спорт | C132: 123 | D132: 0 | E132: 0 | AG132: 0 | AH132: =Раздел2!C131 -> 0
B133: Плавание - всего | C133: 124 | D133: 2 | E133: 2 | F133: =SUM(F134:F135) -> 2 | G133: =SUM(G134:G135) -> 2 | H133: 2 | I133: 0 | J133: 2 | K133: 0 | L133: 0 | M133: 2 | N133: 0 | O133: 0 | P133: 2 | Q133: 0 | R133: 0 | S133: 0 | T133: 0 | U133: 0 | V133: 0 | W133: 0 | X133: 0 | Y133: 0 | Z133: 1 | AA133: 1 | AB133: 0 | AC133: 0 | AD133: 0 | AE133: 0 | AG133: 0 | AH133: =Раздел2!C132 -> 1
B134: в том числе: Плавание | C134: 125 | D134: 2 | E134: 2 | F134: 2 | G134: 2 | H134: 2 | J134: 2 | M134: 2 | P134: 2 | Z134: 1 | AA134: 1 | AG134: 0 | AH134: =Раздел2!C133 -> 1
B135: Открытая вода | C135: 126 | D135: 0 | E135: 0 | AG135: 0 | AH135: =Раздел2!C134 -> 0
B136: Планерный спорт | C136: 127 | D136: 0 | E136: 0 | AG136: 0 | AH136: =Раздел2!C135 -> 0
B137: Подводный спорт | C137: 128 | D137: 0 | E137: 0 | AG137: 0 | AH137: =Раздел2!C136 -> 0
B138: Пожарно-спасательный спорт | C138: 129 | D138: 0 | E138: 0 | AG138: 0 | AH138: =Раздел2!C137 -> 0
B139: Полиатлон | C139: 130 | D139: =SUM(F139,AD139) -> 0 | E139: =SUM(G139,AE139) -> 0 | AG139: =F139-G139 -> 0 | AH139: =Раздел2!C138 -> 0
B140: Практическая стрельба | C140: 131 | D140: 0 | E140: 0 | AG140: 0 | AH140: =Раздел2!C139 -> 0
B141: Прыжки в воду - всего | C141: 132 | D141: 0 | E141: 0 | F141: =SUM(F142:F143) -> 0 | G141: =SUM(G142:G143) -> 0 | H141: 0 | I141: 0 | J141: 0 | K141: 0 | L141: 0 | M141: 0 | N141: 0 | O141: 0 | P141: 0 | Q141: 0 | R141: 0 | S141: 0 | T141: 0 | U141: 0 | V141: 0 | W141: 0 | X141: 0 | Y141: 0 | Z141: 0 | AA141: 0 | AB141: 0 | AC141: 0 | AD141: 0 | AE141: 0 | AG141: 0 | AH141: =Раздел2!C140 -> 0
B142: в том числе: Прыжки в воду | C142: 133 | D142: 0 | E142: 0 | AG142: 0 | AH142: =Раздел2!C141 -> 0
B143: Прыжки в открытый водоем | C143: 134 | D143: 0 | E143: 0 | AG143: 0 | AH143: =Раздел2!C142 -> 0
B144: Прыжки на батуте - всего | C144: 135 | D144: 0 | E144: 0 | F144: =SUM(F145:F148) -> 0 | G144: =SUM(G145:G148) -> 0 | H144: 0 | I144: 0 | J144: 0 | K144: 0 | L144: 0 | M144: 0 | N144: 0 | O144: 0 | P144: 0 | Q144: 0 | R144: 0 | S144: 0 | T144: 0 | U144: 0 | V144: 0 | W144: 0 | X144: 0 | Y144: 0 | Z144: 0 | AA144: 0 | AB144: 0 | AC144: 0 | AD144: 0 | AE144: 0 | AG144: 0 | AH144: =Раздел2!C143 -> 0
B145: в том числе: Акробатическая дорожка | C145: 136 | D145: 0 | E145: 0 | AG145: 0 | AH145: =Раздел2!C144 -> 0
B146: Двойной минитрамп | C146: 137 | D146: 0 | E146: 0 | AG146: 0 | AH146: =Раздел2!C145 -> 0
B147: Индивидуальные прыжки | C147: 138 | D147: 0 | E147: 0 | AG147: 0 | AH147: =Раздел2!C146 -> 0
B148: Синхронные прыжки | C148: 139 | D148: 0 | E148: 0 | AG148: 0 | AH148: =Раздел2!C147 -> 0
B149: Прыжки на лыжах с трамплина | C149: 140 | D149: 0 | E149: 0 | AG149: 0 | AH149: =Раздел2!C148 -> 0
B150: Пулевая стрельба - всего | C150: 141 | D150: 0 | E150: 0 | F150: =SUM(F151:F155) -> 0 | G150: =SUM(G151:G155) -> 0 | H150: 0 | I150: 0 | J150: 0 | K150: 0 | L150: 0 | M150: 0 | N150: 0 | O150: 0 | P150: 0 | Q150: 0 | R150: 0 | S150: 0 | T150: 0 | U150: 0 | V150: 0 | W150: 0 | X150: 0 | Y150: 0 | Z150: 0 | AA150: 0 | AB150: 0 | AC150: 0 | AD150: 0 | AE150: 0 | AG150: 0 | AH150: =Раздел2!C149 -> 0
B151: в том числе: Пневматическая винтовка | C151: 142 | D151: 0 | E151: 0 | AG151: 0 | AH151: =Раздел2!C150 -> 0
B152: Пневматический пистолет | C152: 143 | D152: 0 | E152: 0 | AG152: 0 | AH152: =Раздел2!C151 -> 0
B153: Малокалиберная винтовка | C153: 144 | D153: 0 | E153: 0 | AG153: 0 | AH153: =Раздел2!C152 -> 0
B154: Малокалиберный пистолет | C154: 145 | D154: 0 | E154: 0 | AG154: 0 | AH154: =Раздел2!C153 -> 0
B155: Движущаяся мишень | C155: 146 | D155: 0 | E155: 0 | AG155: 0 | AH155: =Раздел2!C154 -> 0
B156: Пэйнтбол | C156: 147 | D156: 0 | E156: 0 | AG156: 0 | AH156: =Раздел2!C155 -> 0
B157: Радиоспорт | C157: 148 | D157: 0 | E157: 0 | AG157: 0 | AH157: =Раздел2!C156 -> 0
B158: Рафтинг | C158: 149 | D158: 0 | E158: 0 | AG158: 0 | AH158: =Раздел2!C157 -> 0
B159: Регби - всего | C159: 150 | D159: 0 | E159: 0 | F159: =SUM(F160:F164) -> 0 | G159: =SUM(G160:G164) -> 0 | H159: 0 | I159: 0 | J159: 0 | K159: 0 | L159: 0 | M159: 0 | N159: 0 | O159: 0 | P159: 0 | Q159: 0 | R159: 0 | S159: 0 | T159: 0 | U159: 0 | V159: 0 | W159: 0 | X159: 0 | Y159: 0 | Z159: 0 | AA159: 0 | AB159: 0 | AC159: 0 | AD159: 0 | AE159: 0 | AG159: 0 | AH159: =Раздел2!C158 -> 0
B160: в том числе: Регби | C160: 151 | D160: 0 | E160: 0 | AG160: 0 | AH160: =Раздел2!C159 -> 0
B161: Регби 7 (муж.) | C161: 152 | D161: 0 | E161: 0 | AG161: 0 | AH161: =Раздел2!C160 -> 0
B162: Регби 7 (жен.) | C162: 153 | D162: 0 | E162: 0 | AG162: 0 | AH162: =Раздел2!C161 -> 0
B163: Регби - пляжное | C163: 154 | D163: 0 | E163: 0 | AG163: 0 | AH163: =Раздел2!C162 -> 0
B164: Регби на снегу | C164: 155 | D164: 0 | E164: 0 | AG164: 0 | AH164: =Раздел2!C163 -> 0
B165: Регбол | C165: 156 | D165: 0 | E165: 0 | AG165: 0 | AH165: =Раздел2!C164 -> 0
B166: Роллер спорт | C166: 157 | D166: 0 | E166: 0 | AG166: 0 | AH166: =Раздел2!C165 -> 0
B167: Роуп скиппинг (спортивная скакалка) | C167: 158 | D167: 0 | E167: 0 | AG167: 0 | AH167: =Раздел2!C166 -> 0
B168: Рукопашный бой | C168: 159 | D168: 0 | E168: 0 | AG168: 0 | AH168: =Раздел2!C167 -> 0
B169: Рыболовный спорт | C169: 160 | D169: 0 | E169: 0 | AG169: 0 | AH169: =Раздел2!C168 -> 0
B170: Сават | C170: 161 | D170: 0 | E170: 0 | AG170: 0 | AH170: =Раздел2!C169 -> 0
B171: Самбо | C171: 162 | D171: 0 | E171: 0 | AG171: 0 | AH171: =Раздел2!C170 -> 0
B172: Самолетный спорт | C172: 163 | D172: 0 | E172: 0 | AG172: 0 | AH172: =Раздел2!C171 -> 0
B173: Санный спорт | C173: 164 | D173: 0 | E173: 0 | AG173: 0 | AH173: =Раздел2!C172 -> 0
B174: Северное многоборье | C174: 165 | D174: 0 | E174: 0 | AG174: 0 | AH174: =Раздел2!C173 -> 0
B175: Серфинг | C175: 166 | D175: 0 | E175: 0 | AG175: 0 | AH175: =Раздел2!C174 -> 0
B176: Силовой экстрим | C176: 167 | D176: 0 | E176: 0 | AG176: 0 | AH176: =Раздел2!C175 -> 0
B177: Синхронное плавание | C177: 168 | D177: 0 | E177: 0 | AG177: 0 | AH177: =Раздел2!C176 -> 0
B178: Скалолазание | C178: 169 | D178: 0 | E178: 0 | AG178: 0 | AH178: =Раздел2!C177 -> 0
B179: Сквош | C179: 170 | D179: 0 | E179: 0 | AG179: 0 | AH179: =Раздел2!C178 -> 0
B180: Скейтбординг | C180: 171 | D180: 0 | E180: 0 | AG180: 0 | AH180: =Раздел2!C179 -> 0
B181: Служебно-боевая стрельба | C181: 172 | D181: 0 | E181: 0 | AG181: 0 | AH181: =Раздел2!C180 -> 0
B182: Служебно-прикладной спорт | C182: 173 | D182: 0 | E182: 0 | AG182: 0 | AH182: =Раздел2!C181 -> 0
B183: Служебно-прикладной спорт ФСО России | C183: 174 | D183: 0 | E183: 0 | AG183: 0 | AH183: =Раздел2!C182 -> 0
B184: Служебно-прикладной спорт ФТС России | C184: 175 | D184: 0 | E184: 0 | AG184: 0 | AH184: =Раздел2!C183 -> 0
B185: Служебное двоеборье | C185: 176 | D185: 0 | E185: 0 | AG185: 0 | AH185: =Раздел2!C184 -> 0
B186: Служебное единоборство | C186: 177 | D186: 0 | E186: 0 | AG186: 0 | AH186: =Раздел2!C185 -> 0
B187: Служебное многоборье | C187: 178 | D187: 0 | E187: 0 | AG187: 0 | AH187: =Раздел2!C186 -> 0
B188: Служебный биатлон | C188: 179 | D188: 0 | E188: 0 | AG188: 0 | AH188: =Раздел2!C187 -> 0
B189: Спасательный спорт | C189: 180 | D189: 0 | E189: 0 | AG189: 0 | AH189: =Раздел2!C188 -> 0
B190: Стрельба из боевого ручного стрелкового оружия | C190: 181 | D190: 0 | E190: 0 | AG190: 0 | AH190: =Раздел2!C189 -> 0
B191: Стрельба из штатного или табельного оружия | C191: 182 | D191: 0 | E191: 0 | AG191: 0 | AH191: =Раздел2!C190 -> 0
B192: Стрельба на дальние дистанции | C192: 183 | D192: 0 | E192: 0 | AG192: 0 | AH192: =Раздел2!C191 -> 0
B193: Смешанное боевое единоборство (ММА) | C193: 184 | D193: 0 | E193: 0 | AG193: 0 | AH193: =Раздел2!C192 -> 0
B194: Сноуборд | C194: 185 | D194: 0 | E194: 0 | AG194: 0 | AH194: =Раздел2!C193 -> 0
B195: Современное пятиборье | C195: 186 | D195: 0 | E195: 0 | AG195: 0 | AH195: =Раздел2!C194 -> 0
B196: Софтбол | C196: 187 | D196: 0 | E196: 0 | AG196: 0 | AH196: =Раздел2!C195 -> 0
B197: Спорт сверхлегкой авиации | C197: 188 | D197: 0 | E197: 0 | AG197: 0 | AH197: =Раздел2!C196 -> 0
B198: Спортивная акробатика | C198: 189 | D198: 0 | E198: 0 | AG198: 0 | AH198: =Раздел2!C197 -> 0
B199: Спортивная аэробика | C199: 190 | D199: 0 | E199: 0 | AG199: 0 | AH199: =Раздел2!C198 -> 0
B200: Спортивная борьба - всего | C200: 191 | D200: 3 | E200: 2 | F200: =SUM(F201:F205) -> 3 | G200: =SUM(G201:G205) -> 2 | H200: 2 | I200: 0 | J200: 1 | K200: 0 | L200: 0 | M200: 1 | N200: 0 | O200: 0 | P200: 1 | Q200: 1 | R200: 0 | S200: 1 | T200: 0 | U200: 0 | V200: 0 | W200: 0 | X200: 0 | Y200: 0 | Z200: 2 | AA200: 0 | AB200: 0 | AC200: 0 | AD200: 0 | AE200: 0 | AG200: 1 | AH200: =Раздел2!C199 -> 1
... 84 more rows

Sheet Раздел10
B2: Раздел X. Административные работники и специалисты
L3: Код по ОКЕИ: человек – 792
B4: Наименование должности | C4: № строки | D4: Число работников | F4: из них имеют (из гр. 4):
F5: профессиональное образование | J5: квалификационную категорию | M5: почетные звания
D6: Всего | E6: в том числе штатные | F6: высшее | G6: среднее | H6: в том числе физкультурное | J6: высшую | K6: первую | L6: вторую | M6: Заслужен-ный тренер России | N6: Заслуженный работник физической культуры Российской Федерации
H7: высшее | I7: среднее
B8: 1 | C8: 2 | D8: 3 | E8: 4 | F8: 5 | G8: 6 | H8: 7 | I8: 8 | J8: 9 | K8: 10 | L8: 11 | M8: 12 | N8: 13 | O8: р11
B9: Директор (руководитель) | C9: 01 | D9: 1 | E9: 1 | F9: 1 | H9: 1 | O9: =Раздел11!E42 -> 3
B10: Заместители директора, руководители структурных подразделений и их заместители | C10: 02 | D10: =SUM(D11:D12) -> 2 | E10: =SUM(E11:E12) -> 2 | F10: 2 | G10: 0 | H10: 1 | I10: 0 | J10: 0 | K10: 0 | L10: 0 | M10: 0 | N10: 0
B11: в том числе: по спортивной работе | C11: 03 | D11: 1 | E11: 1 | F11: 1 | H11: 1
B12: другие (в том числе руководители структурных подразделений и их заместители) | C12: 04 | D12: 1 | E12: 1 | F12: 1
B13: Инструкторы по спорту | C13: 05
B14: Спортсмены, спортсмены-инструкторы | C14: 06
B15: в том числе: проходящие спортивную подготовку в организациях, осуществляющих спортивную подготовку | C15: 07
B16: Инструкторы – методисты (включая старшего) | C16: 08 | D16: 3 | E16: 3 | F16: 3 | H16: 2 | K16: 3
B17: Преподаватели | C17: 09
B18: Воспитатели (включая старшего) | C18: 10
B19: Методисты (включая старшего) | C19: 11
B20: Педагоги – психологи | C20: 12
B21: Медицинские работники: | C21: 13 | D21: =SUM(D22:D24) -> 0 | E21: =SUM(E22:E24) -> 0 | F21: 0 | G21: 0 | H21: 0 | I21: 0 | J21: 0 | K21: 0 | L21: 0 | M21: 0 | N21: 0
B22: в том числе: врачи | C22: 14
B23: средний медицинский персонал | C23: 15
B24: младший медицинский персонал | C24: 16
B25: Специалисты спортсооружений | C25: 17
B26: Прочий персонал | C26: 18
B27: ИТОГО | C27: 19 | D27: =SUM(D9:D10,D13:D14,D16:D21,D25:D26) -> 6 | E27: =SUM(E9:E10,E13:E14,E16:E21,E25:E26) -> 6 | F27: 6 | G27: 0 | H27: 4 | I27: 0 | J27: 0 | K27: 3 | L27: 0 | M27: 0 | N27: 0

Sheet Раздел11
B2: Раздел XI. Спортивные сооружения
L3: Код по ОКЕИ: единица – 642
B4: Наименование спортивного сооружения | C4: № стро-ки | D4: Число спортивных сооружений – всего | E4: находящихся на балансе | J4: арендуемых | O4: используемых на безвозмездной основе | P4: Количество спортсооружений, входящих во Всероссийский реестр объектов спорта (из гр. 3)
E5: всего | F5: в том числе по формам собственности: | J5: всего | K5: в том числе по формам собственности:
F6: федеральной | G6: субъектов Российской Федерации | H6: муници-пальной | I6: другой | K6: федеральной | L6: субъектов Российской Федерации | M6: муници-пальной | N6: другой
B7: 1 | C7: 2 | D7: 3 | E7: 4 | F7: 5 | G7: 6 | H7: 7 | I7: 8 | J7: 9 | K7: 10 | L7: 11 | M7: 12 | N7: 13 | O7: 14 | P7: 15 | Q7: р13
B8: Стадионы с трибунами – всего | C8: 01 | D8: =E8+J8+O8 -> 1 | E8: =SUM(F8:I8) -> 0 | J8: =SUM(K8:N8) -> 0 | O8: 1 | Q8: =SUM(Раздел13!D22:D23) -> 9909.2
B9: в том числе на 1500 мест и более | C9: 02 | D9: =E9+J9+O9 -> 0 | E9: =SUM(F9:I9) -> 0 | J9: =SUM(K9:N9) -> 0
B10: Плоскостные спортивные сооружения - всего | C10: 03 | D10: 8 | E10: 1 | F10: =SUM(F11:F12) -> 0 | G10: =SUM(G11:G12) -> 0 | H10: =SUM(H11:H12) -> 1 | I10: 0 | J10: 0 | K10: =SUM(K11:K12) -> 0 | L10: =SUM(L11:L12) -> 0 | M10: 0 | N10: 0 | O10: 7 | P10: =SUM(P11:P12) -> 0
B11: в том числе: Плоскостные спортивные сооружения | C11: 04 | D11: 7 | E11: 1 | H11: 1 | J11: 0 | O11: 6
B12: Футбольные поля | C12: 05 | D12: 1 | E12: 0 | J12: 0 | O12: 1
B13: Спортивные залы – всего | C13: 06 | D13: 15 | E13: 2 | F13: =SUM(F14:F17) -> 0 | G13: =SUM(G14:G17) -> 0 | H13: =SUM(H14:H17) -> 2 | I13: 0 | J13: 0 | K13: =SUM(K14:K17) -> 0 | L13: =SUM(L14:L17) -> 0 | M13: 0 | N13: 0 | O13: 13 | P13: =SUM(P14:P17) -> 2
B14: в том числе размером: (42 х 24 м) | C14: 07 | D14: 1 | E14: 1 | H14: 1 | J14: 0
B15: (36 х 18 м); (30 х 18 м) и (30 х 15 м) | C15: 08 | D15: 2 | E15: 1 | H15: 1 | J15: 0 | O15: 1 | P15: 2
B16: (24 х 12 м) и (18 х 9 м) | C16: 09 | D16: 12 | E16: 0 | J16: 0 | O16: 12
B17: иных размеров | C17: 10 | D17: 0 | E17: 0 | J17: 0
B18: Манежи легкоатлетические | C18: 11 | D18: 0 | E18: 0 | J18: 0
B19: Манежи футбольные | C19: 12 | D19: 0 | E19: 0 | J19: 0
B20: Велотреки | C20: 13 | D20: 0 | E20: 0 | J20: 0
B21: Велодромы | C21: 14 | D21: 0 | E21: 0 | J21: 0
B22: Бассейны – всего | C22: 15 | D22: 1 | E22: 0 | F22: =SUM(F23:F26) -> 0 | G22: =SUM(G23:G26) -> 0 | H22: =SUM(H23:H26) -> 0 | I22: 0 | J22: 1 | K22: =SUM(K23:K26) -> 0 | L22: =SUM(L23:L26) -> 0 | M22: 1 | N22: 0 | O22: 0 | P22: 0
B23: в том числе: плавательные 50-метровые | C23: 16 | D23: 0 | E23: 0 | J23: 0
B24: плавательные 25-метровые | C24: 17 | D24: 1 | E24: 0 | J24: 1 | M24: 1
B25: нестандартных размеров | C25: 18 | D25: 0 | E25: 0 | J25: 0
B26: для прыжков в воду | C26: 19 | D26: 0 | E26: 0 | J26: 0
B27: из строки 15 - крытые | C27: 20 | D27: 0 | E27: 0 | J27: 0
B28: Гребные базы | C28: 21 | D28: 0 | E28: 0 | J28: 0
B29: Гребные каналы | C29: 22 | D29: 0 | E29: 0 | J29: 0
B30: Крытые спортивные объекты с искусственным льдом – всего | C30: 23 | D30: 0 | E30: 0 | F30: =SUM(F31:F32) -> 0 | G30: =SUM(G31:G32) -> 0 | H30: =SUM(H31:H32) -> 0 | I30: 0 | J30: 0 | K30: =SUM(K31:K32) -> 0 | L30: =SUM(L31:L32) -> 0 | M30: 0 | N30: 0 | O30: 0 | P30: =SUM(P31:P32) -> 0
B31: в том числе: крытые спортивные объекты с искусственным льдом | C31: 24 | D31: 0 | E31: 0 | J31: 0
B32: конькобежные | C32: 25 | D32: 0 | E32: 0 | J32: 0
B33: Лыжные базы | C33: 26 | D33: 0 | E33: 0 | J33: 0
B34: Лыжные стадионы | C34: 27 | D34: 0 | E34: 0 | J34: 0
B35: Биатлонные комплексы | C35: 28 | D35: 0 | E35: 0 | J35: 0
B36: Сооружения для стрелковых видов спорта – всего | C36: 29 | D36: 0 | E36: 0 | F36: =SUM(F37:F40) -> 0 | G36: =SUM(G37:G40) -> 0 | H36: =SUM(H37:H40) -> 0 | I36: 0 | J36: 0 | K36: =SUM(K37:K40) -> 0 | L36: =SUM(L37:L40) -> 0 | M36: 0 | N36: 0 | O36: 0 | P36: =SUM(P37:P40) -> 0
B37: в том числе: тиры | C37: 30 | D37: 0 | E37: 0 | J37: 0
B38: стрельбища | C38: 31 | D38: 0 | E38: 0 | J38: 0
B39: стенды | C39: 32 | D39: 0 | E39: 0 | J39: 0
B40: лукодромы | C40: 33 | D40: 0 | E40: 0 | J40: 0
B41: Другие спортивные сооружения | C41: 34 | D41: 2 | E41: 0 | J41: =SUM(K41:N41) -> 0 | O41: 2
B42: ИТОГО | C42: 35 | D42: 27 | E42: 3 | F42: =SUM(F8,F10,F13,F18:F22,F28:F30,F33:F36,F41) -> 0 | G42: =SUM(G8,G10,G13,G18:G22,G28:G30,G33:G36,G41) -> 0 | H42: 3 | I42: 0 | J42: 1 | K42: =SUM(K8,K10,K13,K18:K22,K28:K30,K33:K36,K41) -> 0 | L42: =SUM(L8,L10,L13,L18:L22,L28:L30,L33:L36,L41) -> 0 | M42: 1 | N42: 0 | O42: =SUM(O8,O10,O13,O18:O22,O28:O30,O33:O36,O41) -> 23 | P42: =SUM(P8,P10,P13,P18:P22,P28:P30,P33:P36,P41) -> 2

Sheet Раздел12
B2: Раздел XII. Сведения о численности и оплате труда работников
X3: Коды по ОКЕИ: человек – 792; единица – 642; тысяча рублей – 384
B4: Наименование должности | C4: № строки | D4: Количество ставок, единиц | F4: Средняя численность работников, человек | H4: Фонд начисленной заработной платы работников, тыс. руб.
H5: всего | T5: по источникам финансирования
D6: всего (без внешних совместителей) | E6: внешних совме-стителей | F6: списочного состава (без внеш-них совме-стителей) | G6: внешних совме-стителей | H6: списочного состава (без внешних совместителей) | P6: внешних совместителей | T6: списочного состава (без внешних совместителей) | Y6: внешних совместителей
H7: всего | L7: внутренних совместителей | T7: итого | U7: федеральный бюджет | V7: бюджет субъекта РФ | W7: муниципальный бюджет | X7: ПДД | Y7: итого | Z7: федеральный бюджет | AA7: бюджет субъекта РФ | AB7: муниципальный бюджет | AC7: ПДД
H8: по разделам функциональной классификации расходов бюджета и средства от приносящей доход деятельности (ПДД)
H9: Итого | I9: 07 | J9: 11 | K9: ПДД | L9: Итого | M9: 07 | N9: 11 | O9: ПДД | P9: Итого | Q9: 07 | R9: 11 | S9: ПДД
B10: 1 | C10: 2 | D10: 3 | E10: 4 | F10: 5 | G10: 6 | H10: 7 | I10: 8 | J10: 9 | K10: 10 | L10: 11 | M10: 12 | N10: 13 | O10: 14 | P10: 15 | Q10: 16 | R10: 17 | S10: 18 | T10: 19 | U10: 20 | V10: 21 | W10: 22 | X10: 23 | Y10: 24 | Z10: 25 | AA10: 26 | AB10: 27 | AC10: 28 | AE10: 13 5
B11: Директор | C11: 01 | D11: 1 | F11: 1 | H11: =SUM(I11:K11) -> 1129.3 | J11: 1061.7 | K11: 67.6 | L11: =SUM(M11:O11) -> 568.6 | N11: 568.6 | P11: =SUM(Q11:S11) -> 0 | T11: =SUM(U11:X11) -> 1129.3 | W11: 1061.7 | X11: 67.6 | Y11: =SUM(Z11:AC11) -> 0 | AE11: =Раздел13!E9+Раздел13!F9 -> 0
B12: Заместители директора, руководители структурных подразделений и их заместители | C12: 02 | D12: 2 | F12: 2 | H12: =SUM(I12:K12) -> 1345.2 | J12: 1323.8 | K12: 21.4 | L12: =SUM(M12:O12) -> 618.9 | N12: 618.9 | P12: =SUM(Q12:S12) -> 0 | T12: =SUM(U12:X12) -> 1345.2 | W12: 1323.8 | X12: 21.4 | Y12: =SUM(Z12:AC12) -> 0 | AE12: =Раздел13!G9+Раздел13!H9 -> 0
B13: Работники учреждений, осуществляющие спортивную подготовку: | C13: 03 | D13: =SUM(D14,D20,D23) -> 40.5 | E13: =SUM(E14,E20,E23) -> 8.6 | F13: 21 | G13: 4 | H13: 14724.2 | I13: 0 | J13: 14486.8 | K13: 237.4 | L13: 340.9 | M13: 0 | N13: 340.9 | O13: 0 | P13: 1322.5 | Q13: 0 | R13: 1322.5 | S13: 0 | T13: 14724.2 | U13: 0 | V13: 0 | W13: 14486.8 | X13: 237.4 | Y13: 1322.5 | Z13: 0 | AA13: 0 | AB13: 1322.5 | AC13: 0 | AE13: =Раздел13!I9+Раздел13!J9 -> 23953.1
B14: тренерский персонал - всего: | C14: 04 | D14: =SUM(D15:D17) -> 36 | E14: =SUM(E15:E17) -> 8.6 | F14: 18 | G14: 4 | H14: 13332.6 | I14: 0 | J14: 13117.7 | K14: 214.9 | L14: 0 | M14: 0 | N14: 0 | O14: 0 | P14: 1322.5 | Q14: 0 | R14: 1322.5 | S14: 0 | T14: 13332.6 | U14: 0 | V14: 0 | W14: 13117.7 | X14: 214.9 | Y14: 1322.5 | Z14: 0 | AA14: 0 | AB14: 1322.5 | AC14: 0 | AE14: =Раздел13!K9 -> 341.3
B15: в том числе: главные тренеры по видам спорта; | C15: 05 | H15: 0 | L15: 0 | P15: 0 | T15: 0 | Y15: =SUM(Z15:AC15) -> 0
B16: старшие тренеры по видам спорта; | C16: 06 | H16: 0 | L16: 0 | P16: 0 | T16: 0 | Y16: 0
B17: тренеры по видам спорта - всего: | C17: 07 | D17: =SUM(D18:D19) -> 36 | E17: =SUM(E18:E19) -> 8.6 | F17: 18 | G17: 4 | H17: 13332.6 | I17: 0 | J17: 13117.7 | K17: 214.9 | L17: 0 | M17: 0 | N17: 0 | O17: 0 | P17: 1322.5 | Q17: 0 | R17: 1322.5 | S17: 0 | T17: 13332.6 | U17: 0 | V17: 0 | W17: 13117.7 | X17: 214.9 | Y17: 1322.5 | Z17: 0 | AA17: 0 | AB17: 1322.5 | AC17: 0
B18: в том числе: тренеры | C18: 08 | D18: 36 | E18: 8.6 | F18: 18 | G18: 4 | H18: 13332.6 | J18: 13117.7 | K18: 214.9 | L18: 0 | P18: 1322.5 | R18: 1322.5 | T18: 13332.6 | W18: 13117.7 | X18: 214.9 | Y18: 1322.5 | AB18: 1322.5
B19: тренеры-преподаватели | C19: 09 | H19: 0 | L19: 0 | P19: 0 | T19: 0 | Y19: 0
B20: методический персонал: | C20: 10 | D20: =SUM(D21:D22) -> 4.5 | E20: =SUM(E21:E22) -> 0 | F20: 3 | G20: 0 | H20: 1391.6 | I20: 0 | J20: 1369.1 | K20: 22.5 | L20: 340.9 | M20: 0 | N20: 340.9 | O20: 0 | P20: 0 | Q20: 0 | R20: 0 | S20: 0 | T20: 1391.6 | U20: 0 | V20: 0 | W20: 1369.1 | X20: 22.5 | Y20: 0 | Z20: 0 | AA20: 0 | AB20: 0 | AC20: 0
B21: в том числе: инструкторы-методисты; | C21: 11 | D21: 4.5 | F21: 3 | H21: 1391.6 | J21: 1369.1 | K21: 22.5 | L21: 340.9 | N21: 340.9 | P21: 0 | T21: 1391.6 | W21: 1369.1 | X21: 22.5 | Y21: 0
B22: старшие инструкторы-методисты | C22: 12 | H22: 0 | L22: 0 | P22: 0 | T22: 0 | Y22: 0
B23: спортсмены, спортсмены-инструкторы | C23: 13 | H23: 0 | L23: 0 | P23: 0 | T23: 0 | Y23: 0
B24: Тренеры спортивных сборных команд: | C24: 14 | D24: =SUM(D25:D27) -> 0 | E24: =SUM(E25:E27) -> 0 | F24: 0 | G24: 0 | H24: 0 | I24: 0 | J24: 0 | K24: 0 | L24: 0 | M24: 0 | N24: 0 | O24: 0 | P24: 0 | Q24: 0 | R24: 0 | S24: 0 | T24: 0 | U24: 0 | V24: 0 | W24: 0 | X24: 0 | Y24: 0 | Z24: 0 | AA24: 0 | AB24: 0 | AC24: 0
B25: в том числе: главные тренеры спортивных сборных команд; | C25: 15 | H25: 0 | L25: 0 | P25: 0 | T25: 0 | Y25: 0
B26: старшие тренеры спортивных сборных команд | C26: 16 | H26: 0 | L26: 0 | P26: 0 | T26: 0 | Y26: 0
B27: старшие тренеры по резерву сборных команд | C27: 17 | H27: 0 | L27: 0 | P27: 0 | T27: 0 | Y27: 0
B28: Тренеры-консультанты | C28: 18 | H28: 0 | L28: 0 | P28: 0 | T28: 0 | Y28: 0
B29: Медицинские работники | C29: 19 | H29: 0 | L29: 0 | P29: 0 | T29: 0 | Y29: 0
B30: Прочий персонал | C30: 20 | D30: 22.75 | F30: 17 | H30: 5773.2 | J30: 5758.3 | K30: 14.9 | L30: 896.2 | N30: 896.2 | P30: 0 | T30: 5773.2 | W30: 5758.3 | X30: 14.9 | Y30: 0
B31: ИТОГО | C31: 21 | D31: =SUM(D11:D13,D24,D28:D30) -> 66.25 | E31: =SUM(E11:E13,E24,E28:E30) -> 8.6 | F31: 41 | G31: 4 | H31: 22971.9 | I31: 0 | J31: 22630.6 | K31: 341.3 | L31: 2424.6 | M31: 0 | N31: 2424.6 | O31: 0 | P31: 1322.5 | Q31: 0 | R31: 1322.5 | S31: 0 | T31: 22971.9 | U31: 0 | V31: 0 | W31: 22630.6 | X31: 341.3 | Y31: 1322.5 | Z31: 0 | AA31: 0 | AB31: 1322.5 | AC31: 0

Sheet Раздел13
B1: Раздел XIII. Финансовая деятельность организаций
I2: Код по ОКЕИ: тысяча рублей - 384
B3: Расходы на содержание организаций | C3: № строки | D3: ВСЕГО | E3: в том числе по источникам финансирования и разделам функциональной классификации расходов бюджета:
E5: федеральный бюджет | G5: бюджет субъекта Российской Федерации | I5: муниципальный бюджет | K5: внебюджетные источники
E6: 07 | F6: 11 | G6: 07 | H6: 11 | I6: 07 | J6: 11 | U6: 11р | V6: 12 Р
B7: 1 | C7: 2 | D7: 3 | E7: 4 | F7: 5 | G7: 6 | H7: 7 | I7: 8 | J7: 9 | K7: 10 | U7: =Раздел11!J42 -> 1 | V7: =SUM(Раздел12!U31,Раздел12!Z31) -> 0
B8: Всего расходов | C8: 01 | D8: =SUM(E8:K8) -> 31980.4 | E8: =SUM(E9:E13,E16,E21:E22,E26) -> 0 | F8: =SUM(F9:F13,F16,F21:F22,F26) -> 0 | G8: 0 | H8: 0 | I8: 0 | J8: 31141.5 | K8: 838.9 | V8: =SUM(Раздел12!V31,Раздел12!AA31) -> 0
B9: в том числе: Заработная плата | C9: 02 | D9: =SUM(E9:K9) -> 24294.4 | J9: 23953.1 | K9: 341.3 | V9: =SUM(Раздел12!W31,Раздел12!AB31) -> 23953.1
B10: Организация и проведение спортивных мероприятий | C10: 03 | D10: 0 | V10: =SUM(Раздел12!X31,Раздел12!AC31) -> 341.3
B11: Участие в соревнованиях и тренировочных сборах | C11: 04 | D11: 656.3 | J11: 565.3 | K11: 91 | V11: =Раздел12!I31+Раздел12!Q31 -> 0
B12: Медико-восстановительные мероприятия | C12: 05 | D12: 0 | V12: =Раздел12!J31+Раздел12!R31 -> 23953.1
B13: Материально-техническое обеспечение - всего: | C13: 06 | D13: 0 | E13: =SUM(E14:E15) -> 0 | F13: =SUM(F14:F15) -> 0 | G13: 0 | H13: 0 | I13: =SUM(I14:I15) -> 0 | J13: 0 | K13: 0 | V13: =Раздел12!K31+Раздел12!S31 -> 341.3
B14: в том числе: экипировка, спортивное оборудование, инвентарь; | C14: 07 | D14: 0 | V14: =Раздел1!G29 -> 1
B15: прочее | C15: 08 | D15: 0
B16: Профессиональная переподготовка и повышение квалификации специалистов, осуществляющих деятельность в области физической культуры и спорта - всего: | C16: 09 | D16: 28.5 | E16: =SUM(E17:E20) -> 0 | F16: =SUM(F17:F20) -> 0 | G16: 0 | H16: 0 | I16: 0 | J16: 28.5 | K16: 0
B17: в том числе: тренеры; | C17: 10 | D17: 24 | J17: 24
B18: тренеры-преподаватели; | C18: 11 | D18: 0
B19: инструкторы-методисты; | C19: 12 | D19: 4.5 | J19: 4.5
B20: другие специалисты | C20: 13 | D20: 0 | U20: =Раздел11!E42 -> 3
B21: Предоставление доступа к объекту спорта | C21: 14 | D21: 0
B22: Содержание спортивных сооружений - всего: | C22: 15 | D22: 5959.5 | E22: =SUM(E23:E25) -> 0 | F22: =SUM(F23:F25) -> 0 | G22: 0 | H22: 0 | I22: 0 | J22: 5682.5 | K22: 277
B23: в том числе: аренда (услуги спортсооружений); | C23: 16 | D23: 3949.7 | J23: 3949.7 | V23: =Раздел11!J42 -> 1
B24: собственные спортсооружения; | C24: 17 | D24: 2009.8 | J24: 1732.8 | K24: 277
B25: другие расходы на содержание | C25: 18 | D25: 0
B26: Прочие расходы | C26: 19 | D26: 1041.7 | J26: 912.1 | K26: 129.6
B28: Поступило средств от приносящей доход детельности, тысяча рублей: | D28: 657.9
B31: Должностное лицо, ответственное за предоставление первичных статистических данных (лицо, уполномоченное предоставлять первичные статистические данные от имени юридического лица)
B32: директор МБУ "СШОР № 2" | C32: Болдырев Вячеслав Дмитриевич
B33: (должность) | D33: (ФИО) | G33: (подпись)
B34: 8(86365)5-13-84 | C34: sdush-2@yandex.ru | G34: 2022-12-23
B35: (номер контактного телефона) | C35: (e-mail) | G35: (дата составления документа)
